Workbook

Sheet Report - ALL (DASHBOARD)
A2: Dashboard | B2: Select Parameter: | F2: Select Statistic: | I2: Select Seasonal Period: | L2: Do you want to convert CFS values to TAF/Mon? | W2: 38
W3: 1
W4: 14
L5: News | W5: TRUE
L6: - parameter list updated to include all items on the appendix list (in addition to other locations of interest)
L7: - year type sorting is now done by calendar year
L8: - year type sorting is provided for 60-20-20 index as well as 40-30-30 index
L9: - format modified to be consistent with appendix reports
L10: - check out the new spinners!
B13: =CONCATENATE('Report Data'!$P$7," / seasonal statistics (",$W$2,"-",$W$3,"-",$W$4,"-",IF(NOT($W$5),1,2),"a):") -> Total Sites Release / seasonal statistics (38-1-14-2a):
C17: ='Report Data'!P6 -> January-December
C18: ='Report Data'!P7 -> Total Sites Release
C19: ='Report Data'!P9 -> (C17604/FLOW-CHANNEL)
C20: ='Report Data'!P8 -> Averages
C21: ='Report Data'!P11 -> Volume (TAF) | F21: =CONCATENATE("Difference from ",'Report Data'!Q13) -> Difference from NAA 032822 2035CT
C25: =IF('Report Data'!O14=0,"",'Report Data'!O14) -> NAA 032822 2035CT | E25: =IFERROR('Report Data'!P14,"") -> 0
C26: =IF('Report Data'!O15=0,"",'Report Data'!O15) -> ALT3A 032922 2035CT | E26: =IFERROR('Report Data'!P15,"") -> 284.1989768 | F26: =IFERROR('Report Data'!Q15,"") -> 284.1989768
C27: =IF('Report Data'!O16=0,"",'Report Data'!O16) -> ALT3B 032922 2035CT | E27: =IFERROR('Report Data'!P16,"") -> 274.170811 | F27: =IFERROR('Report Data'!Q16,"") -> 274.170811
C28: =IF('Report Data'!O17=0,"",'Report Data'!O17) ->  | E28: =IFERROR('Report Data'!P17,"") ->  | F28: =IFERROR('Report Data'!Q17,"") -> 
C29: =IF('Report Data'!O18=0,"",'Report Data'!O18) ->  | E29: =IFERROR('Report Data'!P18,"") ->  | F29: =IFERROR('Report Data'!Q18,"") -> 
C30: =IF('Report Data'!O19=0,"",'Report Data'!O19) ->  | E30: =IFERROR('Report Data'!P19,"") ->  | F30: =IFERROR('Report Data'!Q19,"") -> 
B60: =CONCATENATE('Report Data'!$P$7," / monthly statistics (",$W$2,"-",$W$3,"-",$W$4,"-",IF(NOT($W$5),1,2),"b):") -> Total Sites Release / monthly statistics (38-1-14-2b):
B88: =CONCATENATE('Report Data'!$P$7," / time series (",$W$2,"-",$W$3,"-",$W$4,"-",IF(NOT($W$5),1,2),"c):") -> Total Sites Release / time series (38-1-14-2c):

Sheet Chart - Prob Exc
S2: Select Parameter: | X2: Select Statistic: | AB2: Select Seasonal Period: | AE2: Do you want to convert CFS values to TAF/Mon?

Sheet Chart - Pattern
S2: Select Parameter: | X2: Select Statistic: | AB2: Select Seasonal Period: | AE2: Do you want to convert CFS values to TAF/Mon?

Sheet Chart - WYT
S2: Select Parameter: | X2: Select Statistic: | AB2: Select Seasonal Period: | AE2: Do you want to convert CFS values to TAF/Mon?

Sheet Report Data
A2: Information, Tables and Calculations for Reports
A4: Table of Selected Values for Monthly Chart: | O4: Trend Evaluation: | U4: Water Year Type Averages:
A6: Title: | B6: ='Compile Data'!$B$5 -> Total Sites Release | O6: Title: | P6: =INDEX(Other!$B$9:$B$33,'Report - ALL (DASHBOARD)'!$W$4) -> January-December | U6: Title: | V6: =INDEX(Other!$B$9:$B$33,'Report - ALL (DASHBOARD)'!$W$4) -> January-December
B7: =INDEX(Other!$C$9:$C$35,'Report - ALL (DASHBOARD)'!$W$3) -> Averages | P7: ='Compile Data'!$B$5 -> Total Sites Release | V7: ='Compile Data'!$B$5 -> Total Sites Release
B8: =CONCATENATE("(",'Compile Data'!$B$6,"/",'Compile Data'!$B$7,")") -> (C17604/FLOW-CHANNEL) | P8: =CONCATENATE(INDEX(Other!$C$9:$C$35,'Report - ALL (DASHBOARD)'!$W$3)," ",IF('Report - ALL (DASHBOARD)'!$W$3>4,IF(AND('Compile Data'!$B$10="TAF",'Compile Data'!$B$8="PER-AVER"),"Totals","Averages"),"")) -> Averages | V8: =CONCATENATE(INDEX(Other!$C$9:$C$35,'Report - ALL (DASHBOARD)'!$W$3)," ",IF('Report - ALL (DASHBOARD)'!$W$3>4,IF(AND('Compile Data'!$B$10="TAF",'Compile Data'!$B$8="PER-AVER"),"Totals","Averages"),"")) -> Averages
P9: =CONCATENATE("(",'Compile Data'!$B$6,"/",'Compile Data'!$B$7,")") -> (C17604/FLOW-CHANNEL) | V9: =CONCATENATE("(",'Compile Data'!$B$6,"/",'Compile Data'!$B$7,")") -> (C17604/FLOW-CHANNEL)
A11: Y-axis: | B11: =IF('Compile Data'!$B$10="CFS","Flow (CFS)",IF('Compile Data'!$B$10="TAF","Volume (TAF)",IF('Compile Data'!$B$10="KM","POSITION (KM)",""))) -> Volume (TAF) | P11: =IF('Compile Data'!$B$10="CFS","Flow (CFS)",IF('Compile Data'!$B$10="TAF","Volume (TAF)",IF('Compile Data'!$B$10="KM","POSITION (KM)",""))) -> Volume (TAF) | V11: =IF('Compile Data'!$B$10="CFS","Flow (CFS)",IF('Compile Data'!$B$10="TAF","Volume (TAF)",IF('Compile Data'!$B$10="KM","POSITION (KM)",""))) -> Volume (TAF)
Q12: Diff from | R12: Diff from
B13: OCT | C13: NOV | D13: DEC | E13: JAN | F13: FEB | G13: MAR | H13: APR | I13: MAY | J13: JUN | K13: JUL | L13: AUG | M13: SEP | P13: Value | Q13: =$O$14 -> NAA 032822 2035CT | R13: =$O$15 -> ALT3A 032922 2035CT | V13: Wet | W13: Above Normal | X13: Below Normal | Y13: Dry | Z13: Critically Dry
A14: ='Compile Data'!$B$1 -> NAA 032822 2035CT | B14: =INDEX('Compile Data'!L$95:L$120,'Report - ALL (DASHBOARD)'!$W$3) -> 0 | C14: =INDEX('Compile Data'!M$95:M$120,'Report - ALL (DASHBOARD)'!$W$3) -> 0 | D14: =INDEX('Compile Data'!N$95:N$120,'Report - ALL (DASHBOARD)'!$W$3) -> 0 | E14: =INDEX('Compile Data'!O$95:O$120,'Report - ALL (DASHBOARD)'!$W$3) -> 0 | F14: =INDEX('Compile Data'!P$95:P$120,'Report - ALL (DASHBOARD)'!$W$3) -> 0 | G14: =INDEX('Compile Data'!Q$95:Q$120,'Report - ALL (DASHBOARD)'!$W$3) -> 0 | H14: =INDEX('Compile Data'!R$95:R$120,'Report - ALL (DASHBOARD)'!$W$3) -> 0 | I14: =INDEX('Compile Data'!S$95:S$120,'Report - ALL (DASHBOARD)'!$W$3) -> 0 | J14: =INDEX('Compile Data'!T$95:T$120,'Report - ALL (DASHBOARD)'!$W$3) -> 0 | K14: =INDEX('Compile Data'!U$95:U$120,'Report - ALL (DASHBOARD)'!$W$3) -> 0 | L14: =INDEX('Compile Data'!V$95:V$120,'Report - ALL (DASHBOARD)'!$W$3) -> 0 | M14: =INDEX('Compile Data'!W$95:W$120,'Report - ALL (DASHBOARD)'!$W$3) -> 0 | O14: ='Compile Data'!$B$1 -> NAA 032822 2035CT | P14: =INDEX('Compile Data'!$L$95:$AI$120,'Report - ALL (DASHBOARD)'!$W$3,'Report - ALL (DASHBOARD)'!$W$4) -> 0 | U14: ='Compile Data'!$B$1 -> NAA 032822 2035CT | V14: =INDEX('Compile Data'!$L$95:$AI$120,14,'Report - ALL (DASHBOARD)'!$W$4) -> 0 | W14: =INDEX('Compile Data'!$L$95:$AI$120,15,'Report - ALL (DASHBOARD)'!$W$4) -> 0 | X14: =INDEX('Compile Data'!$L$95:$AI$120,16,'Report - ALL (DASHBOARD)'!$W$4) -> 0 | Y14: =INDEX('Compile Data'!$L$95:$AI$120,17,'Report - ALL (DASHBOARD)'!$W$4) -> 0 | Z14: =INDEX('Compile Data'!$L$95:$AI$120,18,'Report - ALL (DASHBOARD)'!$W$4) -> 0
A15: ='Compile Data'!$C$1 -> ALT3A 032922 2035CT | B15: =INDEX('Compile Data'!AL$95:AL$120,'Report - ALL (DASHBOARD)'!$W$3) -> 26.09959197 | C15: =INDEX('Compile Data'!AM$95:AM$120,'Report - ALL (DASHBOARD)'!$W$3) -> 8.143200759 | D15: =INDEX('Compile Data'!AN$95:AN$120,'Report - ALL (DASHBOARD)'!$W$3) -> 1.655972684 | E15: =INDEX('Compile Data'!AO$95:AO$120,'Report - ALL (DASHBOARD)'!$W$3) -> 1.998769905e-09 | F15: =INDEX('Compile Data'!AP$95:AP$120,'Report - ALL (DASHBOARD)'!$W$3) -> 0 | G15: =INDEX('Compile Data'!AQ$95:AQ$120,'Report - ALL (DASHBOARD)'!$W$3) -> 0.4549276148 | H15: =INDEX('Compile Data'!AR$95:AR$120,'Report - ALL (DASHBOARD)'!$W$3) -> 11.64585299 | I15: =INDEX('Compile Data'!AS$95:AS$120,'Report - ALL (DASHBOARD)'!$W$3) -> 31.56206186 | J15: =INDEX('Compile Data'!AT$95:AT$120,'Report - ALL (DASHBOARD)'!$W$3) -> 48.27881232 | K15: =INDEX('Compile Data'!AU$95:AU$120,'Report - ALL (DASHBOARD)'!$W$3) -> 61.39020458 | L15: =INDEX('Compile Data'!AV$95:AV$120,'Report - ALL (DASHBOARD)'!$W$3) -> 54.60099173 | M15: =INDEX('Compile Data'!AW$95:AW$120,'Report - ALL (DASHBOARD)'!$W$3) -> 38.59127204 | O15: ='Compile Data'!$C$1 -> ALT3A 032922 2035CT | P15: =INDEX('Compile Data'!$AL$95:$BI$120,'Report - ALL (DASHBOARD)'!$W$3,'Report - ALL (DASHBOARD)'!$W$4) -> 284.1989768 | Q15: =$P15-$P$14 -> 284.1989768 | U15: ='Compile Data'!$C$1 -> ALT3A 032922 2035CT | V15: =INDEX('Compile Data'!$AL$95:$BI$120,14,'Report - ALL (DASHBOARD)'!$W$4) -> 102.5596331 | W15: =INDEX('Compile Data'!$AL$95:$BI$120,15,'Report - ALL (DASHBOARD)'!$W$4) -> 390.3276889 | X15: =INDEX('Compile Data'!$AL$95:$BI$120,16,'Report - ALL (DASHBOARD)'!$W$4) -> 354.2543352 | Y15: =INDEX('Compile Data'!$AL$95:$BI$120,17,'Report - ALL (DASHBOARD)'!$W$4) -> 442.5406692 | Z15: =INDEX('Compile Data'!$AL$95:$BI$120,18,'Report - ALL (DASHBOARD)'!$W$4) -> 288.2092291
A16: ='Compile Data'!$D$1 -> ALT3B 032922 2035CT | B16: =INDEX('Compile Data'!BL$95:BL$120,'Report - ALL (DASHBOARD)'!$W$3) -> 27.7421682 | C16: =INDEX('Compile Data'!BM$95:BM$120,'Report - ALL (DASHBOARD)'!$W$3) -> 11.07248845 | D16: =INDEX('Compile Data'!BN$95:BN$120,'Report - ALL (DASHBOARD)'!$W$3) -> 1.834639685 | E16: =INDEX('Compile Data'!BO$95:BO$120,'Report - ALL (DASHBOARD)'!$W$3) -> 2.362380007e-09 | F16: =INDEX('Compile Data'!BP$95:BP$120,'Report - ALL (DASHBOARD)'!$W$3) -> 1.198535033e-06 | G16: =INDEX('Compile Data'!BQ$95:BQ$120,'Report - ALL (DASHBOARD)'!$W$3) -> 0.456158324 | H16: =INDEX('Compile Data'!BR$95:BR$120,'Report - ALL (DASHBOARD)'!$W$3) -> 11.32600404 | I16: =INDEX('Compile Data'!BS$95:BS$120,'Report - ALL (DASHBOARD)'!$W$3) -> 28.66722623 | J16: =INDEX('Compile Data'!BT$95:BT$120,'Report - ALL (DASHBOARD)'!$W$3) -> 44.54015416 | K16: =INDEX('Compile Data'!BU$95:BU$120,'Report - ALL (DASHBOARD)'!$W$3) -> 55.91484491 | L16: =INDEX('Compile Data'!BV$95:BV$120,'Report - ALL (DASHBOARD)'!$W$3) -> 50.63485946 | M16: =INDEX('Compile Data'!BW$95:BW$120,'Report - ALL (DASHBOARD)'!$W$3) -> 40.29608385 | O16: ='Compile Data'!$D$1 -> ALT3B 032922 2035CT | P16: =INDEX('Compile Data'!$BL$95:$CI$120,'Report - ALL (DASHBOARD)'!$W$3,'Report - ALL (DASHBOARD)'!$W$4) -> 274.170811 | Q16: 274.170811 | R16: =$P16-$P$15 -> -10.02816573 | U16: ='Compile Data'!$D$1 -> ALT3B 032922 2035CT | V16: =INDEX('Compile Data'!$BL$95:$CI$120,14,'Report - ALL (DASHBOARD)'!$W$4) -> 107.9201257 | W16: =INDEX('Compile Data'!$BL$95:$CI$120,15,'Report - ALL (DASHBOARD)'!$W$4) -> 318.2930014 | X16: =INDEX('Compile Data'!$BL$95:$CI$120,16,'Report - ALL (DASHBOARD)'!$W$4) -> 321.966656 | Y16: =INDEX('Compile Data'!$BL$95:$CI$120,17,'Report - ALL (DASHBOARD)'!$W$4) -> 451.2914139 | Z16: =INDEX('Compile Data'!$BL$95:$CI$120,18,'Report - ALL (DASHBOARD)'!$W$4) -> 289.7174997
A17: ='Compile Data'!$E$1 -> 0 | B17: =INDEX('Compile Data'!CL$95:CL$120,'Report - ALL (DASHBOARD)'!$W$3) ->  | C17: =INDEX('Compile Data'!CM$95:CM$120,'Report - ALL (DASHBOARD)'!$W$3) ->  | D17: =INDEX('Compile Data'!CN$95:CN$120,'Report - ALL (DASHBOARD)'!$W$3) ->  | E17: =INDEX('Compile Data'!CO$95:CO$120,'Report - ALL (DASHBOARD)'!$W$3) ->  | F17: =INDEX('Compile Data'!CP$95:CP$120,'Report - ALL (DASHBOARD)'!$W$3) ->  | G17: =INDEX('Compile Data'!CQ$95:CQ$120,'Report - ALL (DASHBOARD)'!$W$3) ->  | H17: =INDEX('Compile Data'!CR$95:CR$120,'Report - ALL (DASHBOARD)'!$W$3) ->  | I17: =INDEX('Compile Data'!CS$95:CS$120,'Report - ALL (DASHBOARD)'!$W$3) ->  | J17: =INDEX('Compile Data'!CT$95:CT$120,'Report - ALL (DASHBOARD)'!$W$3) ->  | K17: =INDEX('Compile Data'!CU$95:CU$120,'Report - ALL (DASHBOARD)'!$W$3) ->  | L17: =INDEX('Compile Data'!CV$95:CV$120,'Report - ALL (DASHBOARD)'!$W$3) ->  | M17: =INDEX('Compile Data'!CW$95:CW$120,'Report - ALL (DASHBOARD)'!$W$3) ->  | O17: ='Compile Data'!$E$1 -> 0 | P17: =INDEX('Compile Data'!$CL$95:$DI$120,'Report - ALL (DASHBOARD)'!$W$3,'Report - ALL (DASHBOARD)'!$W$4) ->  | R17: =$P17-$P$15 ->  | U17: ='Compile Data'!$E$1 -> 0 | V17: =INDEX('Compile Data'!$CL$95:$DI$120,14,'Report - ALL (DASHBOARD)'!$W$4) ->  | W17: =INDEX('Compile Data'!$CL$95:$DI$120,15,'Report - ALL (DASHBOARD)'!$W$4) ->  | X17: =INDEX('Compile Data'!$CL$95:$DI$120,16,'Report - ALL (DASHBOARD)'!$W$4) ->  | Y17: =INDEX('Compile Data'!$CL$95:$DI$120,17,'Report - ALL (DASHBOARD)'!$W$4) ->  | Z17: =INDEX('Compile Data'!$CL$95:$DI$120,18,'Report - ALL (DASHBOARD)'!$W$4) -> 
A18: ='Compile Data'!$F$1 -> 0 | B18: =INDEX('Compile Data'!DL$95:DL$120,'Report - ALL (DASHBOARD)'!$W$3) ->  | C18: =INDEX('Compile Data'!DM$95:DM$120,'Report - ALL (DASHBOARD)'!$W$3) ->  | D18: =INDEX('Compile Data'!DN$95:DN$120,'Report - ALL (DASHBOARD)'!$W$3) ->  | E18: =INDEX('Compile Data'!DO$95:DO$120,'Report - ALL (DASHBOARD)'!$W$3) ->  | F18: =INDEX('Compile Data'!DP$95:DP$120,'Report - ALL (DASHBOARD)'!$W$3) ->  | G18: =INDEX('Compile Data'!DQ$95:DQ$120,'Report - ALL (DASHBOARD)'!$W$3) ->  | H18: =INDEX('Compile Data'!DR$95:DR$120,'Report - ALL (DASHBOARD)'!$W$3) ->  | I18: =INDEX('Compile Data'!DS$95:DS$120,'Report - ALL (DASHBOARD)'!$W$3) ->  | J18: =INDEX('Compile Data'!DT$95:DT$120,'Report - ALL (DASHBOARD)'!$W$3) ->  | K18: =INDEX('Compile Data'!DU$95:DU$120,'Report - ALL (DASHBOARD)'!$W$3) ->  | L18: =INDEX('Compile Data'!DV$95:DV$120,'Report - ALL (DASHBOARD)'!$W$3) ->  | M18: =INDEX('Compile Data'!DW$95:DW$120,'Report - ALL (DASHBOARD)'!$W$3) ->  | O18: ='Compile Data'!$F$1 -> 0 | P18: =INDEX('Compile Data'!$DL$95:$EI$120,'Report - ALL (DASHBOARD)'!$W$3,'Report - ALL (DASHBOARD)'!$W$4) ->  | Q18: =$P18-$P$14 ->  | R18: =$P18-$P$15 ->  | U18: ='Compile Data'!$F$1 -> 0 | V18: =INDEX('Compile Data'!$DL$95:$EI$120,14,'Report - ALL (DASHBOARD)'!$W$4) ->  | W18: =INDEX('Compile Data'!$DL$95:$EI$120,15,'Report - ALL (DASHBOARD)'!$W$4) ->  | X18: =INDEX('Compile Data'!$DL$95:$EI$120,16,'Report - ALL (DASHBOARD)'!$W$4) ->  | Y18: =INDEX('Compile Data'!$DL$95:$EI$120,17,'Report - ALL (DASHBOARD)'!$W$4) ->  | Z18: =INDEX('Compile Data'!$DL$95:$EI$120,18,'Report - ALL (DASHBOARD)'!$W$4) -> 
A19: ='Compile Data'!$G$1 -> 0 | B19: =INDEX('Compile Data'!EL$95:EL$120,'Report - ALL (DASHBOARD)'!$W$3) ->  | C19: =INDEX('Compile Data'!EM$95:EM$120,'Report - ALL (DASHBOARD)'!$W$3) ->  | D19: =INDEX('Compile Data'!EN$95:EN$120,'Report - ALL (DASHBOARD)'!$W$3) ->  | E19: =INDEX('Compile Data'!EO$95:EO$120,'Report - ALL (DASHBOARD)'!$W$3) ->  | F19: =INDEX('Compile Data'!EP$95:EP$120,'Report - ALL (DASHBOARD)'!$W$3) ->  | G19: =INDEX('Compile Data'!EQ$95:EQ$120,'Report - ALL (DASHBOARD)'!$W$3) ->  | H19: =INDEX('Compile Data'!ER$95:ER$120,'Report - ALL (DASHBOARD)'!$W$3) ->  | I19: =INDEX('Compile Data'!ES$95:ES$120,'Report - ALL (DASHBOARD)'!$W$3) ->  | J19: =INDEX('Compile Data'!ET$95:ET$120,'Report - ALL (DASHBOARD)'!$W$3) ->  | K19: =INDEX('Compile Data'!EU$95:EU$120,'Report - ALL (DASHBOARD)'!$W$3) ->  | L19: =INDEX('Compile Data'!EV$95:EV$120,'Report - ALL (DASHBOARD)'!$W$3) ->  | M19: =INDEX('Compile Data'!EW$95:EW$120,'Report - ALL (DASHBOARD)'!$W$3) ->  | O19: ='Compile Data'!$G$1 -> 0 | P19: =INDEX('Compile Data'!$EL$95:$FI$120,'Report - ALL (DASHBOARD)'!$W$3,'Report - ALL (DASHBOARD)'!$W$4) ->  | R19: =$P19-$P$15 ->  | U19: ='Compile Data'!$G$1 -> 0 | V19: =INDEX('Compile Data'!$EL$95:$FI$120,14,'Report - ALL (DASHBOARD)'!$W$4) ->  | W19: =INDEX('Compile Data'!$EL$95:$FI$120,15,'Report - ALL (DASHBOARD)'!$W$4) ->  | X19: =INDEX('Compile Data'!$EL$95:$FI$120,16,'Report - ALL (DASHBOARD)'!$W$4) ->  | Y19: =INDEX('Compile Data'!$EL$95:$FI$120,17,'Report - ALL (DASHBOARD)'!$W$4) ->  | Z19: =INDEX('Compile Data'!$EL$95:$FI$120,18,'Report - ALL (DASHBOARD)'!$W$4) -> 
A21: Annuals Plot: | O21: Exceedence Plot:
A23: Title: | B23: =INDEX(Other!$B$9:$B$33,'Report - ALL (DASHBOARD)'!$W$4) -> January-December | O23: Title: | P23: =INDEX(Other!$B$9:$B$33,'Report - ALL (DASHBOARD)'!$W$4) -> January-December
B24: ='Compile Data'!$B$5 -> Total Sites Release | P24: ='Compile Data'!$B$5 -> Total Sites Release
B25: =IF('Compile Data'!$B$10="CFS","Flow (CFS)",IF('Compile Data'!$B$10="TAF","Volume (TAF)",IF('Compile Data'!$B$10="KM","POSITION (KM)",""))) -> Volume (TAF) | P25: =IF('Compile Data'!$B$10="CFS","Flow (CFS)",IF('Compile Data'!$B$10="TAF","Volume (TAF)",IF('Compile Data'!$B$10="KM","POSITION (KM)",""))) -> Volume (TAF)
B27: ='Compile Data'!$B$1 -> NAA 032822 2035CT | C27: ='Compile Data'!$C$1 -> ALT3A 032922 2035CT | D27: ='Compile Data'!$D$1 -> ALT3B 032922 2035CT | E27: ='Compile Data'!$E$1 -> 0 | F27: ='Compile Data'!$F$1 -> 0 | G27: ='Compile Data'!$G$1 -> 0 | Q27: ='Compile Data'!$B$1 -> NAA 032822 2035CT | R27: ='Compile Data'!$C$1 -> ALT3A 032922 2035CT | S27: ='Compile Data'!$D$1 -> ALT3B 032922 2035CT | T27: ='Compile Data'!$E$1 -> 0 | U27: ='Compile Data'!$F$1 -> 0 | V27: ='Compile Data'!$G$1 -> 0
A28: 1922 | B28: =INDEX('Compile Data'!$L$12:$AI$93,$A28-1921,'Report - ALL (DASHBOARD)'!$W$4) -> 0 | C28: =INDEX('Compile Data'!$AL$12:$BI$93,$A28-1921,'Report - ALL (DASHBOARD)'!$W$4) -> 265.5457 | D28: =INDEX('Compile Data'!$BL$12:$CI$93,$A28-1921,'Report - ALL (DASHBOARD)'!$W$4) -> 265.5430366 | E28: =INDEX('Compile Data'!$CL$12:$DI$93,$A28-1921,'Report - ALL (DASHBOARD)'!$W$4) ->  | F28: =INDEX('Compile Data'!$DL$12:$EI$93,$A28-1921,'Report - ALL (DASHBOARD)'!$W$4) ->  | G28: =INDEX('Compile Data'!$EL$12:$FI$93,$A28-1921,'Report - ALL (DASHBOARD)'!$W$4) ->  | O28: 1 | P28: =(O28-1)/81 -> 0 | Q28: =INDEX('Compile Data'!$L$123:$AI$204,$O28,'Report - ALL (DASHBOARD)'!$W$4) -> 0 | R28: =INDEX('Compile Data'!$AL$123:$BI$204,$O28,'Report - ALL (DASHBOARD)'!$W$4) -> 787.6144865 | S28: =INDEX('Compile Data'!$BL$123:$CI$204,$O28,'Report - ALL (DASHBOARD)'!$W$4) -> 768.1513123 | T28: =INDEX('Compile Data'!$CL$123:$DI$204,$O28,'Report - ALL (DASHBOARD)'!$W$4) ->  | U28: =INDEX('Compile Data'!$DL$123:$EI$204,$O28,'Report - ALL (DASHBOARD)'!$W$4) ->  | V28: =INDEX('Compile Data'!$EL$123:$FI$204,$O28,'Report - ALL (DASHBOARD)'!$W$4) -> 
A29: =A28+1 -> 1923 | B29: =INDEX('Compile Data'!$L$12:$AI$93,$A29-1921,'Report - ALL (DASHBOARD)'!$W$4) -> 0 | C29: =INDEX('Compile Data'!$AL$12:$BI$93,$A29-1921,'Report - ALL (DASHBOARD)'!$W$4) -> 227.3020352 | D29: =INDEX('Compile Data'!$BL$12:$CI$93,$A29-1921,'Report - ALL (DASHBOARD)'!$W$4) -> 118.4678158 | E29: =INDEX('Compile Data'!$CL$12:$DI$93,$A29-1921,'Report - ALL (DASHBOARD)'!$W$4) ->  | F29: =INDEX('Compile Data'!$DL$12:$EI$93,$A29-1921,'Report - ALL (DASHBOARD)'!$W$4) ->  | G29: =INDEX('Compile Data'!$EL$12:$FI$93,$A29-1921,'Report - ALL (DASHBOARD)'!$W$4) ->  | O29: 2 | P29: 0.01234567901 | Q29: =INDEX('Compile Data'!$L$123:$AI$204,$O29,'Report - ALL (DASHBOARD)'!$W$4) -> 0 | R29: =INDEX('Compile Data'!$AL$123:$BI$204,$O29,'Report - ALL (DASHBOARD)'!$W$4) -> 735.954462 | S29: =INDEX('Compile Data'!$BL$123:$CI$204,$O29,'Report - ALL (DASHBOARD)'!$W$4) -> 732.2761021 | T29: =INDEX('Compile Data'!$CL$123:$DI$204,$O29,'Report - ALL (DASHBOARD)'!$W$4) ->  | U29: =INDEX('Compile Data'!$DL$123:$EI$204,$O29,'Report - ALL (DASHBOARD)'!$W$4) ->  | V29: =INDEX('Compile Data'!$EL$123:$FI$204,$O29,'Report - ALL (DASHBOARD)'!$W$4) -> 
A30: =A29+1 -> 1924 | B30: =INDEX('Compile Data'!$L$12:$AI$93,$A30-1921,'Report - ALL (DASHBOARD)'!$W$4) -> 0 | C30: =INDEX('Compile Data'!$AL$12:$BI$93,$A30-1921,'Report - ALL (DASHBOARD)'!$W$4) -> 520.2048351 | D30: =INDEX('Compile Data'!$BL$12:$CI$93,$A30-1921,'Report - ALL (DASHBOARD)'!$W$4) -> 513.7569983 | E30: =INDEX('Compile Data'!$CL$12:$DI$93,$A30-1921,'Report - ALL (DASHBOARD)'!$W$4) ->  | F30: =INDEX('Compile Data'!$DL$12:$EI$93,$A30-1921,'Report - ALL (DASHBOARD)'!$W$4) ->  | G30: =INDEX('Compile Data'!$EL$12:$FI$93,$A30-1921,'Report - ALL (DASHBOARD)'!$W$4) ->  | O30: 3 | P30: 0.02469135802 | Q30: =INDEX('Compile Data'!$L$123:$AI$204,$O30,'Report - ALL (DASHBOARD)'!$W$4) -> 0 | R30: =INDEX('Compile Data'!$AL$123:$BI$204,$O30,'Report - ALL (DASHBOARD)'!$W$4) -> 717.4219617 | S30: =INDEX('Compile Data'!$BL$123:$CI$204,$O30,'Report - ALL (DASHBOARD)'!$W$4) -> 698.2613031 | T30: =INDEX('Compile Data'!$CL$123:$DI$204,$O30,'Report - ALL (DASHBOARD)'!$W$4) ->  | U30: =INDEX('Compile Data'!$DL$123:$EI$204,$O30,'Report - ALL (DASHBOARD)'!$W$4) ->  | V30: =INDEX('Compile Data'!$EL$123:$FI$204,$O30,'Report - ALL (DASHBOARD)'!$W$4) -> 
A31: 1925 | B31: =INDEX('Compile Data'!$L$12:$AI$93,$A31-1921,'Report - ALL (DASHBOARD)'!$W$4) -> 0 | C31: =INDEX('Compile Data'!$AL$12:$BI$93,$A31-1921,'Report - ALL (DASHBOARD)'!$W$4) -> 208.0057925 | D31: =INDEX('Compile Data'!$BL$12:$CI$93,$A31-1921,'Report - ALL (DASHBOARD)'!$W$4) -> 301.7518992 | E31: =INDEX('Compile Data'!$CL$12:$DI$93,$A31-1921,'Report - ALL (DASHBOARD)'!$W$4) ->  | F31: =INDEX('Compile Data'!$DL$12:$EI$93,$A31-1921,'Report - ALL (DASHBOARD)'!$W$4) ->  | G31: =INDEX('Compile Data'!$EL$12:$FI$93,$A31-1921,'Report - ALL (DASHBOARD)'!$W$4) ->  | O31: 4 | P31: 0.03703703704 | Q31: =INDEX('Compile Data'!$L$123:$AI$204,$O31,'Report - ALL (DASHBOARD)'!$W$4) -> 0 | R31: =INDEX('Compile Data'!$AL$123:$BI$204,$O31,'Report - ALL (DASHBOARD)'!$W$4) -> 692.8806239 | S31: =INDEX('Compile Data'!$BL$123:$CI$204,$O31,'Report - ALL (DASHBOARD)'!$W$4) -> 664.2724255 | T31: =INDEX('Compile Data'!$CL$123:$DI$204,$O31,'Report - ALL (DASHBOARD)'!$W$4) ->  | U31: =INDEX('Compile Data'!$DL$123:$EI$204,$O31,'Report - ALL (DASHBOARD)'!$W$4) ->  | V31: =INDEX('Compile Data'!$EL$123:$FI$204,$O31,'Report - ALL (DASHBOARD)'!$W$4) -> 
A32: 1926 | B32: =INDEX('Compile Data'!$L$12:$AI$93,$A32-1921,'Report - ALL (DASHBOARD)'!$W$4) -> 0 | C32: =INDEX('Compile Data'!$AL$12:$BI$93,$A32-1921,'Report - ALL (DASHBOARD)'!$W$4) -> 215.1656692 | D32: =INDEX('Compile Data'!$BL$12:$CI$93,$A32-1921,'Report - ALL (DASHBOARD)'!$W$4) -> 216.7577554 | E32: =INDEX('Compile Data'!$CL$12:$DI$93,$A32-1921,'Report - ALL (DASHBOARD)'!$W$4) ->  | F32: =INDEX('Compile Data'!$DL$12:$EI$93,$A32-1921,'Report - ALL (DASHBOARD)'!$W$4) ->  | G32: =INDEX('Compile Data'!$EL$12:$FI$93,$A32-1921,'Report - ALL (DASHBOARD)'!$W$4) ->  | O32: 5 | P32: 0.04938271605 | Q32: =INDEX('Compile Data'!$L$123:$AI$204,$O32,'Report - ALL (DASHBOARD)'!$W$4) -> 0 | R32: =INDEX('Compile Data'!$AL$123:$BI$204,$O32,'Report - ALL (DASHBOARD)'!$W$4) -> 690.483099 | S32: =INDEX('Compile Data'!$BL$123:$CI$204,$O32,'Report - ALL (DASHBOARD)'!$W$4) -> 655.6486053 | T32: =INDEX('Compile Data'!$CL$123:$DI$204,$O32,'Report - ALL (DASHBOARD)'!$W$4) ->  | U32: =INDEX('Compile Data'!$DL$123:$EI$204,$O32,'Report - ALL (DASHBOARD)'!$W$4) ->  | V32: =INDEX('Compile Data'!$EL$123:$FI$204,$O32,'Report - ALL (DASHBOARD)'!$W$4) -> 
A33: 1927 | B33: =INDEX('Compile Data'!$L$12:$AI$93,$A33-1921,'Report - ALL (DASHBOARD)'!$W$4) -> 0 | C33: =INDEX('Compile Data'!$AL$12:$BI$93,$A33-1921,'Report - ALL (DASHBOARD)'!$W$4) -> 64.13773776 | D33: =INDEX('Compile Data'!$BL$12:$CI$93,$A33-1921,'Report - ALL (DASHBOARD)'!$W$4) -> 68.87977131 | E33: =INDEX('Compile Data'!$CL$12:$DI$93,$A33-1921,'Report - ALL (DASHBOARD)'!$W$4) ->  | F33: =INDEX('Compile Data'!$DL$12:$EI$93,$A33-1921,'Report - ALL (DASHBOARD)'!$W$4) ->  | G33: =INDEX('Compile Data'!$EL$12:$FI$93,$A33-1921,'Report - ALL (DASHBOARD)'!$W$4) ->  | O33: 6 | P33: 0.06172839506 | Q33: =INDEX('Compile Data'!$L$123:$AI$204,$O33,'Report - ALL (DASHBOARD)'!$W$4) -> 0 | R33: =INDEX('Compile Data'!$AL$123:$BI$204,$O33,'Report - ALL (DASHBOARD)'!$W$4) -> 663.0544315 | S33: =INDEX('Compile Data'!$BL$123:$CI$204,$O33,'Report - ALL (DASHBOARD)'!$W$4) -> 643.0202508 | T33: =INDEX('Compile Data'!$CL$123:$DI$204,$O33,'Report - ALL (DASHBOARD)'!$W$4) ->  | U33: =INDEX('Compile Data'!$DL$123:$EI$204,$O33,'Report - ALL (DASHBOARD)'!$W$4) ->  | V33: =INDEX('Compile Data'!$EL$123:$FI$204,$O33,'Report - ALL (DASHBOARD)'!$W$4) -> 
A34: 1928 | B34: =INDEX('Compile Data'!$L$12:$AI$93,$A34-1921,'Report - ALL (DASHBOARD)'!$W$4) -> 0 | C34: =INDEX('Compile Data'!$AL$12:$BI$93,$A34-1921,'Report - ALL (DASHBOARD)'!$W$4) -> 519.943058 | D34: =INDEX('Compile Data'!$BL$12:$CI$93,$A34-1921,'Report - ALL (DASHBOARD)'!$W$4) -> 461.525418 | E34: =INDEX('Compile Data'!$CL$12:$DI$93,$A34-1921,'Report - ALL (DASHBOARD)'!$W$4) ->  | F34: =INDEX('Compile Data'!$DL$12:$EI$93,$A34-1921,'Report - ALL (DASHBOARD)'!$W$4) ->  | G34: =INDEX('Compile Data'!$EL$12:$FI$93,$A34-1921,'Report - ALL (DASHBOARD)'!$W$4) ->  | O34: 7 | P34: 0.07407407407 | Q34: =INDEX('Compile Data'!$L$123:$AI$204,$O34,'Report - ALL (DASHBOARD)'!$W$4) -> 0 | R34: =INDEX('Compile Data'!$AL$123:$BI$204,$O34,'Report - ALL (DASHBOARD)'!$W$4) -> 660.5928304 | S34: =INDEX('Compile Data'!$BL$123:$CI$204,$O34,'Report - ALL (DASHBOARD)'!$W$4) -> 630.405584 | T34: =INDEX('Compile Data'!$CL$123:$DI$204,$O34,'Report - ALL (DASHBOARD)'!$W$4) ->  | U34: =INDEX('Compile Data'!$DL$123:$EI$204,$O34,'Report - ALL (DASHBOARD)'!$W$4) ->  | V34: =INDEX('Compile Data'!$EL$123:$FI$204,$O34,'Report - ALL (DASHBOARD)'!$W$4) -> 
A35: 1929 | B35: =INDEX('Compile Data'!$L$12:$AI$93,$A35-1921,'Report - ALL (DASHBOARD)'!$W$4) -> 0 | C35: =INDEX('Compile Data'!$AL$12:$BI$93,$A35-1921,'Report - ALL (DASHBOARD)'!$W$4) -> 584.5580349 | D35: =INDEX('Compile Data'!$BL$12:$CI$93,$A35-1921,'Report - ALL (DASHBOARD)'!$W$4) -> 579.2252783 | E35: =INDEX('Compile Data'!$CL$12:$DI$93,$A35-1921,'Report - ALL (DASHBOARD)'!$W$4) ->  | F35: =INDEX('Compile Data'!$DL$12:$EI$93,$A35-1921,'Report - ALL (DASHBOARD)'!$W$4) ->  | G35: =INDEX('Compile Data'!$EL$12:$FI$93,$A35-1921,'Report - ALL (DASHBOARD)'!$W$4) ->  | O35: 8 | P35: 0.08641975309 | Q35: =INDEX('Compile Data'!$L$123:$AI$204,$O35,'Report - ALL (DASHBOARD)'!$W$4) -> 0 | R35: =INDEX('Compile Data'!$AL$123:$BI$204,$O35,'Report - ALL (DASHBOARD)'!$W$4) -> 635.9540303 | S35: =INDEX('Compile Data'!$BL$123:$CI$204,$O35,'Report - ALL (DASHBOARD)'!$W$4) -> 627.1998166 | T35: =INDEX('Compile Data'!$CL$123:$DI$204,$O35,'Report - ALL (DASHBOARD)'!$W$4) ->  | U35: =INDEX('Compile Data'!$DL$123:$EI$204,$O35,'Report - ALL (DASHBOARD)'!$W$4) ->  | V35: =INDEX('Compile Data'!$EL$123:$FI$204,$O35,'Report - ALL (DASHBOARD)'!$W$4) -> 
A36: 1930 | B36: =INDEX('Compile Data'!$L$12:$AI$93,$A36-1921,'Report - ALL (DASHBOARD)'!$W$4) -> 0 | C36: =INDEX('Compile Data'!$AL$12:$BI$93,$A36-1921,'Report - ALL (DASHBOARD)'!$W$4) -> 109.9331284 | D36: =INDEX('Compile Data'!$BL$12:$CI$93,$A36-1921,'Report - ALL (DASHBOARD)'!$W$4) -> 144.9652151 | E36: =INDEX('Compile Data'!$CL$12:$DI$93,$A36-1921,'Report - ALL (DASHBOARD)'!$W$4) ->  | F36: =INDEX('Compile Data'!$DL$12:$EI$93,$A36-1921,'Report - ALL (DASHBOARD)'!$W$4) ->  | G36: =INDEX('Compile Data'!$EL$12:$FI$93,$A36-1921,'Report - ALL (DASHBOARD)'!$W$4) ->  | O36: 9 | P36: 0.0987654321 | Q36: =INDEX('Compile Data'!$L$123:$AI$204,$O36,'Report - ALL (DASHBOARD)'!$W$4) -> 0 | R36: =INDEX('Compile Data'!$AL$123:$BI$204,$O36,'Report - ALL (DASHBOARD)'!$W$4) -> 600.0070975 | S36: =INDEX('Compile Data'!$BL$123:$CI$204,$O36,'Report - ALL (DASHBOARD)'!$W$4) -> 621.4482384 | T36: =INDEX('Compile Data'!$CL$123:$DI$204,$O36,'Report - ALL (DASHBOARD)'!$W$4) ->  | U36: =INDEX('Compile Data'!$DL$123:$EI$204,$O36,'Report - ALL (DASHBOARD)'!$W$4) ->  | V36: =INDEX('Compile Data'!$EL$123:$FI$204,$O36,'Report - ALL (DASHBOARD)'!$W$4) -> 
A37: 1931 | B37: =INDEX('Compile Data'!$L$12:$AI$93,$A37-1921,'Report - ALL (DASHBOARD)'!$W$4) -> 0 | C37: =INDEX('Compile Data'!$AL$12:$BI$93,$A37-1921,'Report - ALL (DASHBOARD)'!$W$4) -> 19.57055011 | D37: =INDEX('Compile Data'!$BL$12:$CI$93,$A37-1921,'Report - ALL (DASHBOARD)'!$W$4) -> 19.3 | E37: =INDEX('Compile Data'!$CL$12:$DI$93,$A37-1921,'Report - ALL (DASHBOARD)'!$W$4) ->  | F37: =INDEX('Compile Data'!$DL$12:$EI$93,$A37-1921,'Report - ALL (DASHBOARD)'!$W$4) ->  | G37: =INDEX('Compile Data'!$EL$12:$FI$93,$A37-1921,'Report - ALL (DASHBOARD)'!$W$4) ->  | O37: 10 | P37: 0.1111111111 | Q37: =INDEX('Compile Data'!$L$123:$AI$204,$O37,'Report - ALL (DASHBOARD)'!$W$4) -> 0 | R37: =INDEX('Compile Data'!$AL$123:$BI$204,$O37,'Report - ALL (DASHBOARD)'!$W$4) -> 598.869287 | S37: =INDEX('Compile Data'!$BL$123:$CI$204,$O37,'Report - ALL (DASHBOARD)'!$W$4) -> 579.2252783 | T37: =INDEX('Compile Data'!$CL$123:$DI$204,$O37,'Report - ALL (DASHBOARD)'!$W$4) ->  | U37: =INDEX('Compile Data'!$DL$123:$EI$204,$O37,'Report - ALL (DASHBOARD)'!$W$4) ->  | V37: =INDEX('Compile Data'!$EL$123:$FI$204,$O37,'Report - ALL (DASHBOARD)'!$W$4) -> 
A38: 1932 | B38: =INDEX('Compile Data'!$L$12:$AI$93,$A38-1921,'Report - ALL (DASHBOARD)'!$W$4) -> 0 | C38: =INDEX('Compile Data'!$AL$12:$BI$93,$A38-1921,'Report - ALL (DASHBOARD)'!$W$4) -> 39.97894543 | D38: =INDEX('Compile Data'!$BL$12:$CI$93,$A38-1921,'Report - ALL (DASHBOARD)'!$W$4) -> 47.22580531 | E38: =INDEX('Compile Data'!$CL$12:$DI$93,$A38-1921,'Report - ALL (DASHBOARD)'!$W$4) ->  | F38: =INDEX('Compile Data'!$DL$12:$EI$93,$A38-1921,'Report - ALL (DASHBOARD)'!$W$4) ->  | G38: =INDEX('Compile Data'!$EL$12:$FI$93,$A38-1921,'Report - ALL (DASHBOARD)'!$W$4) ->  | O38: 11 | P38: 0.1234567901 | Q38: =INDEX('Compile Data'!$L$123:$AI$204,$O38,'Report - ALL (DASHBOARD)'!$W$4) -> 0 | R38: =INDEX('Compile Data'!$AL$123:$BI$204,$O38,'Report - ALL (DASHBOARD)'!$W$4) -> 591.580051 | S38: =INDEX('Compile Data'!$BL$123:$CI$204,$O38,'Report - ALL (DASHBOARD)'!$W$4) -> 576.960923 | T38: =INDEX('Compile Data'!$CL$123:$DI$204,$O38,'Report - ALL (DASHBOARD)'!$W$4) ->  | U38: =INDEX('Compile Data'!$DL$123:$EI$204,$O38,'Report - ALL (DASHBOARD)'!$W$4) ->  | V38: =INDEX('Compile Data'!$EL$123:$FI$204,$O38,'Report - ALL (DASHBOARD)'!$W$4) -> 
A39: 1933 | B39: =INDEX('Compile Data'!$L$12:$AI$93,$A39-1921,'Report - ALL (DASHBOARD)'!$W$4) -> 0 | C39: =INDEX('Compile Data'!$AL$12:$BI$93,$A39-1921,'Report - ALL (DASHBOARD)'!$W$4) -> 0 | D39: =INDEX('Compile Data'!$BL$12:$CI$93,$A39-1921,'Report - ALL (DASHBOARD)'!$W$4) -> 0 | E39: =INDEX('Compile Data'!$CL$12:$DI$93,$A39-1921,'Report - ALL (DASHBOARD)'!$W$4) ->  | F39: =INDEX('Compile Data'!$DL$12:$EI$93,$A39-1921,'Report - ALL (DASHBOARD)'!$W$4) ->  | G39: =INDEX('Compile Data'!$EL$12:$FI$93,$A39-1921,'Report - ALL (DASHBOARD)'!$W$4) ->  | O39: 12 | P39: 0.1358024691 | Q39: =INDEX('Compile Data'!$L$123:$AI$204,$O39,'Report - ALL (DASHBOARD)'!$W$4) -> 0 | R39: =INDEX('Compile Data'!$AL$123:$BI$204,$O39,'Report - ALL (DASHBOARD)'!$W$4) -> 584.5580349 | S39: =INDEX('Compile Data'!$BL$123:$CI$204,$O39,'Report - ALL (DASHBOARD)'!$W$4) -> 573.9792205 | T39: =INDEX('Compile Data'!$CL$123:$DI$204,$O39,'Report - ALL (DASHBOARD)'!$W$4) ->  | U39: =INDEX('Compile Data'!$DL$123:$EI$204,$O39,'Report - ALL (DASHBOARD)'!$W$4) ->  | V39: =INDEX('Compile Data'!$EL$123:$FI$204,$O39,'Report - ALL (DASHBOARD)'!$W$4) -> 
A40: 1934 | B40: =INDEX('Compile Data'!$L$12:$AI$93,$A40-1921,'Report - ALL (DASHBOARD)'!$W$4) -> 0 | C40: =INDEX('Compile Data'!$AL$12:$BI$93,$A40-1921,'Report - ALL (DASHBOARD)'!$W$4) -> 0 | D40: =INDEX('Compile Data'!$BL$12:$CI$93,$A40-1921,'Report - ALL (DASHBOARD)'!$W$4) -> 0 | E40: =INDEX('Compile Data'!$CL$12:$DI$93,$A40-1921,'Report - ALL (DASHBOARD)'!$W$4) ->  | F40: =INDEX('Compile Data'!$DL$12:$EI$93,$A40-1921,'Report - ALL (DASHBOARD)'!$W$4) ->  | G40: =INDEX('Compile Data'!$EL$12:$FI$93,$A40-1921,'Report - ALL (DASHBOARD)'!$W$4) ->  | O40: 13 | P40: 0.1481481481 | Q40: =INDEX('Compile Data'!$L$123:$AI$204,$O40,'Report - ALL (DASHBOARD)'!$W$4) -> 0 | R40: =INDEX('Compile Data'!$AL$123:$BI$204,$O40,'Report - ALL (DASHBOARD)'!$W$4) -> 583.1900949 | S40: =INDEX('Compile Data'!$BL$123:$CI$204,$O40,'Report - ALL (DASHBOARD)'!$W$4) -> 549.2232984 | T40: =INDEX('Compile Data'!$CL$123:$DI$204,$O40,'Report - ALL (DASHBOARD)'!$W$4) ->  | U40: =INDEX('Compile Data'!$DL$123:$EI$204,$O40,'Report - ALL (DASHBOARD)'!$W$4) ->  | V40: =INDEX('Compile Data'!$EL$123:$FI$204,$O40,'Report - ALL (DASHBOARD)'!$W$4) -> 
A41: 1935 | B41: =INDEX('Compile Data'!$L$12:$AI$93,$A41-1921,'Report - ALL (DASHBOARD)'!$W$4) -> 0 | C41: =INDEX('Compile Data'!$AL$12:$BI$93,$A41-1921,'Report - ALL (DASHBOARD)'!$W$4) -> 385.3704194 | D41: =INDEX('Compile Data'!$BL$12:$CI$93,$A41-1921,'Report - ALL (DASHBOARD)'!$W$4) -> 347.988074 | E41: =INDEX('Compile Data'!$CL$12:$DI$93,$A41-1921,'Report - ALL (DASHBOARD)'!$W$4) ->  | F41: =INDEX('Compile Data'!$DL$12:$EI$93,$A41-1921,'Report - ALL (DASHBOARD)'!$W$4) ->  | G41: =INDEX('Compile Data'!$EL$12:$FI$93,$A41-1921,'Report - ALL (DASHBOARD)'!$W$4) ->  | O41: 14 | P41: 0.1604938272 | Q41: =INDEX('Compile Data'!$L$123:$AI$204,$O41,'Report - ALL (DASHBOARD)'!$W$4) -> 0 | R41: =INDEX('Compile Data'!$AL$123:$BI$204,$O41,'Report - ALL (DASHBOARD)'!$W$4) -> 569.9485276 | S41: =INDEX('Compile Data'!$BL$123:$CI$204,$O41,'Report - ALL (DASHBOARD)'!$W$4) -> 536.055283 | T41: =INDEX('Compile Data'!$CL$123:$DI$204,$O41,'Report - ALL (DASHBOARD)'!$W$4) ->  | U41: =INDEX('Compile Data'!$DL$123:$EI$204,$O41,'Report - ALL (DASHBOARD)'!$W$4) ->  | V41: =INDEX('Compile Data'!$EL$123:$FI$204,$O41,'Report - ALL (DASHBOARD)'!$W$4) -> 
A42: 1936 | B42: =INDEX('Compile Data'!$L$12:$AI$93,$A42-1921,'Report - ALL (DASHBOARD)'!$W$4) -> 0 | C42: =INDEX('Compile Data'!$AL$12:$BI$93,$A42-1921,'Report - ALL (DASHBOARD)'!$W$4) -> 153.6808943 | D42: =INDEX('Compile Data'!$BL$12:$CI$93,$A42-1921,'Report - ALL (DASHBOARD)'!$W$4) -> 159.7762881 | E42: =INDEX('Compile Data'!$CL$12:$DI$93,$A42-1921,'Report - ALL (DASHBOARD)'!$W$4) ->  | F42: =INDEX('Compile Data'!$DL$12:$EI$93,$A42-1921,'Report - ALL (DASHBOARD)'!$W$4) ->  | G42: =INDEX('Compile Data'!$EL$12:$FI$93,$A42-1921,'Report - ALL (DASHBOARD)'!$W$4) ->  | O42: 15 | P42: 0.1728395062 | Q42: =INDEX('Compile Data'!$L$123:$AI$204,$O42,'Report - ALL (DASHBOARD)'!$W$4) -> 0 | R42: =INDEX('Compile Data'!$AL$123:$BI$204,$O42,'Report - ALL (DASHBOARD)'!$W$4) -> 560.9898263 | S42: =INDEX('Compile Data'!$BL$123:$CI$204,$O42,'Report - ALL (DASHBOARD)'!$W$4) -> 535.0414157 | T42: =INDEX('Compile Data'!$CL$123:$DI$204,$O42,'Report - ALL (DASHBOARD)'!$W$4) ->  | U42: =INDEX('Compile Data'!$DL$123:$EI$204,$O42,'Report - ALL (DASHBOARD)'!$W$4) ->  | V42: =INDEX('Compile Data'!$EL$123:$FI$204,$O42,'Report - ALL (DASHBOARD)'!$W$4) -> 
A43: 1937 | B43: =INDEX('Compile Data'!$L$12:$AI$93,$A43-1921,'Report - ALL (DASHBOARD)'!$W$4) -> 0 | C43: =INDEX('Compile Data'!$AL$12:$BI$93,$A43-1921,'Report - ALL (DASHBOARD)'!$W$4) -> 312.689237 | D43: =INDEX('Compile Data'!$BL$12:$CI$93,$A43-1921,'Report - ALL (DASHBOARD)'!$W$4) -> 295.9193855 | E43: =INDEX('Compile Data'!$CL$12:$DI$93,$A43-1921,'Report - ALL (DASHBOARD)'!$W$4) ->  | F43: =INDEX('Compile Data'!$DL$12:$EI$93,$A43-1921,'Report - ALL (DASHBOARD)'!$W$4) ->  | G43: =INDEX('Compile Data'!$EL$12:$FI$93,$A43-1921,'Report - ALL (DASHBOARD)'!$W$4) ->  | O43: 16 | P43: 0.1851851852 | Q43: =INDEX('Compile Data'!$L$123:$AI$204,$O43,'Report - ALL (DASHBOARD)'!$W$4) -> 0 | R43: =INDEX('Compile Data'!$AL$123:$BI$204,$O43,'Report - ALL (DASHBOARD)'!$W$4) -> 557.3803755 | S43: =INDEX('Compile Data'!$BL$123:$CI$204,$O43,'Report - ALL (DASHBOARD)'!$W$4) -> 513.7569983 | T43: =INDEX('Compile Data'!$CL$123:$DI$204,$O43,'Report - ALL (DASHBOARD)'!$W$4) ->  | U43: =INDEX('Compile Data'!$DL$123:$EI$204,$O43,'Report - ALL (DASHBOARD)'!$W$4) ->  | V43: =INDEX('Compile Data'!$EL$123:$FI$204,$O43,'Report - ALL (DASHBOARD)'!$W$4) -> 
A44: 1938 | B44: =INDEX('Compile Data'!$L$12:$AI$93,$A44-1921,'Report - ALL (DASHBOARD)'!$W$4) -> 0 | C44: =INDEX('Compile Data'!$AL$12:$BI$93,$A44-1921,'Report - ALL (DASHBOARD)'!$W$4) -> 54.9533747 | D44: =INDEX('Compile Data'!$BL$12:$CI$93,$A44-1921,'Report - ALL (DASHBOARD)'!$W$4) -> 64.76715941 | E44: =INDEX('Compile Data'!$CL$12:$DI$93,$A44-1921,'Report - ALL (DASHBOARD)'!$W$4) ->  | F44: =INDEX('Compile Data'!$DL$12:$EI$93,$A44-1921,'Report - ALL (DASHBOARD)'!$W$4) ->  | G44: =INDEX('Compile Data'!$EL$12:$FI$93,$A44-1921,'Report - ALL (DASHBOARD)'!$W$4) ->  | O44: 17 | P44: 0.1975308642 | Q44: =INDEX('Compile Data'!$L$123:$AI$204,$O44,'Report - ALL (DASHBOARD)'!$W$4) -> 0 | R44: =INDEX('Compile Data'!$AL$123:$BI$204,$O44,'Report - ALL (DASHBOARD)'!$W$4) -> 542.0896296 | S44: =INDEX('Compile Data'!$BL$123:$CI$204,$O44,'Report - ALL (DASHBOARD)'!$W$4) -> 494.0581938 | T44: =INDEX('Compile Data'!$CL$123:$DI$204,$O44,'Report - ALL (DASHBOARD)'!$W$4) ->  | U44: =INDEX('Compile Data'!$DL$123:$EI$204,$O44,'Report - ALL (DASHBOARD)'!$W$4) ->  | V44: =INDEX('Compile Data'!$EL$123:$FI$204,$O44,'Report - ALL (DASHBOARD)'!$W$4) -> 
A45: 1939 | B45: =INDEX('Compile Data'!$L$12:$AI$93,$A45-1921,'Report - ALL (DASHBOARD)'!$W$4) -> 0 | C45: =INDEX('Compile Data'!$AL$12:$BI$93,$A45-1921,'Report - ALL (DASHBOARD)'!$W$4) -> 787.6144865 | D45: =INDEX('Compile Data'!$BL$12:$CI$93,$A45-1921,'Report - ALL (DASHBOARD)'!$W$4) -> 768.1513123 | E45: =INDEX('Compile Data'!$CL$12:$DI$93,$A45-1921,'Report - ALL (DASHBOARD)'!$W$4) ->  | F45: =INDEX('Compile Data'!$DL$12:$EI$93,$A45-1921,'Report - ALL (DASHBOARD)'!$W$4) ->  | G45: =INDEX('Compile Data'!$EL$12:$FI$93,$A45-1921,'Report - ALL (DASHBOARD)'!$W$4) ->  | O45: 18 | P45: 0.2098765432 | Q45: =INDEX('Compile Data'!$L$123:$AI$204,$O45,'Report - ALL (DASHBOARD)'!$W$4) -> 0 | R45: =INDEX('Compile Data'!$AL$123:$BI$204,$O45,'Report - ALL (DASHBOARD)'!$W$4) -> 520.2048351 | S45: =INDEX('Compile Data'!$BL$123:$CI$204,$O45,'Report - ALL (DASHBOARD)'!$W$4) -> 471.7698006 | T45: =INDEX('Compile Data'!$CL$123:$DI$204,$O45,'Report - ALL (DASHBOARD)'!$W$4) ->  | U45: =INDEX('Compile Data'!$DL$123:$EI$204,$O45,'Report - ALL (DASHBOARD)'!$W$4) ->  | V45: =INDEX('Compile Data'!$EL$123:$FI$204,$O45,'Report - ALL (DASHBOARD)'!$W$4) -> 
A46: 1940 | B46: =INDEX('Compile Data'!$L$12:$AI$93,$A46-1921,'Report - ALL (DASHBOARD)'!$W$4) -> 0 | C46: =INDEX('Compile Data'!$AL$12:$BI$93,$A46-1921,'Report - ALL (DASHBOARD)'!$W$4) -> 314.6495063 | D46: =INDEX('Compile Data'!$BL$12:$CI$93,$A46-1921,'Report - ALL (DASHBOARD)'!$W$4) -> 233.6609366 | E46: =INDEX('Compile Data'!$CL$12:$DI$93,$A46-1921,'Report - ALL (DASHBOARD)'!$W$4) ->  | F46: =INDEX('Compile Data'!$DL$12:$EI$93,$A46-1921,'Report - ALL (DASHBOARD)'!$W$4) ->  | G46: =INDEX('Compile Data'!$EL$12:$FI$93,$A46-1921,'Report - ALL (DASHBOARD)'!$W$4) ->  | O46: 19 | P46: 0.2222222222 | Q46: =INDEX('Compile Data'!$L$123:$AI$204,$O46,'Report - ALL (DASHBOARD)'!$W$4) -> 0 | R46: =INDEX('Compile Data'!$AL$123:$BI$204,$O46,'Report - ALL (DASHBOARD)'!$W$4) -> 519.943058 | S46: =INDEX('Compile Data'!$BL$123:$CI$204,$O46,'Report - ALL (DASHBOARD)'!$W$4) -> 461.525418 | T46: =INDEX('Compile Data'!$CL$123:$DI$204,$O46,'Report - ALL (DASHBOARD)'!$W$4) ->  | U46: =INDEX('Compile Data'!$DL$123:$EI$204,$O46,'Report - ALL (DASHBOARD)'!$W$4) ->  | V46: =INDEX('Compile Data'!$EL$123:$FI$204,$O46,'Report - ALL (DASHBOARD)'!$W$4) -> 
A47: 1941 | B47: =INDEX('Compile Data'!$L$12:$AI$93,$A47-1921,'Report - ALL (DASHBOARD)'!$W$4) -> 0 | C47: =INDEX('Compile Data'!$AL$12:$BI$93,$A47-1921,'Report - ALL (DASHBOARD)'!$W$4) -> 87.7586207 | D47: =INDEX('Compile Data'!$BL$12:$CI$93,$A47-1921,'Report - ALL (DASHBOARD)'!$W$4) -> 87.7586207 | E47: =INDEX('Compile Data'!$CL$12:$DI$93,$A47-1921,'Report - ALL (DASHBOARD)'!$W$4) ->  | F47: =INDEX('Compile Data'!$DL$12:$EI$93,$A47-1921,'Report - ALL (DASHBOARD)'!$W$4) ->  | G47: =INDEX('Compile Data'!$EL$12:$FI$93,$A47-1921,'Report - ALL (DASHBOARD)'!$W$4) ->  | O47: 20 | P47: 0.2345679012 | Q47: =INDEX('Compile Data'!$L$123:$AI$204,$O47,'Report - ALL (DASHBOARD)'!$W$4) -> 0 | R47: =INDEX('Compile Data'!$AL$123:$BI$204,$O47,'Report - ALL (DASHBOARD)'!$W$4) -> 501.8140435 | S47: =INDEX('Compile Data'!$BL$123:$CI$204,$O47,'Report - ALL (DASHBOARD)'!$W$4) -> 444.8860684 | T47: =INDEX('Compile Data'!$CL$123:$DI$204,$O47,'Report - ALL (DASHBOARD)'!$W$4) ->  | U47: =INDEX('Compile Data'!$DL$123:$EI$204,$O47,'Report - ALL (DASHBOARD)'!$W$4) ->  | V47: =INDEX('Compile Data'!$EL$123:$FI$204,$O47,'Report - ALL (DASHBOARD)'!$W$4) -> 
A48: 1942 | B48: =INDEX('Compile Data'!$L$12:$AI$93,$A48-1921,'Report - ALL (DASHBOARD)'!$W$4) -> 0 | C48: =INDEX('Compile Data'!$AL$12:$BI$93,$A48-1921,'Report - ALL (DASHBOARD)'!$W$4) -> 88.00666779 | D48: =INDEX('Compile Data'!$BL$12:$CI$93,$A48-1921,'Report - ALL (DASHBOARD)'!$W$4) -> 88.00666779 | E48: =INDEX('Compile Data'!$CL$12:$DI$93,$A48-1921,'Report - ALL (DASHBOARD)'!$W$4) ->  | F48: =INDEX('Compile Data'!$DL$12:$EI$93,$A48-1921,'Report - ALL (DASHBOARD)'!$W$4) ->  | G48: =INDEX('Compile Data'!$EL$12:$FI$93,$A48-1921,'Report - ALL (DASHBOARD)'!$W$4) ->  | O48: 21 | P48: 0.2469135802 | Q48: =INDEX('Compile Data'!$L$123:$AI$204,$O48,'Report - ALL (DASHBOARD)'!$W$4) -> 0 | R48: =INDEX('Compile Data'!$AL$123:$BI$204,$O48,'Report - ALL (DASHBOARD)'!$W$4) -> 498.2488816 | S48: =INDEX('Compile Data'!$BL$123:$CI$204,$O48,'Report - ALL (DASHBOARD)'!$W$4) -> 438.4028439 | T48: =INDEX('Compile Data'!$CL$123:$DI$204,$O48,'Report - ALL (DASHBOARD)'!$W$4) ->  | U48: =INDEX('Compile Data'!$DL$123:$EI$204,$O48,'Report - ALL (DASHBOARD)'!$W$4) ->  | V48: =INDEX('Compile Data'!$EL$123:$FI$204,$O48,'Report - ALL (DASHBOARD)'!$W$4) -> 
A49: 1943 | B49: =INDEX('Compile Data'!$L$12:$AI$93,$A49-1921,'Report - ALL (DASHBOARD)'!$W$4) -> 0 | C49: =INDEX('Compile Data'!$AL$12:$BI$93,$A49-1921,'Report - ALL (DASHBOARD)'!$W$4) -> 223.7412333 | D49: =INDEX('Compile Data'!$BL$12:$CI$93,$A49-1921,'Report - ALL (DASHBOARD)'!$W$4) -> 223.7174805 | E49: =INDEX('Compile Data'!$CL$12:$DI$93,$A49-1921,'Report - ALL (DASHBOARD)'!$W$4) ->  | F49: =INDEX('Compile Data'!$DL$12:$EI$93,$A49-1921,'Report - ALL (DASHBOARD)'!$W$4) ->  | G49: =INDEX('Compile Data'!$EL$12:$FI$93,$A49-1921,'Report - ALL (DASHBOARD)'!$W$4) ->  | O49: 22 | P49: 0.2592592593 | Q49: =INDEX('Compile Data'!$L$123:$AI$204,$O49,'Report - ALL (DASHBOARD)'!$W$4) -> 0 | R49: =INDEX('Compile Data'!$AL$123:$BI$204,$O49,'Report - ALL (DASHBOARD)'!$W$4) -> 497.8863407 | S49: =INDEX('Compile Data'!$BL$123:$CI$204,$O49,'Report - ALL (DASHBOARD)'!$W$4) -> 427.3671959 | T49: =INDEX('Compile Data'!$CL$123:$DI$204,$O49,'Report - ALL (DASHBOARD)'!$W$4) ->  | U49: =INDEX('Compile Data'!$DL$123:$EI$204,$O49,'Report - ALL (DASHBOARD)'!$W$4) ->  | V49: =INDEX('Compile Data'!$EL$123:$FI$204,$O49,'Report - ALL (DASHBOARD)'!$W$4) -> 
A50: 1944 | B50: =INDEX('Compile Data'!$L$12:$AI$93,$A50-1921,'Report - ALL (DASHBOARD)'!$W$4) -> 0 | C50: =INDEX('Compile Data'!$AL$12:$BI$93,$A50-1921,'Report - ALL (DASHBOARD)'!$W$4) -> 735.954462 | D50: =INDEX('Compile Data'!$BL$12:$CI$93,$A50-1921,'Report - ALL (DASHBOARD)'!$W$4) -> 732.2761021 | E50: =INDEX('Compile Data'!$CL$12:$DI$93,$A50-1921,'Report - ALL (DASHBOARD)'!$W$4) ->  | F50: =INDEX('Compile Data'!$DL$12:$EI$93,$A50-1921,'Report - ALL (DASHBOARD)'!$W$4) ->  | G50: =INDEX('Compile Data'!$EL$12:$FI$93,$A50-1921,'Report - ALL (DASHBOARD)'!$W$4) ->  | O50: 23 | P50: 0.2716049383 | Q50: =INDEX('Compile Data'!$L$123:$AI$204,$O50,'Report - ALL (DASHBOARD)'!$W$4) -> 0 | R50: =INDEX('Compile Data'!$AL$123:$BI$204,$O50,'Report - ALL (DASHBOARD)'!$W$4) -> 477.5724828 | S50: =INDEX('Compile Data'!$BL$123:$CI$204,$O50,'Report - ALL (DASHBOARD)'!$W$4) -> 422.9482579 | T50: =INDEX('Compile Data'!$CL$123:$DI$204,$O50,'Report - ALL (DASHBOARD)'!$W$4) ->  | U50: =INDEX('Compile Data'!$DL$123:$EI$204,$O50,'Report - ALL (DASHBOARD)'!$W$4) ->  | V50: =INDEX('Compile Data'!$EL$123:$FI$204,$O50,'Report - ALL (DASHBOARD)'!$W$4) -> 
A51: 1945 | B51: =INDEX('Compile Data'!$L$12:$AI$93,$A51-1921,'Report - ALL (DASHBOARD)'!$W$4) -> 0 | C51: =INDEX('Compile Data'!$AL$12:$BI$93,$A51-1921,'Report - ALL (DASHBOARD)'!$W$4) -> 289.9913486 | D51: =INDEX('Compile Data'!$BL$12:$CI$93,$A51-1921,'Report - ALL (DASHBOARD)'!$W$4) -> 209.6544475 | E51: =INDEX('Compile Data'!$CL$12:$DI$93,$A51-1921,'Report - ALL (DASHBOARD)'!$W$4) ->  | F51: =INDEX('Compile Data'!$DL$12:$EI$93,$A51-1921,'Report - ALL (DASHBOARD)'!$W$4) ->  | G51: =INDEX('Compile Data'!$EL$12:$FI$93,$A51-1921,'Report - ALL (DASHBOARD)'!$W$4) ->  | O51: 24 | P51: 0.2839506173 | Q51: =INDEX('Compile Data'!$L$123:$AI$204,$O51,'Report - ALL (DASHBOARD)'!$W$4) -> 0 | R51: =INDEX('Compile Data'!$AL$123:$BI$204,$O51,'Report - ALL (DASHBOARD)'!$W$4) -> 425.2663103 | S51: =INDEX('Compile Data'!$BL$123:$CI$204,$O51,'Report - ALL (DASHBOARD)'!$W$4) -> 421.5634671 | T51: =INDEX('Compile Data'!$CL$123:$DI$204,$O51,'Report - ALL (DASHBOARD)'!$W$4) ->  | U51: =INDEX('Compile Data'!$DL$123:$EI$204,$O51,'Report - ALL (DASHBOARD)'!$W$4) ->  | V51: =INDEX('Compile Data'!$EL$123:$FI$204,$O51,'Report - ALL (DASHBOARD)'!$W$4) -> 
A52: 1946 | B52: =INDEX('Compile Data'!$L$12:$AI$93,$A52-1921,'Report - ALL (DASHBOARD)'!$W$4) -> 0 | C52: =INDEX('Compile Data'!$AL$12:$BI$93,$A52-1921,'Report - ALL (DASHBOARD)'!$W$4) -> 294.0380026 | D52: =INDEX('Compile Data'!$BL$12:$CI$93,$A52-1921,'Report - ALL (DASHBOARD)'!$W$4) -> 276.711045 | E52: =INDEX('Compile Data'!$CL$12:$DI$93,$A52-1921,'Report - ALL (DASHBOARD)'!$W$4) ->  | F52: =INDEX('Compile Data'!$DL$12:$EI$93,$A52-1921,'Report - ALL (DASHBOARD)'!$W$4) ->  | G52: =INDEX('Compile Data'!$EL$12:$FI$93,$A52-1921,'Report - ALL (DASHBOARD)'!$W$4) ->  | O52: 25 | P52: 0.2962962963 | Q52: =INDEX('Compile Data'!$L$123:$AI$204,$O52,'Report - ALL (DASHBOARD)'!$W$4) -> 0 | R52: =INDEX('Compile Data'!$AL$123:$BI$204,$O52,'Report - ALL (DASHBOARD)'!$W$4) -> 414.9250666 | S52: =INDEX('Compile Data'!$BL$123:$CI$204,$O52,'Report - ALL (DASHBOARD)'!$W$4) -> 418.7074169 | T52: =INDEX('Compile Data'!$CL$123:$DI$204,$O52,'Report - ALL (DASHBOARD)'!$W$4) ->  | U52: =INDEX('Compile Data'!$DL$123:$EI$204,$O52,'Report - ALL (DASHBOARD)'!$W$4) ->  | V52: =INDEX('Compile Data'!$EL$123:$FI$204,$O52,'Report - ALL (DASHBOARD)'!$W$4) -> 
A53: 1947 | B53: =INDEX('Compile Data'!$L$12:$AI$93,$A53-1921,'Report - ALL (DASHBOARD)'!$W$4) -> 0 | C53: =INDEX('Compile Data'!$AL$12:$BI$93,$A53-1921,'Report - ALL (DASHBOARD)'!$W$4) -> 301.2783884 | D53: =INDEX('Compile Data'!$BL$12:$CI$93,$A53-1921,'Report - ALL (DASHBOARD)'!$W$4) -> 380.199466 | E53: =INDEX('Compile Data'!$CL$12:$DI$93,$A53-1921,'Report - ALL (DASHBOARD)'!$W$4) ->  | F53: =INDEX('Compile Data'!$DL$12:$EI$93,$A53-1921,'Report - ALL (DASHBOARD)'!$W$4) ->  | G53: =INDEX('Compile Data'!$EL$12:$FI$93,$A53-1921,'Report - ALL (DASHBOARD)'!$W$4) ->  | O53: 26 | P53: 0.3086419753 | Q53: =INDEX('Compile Data'!$L$123:$AI$204,$O53,'Report - ALL (DASHBOARD)'!$W$4) -> 0 | R53: =INDEX('Compile Data'!$AL$123:$BI$204,$O53,'Report - ALL (DASHBOARD)'!$W$4) -> 385.3704194 | S53: =INDEX('Compile Data'!$BL$123:$CI$204,$O53,'Report - ALL (DASHBOARD)'!$W$4) -> 413.7809947 | T53: =INDEX('Compile Data'!$CL$123:$DI$204,$O53,'Report - ALL (DASHBOARD)'!$W$4) ->  | U53: =INDEX('Compile Data'!$DL$123:$EI$204,$O53,'Report - ALL (DASHBOARD)'!$W$4) ->  | V53: =INDEX('Compile Data'!$EL$123:$FI$204,$O53,'Report - ALL (DASHBOARD)'!$W$4) -> 
A54: 1948 | B54: =INDEX('Compile Data'!$L$12:$AI$93,$A54-1921,'Report - ALL (DASHBOARD)'!$W$4) -> 0 | C54: =INDEX('Compile Data'!$AL$12:$BI$93,$A54-1921,'Report - ALL (DASHBOARD)'!$W$4) -> 9.825000109 | D54: =INDEX('Compile Data'!$BL$12:$CI$93,$A54-1921,'Report - ALL (DASHBOARD)'!$W$4) -> 10.61550056 | E54: =INDEX('Compile Data'!$CL$12:$DI$93,$A54-1921,'Report - ALL (DASHBOARD)'!$W$4) ->  | F54: =INDEX('Compile Data'!$DL$12:$EI$93,$A54-1921,'Report - ALL (DASHBOARD)'!$W$4) ->  | G54: =INDEX('Compile Data'!$EL$12:$FI$93,$A54-1921,'Report - ALL (DASHBOARD)'!$W$4) ->  | O54: 27 | P54: 0.3209876543 | Q54: =INDEX('Compile Data'!$L$123:$AI$204,$O54,'Report - ALL (DASHBOARD)'!$W$4) -> 0 | R54: =INDEX('Compile Data'!$AL$123:$BI$204,$O54,'Report - ALL (DASHBOARD)'!$W$4) -> 371.7656313 | S54: =INDEX('Compile Data'!$BL$123:$CI$204,$O54,'Report - ALL (DASHBOARD)'!$W$4) -> 380.199466 | T54: =INDEX('Compile Data'!$CL$123:$DI$204,$O54,'Report - ALL (DASHBOARD)'!$W$4) ->  | U54: =INDEX('Compile Data'!$DL$123:$EI$204,$O54,'Report - ALL (DASHBOARD)'!$W$4) ->  | V54: =INDEX('Compile Data'!$EL$123:$FI$204,$O54,'Report - ALL (DASHBOARD)'!$W$4) -> 
A55: 1949 | B55: =INDEX('Compile Data'!$L$12:$AI$93,$A55-1921,'Report - ALL (DASHBOARD)'!$W$4) -> 0 | C55: =INDEX('Compile Data'!$AL$12:$BI$93,$A55-1921,'Report - ALL (DASHBOARD)'!$W$4) -> 187.8490957 | D55: =INDEX('Compile Data'!$BL$12:$CI$93,$A55-1921,'Report - ALL (DASHBOARD)'!$W$4) -> 188.4697931 | E55: =INDEX('Compile Data'!$CL$12:$DI$93,$A55-1921,'Report - ALL (DASHBOARD)'!$W$4) ->  | F55: =INDEX('Compile Data'!$DL$12:$EI$93,$A55-1921,'Report - ALL (DASHBOARD)'!$W$4) ->  | G55: =INDEX('Compile Data'!$EL$12:$FI$93,$A55-1921,'Report - ALL (DASHBOARD)'!$W$4) ->  | O55: 28 | P55: 0.3333333333 | Q55: =INDEX('Compile Data'!$L$123:$AI$204,$O55,'Report - ALL (DASHBOARD)'!$W$4) -> 0 | R55: =INDEX('Compile Data'!$AL$123:$BI$204,$O55,'Report - ALL (DASHBOARD)'!$W$4) -> 327.8008019 | S55: =INDEX('Compile Data'!$BL$123:$CI$204,$O55,'Report - ALL (DASHBOARD)'!$W$4) -> 347.988074 | T55: =INDEX('Compile Data'!$CL$123:$DI$204,$O55,'Report - ALL (DASHBOARD)'!$W$4) ->  | U55: =INDEX('Compile Data'!$DL$123:$EI$204,$O55,'Report - ALL (DASHBOARD)'!$W$4) ->  | V55: =INDEX('Compile Data'!$EL$123:$FI$204,$O55,'Report - ALL (DASHBOARD)'!$W$4) -> 
A56: 1950 | B56: =INDEX('Compile Data'!$L$12:$AI$93,$A56-1921,'Report - ALL (DASHBOARD)'!$W$4) -> 0 | C56: =INDEX('Compile Data'!$AL$12:$BI$93,$A56-1921,'Report - ALL (DASHBOARD)'!$W$4) -> 88.46272488 | D56: =INDEX('Compile Data'!$BL$12:$CI$93,$A56-1921,'Report - ALL (DASHBOARD)'!$W$4) -> 86.15953144 | E56: =INDEX('Compile Data'!$CL$12:$DI$93,$A56-1921,'Report - ALL (DASHBOARD)'!$W$4) ->  | F56: =INDEX('Compile Data'!$DL$12:$EI$93,$A56-1921,'Report - ALL (DASHBOARD)'!$W$4) ->  | G56: =INDEX('Compile Data'!$EL$12:$FI$93,$A56-1921,'Report - ALL (DASHBOARD)'!$W$4) ->  | O56: 29 | P56: 0.3456790123 | Q56: =INDEX('Compile Data'!$L$123:$AI$204,$O56,'Report - ALL (DASHBOARD)'!$W$4) -> 0 | R56: =INDEX('Compile Data'!$AL$123:$BI$204,$O56,'Report - ALL (DASHBOARD)'!$W$4) -> 314.6495063 | S56: =INDEX('Compile Data'!$BL$123:$CI$204,$O56,'Report - ALL (DASHBOARD)'!$W$4) -> 301.7518992 | T56: =INDEX('Compile Data'!$CL$123:$DI$204,$O56,'Report - ALL (DASHBOARD)'!$W$4) ->  | U56: =INDEX('Compile Data'!$DL$123:$EI$204,$O56,'Report - ALL (DASHBOARD)'!$W$4) ->  | V56: =INDEX('Compile Data'!$EL$123:$FI$204,$O56,'Report - ALL (DASHBOARD)'!$W$4) -> 
A57: 1951 | B57: =INDEX('Compile Data'!$L$12:$AI$93,$A57-1921,'Report - ALL (DASHBOARD)'!$W$4) -> 0 | C57: =INDEX('Compile Data'!$AL$12:$BI$93,$A57-1921,'Report - ALL (DASHBOARD)'!$W$4) -> 82.14927795 | D57: =INDEX('Compile Data'!$BL$12:$CI$93,$A57-1921,'Report - ALL (DASHBOARD)'!$W$4) -> 95.14928795 | E57: =INDEX('Compile Data'!$CL$12:$DI$93,$A57-1921,'Report - ALL (DASHBOARD)'!$W$4) ->  | F57: =INDEX('Compile Data'!$DL$12:$EI$93,$A57-1921,'Report - ALL (DASHBOARD)'!$W$4) ->  | G57: =INDEX('Compile Data'!$EL$12:$FI$93,$A57-1921,'Report - ALL (DASHBOARD)'!$W$4) ->  | O57: 30 | P57: 0.3580246914 | Q57: =INDEX('Compile Data'!$L$123:$AI$204,$O57,'Report - ALL (DASHBOARD)'!$W$4) -> 0 | R57: =INDEX('Compile Data'!$AL$123:$BI$204,$O57,'Report - ALL (DASHBOARD)'!$W$4) -> 312.689237 | S57: =INDEX('Compile Data'!$BL$123:$CI$204,$O57,'Report - ALL (DASHBOARD)'!$W$4) -> 295.9193855 | T57: =INDEX('Compile Data'!$CL$123:$DI$204,$O57,'Report - ALL (DASHBOARD)'!$W$4) ->  | U57: =INDEX('Compile Data'!$DL$123:$EI$204,$O57,'Report - ALL (DASHBOARD)'!$W$4) ->  | V57: =INDEX('Compile Data'!$EL$123:$FI$204,$O57,'Report - ALL (DASHBOARD)'!$W$4) -> 
A58: 1952 | B58: =INDEX('Compile Data'!$L$12:$AI$93,$A58-1921,'Report - ALL (DASHBOARD)'!$W$4) -> 0 | C58: =INDEX('Compile Data'!$AL$12:$BI$93,$A58-1921,'Report - ALL (DASHBOARD)'!$W$4) -> 89.71396341 | D58: =INDEX('Compile Data'!$BL$12:$CI$93,$A58-1921,'Report - ALL (DASHBOARD)'!$W$4) -> 89.71396341 | E58: =INDEX('Compile Data'!$CL$12:$DI$93,$A58-1921,'Report - ALL (DASHBOARD)'!$W$4) ->  | F58: =INDEX('Compile Data'!$DL$12:$EI$93,$A58-1921,'Report - ALL (DASHBOARD)'!$W$4) ->  | G58: =INDEX('Compile Data'!$EL$12:$FI$93,$A58-1921,'Report - ALL (DASHBOARD)'!$W$4) ->  | O58: 31 | P58: 0.3703703704 | Q58: =INDEX('Compile Data'!$L$123:$AI$204,$O58,'Report - ALL (DASHBOARD)'!$W$4) -> 0 | R58: =INDEX('Compile Data'!$AL$123:$BI$204,$O58,'Report - ALL (DASHBOARD)'!$W$4) -> 301.2783884 | S58: =INDEX('Compile Data'!$BL$123:$CI$204,$O58,'Report - ALL (DASHBOARD)'!$W$4) -> 292.932586 | T58: =INDEX('Compile Data'!$CL$123:$DI$204,$O58,'Report - ALL (DASHBOARD)'!$W$4) ->  | U58: =INDEX('Compile Data'!$DL$123:$EI$204,$O58,'Report - ALL (DASHBOARD)'!$W$4) ->  | V58: =INDEX('Compile Data'!$EL$123:$FI$204,$O58,'Report - ALL (DASHBOARD)'!$W$4) -> 
A59: 1953 | B59: =INDEX('Compile Data'!$L$12:$AI$93,$A59-1921,'Report - ALL (DASHBOARD)'!$W$4) -> 0 | C59: =INDEX('Compile Data'!$AL$12:$BI$93,$A59-1921,'Report - ALL (DASHBOARD)'!$W$4) -> 92.76388085 | D59: =INDEX('Compile Data'!$BL$12:$CI$93,$A59-1921,'Report - ALL (DASHBOARD)'!$W$4) -> 103.2897233 | E59: =INDEX('Compile Data'!$CL$12:$DI$93,$A59-1921,'Report - ALL (DASHBOARD)'!$W$4) ->  | F59: =INDEX('Compile Data'!$DL$12:$EI$93,$A59-1921,'Report - ALL (DASHBOARD)'!$W$4) ->  | G59: =INDEX('Compile Data'!$EL$12:$FI$93,$A59-1921,'Report - ALL (DASHBOARD)'!$W$4) ->  | O59: 32 | P59: 0.3827160494 | Q59: =INDEX('Compile Data'!$L$123:$AI$204,$O59,'Report - ALL (DASHBOARD)'!$W$4) -> 0 | R59: =INDEX('Compile Data'!$AL$123:$BI$204,$O59,'Report - ALL (DASHBOARD)'!$W$4) -> 299.9863524 | S59: =INDEX('Compile Data'!$BL$123:$CI$204,$O59,'Report - ALL (DASHBOARD)'!$W$4) -> 276.711045 | T59: =INDEX('Compile Data'!$CL$123:$DI$204,$O59,'Report - ALL (DASHBOARD)'!$W$4) ->  | U59: =INDEX('Compile Data'!$DL$123:$EI$204,$O59,'Report - ALL (DASHBOARD)'!$W$4) ->  | V59: =INDEX('Compile Data'!$EL$123:$FI$204,$O59,'Report - ALL (DASHBOARD)'!$W$4) -> 
A60: 1954 | B60: =INDEX('Compile Data'!$L$12:$AI$93,$A60-1921,'Report - ALL (DASHBOARD)'!$W$4) -> 0 | C60: =INDEX('Compile Data'!$AL$12:$BI$93,$A60-1921,'Report - ALL (DASHBOARD)'!$W$4) -> 557.3803755 | D60: =INDEX('Compile Data'!$BL$12:$CI$93,$A60-1921,'Report - ALL (DASHBOARD)'!$W$4) -> 427.3671959 | E60: =INDEX('Compile Data'!$CL$12:$DI$93,$A60-1921,'Report - ALL (DASHBOARD)'!$W$4) ->  | F60: =INDEX('Compile Data'!$DL$12:$EI$93,$A60-1921,'Report - ALL (DASHBOARD)'!$W$4) ->  | G60: =INDEX('Compile Data'!$EL$12:$FI$93,$A60-1921,'Report - ALL (DASHBOARD)'!$W$4) ->  | O60: 33 | P60: 0.3950617284 | Q60: =INDEX('Compile Data'!$L$123:$AI$204,$O60,'Report - ALL (DASHBOARD)'!$W$4) -> 0 | R60: =INDEX('Compile Data'!$AL$123:$BI$204,$O60,'Report - ALL (DASHBOARD)'!$W$4) -> 294.0380026 | S60: =INDEX('Compile Data'!$BL$123:$CI$204,$O60,'Report - ALL (DASHBOARD)'!$W$4) -> 269.9515575 | T60: =INDEX('Compile Data'!$CL$123:$DI$204,$O60,'Report - ALL (DASHBOARD)'!$W$4) ->  | U60: =INDEX('Compile Data'!$DL$123:$EI$204,$O60,'Report - ALL (DASHBOARD)'!$W$4) ->  | V60: =INDEX('Compile Data'!$EL$123:$FI$204,$O60,'Report - ALL (DASHBOARD)'!$W$4) -> 
A61: 1955 | B61: =INDEX('Compile Data'!$L$12:$AI$93,$A61-1921,'Report - ALL (DASHBOARD)'!$W$4) -> 0 | C61: =INDEX('Compile Data'!$AL$12:$BI$93,$A61-1921,'Report - ALL (DASHBOARD)'!$W$4) -> 497.8863407 | D61: =INDEX('Compile Data'!$BL$12:$CI$93,$A61-1921,'Report - ALL (DASHBOARD)'!$W$4) -> 536.055283 | E61: =INDEX('Compile Data'!$CL$12:$DI$93,$A61-1921,'Report - ALL (DASHBOARD)'!$W$4) ->  | F61: =INDEX('Compile Data'!$DL$12:$EI$93,$A61-1921,'Report - ALL (DASHBOARD)'!$W$4) ->  | G61: =INDEX('Compile Data'!$EL$12:$FI$93,$A61-1921,'Report - ALL (DASHBOARD)'!$W$4) ->  | O61: 34 | P61: 0.4074074074 | Q61: =INDEX('Compile Data'!$L$123:$AI$204,$O61,'Report - ALL (DASHBOARD)'!$W$4) -> 0 | R61: =INDEX('Compile Data'!$AL$123:$BI$204,$O61,'Report - ALL (DASHBOARD)'!$W$4) -> 289.9913486 | S61: =INDEX('Compile Data'!$BL$123:$CI$204,$O61,'Report - ALL (DASHBOARD)'!$W$4) -> 265.5430366 | T61: =INDEX('Compile Data'!$CL$123:$DI$204,$O61,'Report - ALL (DASHBOARD)'!$W$4) ->  | U61: =INDEX('Compile Data'!$DL$123:$EI$204,$O61,'Report - ALL (DASHBOARD)'!$W$4) ->  | V61: =INDEX('Compile Data'!$EL$123:$FI$204,$O61,'Report - ALL (DASHBOARD)'!$W$4) -> 
A62: 1956 | B62: =INDEX('Compile Data'!$L$12:$AI$93,$A62-1921,'Report - ALL (DASHBOARD)'!$W$4) -> 0 | C62: =INDEX('Compile Data'!$AL$12:$BI$93,$A62-1921,'Report - ALL (DASHBOARD)'!$W$4) -> 38.89123715 | D62: =INDEX('Compile Data'!$BL$12:$CI$93,$A62-1921,'Report - ALL (DASHBOARD)'!$W$4) -> 80.78994107 | E62: =INDEX('Compile Data'!$CL$12:$DI$93,$A62-1921,'Report - ALL (DASHBOARD)'!$W$4) ->  | F62: =INDEX('Compile Data'!$DL$12:$EI$93,$A62-1921,'Report - ALL (DASHBOARD)'!$W$4) ->  | G62: =INDEX('Compile Data'!$EL$12:$FI$93,$A62-1921,'Report - ALL (DASHBOARD)'!$W$4) ->  | O62: 35 | P62: 0.4197530864 | Q62: =INDEX('Compile Data'!$L$123:$AI$204,$O62,'Report - ALL (DASHBOARD)'!$W$4) -> 0 | R62: =INDEX('Compile Data'!$AL$123:$BI$204,$O62,'Report - ALL (DASHBOARD)'!$W$4) -> 265.5457 | S62: =INDEX('Compile Data'!$BL$123:$CI$204,$O62,'Report - ALL (DASHBOARD)'!$W$4) -> 243.239534 | T62: =INDEX('Compile Data'!$CL$123:$DI$204,$O62,'Report - ALL (DASHBOARD)'!$W$4) ->  | U62: =INDEX('Compile Data'!$DL$123:$EI$204,$O62,'Report - ALL (DASHBOARD)'!$W$4) ->  | V62: =INDEX('Compile Data'!$EL$123:$FI$204,$O62,'Report - ALL (DASHBOARD)'!$W$4) -> 
A63: 1957 | B63: =INDEX('Compile Data'!$L$12:$AI$93,$A63-1921,'Report - ALL (DASHBOARD)'!$W$4) -> 0 | C63: =INDEX('Compile Data'!$AL$12:$BI$93,$A63-1921,'Report - ALL (DASHBOARD)'!$W$4) -> 477.5724828 | D63: =INDEX('Compile Data'!$BL$12:$CI$93,$A63-1921,'Report - ALL (DASHBOARD)'!$W$4) -> 444.8860684 | E63: =INDEX('Compile Data'!$CL$12:$DI$93,$A63-1921,'Report - ALL (DASHBOARD)'!$W$4) ->  | F63: =INDEX('Compile Data'!$DL$12:$EI$93,$A63-1921,'Report - ALL (DASHBOARD)'!$W$4) ->  | G63: =INDEX('Compile Data'!$EL$12:$FI$93,$A63-1921,'Report - ALL (DASHBOARD)'!$W$4) ->  | O63: 36 | P63: 0.4320987654 | Q63: =INDEX('Compile Data'!$L$123:$AI$204,$O63,'Report - ALL (DASHBOARD)'!$W$4) -> 0 | R63: =INDEX('Compile Data'!$AL$123:$BI$204,$O63,'Report - ALL (DASHBOARD)'!$W$4) -> 232.7885575 | S63: =INDEX('Compile Data'!$BL$123:$CI$204,$O63,'Report - ALL (DASHBOARD)'!$W$4) -> 233.6609366 | T63: =INDEX('Compile Data'!$CL$123:$DI$204,$O63,'Report - ALL (DASHBOARD)'!$W$4) ->  | U63: =INDEX('Compile Data'!$DL$123:$EI$204,$O63,'Report - ALL (DASHBOARD)'!$W$4) ->  | V63: =INDEX('Compile Data'!$EL$123:$FI$204,$O63,'Report - ALL (DASHBOARD)'!$W$4) -> 
A64: 1958 | B64: =INDEX('Compile Data'!$L$12:$AI$93,$A64-1921,'Report - ALL (DASHBOARD)'!$W$4) -> 0 | C64: =INDEX('Compile Data'!$AL$12:$BI$93,$A64-1921,'Report - ALL (DASHBOARD)'!$W$4) -> 96.30554713 | D64: =INDEX('Compile Data'!$BL$12:$CI$93,$A64-1921,'Report - ALL (DASHBOARD)'!$W$4) -> 96.3056289 | E64: =INDEX('Compile Data'!$CL$12:$DI$93,$A64-1921,'Report - ALL (DASHBOARD)'!$W$4) ->  | F64: =INDEX('Compile Data'!$DL$12:$EI$93,$A64-1921,'Report - ALL (DASHBOARD)'!$W$4) ->  | G64: =INDEX('Compile Data'!$EL$12:$FI$93,$A64-1921,'Report - ALL (DASHBOARD)'!$W$4) ->  | O64: 37 | P64: 0.4444444444 | Q64: =INDEX('Compile Data'!$L$123:$AI$204,$O64,'Report - ALL (DASHBOARD)'!$W$4) -> 0 | R64: =INDEX('Compile Data'!$AL$123:$BI$204,$O64,'Report - ALL (DASHBOARD)'!$W$4) -> 227.3020352 | S64: =INDEX('Compile Data'!$BL$123:$CI$204,$O64,'Report - ALL (DASHBOARD)'!$W$4) -> 223.7174805 | T64: =INDEX('Compile Data'!$CL$123:$DI$204,$O64,'Report - ALL (DASHBOARD)'!$W$4) ->  | U64: =INDEX('Compile Data'!$DL$123:$EI$204,$O64,'Report - ALL (DASHBOARD)'!$W$4) ->  | V64: =INDEX('Compile Data'!$EL$123:$FI$204,$O64,'Report - ALL (DASHBOARD)'!$W$4) -> 
A65: 1959 | B65: =INDEX('Compile Data'!$L$12:$AI$93,$A65-1921,'Report - ALL (DASHBOARD)'!$W$4) -> 0 | C65: =INDEX('Compile Data'!$AL$12:$BI$93,$A65-1921,'Report - ALL (DASHBOARD)'!$W$4) -> 717.4219617 | D65: =INDEX('Compile Data'!$BL$12:$CI$93,$A65-1921,'Report - ALL (DASHBOARD)'!$W$4) -> 643.0202508 | E65: =INDEX('Compile Data'!$CL$12:$DI$93,$A65-1921,'Report - ALL (DASHBOARD)'!$W$4) ->  | F65: =INDEX('Compile Data'!$DL$12:$EI$93,$A65-1921,'Report - ALL (DASHBOARD)'!$W$4) ->  | G65: =INDEX('Compile Data'!$EL$12:$FI$93,$A65-1921,'Report - ALL (DASHBOARD)'!$W$4) ->  | O65: 38 | P65: 0.4567901235 | Q65: =INDEX('Compile Data'!$L$123:$AI$204,$O65,'Report - ALL (DASHBOARD)'!$W$4) -> 0 | R65: =INDEX('Compile Data'!$AL$123:$BI$204,$O65,'Report - ALL (DASHBOARD)'!$W$4) -> 225.8564673 | S65: =INDEX('Compile Data'!$BL$123:$CI$204,$O65,'Report - ALL (DASHBOARD)'!$W$4) -> 216.7577554 | T65: =INDEX('Compile Data'!$CL$123:$DI$204,$O65,'Report - ALL (DASHBOARD)'!$W$4) ->  | U65: =INDEX('Compile Data'!$DL$123:$EI$204,$O65,'Report - ALL (DASHBOARD)'!$W$4) ->  | V65: =INDEX('Compile Data'!$EL$123:$FI$204,$O65,'Report - ALL (DASHBOARD)'!$W$4) -> 
A66: 1960 | B66: =INDEX('Compile Data'!$L$12:$AI$93,$A66-1921,'Report - ALL (DASHBOARD)'!$W$4) -> 0 | C66: =INDEX('Compile Data'!$AL$12:$BI$93,$A66-1921,'Report - ALL (DASHBOARD)'!$W$4) -> 591.580051 | D66: =INDEX('Compile Data'!$BL$12:$CI$93,$A66-1921,'Report - ALL (DASHBOARD)'!$W$4) -> 549.2232984 | E66: =INDEX('Compile Data'!$CL$12:$DI$93,$A66-1921,'Report - ALL (DASHBOARD)'!$W$4) ->  | F66: =INDEX('Compile Data'!$DL$12:$EI$93,$A66-1921,'Report - ALL (DASHBOARD)'!$W$4) ->  | G66: =INDEX('Compile Data'!$EL$12:$FI$93,$A66-1921,'Report - ALL (DASHBOARD)'!$W$4) ->  | O66: 39 | P66: 0.4691358025 | Q66: =INDEX('Compile Data'!$L$123:$AI$204,$O66,'Report - ALL (DASHBOARD)'!$W$4) -> 0 | R66: =INDEX('Compile Data'!$AL$123:$BI$204,$O66,'Report - ALL (DASHBOARD)'!$W$4) -> 223.7412333 | S66: =INDEX('Compile Data'!$BL$123:$CI$204,$O66,'Report - ALL (DASHBOARD)'!$W$4) -> 209.6544475 | T66: =INDEX('Compile Data'!$CL$123:$DI$204,$O66,'Report - ALL (DASHBOARD)'!$W$4) ->  | U66: =INDEX('Compile Data'!$DL$123:$EI$204,$O66,'Report - ALL (DASHBOARD)'!$W$4) ->  | V66: =INDEX('Compile Data'!$EL$123:$FI$204,$O66,'Report - ALL (DASHBOARD)'!$W$4) -> 
A67: 1961 | B67: =INDEX('Compile Data'!$L$12:$AI$93,$A67-1921,'Report - ALL (DASHBOARD)'!$W$4) -> 0 | C67: =INDEX('Compile Data'!$AL$12:$BI$93,$A67-1921,'Report - ALL (DASHBOARD)'!$W$4) -> 598.869287 | D67: =INDEX('Compile Data'!$BL$12:$CI$93,$A67-1921,'Report - ALL (DASHBOARD)'!$W$4) -> 576.960923 | E67: =INDEX('Compile Data'!$CL$12:$DI$93,$A67-1921,'Report - ALL (DASHBOARD)'!$W$4) ->  | F67: =INDEX('Compile Data'!$DL$12:$EI$93,$A67-1921,'Report - ALL (DASHBOARD)'!$W$4) ->  | G67: =INDEX('Compile Data'!$EL$12:$FI$93,$A67-1921,'Report - ALL (DASHBOARD)'!$W$4) ->  | O67: 40 | P67: 0.4814814815 | Q67: =INDEX('Compile Data'!$L$123:$AI$204,$O67,'Report - ALL (DASHBOARD)'!$W$4) -> 0 | R67: =INDEX('Compile Data'!$AL$123:$BI$204,$O67,'Report - ALL (DASHBOARD)'!$W$4) -> 215.1656692 | S67: =INDEX('Compile Data'!$BL$123:$CI$204,$O67,'Report - ALL (DASHBOARD)'!$W$4) -> 201.0809431 | T67: =INDEX('Compile Data'!$CL$123:$DI$204,$O67,'Report - ALL (DASHBOARD)'!$W$4) ->  | U67: =INDEX('Compile Data'!$DL$123:$EI$204,$O67,'Report - ALL (DASHBOARD)'!$W$4) ->  | V67: =INDEX('Compile Data'!$EL$123:$FI$204,$O67,'Report - ALL (DASHBOARD)'!$W$4) -> 
A68: 1962 | B68: =INDEX('Compile Data'!$L$12:$AI$93,$A68-1921,'Report - ALL (DASHBOARD)'!$W$4) -> 0 | C68: =INDEX('Compile Data'!$AL$12:$BI$93,$A68-1921,'Report - ALL (DASHBOARD)'!$W$4) -> 232.7885575 | D68: =INDEX('Compile Data'!$BL$12:$CI$93,$A68-1921,'Report - ALL (DASHBOARD)'!$W$4) -> 269.9515575 | E68: =INDEX('Compile Data'!$CL$12:$DI$93,$A68-1921,'Report - ALL (DASHBOARD)'!$W$4) ->  | F68: =INDEX('Compile Data'!$DL$12:$EI$93,$A68-1921,'Report - ALL (DASHBOARD)'!$W$4) ->  | G68: =INDEX('Compile Data'!$EL$12:$FI$93,$A68-1921,'Report - ALL (DASHBOARD)'!$W$4) ->  | O68: 41 | P68: 0.4938271605 | Q68: =INDEX('Compile Data'!$L$123:$AI$204,$O68,'Report - ALL (DASHBOARD)'!$W$4) -> 0 | R68: =INDEX('Compile Data'!$AL$123:$BI$204,$O68,'Report - ALL (DASHBOARD)'!$W$4) -> 208.0057925 | S68: =INDEX('Compile Data'!$BL$123:$CI$204,$O68,'Report - ALL (DASHBOARD)'!$W$4) -> 196.7763112 | T68: =INDEX('Compile Data'!$CL$123:$DI$204,$O68,'Report - ALL (DASHBOARD)'!$W$4) ->  | U68: =INDEX('Compile Data'!$DL$123:$EI$204,$O68,'Report - ALL (DASHBOARD)'!$W$4) ->  | V68: =INDEX('Compile Data'!$EL$123:$FI$204,$O68,'Report - ALL (DASHBOARD)'!$W$4) -> 
A69: 1963 | B69: =INDEX('Compile Data'!$L$12:$AI$93,$A69-1921,'Report - ALL (DASHBOARD)'!$W$4) -> 0 | C69: =INDEX('Compile Data'!$AL$12:$BI$93,$A69-1921,'Report - ALL (DASHBOARD)'!$W$4) -> 76.37435478 | D69: =INDEX('Compile Data'!$BL$12:$CI$93,$A69-1921,'Report - ALL (DASHBOARD)'!$W$4) -> 85.1516498 | E69: =INDEX('Compile Data'!$CL$12:$DI$93,$A69-1921,'Report - ALL (DASHBOARD)'!$W$4) ->  | F69: =INDEX('Compile Data'!$DL$12:$EI$93,$A69-1921,'Report - ALL (DASHBOARD)'!$W$4) ->  | G69: =INDEX('Compile Data'!$EL$12:$FI$93,$A69-1921,'Report - ALL (DASHBOARD)'!$W$4) ->  | O69: 42 | P69: 0.5061728395 | Q69: =INDEX('Compile Data'!$L$123:$AI$204,$O69,'Report - ALL (DASHBOARD)'!$W$4) -> 0 | R69: =INDEX('Compile Data'!$AL$123:$BI$204,$O69,'Report - ALL (DASHBOARD)'!$W$4) -> 198.6938352 | S69: =INDEX('Compile Data'!$BL$123:$CI$204,$O69,'Report - ALL (DASHBOARD)'!$W$4) -> 188.4697931 | T69: =INDEX('Compile Data'!$CL$123:$DI$204,$O69,'Report - ALL (DASHBOARD)'!$W$4) ->  | U69: =INDEX('Compile Data'!$DL$123:$EI$204,$O69,'Report - ALL (DASHBOARD)'!$W$4) ->  | V69: =INDEX('Compile Data'!$EL$123:$FI$204,$O69,'Report - ALL (DASHBOARD)'!$W$4) -> 
A70: 1964 | B70: =INDEX('Compile Data'!$L$12:$AI$93,$A70-1921,'Report - ALL (DASHBOARD)'!$W$4) -> 0 | C70: =INDEX('Compile Data'!$AL$12:$BI$93,$A70-1921,'Report - ALL (DASHBOARD)'!$W$4) -> 600.0070975 | D70: =INDEX('Compile Data'!$BL$12:$CI$93,$A70-1921,'Report - ALL (DASHBOARD)'!$W$4) -> 664.2724255 | E70: =INDEX('Compile Data'!$CL$12:$DI$93,$A70-1921,'Report - ALL (DASHBOARD)'!$W$4) ->  | F70: =INDEX('Compile Data'!$DL$12:$EI$93,$A70-1921,'Report - ALL (DASHBOARD)'!$W$4) ->  | G70: =INDEX('Compile Data'!$EL$12:$FI$93,$A70-1921,'Report - ALL (DASHBOARD)'!$W$4) ->  | O70: 43 | P70: 0.5185185185 | Q70: =INDEX('Compile Data'!$L$123:$AI$204,$O70,'Report - ALL (DASHBOARD)'!$W$4) -> 0 | R70: =INDEX('Compile Data'!$AL$123:$BI$204,$O70,'Report - ALL (DASHBOARD)'!$W$4) -> 193.3942371 | S70: =INDEX('Compile Data'!$BL$123:$CI$204,$O70,'Report - ALL (DASHBOARD)'!$W$4) -> 187.2712124 | T70: =INDEX('Compile Data'!$CL$123:$DI$204,$O70,'Report - ALL (DASHBOARD)'!$W$4) ->  | U70: =INDEX('Compile Data'!$DL$123:$EI$204,$O70,'Report - ALL (DASHBOARD)'!$W$4) ->  | V70: =INDEX('Compile Data'!$EL$123:$FI$204,$O70,'Report - ALL (DASHBOARD)'!$W$4) -> 
A71: 1965 | B71: =INDEX('Compile Data'!$L$12:$AI$93,$A71-1921,'Report - ALL (DASHBOARD)'!$W$4) -> 0 | C71: =INDEX('Compile Data'!$AL$12:$BI$93,$A71-1921,'Report - ALL (DASHBOARD)'!$W$4) -> 70.17831804 | D71: =INDEX('Compile Data'!$BL$12:$CI$93,$A71-1921,'Report - ALL (DASHBOARD)'!$W$4) -> 74.19258748 | E71: =INDEX('Compile Data'!$CL$12:$DI$93,$A71-1921,'Report - ALL (DASHBOARD)'!$W$4) ->  | F71: =INDEX('Compile Data'!$DL$12:$EI$93,$A71-1921,'Report - ALL (DASHBOARD)'!$W$4) ->  | G71: =INDEX('Compile Data'!$EL$12:$FI$93,$A71-1921,'Report - ALL (DASHBOARD)'!$W$4) ->  | O71: 44 | P71: 0.5308641975 | Q71: =INDEX('Compile Data'!$L$123:$AI$204,$O71,'Report - ALL (DASHBOARD)'!$W$4) -> 0 | R71: =INDEX('Compile Data'!$AL$123:$BI$204,$O71,'Report - ALL (DASHBOARD)'!$W$4) -> 187.8490957 | S71: =INDEX('Compile Data'!$BL$123:$CI$204,$O71,'Report - ALL (DASHBOARD)'!$W$4) -> 173.3353505 | T71: =INDEX('Compile Data'!$CL$123:$DI$204,$O71,'Report - ALL (DASHBOARD)'!$W$4) ->  | U71: =INDEX('Compile Data'!$DL$123:$EI$204,$O71,'Report - ALL (DASHBOARD)'!$W$4) ->  | V71: =INDEX('Compile Data'!$EL$123:$FI$204,$O71,'Report - ALL (DASHBOARD)'!$W$4) -> 
A72: 1966 | B72: =INDEX('Compile Data'!$L$12:$AI$93,$A72-1921,'Report - ALL (DASHBOARD)'!$W$4) -> 0 | C72: =INDEX('Compile Data'!$AL$12:$BI$93,$A72-1921,'Report - ALL (DASHBOARD)'!$W$4) -> 498.2488816 | D72: =INDEX('Compile Data'!$BL$12:$CI$93,$A72-1921,'Report - ALL (DASHBOARD)'!$W$4) -> 421.5634671 | E72: =INDEX('Compile Data'!$CL$12:$DI$93,$A72-1921,'Report - ALL (DASHBOARD)'!$W$4) ->  | F72: =INDEX('Compile Data'!$DL$12:$EI$93,$A72-1921,'Report - ALL (DASHBOARD)'!$W$4) ->  | G72: =INDEX('Compile Data'!$EL$12:$FI$93,$A72-1921,'Report - ALL (DASHBOARD)'!$W$4) ->  | O72: 45 | P72: 0.5432098765 | Q72: =INDEX('Compile Data'!$L$123:$AI$204,$O72,'Report - ALL (DASHBOARD)'!$W$4) -> 0 | R72: =INDEX('Compile Data'!$AL$123:$BI$204,$O72,'Report - ALL (DASHBOARD)'!$W$4) -> 187.272964 | S72: =INDEX('Compile Data'!$BL$123:$CI$204,$O72,'Report - ALL (DASHBOARD)'!$W$4) -> 166.28411 | T72: =INDEX('Compile Data'!$CL$123:$DI$204,$O72,'Report - ALL (DASHBOARD)'!$W$4) ->  | U72: =INDEX('Compile Data'!$DL$123:$EI$204,$O72,'Report - ALL (DASHBOARD)'!$W$4) ->  | V72: =INDEX('Compile Data'!$EL$123:$FI$204,$O72,'Report - ALL (DASHBOARD)'!$W$4) -> 
A73: 1967 | B73: =INDEX('Compile Data'!$L$12:$AI$93,$A73-1921,'Report - ALL (DASHBOARD)'!$W$4) -> 0 | C73: =INDEX('Compile Data'!$AL$12:$BI$93,$A73-1921,'Report - ALL (DASHBOARD)'!$W$4) -> 87.85150549 | D73: =INDEX('Compile Data'!$BL$12:$CI$93,$A73-1921,'Report - ALL (DASHBOARD)'!$W$4) -> 87.85150549 | E73: =INDEX('Compile Data'!$CL$12:$DI$93,$A73-1921,'Report - ALL (DASHBOARD)'!$W$4) ->  | F73: =INDEX('Compile Data'!$DL$12:$EI$93,$A73-1921,'Report - ALL (DASHBOARD)'!$W$4) ->  | G73: =INDEX('Compile Data'!$EL$12:$FI$93,$A73-1921,'Report - ALL (DASHBOARD)'!$W$4) ->  | O73: 46 | P73: 0.5555555556 | Q73: =INDEX('Compile Data'!$L$123:$AI$204,$O73,'Report - ALL (DASHBOARD)'!$W$4) -> 0 | R73: =INDEX('Compile Data'!$AL$123:$BI$204,$O73,'Report - ALL (DASHBOARD)'!$W$4) -> 170.3185408 | S73: =INDEX('Compile Data'!$BL$123:$CI$204,$O73,'Report - ALL (DASHBOARD)'!$W$4) -> 165.1432179 | T73: =INDEX('Compile Data'!$CL$123:$DI$204,$O73,'Report - ALL (DASHBOARD)'!$W$4) ->  | U73: =INDEX('Compile Data'!$DL$123:$EI$204,$O73,'Report - ALL (DASHBOARD)'!$W$4) ->  | V73: =INDEX('Compile Data'!$EL$123:$FI$204,$O73,'Report - ALL (DASHBOARD)'!$W$4) -> 
A74: 1968 | B74: =INDEX('Compile Data'!$L$12:$AI$93,$A74-1921,'Report - ALL (DASHBOARD)'!$W$4) -> 0 | C74: =INDEX('Compile Data'!$AL$12:$BI$93,$A74-1921,'Report - ALL (DASHBOARD)'!$W$4) -> 690.483099 | D74: =INDEX('Compile Data'!$BL$12:$CI$93,$A74-1921,'Report - ALL (DASHBOARD)'!$W$4) -> 621.4482384 | E74: =INDEX('Compile Data'!$CL$12:$DI$93,$A74-1921,'Report - ALL (DASHBOARD)'!$W$4) ->  | F74: =INDEX('Compile Data'!$DL$12:$EI$93,$A74-1921,'Report - ALL (DASHBOARD)'!$W$4) ->  | G74: =INDEX('Compile Data'!$EL$12:$FI$93,$A74-1921,'Report - ALL (DASHBOARD)'!$W$4) ->  | O74: 47 | P74: 0.5679012346 | Q74: =INDEX('Compile Data'!$L$123:$AI$204,$O74,'Report - ALL (DASHBOARD)'!$W$4) -> 0 | R74: =INDEX('Compile Data'!$AL$123:$BI$204,$O74,'Report - ALL (DASHBOARD)'!$W$4) -> 167.6105575 | S74: =INDEX('Compile Data'!$BL$123:$CI$204,$O74,'Report - ALL (DASHBOARD)'!$W$4) -> 163.7469986 | T74: =INDEX('Compile Data'!$CL$123:$DI$204,$O74,'Report - ALL (DASHBOARD)'!$W$4) ->  | U74: =INDEX('Compile Data'!$DL$123:$EI$204,$O74,'Report - ALL (DASHBOARD)'!$W$4) ->  | V74: =INDEX('Compile Data'!$EL$123:$FI$204,$O74,'Report - ALL (DASHBOARD)'!$W$4) -> 
A75: 1969 | B75: =INDEX('Compile Data'!$L$12:$AI$93,$A75-1921,'Report - ALL (DASHBOARD)'!$W$4) -> 0 | C75: =INDEX('Compile Data'!$AL$12:$BI$93,$A75-1921,'Report - ALL (DASHBOARD)'!$W$4) -> 91.4191907 | D75: =INDEX('Compile Data'!$BL$12:$CI$93,$A75-1921,'Report - ALL (DASHBOARD)'!$W$4) -> 91.4191907 | E75: =INDEX('Compile Data'!$CL$12:$DI$93,$A75-1921,'Report - ALL (DASHBOARD)'!$W$4) ->  | F75: =INDEX('Compile Data'!$DL$12:$EI$93,$A75-1921,'Report - ALL (DASHBOARD)'!$W$4) ->  | G75: =INDEX('Compile Data'!$EL$12:$FI$93,$A75-1921,'Report - ALL (DASHBOARD)'!$W$4) ->  | O75: 48 | P75: 0.5802469136 | Q75: =INDEX('Compile Data'!$L$123:$AI$204,$O75,'Report - ALL (DASHBOARD)'!$W$4) -> 0 | R75: =INDEX('Compile Data'!$AL$123:$BI$204,$O75,'Report - ALL (DASHBOARD)'!$W$4) -> 166.9285063 | S75: =INDEX('Compile Data'!$BL$123:$CI$204,$O75,'Report - ALL (DASHBOARD)'!$W$4) -> 159.7762881 | T75: =INDEX('Compile Data'!$CL$123:$DI$204,$O75,'Report - ALL (DASHBOARD)'!$W$4) ->  | U75: =INDEX('Compile Data'!$DL$123:$EI$204,$O75,'Report - ALL (DASHBOARD)'!$W$4) ->  | V75: =INDEX('Compile Data'!$EL$123:$FI$204,$O75,'Report - ALL (DASHBOARD)'!$W$4) -> 
A76: 1970 | B76: =INDEX('Compile Data'!$L$12:$AI$93,$A76-1921,'Report - ALL (DASHBOARD)'!$W$4) -> 0 | C76: =INDEX('Compile Data'!$AL$12:$BI$93,$A76-1921,'Report - ALL (DASHBOARD)'!$W$4) -> 187.272964 | D76: =INDEX('Compile Data'!$BL$12:$CI$93,$A76-1921,'Report - ALL (DASHBOARD)'!$W$4) -> 187.2712124 | E76: =INDEX('Compile Data'!$CL$12:$DI$93,$A76-1921,'Report - ALL (DASHBOARD)'!$W$4) ->  | F76: =INDEX('Compile Data'!$DL$12:$EI$93,$A76-1921,'Report - ALL (DASHBOARD)'!$W$4) ->  | G76: =INDEX('Compile Data'!$EL$12:$FI$93,$A76-1921,'Report - ALL (DASHBOARD)'!$W$4) ->  | O76: 49 | P76: 0.5925925926 | Q76: =INDEX('Compile Data'!$L$123:$AI$204,$O76,'Report - ALL (DASHBOARD)'!$W$4) -> 0 | R76: =INDEX('Compile Data'!$AL$123:$BI$204,$O76,'Report - ALL (DASHBOARD)'!$W$4) -> 166.28411 | S76: =INDEX('Compile Data'!$BL$123:$CI$204,$O76,'Report - ALL (DASHBOARD)'!$W$4) -> 151.9855133 | T76: =INDEX('Compile Data'!$CL$123:$DI$204,$O76,'Report - ALL (DASHBOARD)'!$W$4) ->  | U76: =INDEX('Compile Data'!$DL$123:$EI$204,$O76,'Report - ALL (DASHBOARD)'!$W$4) ->  | V76: =INDEX('Compile Data'!$EL$123:$FI$204,$O76,'Report - ALL (DASHBOARD)'!$W$4) -> 
A77: 1971 | B77: =INDEX('Compile Data'!$L$12:$AI$93,$A77-1921,'Report - ALL (DASHBOARD)'!$W$4) -> 0 | C77: =INDEX('Compile Data'!$AL$12:$BI$93,$A77-1921,'Report - ALL (DASHBOARD)'!$W$4) -> 96.97418465 | D77: =INDEX('Compile Data'!$BL$12:$CI$93,$A77-1921,'Report - ALL (DASHBOARD)'!$W$4) -> 96.97418453 | E77: =INDEX('Compile Data'!$CL$12:$DI$93,$A77-1921,'Report - ALL (DASHBOARD)'!$W$4) ->  | F77: =INDEX('Compile Data'!$DL$12:$EI$93,$A77-1921,'Report - ALL (DASHBOARD)'!$W$4) ->  | G77: =INDEX('Compile Data'!$EL$12:$FI$93,$A77-1921,'Report - ALL (DASHBOARD)'!$W$4) ->  | O77: 50 | P77: 0.6049382716 | Q77: =INDEX('Compile Data'!$L$123:$AI$204,$O77,'Report - ALL (DASHBOARD)'!$W$4) -> 0 | R77: =INDEX('Compile Data'!$AL$123:$BI$204,$O77,'Report - ALL (DASHBOARD)'!$W$4) -> 153.6808943 | S77: =INDEX('Compile Data'!$BL$123:$CI$204,$O77,'Report - ALL (DASHBOARD)'!$W$4) -> 149.7928962 | T77: =INDEX('Compile Data'!$CL$123:$DI$204,$O77,'Report - ALL (DASHBOARD)'!$W$4) ->  | U77: =INDEX('Compile Data'!$DL$123:$EI$204,$O77,'Report - ALL (DASHBOARD)'!$W$4) ->  | V77: =INDEX('Compile Data'!$EL$123:$FI$204,$O77,'Report - ALL (DASHBOARD)'!$W$4) -> 
A78: 1972 | B78: =INDEX('Compile Data'!$L$12:$AI$93,$A78-1921,'Report - ALL (DASHBOARD)'!$W$4) -> 0 | C78: =INDEX('Compile Data'!$AL$12:$BI$93,$A78-1921,'Report - ALL (DASHBOARD)'!$W$4) -> 635.9540303 | D78: =INDEX('Compile Data'!$BL$12:$CI$93,$A78-1921,'Report - ALL (DASHBOARD)'!$W$4) -> 630.405584 | E78: =INDEX('Compile Data'!$CL$12:$DI$93,$A78-1921,'Report - ALL (DASHBOARD)'!$W$4) ->  | F78: =INDEX('Compile Data'!$DL$12:$EI$93,$A78-1921,'Report - ALL (DASHBOARD)'!$W$4) ->  | G78: =INDEX('Compile Data'!$EL$12:$FI$93,$A78-1921,'Report - ALL (DASHBOARD)'!$W$4) ->  | O78: 51 | P78: 0.6172839506 | Q78: =INDEX('Compile Data'!$L$123:$AI$204,$O78,'Report - ALL (DASHBOARD)'!$W$4) -> 0 | R78: =INDEX('Compile Data'!$AL$123:$BI$204,$O78,'Report - ALL (DASHBOARD)'!$W$4) -> 151.9855229 | S78: =INDEX('Compile Data'!$BL$123:$CI$204,$O78,'Report - ALL (DASHBOARD)'!$W$4) -> 144.9652151 | T78: =INDEX('Compile Data'!$CL$123:$DI$204,$O78,'Report - ALL (DASHBOARD)'!$W$4) ->  | U78: =INDEX('Compile Data'!$DL$123:$EI$204,$O78,'Report - ALL (DASHBOARD)'!$W$4) ->  | V78: =INDEX('Compile Data'!$EL$123:$FI$204,$O78,'Report - ALL (DASHBOARD)'!$W$4) -> 
A79: 1973 | B79: =INDEX('Compile Data'!$L$12:$AI$93,$A79-1921,'Report - ALL (DASHBOARD)'!$W$4) -> 0 | C79: =INDEX('Compile Data'!$AL$12:$BI$93,$A79-1921,'Report - ALL (DASHBOARD)'!$W$4) -> 542.0896296 | D79: =INDEX('Compile Data'!$BL$12:$CI$93,$A79-1921,'Report - ALL (DASHBOARD)'!$W$4) -> 438.4028439 | E79: =INDEX('Compile Data'!$CL$12:$DI$93,$A79-1921,'Report - ALL (DASHBOARD)'!$W$4) ->  | F79: =INDEX('Compile Data'!$DL$12:$EI$93,$A79-1921,'Report - ALL (DASHBOARD)'!$W$4) ->  | G79: =INDEX('Compile Data'!$EL$12:$FI$93,$A79-1921,'Report - ALL (DASHBOARD)'!$W$4) ->  | O79: 52 | P79: 0.6296296296 | Q79: =INDEX('Compile Data'!$L$123:$AI$204,$O79,'Report - ALL (DASHBOARD)'!$W$4) -> 0 | R79: =INDEX('Compile Data'!$AL$123:$BI$204,$O79,'Report - ALL (DASHBOARD)'!$W$4) -> 143.4584977 | S79: =INDEX('Compile Data'!$BL$123:$CI$204,$O79,'Report - ALL (DASHBOARD)'!$W$4) -> 143.4584977 | T79: =INDEX('Compile Data'!$CL$123:$DI$204,$O79,'Report - ALL (DASHBOARD)'!$W$4) ->  | U79: =INDEX('Compile Data'!$DL$123:$EI$204,$O79,'Report - ALL (DASHBOARD)'!$W$4) ->  | V79: =INDEX('Compile Data'!$EL$123:$FI$204,$O79,'Report - ALL (DASHBOARD)'!$W$4) -> 
A80: 1974 | B80: =INDEX('Compile Data'!$L$12:$AI$93,$A80-1921,'Report - ALL (DASHBOARD)'!$W$4) -> 0 | C80: =INDEX('Compile Data'!$AL$12:$BI$93,$A80-1921,'Report - ALL (DASHBOARD)'!$W$4) -> 117.70569 | D80: =INDEX('Compile Data'!$BL$12:$CI$93,$A80-1921,'Report - ALL (DASHBOARD)'!$W$4) -> 138.9300807 | E80: =INDEX('Compile Data'!$CL$12:$DI$93,$A80-1921,'Report - ALL (DASHBOARD)'!$W$4) ->  | F80: =INDEX('Compile Data'!$DL$12:$EI$93,$A80-1921,'Report - ALL (DASHBOARD)'!$W$4) ->  | G80: =INDEX('Compile Data'!$EL$12:$FI$93,$A80-1921,'Report - ALL (DASHBOARD)'!$W$4) ->  | O80: 53 | P80: 0.6419753086 | Q80: =INDEX('Compile Data'!$L$123:$AI$204,$O80,'Report - ALL (DASHBOARD)'!$W$4) -> 0 | R80: =INDEX('Compile Data'!$AL$123:$BI$204,$O80,'Report - ALL (DASHBOARD)'!$W$4) -> 118.4611 | S80: =INDEX('Compile Data'!$BL$123:$CI$204,$O80,'Report - ALL (DASHBOARD)'!$W$4) -> 138.9300807 | T80: =INDEX('Compile Data'!$CL$123:$DI$204,$O80,'Report - ALL (DASHBOARD)'!$W$4) ->  | U80: =INDEX('Compile Data'!$DL$123:$EI$204,$O80,'Report - ALL (DASHBOARD)'!$W$4) ->  | V80: =INDEX('Compile Data'!$EL$123:$FI$204,$O80,'Report - ALL (DASHBOARD)'!$W$4) -> 
A81: 1975 | B81: =INDEX('Compile Data'!$L$12:$AI$93,$A81-1921,'Report - ALL (DASHBOARD)'!$W$4) -> 0 | C81: =INDEX('Compile Data'!$AL$12:$BI$93,$A81-1921,'Report - ALL (DASHBOARD)'!$W$4) -> 90.06258518 | D81: =INDEX('Compile Data'!$BL$12:$CI$93,$A81-1921,'Report - ALL (DASHBOARD)'!$W$4) -> 90.06258518 | E81: =INDEX('Compile Data'!$CL$12:$DI$93,$A81-1921,'Report - ALL (DASHBOARD)'!$W$4) ->  | F81: =INDEX('Compile Data'!$DL$12:$EI$93,$A81-1921,'Report - ALL (DASHBOARD)'!$W$4) ->  | G81: =INDEX('Compile Data'!$EL$12:$FI$93,$A81-1921,'Report - ALL (DASHBOARD)'!$W$4) ->  | O81: 54 | P81: 0.6543209877 | Q81: =INDEX('Compile Data'!$L$123:$AI$204,$O81,'Report - ALL (DASHBOARD)'!$W$4) -> 0 | R81: =INDEX('Compile Data'!$AL$123:$BI$204,$O81,'Report - ALL (DASHBOARD)'!$W$4) -> 117.70569 | S81: =INDEX('Compile Data'!$BL$123:$CI$204,$O81,'Report - ALL (DASHBOARD)'!$W$4) -> 118.4678158 | T81: =INDEX('Compile Data'!$CL$123:$DI$204,$O81,'Report - ALL (DASHBOARD)'!$W$4) ->  | U81: =INDEX('Compile Data'!$DL$123:$EI$204,$O81,'Report - ALL (DASHBOARD)'!$W$4) ->  | V81: =INDEX('Compile Data'!$EL$123:$FI$204,$O81,'Report - ALL (DASHBOARD)'!$W$4) -> 
A82: 1976 | B82: =INDEX('Compile Data'!$L$12:$AI$93,$A82-1921,'Report - ALL (DASHBOARD)'!$W$4) -> 0 | C82: =INDEX('Compile Data'!$AL$12:$BI$93,$A82-1921,'Report - ALL (DASHBOARD)'!$W$4) -> 660.5928304 | D82: =INDEX('Compile Data'!$BL$12:$CI$93,$A82-1921,'Report - ALL (DASHBOARD)'!$W$4) -> 655.6486053 | E82: =INDEX('Compile Data'!$CL$12:$DI$93,$A82-1921,'Report - ALL (DASHBOARD)'!$W$4) ->  | F82: =INDEX('Compile Data'!$DL$12:$EI$93,$A82-1921,'Report - ALL (DASHBOARD)'!$W$4) ->  | G82: =INDEX('Compile Data'!$EL$12:$FI$93,$A82-1921,'Report - ALL (DASHBOARD)'!$W$4) ->  | O82: 55 | P82: 0.6666666667 | Q82: =INDEX('Compile Data'!$L$123:$AI$204,$O82,'Report - ALL (DASHBOARD)'!$W$4) -> 0 | R82: =INDEX('Compile Data'!$AL$123:$BI$204,$O82,'Report - ALL (DASHBOARD)'!$W$4) -> 109.9331284 | S82: =INDEX('Compile Data'!$BL$123:$CI$204,$O82,'Report - ALL (DASHBOARD)'!$W$4) -> 118.4611 | T82: =INDEX('Compile Data'!$CL$123:$DI$204,$O82,'Report - ALL (DASHBOARD)'!$W$4) ->  | U82: =INDEX('Compile Data'!$DL$123:$EI$204,$O82,'Report - ALL (DASHBOARD)'!$W$4) ->  | V82: =INDEX('Compile Data'!$EL$123:$FI$204,$O82,'Report - ALL (DASHBOARD)'!$W$4) -> 
A83: 1977 | B83: =INDEX('Compile Data'!$L$12:$AI$93,$A83-1921,'Report - ALL (DASHBOARD)'!$W$4) -> 0 | C83: =INDEX('Compile Data'!$AL$12:$BI$93,$A83-1921,'Report - ALL (DASHBOARD)'!$W$4) -> 501.8140435 | D83: =INDEX('Compile Data'!$BL$12:$CI$93,$A83-1921,'Report - ALL (DASHBOARD)'!$W$4) -> 494.0581938 | E83: =INDEX('Compile Data'!$CL$12:$DI$93,$A83-1921,'Report - ALL (DASHBOARD)'!$W$4) ->  | F83: =INDEX('Compile Data'!$DL$12:$EI$93,$A83-1921,'Report - ALL (DASHBOARD)'!$W$4) ->  | G83: =INDEX('Compile Data'!$EL$12:$FI$93,$A83-1921,'Report - ALL (DASHBOARD)'!$W$4) ->  | O83: 56 | P83: 0.6790123457 | Q83: =INDEX('Compile Data'!$L$123:$AI$204,$O83,'Report - ALL (DASHBOARD)'!$W$4) -> 0 | R83: =INDEX('Compile Data'!$AL$123:$BI$204,$O83,'Report - ALL (DASHBOARD)'!$W$4) -> 96.97418465 | S83: =INDEX('Compile Data'!$BL$123:$CI$204,$O83,'Report - ALL (DASHBOARD)'!$W$4) -> 103.2897233 | T83: =INDEX('Compile Data'!$CL$123:$DI$204,$O83,'Report - ALL (DASHBOARD)'!$W$4) ->  | U83: =INDEX('Compile Data'!$DL$123:$EI$204,$O83,'Report - ALL (DASHBOARD)'!$W$4) ->  | V83: =INDEX('Compile Data'!$EL$123:$FI$204,$O83,'Report - ALL (DASHBOARD)'!$W$4) -> 
A84: 1978 | B84: =INDEX('Compile Data'!$L$12:$AI$93,$A84-1921,'Report - ALL (DASHBOARD)'!$W$4) -> 0 | C84: =INDEX('Compile Data'!$AL$12:$BI$93,$A84-1921,'Report - ALL (DASHBOARD)'!$W$4) -> 327.8008019 | D84: =INDEX('Compile Data'!$BL$12:$CI$93,$A84-1921,'Report - ALL (DASHBOARD)'!$W$4) -> 243.239534 | E84: =INDEX('Compile Data'!$CL$12:$DI$93,$A84-1921,'Report - ALL (DASHBOARD)'!$W$4) ->  | F84: =INDEX('Compile Data'!$DL$12:$EI$93,$A84-1921,'Report - ALL (DASHBOARD)'!$W$4) ->  | G84: =INDEX('Compile Data'!$EL$12:$FI$93,$A84-1921,'Report - ALL (DASHBOARD)'!$W$4) ->  | O84: 57 | P84: 0.6913580247 | Q84: =INDEX('Compile Data'!$L$123:$AI$204,$O84,'Report - ALL (DASHBOARD)'!$W$4) -> 0 | R84: =INDEX('Compile Data'!$AL$123:$BI$204,$O84,'Report - ALL (DASHBOARD)'!$W$4) -> 96.30554713 | S84: =INDEX('Compile Data'!$BL$123:$CI$204,$O84,'Report - ALL (DASHBOARD)'!$W$4) -> 96.97418453 | T84: =INDEX('Compile Data'!$CL$123:$DI$204,$O84,'Report - ALL (DASHBOARD)'!$W$4) ->  | U84: =INDEX('Compile Data'!$DL$123:$EI$204,$O84,'Report - ALL (DASHBOARD)'!$W$4) ->  | V84: =INDEX('Compile Data'!$EL$123:$FI$204,$O84,'Report - ALL (DASHBOARD)'!$W$4) -> 
A85: 1979 | B85: =INDEX('Compile Data'!$L$12:$AI$93,$A85-1921,'Report - ALL (DASHBOARD)'!$W$4) -> 0 | C85: =INDEX('Compile Data'!$AL$12:$BI$93,$A85-1921,'Report - ALL (DASHBOARD)'!$W$4) -> 299.9863524 | D85: =INDEX('Compile Data'!$BL$12:$CI$93,$A85-1921,'Report - ALL (DASHBOARD)'!$W$4) -> 292.932586 | E85: =INDEX('Compile Data'!$CL$12:$DI$93,$A85-1921,'Report - ALL (DASHBOARD)'!$W$4) ->  | F85: =INDEX('Compile Data'!$DL$12:$EI$93,$A85-1921,'Report - ALL (DASHBOARD)'!$W$4) ->  | G85: =INDEX('Compile Data'!$EL$12:$FI$93,$A85-1921,'Report - ALL (DASHBOARD)'!$W$4) ->  | O85: 58 | P85: 0.7037037037 | Q85: =INDEX('Compile Data'!$L$123:$AI$204,$O85,'Report - ALL (DASHBOARD)'!$W$4) -> 0 | R85: =INDEX('Compile Data'!$AL$123:$BI$204,$O85,'Report - ALL (DASHBOARD)'!$W$4) -> 92.76388085 | S85: =INDEX('Compile Data'!$BL$123:$CI$204,$O85,'Report - ALL (DASHBOARD)'!$W$4) -> 96.3056289 | T85: =INDEX('Compile Data'!$CL$123:$DI$204,$O85,'Report - ALL (DASHBOARD)'!$W$4) ->  | U85: =INDEX('Compile Data'!$DL$123:$EI$204,$O85,'Report - ALL (DASHBOARD)'!$W$4) ->  | V85: =INDEX('Compile Data'!$EL$123:$FI$204,$O85,'Report - ALL (DASHBOARD)'!$W$4) -> 
A86: 1980 | B86: =INDEX('Compile Data'!$L$12:$AI$93,$A86-1921,'Report - ALL (DASHBOARD)'!$W$4) -> 0 | C86: =INDEX('Compile Data'!$AL$12:$BI$93,$A86-1921,'Report - ALL (DASHBOARD)'!$W$4) -> 225.8564673 | D86: =INDEX('Compile Data'!$BL$12:$CI$93,$A86-1921,'Report - ALL (DASHBOARD)'!$W$4) -> 173.3353505 | E86: =INDEX('Compile Data'!$CL$12:$DI$93,$A86-1921,'Report - ALL (DASHBOARD)'!$W$4) ->  | F86: =INDEX('Compile Data'!$DL$12:$EI$93,$A86-1921,'Report - ALL (DASHBOARD)'!$W$4) ->  | G86: =INDEX('Compile Data'!$EL$12:$FI$93,$A86-1921,'Report - ALL (DASHBOARD)'!$W$4) ->  | O86: 59 | P86: 0.7160493827 | Q86: =INDEX('Compile Data'!$L$123:$AI$204,$O86,'Report - ALL (DASHBOARD)'!$W$4) -> 0 | R86: =INDEX('Compile Data'!$AL$123:$BI$204,$O86,'Report - ALL (DASHBOARD)'!$W$4) -> 91.4191907 | S86: =INDEX('Compile Data'!$BL$123:$CI$204,$O86,'Report - ALL (DASHBOARD)'!$W$4) -> 95.14928795 | T86: =INDEX('Compile Data'!$CL$123:$DI$204,$O86,'Report - ALL (DASHBOARD)'!$W$4) ->  | U86: =INDEX('Compile Data'!$DL$123:$EI$204,$O86,'Report - ALL (DASHBOARD)'!$W$4) ->  | V86: =INDEX('Compile Data'!$EL$123:$FI$204,$O86,'Report - ALL (DASHBOARD)'!$W$4) -> 
A87: 1981 | B87: =INDEX('Compile Data'!$L$12:$AI$93,$A87-1921,'Report - ALL (DASHBOARD)'!$W$4) -> 0 | C87: =INDEX('Compile Data'!$AL$12:$BI$93,$A87-1921,'Report - ALL (DASHBOARD)'!$W$4) -> 414.9250666 | D87: =INDEX('Compile Data'!$BL$12:$CI$93,$A87-1921,'Report - ALL (DASHBOARD)'!$W$4) -> 418.7074169 | E87: =INDEX('Compile Data'!$CL$12:$DI$93,$A87-1921,'Report - ALL (DASHBOARD)'!$W$4) ->  | F87: =INDEX('Compile Data'!$DL$12:$EI$93,$A87-1921,'Report - ALL (DASHBOARD)'!$W$4) ->  | G87: =INDEX('Compile Data'!$EL$12:$FI$93,$A87-1921,'Report - ALL (DASHBOARD)'!$W$4) ->  | O87: 60 | P87: 0.7283950617 | Q87: =INDEX('Compile Data'!$L$123:$AI$204,$O87,'Report - ALL (DASHBOARD)'!$W$4) -> 0 | R87: =INDEX('Compile Data'!$AL$123:$BI$204,$O87,'Report - ALL (DASHBOARD)'!$W$4) -> 90.06258518 | S87: =INDEX('Compile Data'!$BL$123:$CI$204,$O87,'Report - ALL (DASHBOARD)'!$W$4) -> 91.4191907 | T87: =INDEX('Compile Data'!$CL$123:$DI$204,$O87,'Report - ALL (DASHBOARD)'!$W$4) ->  | U87: =INDEX('Compile Data'!$DL$123:$EI$204,$O87,'Report - ALL (DASHBOARD)'!$W$4) ->  | V87: =INDEX('Compile Data'!$EL$123:$FI$204,$O87,'Report - ALL (DASHBOARD)'!$W$4) -> 
A88: 1982 | B88: =INDEX('Compile Data'!$L$12:$AI$93,$A88-1921,'Report - ALL (DASHBOARD)'!$W$4) -> 0 | C88: =INDEX('Compile Data'!$AL$12:$BI$93,$A88-1921,'Report - ALL (DASHBOARD)'!$W$4) -> 87.7586207 | D88: =INDEX('Compile Data'!$BL$12:$CI$93,$A88-1921,'Report - ALL (DASHBOARD)'!$W$4) -> 87.7586207 | E88: =INDEX('Compile Data'!$CL$12:$DI$93,$A88-1921,'Report - ALL (DASHBOARD)'!$W$4) ->  | F88: =INDEX('Compile Data'!$DL$12:$EI$93,$A88-1921,'Report - ALL (DASHBOARD)'!$W$4) ->  | G88: =INDEX('Compile Data'!$EL$12:$FI$93,$A88-1921,'Report - ALL (DASHBOARD)'!$W$4) ->  | O88: 61 | P88: 0.7407407407 | Q88: =INDEX('Compile Data'!$L$123:$AI$204,$O88,'Report - ALL (DASHBOARD)'!$W$4) -> 0 | R88: =INDEX('Compile Data'!$AL$123:$BI$204,$O88,'Report - ALL (DASHBOARD)'!$W$4) -> 89.71396341 | S88: =INDEX('Compile Data'!$BL$123:$CI$204,$O88,'Report - ALL (DASHBOARD)'!$W$4) -> 90.06258518 | T88: =INDEX('Compile Data'!$CL$123:$DI$204,$O88,'Report - ALL (DASHBOARD)'!$W$4) ->  | U88: =INDEX('Compile Data'!$DL$123:$EI$204,$O88,'Report - ALL (DASHBOARD)'!$W$4) ->  | V88: =INDEX('Compile Data'!$EL$123:$FI$204,$O88,'Report - ALL (DASHBOARD)'!$W$4) -> 
A89: 1983 | B89: =INDEX('Compile Data'!$L$12:$AI$93,$A89-1921,'Report - ALL (DASHBOARD)'!$W$4) -> 0 | C89: =INDEX('Compile Data'!$AL$12:$BI$93,$A89-1921,'Report - ALL (DASHBOARD)'!$W$4) -> 118.4611 | D89: =INDEX('Compile Data'!$BL$12:$CI$93,$A89-1921,'Report - ALL (DASHBOARD)'!$W$4) -> 118.4611 | E89: =INDEX('Compile Data'!$CL$12:$DI$93,$A89-1921,'Report - ALL (DASHBOARD)'!$W$4) ->  | F89: =INDEX('Compile Data'!$DL$12:$EI$93,$A89-1921,'Report - ALL (DASHBOARD)'!$W$4) ->  | G89: =INDEX('Compile Data'!$EL$12:$FI$93,$A89-1921,'Report - ALL (DASHBOARD)'!$W$4) ->  | O89: 62 | P89: 0.7530864198 | Q89: =INDEX('Compile Data'!$L$123:$AI$204,$O89,'Report - ALL (DASHBOARD)'!$W$4) -> 0 | R89: =INDEX('Compile Data'!$AL$123:$BI$204,$O89,'Report - ALL (DASHBOARD)'!$W$4) -> 88.46272488 | S89: =INDEX('Compile Data'!$BL$123:$CI$204,$O89,'Report - ALL (DASHBOARD)'!$W$4) -> 89.71396341 | T89: =INDEX('Compile Data'!$CL$123:$DI$204,$O89,'Report - ALL (DASHBOARD)'!$W$4) ->  | U89: =INDEX('Compile Data'!$DL$123:$EI$204,$O89,'Report - ALL (DASHBOARD)'!$W$4) ->  | V89: =INDEX('Compile Data'!$EL$123:$FI$204,$O89,'Report - ALL (DASHBOARD)'!$W$4) -> 
A90: 1984 | B90: =INDEX('Compile Data'!$L$12:$AI$93,$A90-1921,'Report - ALL (DASHBOARD)'!$W$4) -> 0 | C90: =INDEX('Compile Data'!$AL$12:$BI$93,$A90-1921,'Report - ALL (DASHBOARD)'!$W$4) -> 166.28411 | D90: =INDEX('Compile Data'!$BL$12:$CI$93,$A90-1921,'Report - ALL (DASHBOARD)'!$W$4) -> 166.28411 | E90: =INDEX('Compile Data'!$CL$12:$DI$93,$A90-1921,'Report - ALL (DASHBOARD)'!$W$4) ->  | F90: =INDEX('Compile Data'!$DL$12:$EI$93,$A90-1921,'Report - ALL (DASHBOARD)'!$W$4) ->  | G90: =INDEX('Compile Data'!$EL$12:$FI$93,$A90-1921,'Report - ALL (DASHBOARD)'!$W$4) ->  | O90: 63 | P90: 0.7654320988 | Q90: =INDEX('Compile Data'!$L$123:$AI$204,$O90,'Report - ALL (DASHBOARD)'!$W$4) -> 0 | R90: =INDEX('Compile Data'!$AL$123:$BI$204,$O90,'Report - ALL (DASHBOARD)'!$W$4) -> 88.00666779 | S90: =INDEX('Compile Data'!$BL$123:$CI$204,$O90,'Report - ALL (DASHBOARD)'!$W$4) -> 88.00666779 | T90: =INDEX('Compile Data'!$CL$123:$DI$204,$O90,'Report - ALL (DASHBOARD)'!$W$4) ->  | U90: =INDEX('Compile Data'!$DL$123:$EI$204,$O90,'Report - ALL (DASHBOARD)'!$W$4) ->  | V90: =INDEX('Compile Data'!$EL$123:$FI$204,$O90,'Report - ALL (DASHBOARD)'!$W$4) -> 
A91: 1985 | B91: =INDEX('Compile Data'!$L$12:$AI$93,$A91-1921,'Report - ALL (DASHBOARD)'!$W$4) -> 0 | C91: =INDEX('Compile Data'!$AL$12:$BI$93,$A91-1921,'Report - ALL (DASHBOARD)'!$W$4) -> 692.8806239 | D91: =INDEX('Compile Data'!$BL$12:$CI$93,$A91-1921,'Report - ALL (DASHBOARD)'!$W$4) -> 698.2613031 | E91: =INDEX('Compile Data'!$CL$12:$DI$93,$A91-1921,'Report - ALL (DASHBOARD)'!$W$4) ->  | F91: =INDEX('Compile Data'!$DL$12:$EI$93,$A91-1921,'Report - ALL (DASHBOARD)'!$W$4) ->  | G91: =INDEX('Compile Data'!$EL$12:$FI$93,$A91-1921,'Report - ALL (DASHBOARD)'!$W$4) ->  | O91: 64 | P91: 0.7777777778 | Q91: =INDEX('Compile Data'!$L$123:$AI$204,$O91,'Report - ALL (DASHBOARD)'!$W$4) -> 0 | R91: =INDEX('Compile Data'!$AL$123:$BI$204,$O91,'Report - ALL (DASHBOARD)'!$W$4) -> 87.85150549 | S91: =INDEX('Compile Data'!$BL$123:$CI$204,$O91,'Report - ALL (DASHBOARD)'!$W$4) -> 87.85150549 | T91: =INDEX('Compile Data'!$CL$123:$DI$204,$O91,'Report - ALL (DASHBOARD)'!$W$4) ->  | U91: =INDEX('Compile Data'!$DL$123:$EI$204,$O91,'Report - ALL (DASHBOARD)'!$W$4) ->  | V91: =INDEX('Compile Data'!$EL$123:$FI$204,$O91,'Report - ALL (DASHBOARD)'!$W$4) -> 
A92: 1986 | B92: =INDEX('Compile Data'!$L$12:$AI$93,$A92-1921,'Report - ALL (DASHBOARD)'!$W$4) -> 0 | C92: =INDEX('Compile Data'!$AL$12:$BI$93,$A92-1921,'Report - ALL (DASHBOARD)'!$W$4) -> 170.3185408 | D92: =INDEX('Compile Data'!$BL$12:$CI$93,$A92-1921,'Report - ALL (DASHBOARD)'!$W$4) -> 201.0809431 | E92: =INDEX('Compile Data'!$CL$12:$DI$93,$A92-1921,'Report - ALL (DASHBOARD)'!$W$4) ->  | F92: =INDEX('Compile Data'!$DL$12:$EI$93,$A92-1921,'Report - ALL (DASHBOARD)'!$W$4) ->  | G92: =INDEX('Compile Data'!$EL$12:$FI$93,$A92-1921,'Report - ALL (DASHBOARD)'!$W$4) ->  | O92: 65 | P92: =(O92-1)/81 -> 0.7901234568 | Q92: =INDEX('Compile Data'!$L$123:$AI$204,$O92,'Report - ALL (DASHBOARD)'!$W$4) -> 0 | R92: =INDEX('Compile Data'!$AL$123:$BI$204,$O92,'Report - ALL (DASHBOARD)'!$W$4) -> 87.7586207 | S92: =INDEX('Compile Data'!$BL$123:$CI$204,$O92,'Report - ALL (DASHBOARD)'!$W$4) -> 87.7586207 | T92: =INDEX('Compile Data'!$CL$123:$DI$204,$O92,'Report - ALL (DASHBOARD)'!$W$4) ->  | U92: =INDEX('Compile Data'!$DL$123:$EI$204,$O92,'Report - ALL (DASHBOARD)'!$W$4) ->  | V92: =INDEX('Compile Data'!$EL$123:$FI$204,$O92,'Report - ALL (DASHBOARD)'!$W$4) -> 
A93: 1987 | B93: =INDEX('Compile Data'!$L$12:$AI$93,$A93-1921,'Report - ALL (DASHBOARD)'!$W$4) -> 0 | C93: =INDEX('Compile Data'!$AL$12:$BI$93,$A93-1921,'Report - ALL (DASHBOARD)'!$W$4) -> 583.1900949 | D93: =INDEX('Compile Data'!$BL$12:$CI$93,$A93-1921,'Report - ALL (DASHBOARD)'!$W$4) -> 535.0414157 | E93: =INDEX('Compile Data'!$CL$12:$DI$93,$A93-1921,'Report - ALL (DASHBOARD)'!$W$4) ->  | F93: =INDEX('Compile Data'!$DL$12:$EI$93,$A93-1921,'Report - ALL (DASHBOARD)'!$W$4) ->  | G93: =INDEX('Compile Data'!$EL$12:$FI$93,$A93-1921,'Report - ALL (DASHBOARD)'!$W$4) ->  | O93: 66 | P93: 0.8024691358 | Q93: =INDEX('Compile Data'!$L$123:$AI$204,$O93,'Report - ALL (DASHBOARD)'!$W$4) -> 0 | R93: =INDEX('Compile Data'!$AL$123:$BI$204,$O93,'Report - ALL (DASHBOARD)'!$W$4) -> 87.7586207 | S93: =INDEX('Compile Data'!$BL$123:$CI$204,$O93,'Report - ALL (DASHBOARD)'!$W$4) -> 87.7586207 | T93: =INDEX('Compile Data'!$CL$123:$DI$204,$O93,'Report - ALL (DASHBOARD)'!$W$4) ->  | U93: =INDEX('Compile Data'!$DL$123:$EI$204,$O93,'Report - ALL (DASHBOARD)'!$W$4) ->  | V93: =INDEX('Compile Data'!$EL$123:$FI$204,$O93,'Report - ALL (DASHBOARD)'!$W$4) -> 
A94: =A93+1 -> 1988 | B94: =INDEX('Compile Data'!$L$12:$AI$93,$A94-1921,'Report - ALL (DASHBOARD)'!$W$4) -> 0 | C94: =INDEX('Compile Data'!$AL$12:$BI$93,$A94-1921,'Report - ALL (DASHBOARD)'!$W$4) -> 425.2663103 | D94: =INDEX('Compile Data'!$BL$12:$CI$93,$A94-1921,'Report - ALL (DASHBOARD)'!$W$4) -> 422.9482579 | E94: =INDEX('Compile Data'!$CL$12:$DI$93,$A94-1921,'Report - ALL (DASHBOARD)'!$W$4) ->  | F94: =INDEX('Compile Data'!$DL$12:$EI$93,$A94-1921,'Report - ALL (DASHBOARD)'!$W$4) ->  | G94: =INDEX('Compile Data'!$EL$12:$FI$93,$A94-1921,'Report - ALL (DASHBOARD)'!$W$4) ->  | O94: 67 | P94: 0.8148148148 | Q94: =INDEX('Compile Data'!$L$123:$AI$204,$O94,'Report - ALL (DASHBOARD)'!$W$4) -> 0 | R94: =INDEX('Compile Data'!$AL$123:$BI$204,$O94,'Report - ALL (DASHBOARD)'!$W$4) -> 82.14927795 | S94: =INDEX('Compile Data'!$BL$123:$CI$204,$O94,'Report - ALL (DASHBOARD)'!$W$4) -> 86.15953144 | T94: =INDEX('Compile Data'!$CL$123:$DI$204,$O94,'Report - ALL (DASHBOARD)'!$W$4) ->  | U94: =INDEX('Compile Data'!$DL$123:$EI$204,$O94,'Report - ALL (DASHBOARD)'!$W$4) ->  | V94: =INDEX('Compile Data'!$EL$123:$FI$204,$O94,'Report - ALL (DASHBOARD)'!$W$4) -> 
A95: 1989 | B95: =INDEX('Compile Data'!$L$12:$AI$93,$A95-1921,'Report - ALL (DASHBOARD)'!$W$4) -> 0 | C95: =INDEX('Compile Data'!$AL$12:$BI$93,$A95-1921,'Report - ALL (DASHBOARD)'!$W$4) -> 167.6105575 | D95: =INDEX('Compile Data'!$BL$12:$CI$93,$A95-1921,'Report - ALL (DASHBOARD)'!$W$4) -> 163.7469986 | E95: =INDEX('Compile Data'!$CL$12:$DI$93,$A95-1921,'Report - ALL (DASHBOARD)'!$W$4) ->  | F95: =INDEX('Compile Data'!$DL$12:$EI$93,$A95-1921,'Report - ALL (DASHBOARD)'!$W$4) ->  | G95: =INDEX('Compile Data'!$EL$12:$FI$93,$A95-1921,'Report - ALL (DASHBOARD)'!$W$4) ->  | O95: 68 | P95: 0.8271604938 | Q95: =INDEX('Compile Data'!$L$123:$AI$204,$O95,'Report - ALL (DASHBOARD)'!$W$4) -> 0 | R95: =INDEX('Compile Data'!$AL$123:$BI$204,$O95,'Report - ALL (DASHBOARD)'!$W$4) -> 78.02365347 | S95: =INDEX('Compile Data'!$BL$123:$CI$204,$O95,'Report - ALL (DASHBOARD)'!$W$4) -> 85.1516498 | T95: =INDEX('Compile Data'!$CL$123:$DI$204,$O95,'Report - ALL (DASHBOARD)'!$W$4) ->  | U95: =INDEX('Compile Data'!$DL$123:$EI$204,$O95,'Report - ALL (DASHBOARD)'!$W$4) ->  | V95: =INDEX('Compile Data'!$EL$123:$FI$204,$O95,'Report - ALL (DASHBOARD)'!$W$4) -> 
A96: 1990 | B96: =INDEX('Compile Data'!$L$12:$AI$93,$A96-1921,'Report - ALL (DASHBOARD)'!$W$4) -> 0 | C96: =INDEX('Compile Data'!$AL$12:$BI$93,$A96-1921,'Report - ALL (DASHBOARD)'!$W$4) -> 14.41577012 | D96: =INDEX('Compile Data'!$BL$12:$CI$93,$A96-1921,'Report - ALL (DASHBOARD)'!$W$4) -> 15.97213916 | E96: =INDEX('Compile Data'!$CL$12:$DI$93,$A96-1921,'Report - ALL (DASHBOARD)'!$W$4) ->  | F96: =INDEX('Compile Data'!$DL$12:$EI$93,$A96-1921,'Report - ALL (DASHBOARD)'!$W$4) ->  | G96: =INDEX('Compile Data'!$EL$12:$FI$93,$A96-1921,'Report - ALL (DASHBOARD)'!$W$4) ->  | O96: 69 | P96: 0.8395061728 | Q96: =INDEX('Compile Data'!$L$123:$AI$204,$O96,'Report - ALL (DASHBOARD)'!$W$4) -> 0 | R96: =INDEX('Compile Data'!$AL$123:$BI$204,$O96,'Report - ALL (DASHBOARD)'!$W$4) -> 76.37435478 | S96: =INDEX('Compile Data'!$BL$123:$CI$204,$O96,'Report - ALL (DASHBOARD)'!$W$4) -> 80.78994107 | T96: =INDEX('Compile Data'!$CL$123:$DI$204,$O96,'Report - ALL (DASHBOARD)'!$W$4) ->  | U96: =INDEX('Compile Data'!$DL$123:$EI$204,$O96,'Report - ALL (DASHBOARD)'!$W$4) ->  | V96: =INDEX('Compile Data'!$EL$123:$FI$204,$O96,'Report - ALL (DASHBOARD)'!$W$4) -> 
A97: 1991 | B97: =INDEX('Compile Data'!$L$12:$AI$93,$A97-1921,'Report - ALL (DASHBOARD)'!$W$4) -> 0 | C97: =INDEX('Compile Data'!$AL$12:$BI$93,$A97-1921,'Report - ALL (DASHBOARD)'!$W$4) -> 166.9285063 | D97: =INDEX('Compile Data'!$BL$12:$CI$93,$A97-1921,'Report - ALL (DASHBOARD)'!$W$4) -> 165.1432179 | E97: =INDEX('Compile Data'!$CL$12:$DI$93,$A97-1921,'Report - ALL (DASHBOARD)'!$W$4) ->  | F97: =INDEX('Compile Data'!$DL$12:$EI$93,$A97-1921,'Report - ALL (DASHBOARD)'!$W$4) ->  | G97: =INDEX('Compile Data'!$EL$12:$FI$93,$A97-1921,'Report - ALL (DASHBOARD)'!$W$4) ->  | O97: 70 | P97: 0.8518518519 | Q97: =INDEX('Compile Data'!$L$123:$AI$204,$O97,'Report - ALL (DASHBOARD)'!$W$4) -> 0 | R97: =INDEX('Compile Data'!$AL$123:$BI$204,$O97,'Report - ALL (DASHBOARD)'!$W$4) -> 70.17831804 | S97: =INDEX('Compile Data'!$BL$123:$CI$204,$O97,'Report - ALL (DASHBOARD)'!$W$4) -> 78.02365347 | T97: =INDEX('Compile Data'!$CL$123:$DI$204,$O97,'Report - ALL (DASHBOARD)'!$W$4) ->  | U97: =INDEX('Compile Data'!$DL$123:$EI$204,$O97,'Report - ALL (DASHBOARD)'!$W$4) ->  | V97: =INDEX('Compile Data'!$EL$123:$FI$204,$O97,'Report - ALL (DASHBOARD)'!$W$4) -> 
A98: 1992 | B98: =INDEX('Compile Data'!$L$12:$AI$93,$A98-1921,'Report - ALL (DASHBOARD)'!$W$4) -> 0 | C98: =INDEX('Compile Data'!$AL$12:$BI$93,$A98-1921,'Report - ALL (DASHBOARD)'!$W$4) -> 193.3942371 | D98: =INDEX('Compile Data'!$BL$12:$CI$93,$A98-1921,'Report - ALL (DASHBOARD)'!$W$4) -> 196.7763112 | E98: =INDEX('Compile Data'!$CL$12:$DI$93,$A98-1921,'Report - ALL (DASHBOARD)'!$W$4) ->  | F98: =INDEX('Compile Data'!$DL$12:$EI$93,$A98-1921,'Report - ALL (DASHBOARD)'!$W$4) ->  | G98: =INDEX('Compile Data'!$EL$12:$FI$93,$A98-1921,'Report - ALL (DASHBOARD)'!$W$4) ->  | O98: 71 | P98: 0.8641975309 | Q98: =INDEX('Compile Data'!$L$123:$AI$204,$O98,'Report - ALL (DASHBOARD)'!$W$4) -> 0 | R98: =INDEX('Compile Data'!$AL$123:$BI$204,$O98,'Report - ALL (DASHBOARD)'!$W$4) -> 64.13773776 | S98: =INDEX('Compile Data'!$BL$123:$CI$204,$O98,'Report - ALL (DASHBOARD)'!$W$4) -> 74.19258748 | T98: =INDEX('Compile Data'!$CL$123:$DI$204,$O98,'Report - ALL (DASHBOARD)'!$W$4) ->  | U98: =INDEX('Compile Data'!$DL$123:$EI$204,$O98,'Report - ALL (DASHBOARD)'!$W$4) ->  | V98: =INDEX('Compile Data'!$EL$123:$FI$204,$O98,'Report - ALL (DASHBOARD)'!$W$4) -> 
A99: 1993 | B99: =INDEX('Compile Data'!$L$12:$AI$93,$A99-1921,'Report - ALL (DASHBOARD)'!$W$4) -> 0 | C99: =INDEX('Compile Data'!$AL$12:$BI$93,$A99-1921,'Report - ALL (DASHBOARD)'!$W$4) -> 198.6938352 | D99: =INDEX('Compile Data'!$BL$12:$CI$93,$A99-1921,'Report - ALL (DASHBOARD)'!$W$4) -> 149.7928962 | E99: =INDEX('Compile Data'!$CL$12:$DI$93,$A99-1921,'Report - ALL (DASHBOARD)'!$W$4) ->  | F99: =INDEX('Compile Data'!$DL$12:$EI$93,$A99-1921,'Report - ALL (DASHBOARD)'!$W$4) ->  | G99: =INDEX('Compile Data'!$EL$12:$FI$93,$A99-1921,'Report - ALL (DASHBOARD)'!$W$4) ->  | O99: 72 | P99: 0.8765432099 | Q99: =INDEX('Compile Data'!$L$123:$AI$204,$O99,'Report - ALL (DASHBOARD)'!$W$4) -> 0 | R99: =INDEX('Compile Data'!$AL$123:$BI$204,$O99,'Report - ALL (DASHBOARD)'!$W$4) -> 61.38730195 | S99: =INDEX('Compile Data'!$BL$123:$CI$204,$O99,'Report - ALL (DASHBOARD)'!$W$4) -> 68.87977131 | T99: =INDEX('Compile Data'!$CL$123:$DI$204,$O99,'Report - ALL (DASHBOARD)'!$W$4) ->  | U99: =INDEX('Compile Data'!$DL$123:$EI$204,$O99,'Report - ALL (DASHBOARD)'!$W$4) ->  | V99: =INDEX('Compile Data'!$EL$123:$FI$204,$O99,'Report - ALL (DASHBOARD)'!$W$4) -> 
A100: 1994 | B100: =INDEX('Compile Data'!$L$12:$AI$93,$A100-1921,'Report - ALL (DASHBOARD)'!$W$4) -> 0 | C100: =INDEX('Compile Data'!$AL$12:$BI$93,$A100-1921,'Report - ALL (DASHBOARD)'!$W$4) -> 371.7656313 | D100: =INDEX('Compile Data'!$BL$12:$CI$93,$A100-1921,'Report - ALL (DASHBOARD)'!$W$4) -> 413.7809947 | E100: =INDEX('Compile Data'!$CL$12:$DI$93,$A100-1921,'Report - ALL (DASHBOARD)'!$W$4) ->  | F100: =INDEX('Compile Data'!$DL$12:$EI$93,$A100-1921,'Report - ALL (DASHBOARD)'!$W$4) ->  | G100: =INDEX('Compile Data'!$EL$12:$FI$93,$A100-1921,'Report - ALL (DASHBOARD)'!$W$4) ->  | O100: 73 | P100: 0.8888888889 | Q100: =INDEX('Compile Data'!$L$123:$AI$204,$O100,'Report - ALL (DASHBOARD)'!$W$4) -> 0 | R100: =INDEX('Compile Data'!$AL$123:$BI$204,$O100,'Report - ALL (DASHBOARD)'!$W$4) -> 55.1724138 | S100: =INDEX('Compile Data'!$BL$123:$CI$204,$O100,'Report - ALL (DASHBOARD)'!$W$4) -> 64.76715941 | T100: =INDEX('Compile Data'!$CL$123:$DI$204,$O100,'Report - ALL (DASHBOARD)'!$W$4) ->  | U100: =INDEX('Compile Data'!$DL$123:$EI$204,$O100,'Report - ALL (DASHBOARD)'!$W$4) ->  | V100: =INDEX('Compile Data'!$EL$123:$FI$204,$O100,'Report - ALL (DASHBOARD)'!$W$4) -> 
A101: 1995 | B101: =INDEX('Compile Data'!$L$12:$AI$93,$A101-1921,'Report - ALL (DASHBOARD)'!$W$4) -> 0 | C101: =INDEX('Compile Data'!$AL$12:$BI$93,$A101-1921,'Report - ALL (DASHBOARD)'!$W$4) -> 61.38730195 | D101: =INDEX('Compile Data'!$BL$12:$CI$93,$A101-1921,'Report - ALL (DASHBOARD)'!$W$4) -> 61.38730195 | E101: =INDEX('Compile Data'!$CL$12:$DI$93,$A101-1921,'Report - ALL (DASHBOARD)'!$W$4) ->  | F101: =INDEX('Compile Data'!$DL$12:$EI$93,$A101-1921,'Report - ALL (DASHBOARD)'!$W$4) ->  | G101: =INDEX('Compile Data'!$EL$12:$FI$93,$A101-1921,'Report - ALL (DASHBOARD)'!$W$4) ->  | O101: 74 | P101: 0.9012345679 | Q101: =INDEX('Compile Data'!$L$123:$AI$204,$O101,'Report - ALL (DASHBOARD)'!$W$4) -> 0 | R101: =INDEX('Compile Data'!$AL$123:$BI$204,$O101,'Report - ALL (DASHBOARD)'!$W$4) -> 54.9533747 | S101: =INDEX('Compile Data'!$BL$123:$CI$204,$O101,'Report - ALL (DASHBOARD)'!$W$4) -> 61.38730195 | T101: =INDEX('Compile Data'!$CL$123:$DI$204,$O101,'Report - ALL (DASHBOARD)'!$W$4) ->  | U101: =INDEX('Compile Data'!$DL$123:$EI$204,$O101,'Report - ALL (DASHBOARD)'!$W$4) ->  | V101: =INDEX('Compile Data'!$EL$123:$FI$204,$O101,'Report - ALL (DASHBOARD)'!$W$4) -> 
A102: 1996 | B102: =INDEX('Compile Data'!$L$12:$AI$93,$A102-1921,'Report - ALL (DASHBOARD)'!$W$4) -> 0 | C102: =INDEX('Compile Data'!$AL$12:$BI$93,$A102-1921,'Report - ALL (DASHBOARD)'!$W$4) -> 78.02365347 | D102: =INDEX('Compile Data'!$BL$12:$CI$93,$A102-1921,'Report - ALL (DASHBOARD)'!$W$4) -> 78.02365347 | E102: =INDEX('Compile Data'!$CL$12:$DI$93,$A102-1921,'Report - ALL (DASHBOARD)'!$W$4) ->  | F102: =INDEX('Compile Data'!$DL$12:$EI$93,$A102-1921,'Report - ALL (DASHBOARD)'!$W$4) ->  | G102: =INDEX('Compile Data'!$EL$12:$FI$93,$A102-1921,'Report - ALL (DASHBOARD)'!$W$4) ->  | O102: 75 | P102: 0.9135802469 | Q102: =INDEX('Compile Data'!$L$123:$AI$204,$O102,'Report - ALL (DASHBOARD)'!$W$4) -> 0 | R102: =INDEX('Compile Data'!$AL$123:$BI$204,$O102,'Report - ALL (DASHBOARD)'!$W$4) -> 39.97894543 | S102: =INDEX('Compile Data'!$BL$123:$CI$204,$O102,'Report - ALL (DASHBOARD)'!$W$4) -> 55.1724138 | T102: =INDEX('Compile Data'!$CL$123:$DI$204,$O102,'Report - ALL (DASHBOARD)'!$W$4) ->  | U102: =INDEX('Compile Data'!$DL$123:$EI$204,$O102,'Report - ALL (DASHBOARD)'!$W$4) ->  | V102: =INDEX('Compile Data'!$EL$123:$FI$204,$O102,'Report - ALL (DASHBOARD)'!$W$4) -> 
A103: 1997 | B103: =INDEX('Compile Data'!$L$12:$AI$93,$A103-1921,'Report - ALL (DASHBOARD)'!$W$4) -> 0 | C103: =INDEX('Compile Data'!$AL$12:$BI$93,$A103-1921,'Report - ALL (DASHBOARD)'!$W$4) -> 143.4584977 | D103: =INDEX('Compile Data'!$BL$12:$CI$93,$A103-1921,'Report - ALL (DASHBOARD)'!$W$4) -> 143.4584977 | E103: =INDEX('Compile Data'!$CL$12:$DI$93,$A103-1921,'Report - ALL (DASHBOARD)'!$W$4) ->  | F103: =INDEX('Compile Data'!$DL$12:$EI$93,$A103-1921,'Report - ALL (DASHBOARD)'!$W$4) ->  | G103: =INDEX('Compile Data'!$EL$12:$FI$93,$A103-1921,'Report - ALL (DASHBOARD)'!$W$4) ->  | O103: 76 | P103: 0.9259259259 | Q103: =INDEX('Compile Data'!$L$123:$AI$204,$O103,'Report - ALL (DASHBOARD)'!$W$4) -> 0 | R103: =INDEX('Compile Data'!$AL$123:$BI$204,$O103,'Report - ALL (DASHBOARD)'!$W$4) -> 38.89123715 | S103: =INDEX('Compile Data'!$BL$123:$CI$204,$O103,'Report - ALL (DASHBOARD)'!$W$4) -> 47.22580531 | T103: =INDEX('Compile Data'!$CL$123:$DI$204,$O103,'Report - ALL (DASHBOARD)'!$W$4) ->  | U103: =INDEX('Compile Data'!$DL$123:$EI$204,$O103,'Report - ALL (DASHBOARD)'!$W$4) ->  | V103: =INDEX('Compile Data'!$EL$123:$FI$204,$O103,'Report - ALL (DASHBOARD)'!$W$4) -> 
A104: 1998 | B104: =INDEX('Compile Data'!$L$12:$AI$93,$A104-1921,'Report - ALL (DASHBOARD)'!$W$4) -> 0 | C104: =INDEX('Compile Data'!$AL$12:$BI$93,$A104-1921,'Report - ALL (DASHBOARD)'!$W$4) -> 55.1724138 | D104: =INDEX('Compile Data'!$BL$12:$CI$93,$A104-1921,'Report - ALL (DASHBOARD)'!$W$4) -> 55.1724138 | E104: =INDEX('Compile Data'!$CL$12:$DI$93,$A104-1921,'Report - ALL (DASHBOARD)'!$W$4) ->  | F104: =INDEX('Compile Data'!$DL$12:$EI$93,$A104-1921,'Report - ALL (DASHBOARD)'!$W$4) ->  | G104: =INDEX('Compile Data'!$EL$12:$FI$93,$A104-1921,'Report - ALL (DASHBOARD)'!$W$4) ->  | O104: 77 | P104: 0.9382716049 | Q104: =INDEX('Compile Data'!$L$123:$AI$204,$O104,'Report - ALL (DASHBOARD)'!$W$4) -> 0 | R104: =INDEX('Compile Data'!$AL$123:$BI$204,$O104,'Report - ALL (DASHBOARD)'!$W$4) -> 19.57055011 | S104: =INDEX('Compile Data'!$BL$123:$CI$204,$O104,'Report - ALL (DASHBOARD)'!$W$4) -> 19.3 | T104: =INDEX('Compile Data'!$CL$123:$DI$204,$O104,'Report - ALL (DASHBOARD)'!$W$4) ->  | U104: =INDEX('Compile Data'!$DL$123:$EI$204,$O104,'Report - ALL (DASHBOARD)'!$W$4) ->  | V104: =INDEX('Compile Data'!$EL$123:$FI$204,$O104,'Report - ALL (DASHBOARD)'!$W$4) -> 
A105: 1999 | B105: =INDEX('Compile Data'!$L$12:$AI$93,$A105-1921,'Report - ALL (DASHBOARD)'!$W$4) -> 0 | C105: =INDEX('Compile Data'!$AL$12:$BI$93,$A105-1921,'Report - ALL (DASHBOARD)'!$W$4) -> 151.9855229 | D105: =INDEX('Compile Data'!$BL$12:$CI$93,$A105-1921,'Report - ALL (DASHBOARD)'!$W$4) -> 151.9855133 | E105: =INDEX('Compile Data'!$CL$12:$DI$93,$A105-1921,'Report - ALL (DASHBOARD)'!$W$4) ->  | F105: =INDEX('Compile Data'!$DL$12:$EI$93,$A105-1921,'Report - ALL (DASHBOARD)'!$W$4) ->  | G105: =INDEX('Compile Data'!$EL$12:$FI$93,$A105-1921,'Report - ALL (DASHBOARD)'!$W$4) ->  | O105: 78 | P105: 0.950617284 | Q105: =INDEX('Compile Data'!$L$123:$AI$204,$O105,'Report - ALL (DASHBOARD)'!$W$4) -> 0 | R105: =INDEX('Compile Data'!$AL$123:$BI$204,$O105,'Report - ALL (DASHBOARD)'!$W$4) -> 14.41577012 | S105: =INDEX('Compile Data'!$BL$123:$CI$204,$O105,'Report - ALL (DASHBOARD)'!$W$4) -> 15.97213916 | T105: =INDEX('Compile Data'!$CL$123:$DI$204,$O105,'Report - ALL (DASHBOARD)'!$W$4) ->  | U105: =INDEX('Compile Data'!$DL$123:$EI$204,$O105,'Report - ALL (DASHBOARD)'!$W$4) ->  | V105: =INDEX('Compile Data'!$EL$123:$FI$204,$O105,'Report - ALL (DASHBOARD)'!$W$4) -> 
A106: 2000 | B106: =INDEX('Compile Data'!$L$12:$AI$93,$A106-1921,'Report - ALL (DASHBOARD)'!$W$4) -> 0 | C106: =INDEX('Compile Data'!$AL$12:$BI$93,$A106-1921,'Report - ALL (DASHBOARD)'!$W$4) -> 560.9898263 | D106: =INDEX('Compile Data'!$BL$12:$CI$93,$A106-1921,'Report - ALL (DASHBOARD)'!$W$4) -> 471.7698006 | E106: =INDEX('Compile Data'!$CL$12:$DI$93,$A106-1921,'Report - ALL (DASHBOARD)'!$W$4) ->  | F106: =INDEX('Compile Data'!$DL$12:$EI$93,$A106-1921,'Report - ALL (DASHBOARD)'!$W$4) ->  | G106: =INDEX('Compile Data'!$EL$12:$FI$93,$A106-1921,'Report - ALL (DASHBOARD)'!$W$4) ->  | O106: 79 | P106: 0.962962963 | Q106: =INDEX('Compile Data'!$L$123:$AI$204,$O106,'Report - ALL (DASHBOARD)'!$W$4) -> 0 | R106: =INDEX('Compile Data'!$AL$123:$BI$204,$O106,'Report - ALL (DASHBOARD)'!$W$4) -> 9.825000109 | S106: =INDEX('Compile Data'!$BL$123:$CI$204,$O106,'Report - ALL (DASHBOARD)'!$W$4) -> 10.61550056 | T106: =INDEX('Compile Data'!$CL$123:$DI$204,$O106,'Report - ALL (DASHBOARD)'!$W$4) ->  | U106: =INDEX('Compile Data'!$DL$123:$EI$204,$O106,'Report - ALL (DASHBOARD)'!$W$4) ->  | V106: =INDEX('Compile Data'!$EL$123:$FI$204,$O106,'Report - ALL (DASHBOARD)'!$W$4) -> 
A107: 2001 | B107: =INDEX('Compile Data'!$L$12:$AI$93,$A107-1921,'Report - ALL (DASHBOARD)'!$W$4) -> 0 | C107: =INDEX('Compile Data'!$AL$12:$BI$93,$A107-1921,'Report - ALL (DASHBOARD)'!$W$4) -> 663.0544315 | D107: =INDEX('Compile Data'!$BL$12:$CI$93,$A107-1921,'Report - ALL (DASHBOARD)'!$W$4) -> 627.1998166 | E107: =INDEX('Compile Data'!$CL$12:$DI$93,$A107-1921,'Report - ALL (DASHBOARD)'!$W$4) ->  | F107: =INDEX('Compile Data'!$DL$12:$EI$93,$A107-1921,'Report - ALL (DASHBOARD)'!$W$4) ->  | G107: =INDEX('Compile Data'!$EL$12:$FI$93,$A107-1921,'Report - ALL (DASHBOARD)'!$W$4) ->  | O107: 80 | P107: 0.975308642 | Q107: =INDEX('Compile Data'!$L$123:$AI$204,$O107,'Report - ALL (DASHBOARD)'!$W$4) -> 0 | R107: =INDEX('Compile Data'!$AL$123:$BI$204,$O107,'Report - ALL (DASHBOARD)'!$W$4) -> 0 | S107: =INDEX('Compile Data'!$BL$123:$CI$204,$O107,'Report - ALL (DASHBOARD)'!$W$4) -> 0 | T107: =INDEX('Compile Data'!$CL$123:$DI$204,$O107,'Report - ALL (DASHBOARD)'!$W$4) ->  | U107: =INDEX('Compile Data'!$DL$123:$EI$204,$O107,'Report - ALL (DASHBOARD)'!$W$4) ->  | V107: =INDEX('Compile Data'!$EL$123:$FI$204,$O107,'Report - ALL (DASHBOARD)'!$W$4) -> 
A108: 2002 | B108: =INDEX('Compile Data'!$L$12:$AI$93,$A108-1921,'Report - ALL (DASHBOARD)'!$W$4) -> 0 | C108: =INDEX('Compile Data'!$AL$12:$BI$93,$A108-1921,'Report - ALL (DASHBOARD)'!$W$4) -> 569.9485276 | D108: =INDEX('Compile Data'!$BL$12:$CI$93,$A108-1921,'Report - ALL (DASHBOARD)'!$W$4) -> 573.9792205 | E108: =INDEX('Compile Data'!$CL$12:$DI$93,$A108-1921,'Report - ALL (DASHBOARD)'!$W$4) ->  | F108: =INDEX('Compile Data'!$DL$12:$EI$93,$A108-1921,'Report - ALL (DASHBOARD)'!$W$4) ->  | G108: =INDEX('Compile Data'!$EL$12:$FI$93,$A108-1921,'Report - ALL (DASHBOARD)'!$W$4) ->  | O108: 81 | P108: 0.987654321 | Q108: =INDEX('Compile Data'!$L$123:$AI$204,$O108,'Report - ALL (DASHBOARD)'!$W$4) -> 0 | R108: =INDEX('Compile Data'!$AL$123:$BI$204,$O108,'Report - ALL (DASHBOARD)'!$W$4) -> 0 | S108: =INDEX('Compile Data'!$BL$123:$CI$204,$O108,'Report - ALL (DASHBOARD)'!$W$4) -> 0 | T108: =INDEX('Compile Data'!$CL$123:$DI$204,$O108,'Report - ALL (DASHBOARD)'!$W$4) ->  | U108: =INDEX('Compile Data'!$DL$123:$EI$204,$O108,'Report - ALL (DASHBOARD)'!$W$4) ->  | V108: =INDEX('Compile Data'!$EL$123:$FI$204,$O108,'Report - ALL (DASHBOARD)'!$W$4) -> 
A109: 2003 | B109: =INDEX('Compile Data'!$L$12:$AI$93,$A109-1921,'Report - ALL (DASHBOARD)'!$W$4) ->  | C109: =INDEX('Compile Data'!$AL$12:$BI$93,$A109-1921,'Report - ALL (DASHBOARD)'!$W$4) ->  | D109: =INDEX('Compile Data'!$BL$12:$CI$93,$A109-1921,'Report - ALL (DASHBOARD)'!$W$4) ->  | E109: =INDEX('Compile Data'!$CL$12:$DI$93,$A109-1921,'Report - ALL (DASHBOARD)'!$W$4) ->  | F109: =INDEX('Compile Data'!$DL$12:$EI$93,$A109-1921,'Report - ALL (DASHBOARD)'!$W$4) ->  | G109: =INDEX('Compile Data'!$EL$12:$FI$93,$A109-1921,'Report - ALL (DASHBOARD)'!$W$4) ->  | O109: 82 | P109: 1 | Q109: =INDEX('Compile Data'!$L$123:$AI$204,$O109,'Report - ALL (DASHBOARD)'!$W$4) ->  | R109: =INDEX('Compile Data'!$AL$123:$BI$204,$O109,'Report - ALL (DASHBOARD)'!$W$4) ->  | S109: =INDEX('Compile Data'!$BL$123:$CI$204,$O109,'Report - ALL (DASHBOARD)'!$W$4) ->  | T109: =INDEX('Compile Data'!$CL$123:$DI$204,$O109,'Report - ALL (DASHBOARD)'!$W$4) ->  | U109: =INDEX('Compile Data'!$DL$123:$EI$204,$O109,'Report - ALL (DASHBOARD)'!$W$4) ->  | V109: =INDEX('Compile Data'!$EL$123:$FI$204,$O109,'Report - ALL (DASHBOARD)'!$W$4) -> 

Sheet Compile Data
B1: =Control!$B$5 -> NAA 032822 2035CT | C1: =Control!$B$6 -> ALT3A 032922 2035CT | D1: =Control!$B$7 -> ALT3B 032922 2035CT | E1: =Control!$B$8 -> 0 | F1: =Control!$B$9 -> 0 | G1: =Control!$B$10 -> 0 | AE1: =$B$8 -> PER-AVER | BE1: =$C$8 -> PER-AVER | CE1: =$D$8 -> PER-AVER | DE1: =$E$8 -> PER-AVER | EE1: =$F$8 -> PER-AVER | FE1: =$G$8 -> PER-AVER
A2: Index: | B2: ='Report - ALL (DASHBOARD)'!W2 -> 38 | C2: =B2 -> 38 | D2: 38 | E2: 38 | F2: 38 | G2: 38
A3: Convert? | B3: =IF('Report - ALL (DASHBOARD)'!W5,1,0) -> 1 | C3: 1 | D3: 1 | E3: 1 | F3: 1 | G3: 1
A4: Column: | B4: =TRIM(VLOOKUP(B$2+2,DSSPathnames!$H$7:$K$185,2)) -> AN | C4: AN | D4: AN | E4: AN | F4: AN | G4: AN
A5: Title: | B5: =TRIM(VLOOKUP(B$2+2,DSSPathnames!$H$7:$K$185,4)) -> Total Sites Release | C5: =TRIM(VLOOKUP(C$2+2,DSSPathnames!$H$7:$K$185,4)) -> Total Sites Release | D5: =TRIM(VLOOKUP(D$2+2,DSSPathnames!$H$7:$K$185,4)) -> Total Sites Release | E5: =TRIM(VLOOKUP(E$2+2,DSSPathnames!$H$7:$K$185,4)) -> Total Sites Release | F5: =TRIM(VLOOKUP(F$2+2,DSSPathnames!$H$7:$K$185,4)) -> Total Sites Release | G5: =TRIM(VLOOKUP(G$2+2,DSSPathnames!$H$7:$K$185,4)) -> Total Sites Release
A6: Parameter: | B6: =INDIRECT(CONCATENATE("'",B$1,"'!",B$4,2)) -> C17604 | C6: C17604 | D6: C17604
B7: =INDIRECT(CONCATENATE("'",B$1,"'!",B$4,3)) -> FLOW-CHANNEL | C7: FLOW-CHANNEL | D7: FLOW-CHANNEL
A8: Type: | B8: =TRIM(VLOOKUP(B$2+2,DSSPathnames!$H$7:$K$185,3)) -> PER-AVER | C8: =TRIM(VLOOKUP(C$2+2,DSSPathnames!$H$7:$K$185,3)) -> PER-AVER | D8: =TRIM(VLOOKUP(D$2+2,DSSPathnames!$H$7:$K$185,3)) -> PER-AVER | E8: =TRIM(VLOOKUP(E$2+2,DSSPathnames!$H$7:$K$185,3)) -> PER-AVER | F8: =TRIM(VLOOKUP(F$2+2,DSSPathnames!$H$7:$K$185,3)) -> PER-AVER | G8: =TRIM(VLOOKUP(G$2+2,DSSPathnames!$H$7:$K$185,3)) -> PER-AVER | K8: =CONCATENATE(TRIM(B$1),": ",TRIM(B$5)," - ",TRIM(B$6)," ",TRIM(B$7)," (",TRIM(B$10),") ",TRIM(B$11)) -> NAA 032822 2035CT: Total Sites Release - C17604 FLOW-CHANNEL (TAF) | AK8: =CONCATENATE(TRIM(C$1),": ",TRIM(C$5)," - ",TRIM(C$6)," ",TRIM(C$7)," (",TRIM(C$10),") ",TRIM(C$11)) -> ALT3A 032922 2035CT: Total Sites Release - C17604 FLOW-CHANNEL (TAF) | BK8: =CONCATENATE(TRIM(D$1),": ",TRIM(D$5)," - ",TRIM(D$6)," ",TRIM(D$7)," (",TRIM(D$10),") ",TRIM(D$11)) -> ALT3B 032922 2035CT: Total Sites Release - C17604 FLOW-CHANNEL (TAF) | CK8: =CONCATENATE(TRIM(E$1),": ",TRIM(E$5)," - ",TRIM(E$6)," ",TRIM(E$7)," (",TRIM(E$10),") ",TRIM(E$11)) ->  | DK8: =CONCATENATE(TRIM(F$1),": ",TRIM(F$5)," - ",TRIM(F$6)," ",TRIM(F$7)," (",TRIM(F$10),") ",TRIM(F$11)) ->  | EK8: =CONCATENATE(TRIM(G$1),": ",TRIM(G$5)," - ",TRIM(G$6)," ",TRIM(G$7)," (",TRIM(G$10),") ",TRIM(G$11)) -> 
A9: Units-native: | B9: =TRIM(INDIRECT(CONCATENATE("'",B$1,"'!",B$4,11))) -> CFS | C9: CFS | D9: CFS
A10: Units-shown: | B10: =IF(AND(B$3>0,B$9="CFS"),"TAF",B$9) -> TAF | C10: TAF | D10: TAF | Y10: Jan-Dec | Z10: Mar-Feb | AA10: Oct-Sep | AC10: Nov-Mar | AD10: Aug-Oct | AE10: Oct-Jan | AF10: Dec-Feb | AG10: Mar-Jun | AH10: Jun-Sep | AI10: Sep-Nov | AY10: Jan-Dec | AZ10: Mar-Feb | BA10: Oct-Sep | BC10: Nov-Mar | BD10: Aug-Oct | BE10: Oct-Jan | BF10: Dec-Feb | BG10: Mar-Jun | BH10: Jun-Sep | BI10: Sep-Nov | BY10: Jan-Dec | BZ10: Mar-Feb | CA10: Oct-Sep | CC10: Nov-Mar | CD10: Aug-Oct | CE10: Oct-Jan | CF10: Dec-Feb | CG10: Mar-Jun | CH10: Jun-Sep | CI10: Sep-Nov | CY10: Jan-Dec | CZ10: Mar-Feb | DA10: Oct-Sep | DC10: Nov-Mar | DD10: Aug-Oct | DE10: Oct-Jan | DF10: Dec-Feb | DG10: Mar-Jun | DH10: Jun-Sep | DI10: Sep-Nov | DY10: Jan-Dec | DZ10: Mar-Feb | EA10: Oct-Sep | EC10: Nov-Mar | ED10: Aug-Oct | EE10: Oct-Jan | EF10: Dec-Feb | EG10: Mar-Jun | EH10: Jun-Sep | EI10: Sep-Nov | EY10: Jan-Dec | EZ10: Mar-Feb | FA10: Oct-Sep | FC10: Nov-Mar | FD10: Aug-Oct | FE10: Oct-Jan | FF10: Dec-Feb | FG10: Mar-Jun | FH10: Jun-Sep | FI10: Sep-Nov
A11: Date | B11: =IF(ISNUMBER(FIND("PRV",B$6)),"SHIFTED","") ->  | K11: YEAR | L11: OCT | M11: NOV | N11: DEC | O11: JAN | P11: FEB | Q11: MAR | R11: APR | S11: MAY | T11: JUN | U11: JUL | V11: AUG | W11: SEP | Y11: =IF(AND($B$10="TAF",$B$8="PER-AVER"),"TOT","AVG") -> TOT | Z11: =IF(AND($B$10="TAF",$B$8="PER-AVER"),"TOT","AVG") -> TOT | AA11: =IF(AND($B$10="TAF",$B$8="PER-AVER"),"TOT","AVG") -> TOT | AC11: =IF(AND($B$10="TAF",$B$8="PER-AVER"),"TOT","AVG") -> TOT | AD11: TOT | AE11: TOT | AF11: TOT | AG11: TOT | AH11: TOT | AI11: TOT | AK11: YEAR | AL11: OCT | AM11: NOV | AN11: DEC | AO11: JAN | AP11: FEB | AQ11: MAR | AR11: APR | AS11: MAY | AT11: JUN | AU11: JUL | AV11: AUG | AW11: SEP | AY11: =IF(AND($C$10="TAF",$C$8="PER-AVER"),"TOT","AVG") -> TOT | AZ11: =IF(AND($C$10="TAF",$C$8="PER-AVER"),"TOT","AVG") -> TOT | BA11: =IF(AND($C$10="TAF",$C$8="PER-AVER"),"TOT","AVG") -> TOT | BC11: =IF(AND($B$10="TAF",$B$8="PER-AVER"),"TOT","AVG") -> TOT | BD11: =IF(AND($B$10="TAF",$B$8="PER-AVER"),"TOT","AVG") -> TOT | BE11: =IF(AND($C$10="TAF",$C$8="PER-AVER"),"TOT","AVG") -> TOT | BF11: =IF(AND($C$10="TAF",$C$8="PER-AVER"),"TOT","AVG") -> TOT | BG11: =IF(AND($C$10="TAF",$C$8="PER-AVER"),"TOT","AVG") -> TOT | BH11: =IF(AND($C$10="TAF",$C$8="PER-AVER"),"TOT","AVG") -> TOT | BI11: =IF(AND($C$10="TAF",$C$8="PER-AVER"),"TOT","AVG") -> TOT | BK11: YEAR | BL11: OCT | BM11: NOV | BN11: DEC | BO11: JAN | BP11: FEB | BQ11: MAR | BR11: APR | BS11: MAY | BT11: JUN | BU11: JUL | BV11: AUG | BW11: SEP | BY11: =IF(AND($D$10="TAF",$D$8="PER-AVER"),"TOT","AVG") -> TOT | BZ11: =IF(AND($D$10="TAF",$D$8="PER-AVER"),"TOT","AVG") -> TOT | CA11: =IF(AND($D$10="TAF",$D$8="PER-AVER"),"TOT","AVG") -> TOT | CC11: =IF(AND($B$10="TAF",$B$8="PER-AVER"),"TOT","AVG") -> TOT | CD11: =IF(AND($B$10="TAF",$B$8="PER-AVER"),"TOT","AVG") -> TOT | CE11: =IF(AND($D$10="TAF",$D$8="PER-AVER"),"TOT","AVG") -> TOT | CF11: =IF(AND($D$10="TAF",$D$8="PER-AVER"),"TOT","AVG") -> TOT | CG11: =IF(AND($D$10="TAF",$D$8="PER-AVER"),"TOT","AVG") -> TOT | CH11: =IF(AND($D$10="TAF",$D$8="PER-AVER"),"TOT","AVG") -> TOT | CI11: =IF(AND($D$10="TAF",$D$8="PER-AVER"),"TOT","AVG") -> TOT | CK11: YEAR | CL11: OCT | CM11: NOV | CN11: DEC | CO11: JAN | CP11: FEB | CQ11: MAR | CR11: APR | CS11: MAY | CT11: JUN | CU11: JUL | CV11: AUG | CW11: SEP | CY11: =IF(AND($E$10="TAF",$E$8="PER-AVER"),"TOT","AVG") ->  | CZ11: =IF(AND($E$10="TAF",$E$8="PER-AVER"),"TOT","AVG") ->  | DA11: =IF(AND($E$10="TAF",$E$8="PER-AVER"),"TOT","AVG") ->  | DC11: =IF(AND($B$10="TAF",$B$8="PER-AVER"),"TOT","AVG") -> TOT | DD11: =IF(AND($B$10="TAF",$B$8="PER-AVER"),"TOT","AVG") -> TOT | DE11: =IF(AND($E$10="TAF",$E$8="PER-AVER"),"TOT","AVG") ->  | DF11: =IF(AND($E$10="TAF",$E$8="PER-AVER"),"TOT","AVG") ->  | DG11: =IF(AND($E$10="TAF",$E$8="PER-AVER"),"TOT","AVG") ->  | DH11: =IF(AND($E$10="TAF",$E$8="PER-AVER"),"TOT","AVG") ->  | DI11: =IF(AND($E$10="TAF",$E$8="PER-AVER"),"TOT","AVG") ->  | DK11: YEAR | DL11: OCT | DM11: NOV | DN11: DEC | DO11: JAN | DP11: FEB | DQ11: MAR | DR11: APR | DS11: MAY | DT11: JUN | DU11: JUL | DV11: AUG | DW11: SEP | DY11: =IF(AND($F$10="TAF",$F$8="PER-AVER"),"TOT","AVG") ->  | DZ11: =IF(AND($F$10="TAF",$F$8="PER-AVER"),"TOT","AVG") ->  | EA11: =IF(AND($F$10="TAF",$F$8="PER-AVER"),"TOT","AVG") ->  | EC11: =IF(AND($B$10="TAF",$B$8="PER-AVER"),"TOT","AVG") -> TOT | ED11: =IF(AND($B$10="TAF",$B$8="PER-AVER"),"TOT","AVG") -> TOT | EE11: =IF(AND($F$10="TAF",$F$8="PER-AVER"),"TOT","AVG") ->  | EF11: =IF(AND($F$10="TAF",$F$8="PER-AVER"),"TOT","AVG") ->  | EG11: =IF(AND($F$10="TAF",$F$8="PER-AVER"),"TOT","AVG") ->  | EH11: =IF(AND($F$10="TAF",$F$8="PER-AVER"),"TOT","AVG") ->  | EI11: =IF(AND($F$10="TAF",$F$8="PER-AVER"),"TOT","AVG") ->  | EK11: YEAR | EL11: OCT | EM11: NOV | EN11: DEC | EO11: JAN | EP11: FEB | EQ11: MAR | ER11: APR | ES11: MAY | ET11: JUN | EU11: JUL | EV11: AUG | EW11: SEP | EY11: =IF(AND($F$10="TAF",$F$8="PER-AVER"),"TOT","AVG") ->  | EZ11: =IF(AND($F$10="TAF",$F$8="PER-AVER"),"TOT","AVG") ->  | FA11: =IF(AND($F$10="TAF",$F$8="PER-AVER"),"TOT","AVG") ->  | FC11: =IF(AND($B$10="TAF",$B$8="PER-AVER"),"TOT","AVG") -> TOT | FD11: =IF(AND($B$10="TAF",$B$8="PER-AVER"),"TOT","AVG") -> TOT | FE11: =IF(AND($F$10="TAF",$F$8="PER-AVER"),"TOT","AVG") ->  | FF11: =IF(AND($F$10="TAF",$F$8="PER-AVER"),"TOT","AVG") ->  | FG11: =IF(AND($F$10="TAF",$F$8="PER-AVER"),"TOT","AVG") ->  | FH11: =IF(AND($F$10="TAF",$F$8="PER-AVER"),"TOT","AVG") ->  | FI11: =IF(AND($F$10="TAF",$F$8="PER-AVER"),"TOT","AVG") -> 
A12: 1921-09-30 | K12: 1922 | L12: =B13 -> 0 | M12: =B14 -> 0 | N12: =B15 -> 0 | O12: =B16 -> 0 | P12: =B17 -> 0 | Q12: =B18 -> 0 | R12: =B19 -> 0 | S12: =B20 -> 0 | T12: =B21 -> 0 | U12: =B22 -> 0 | V12: =B23 -> 0 | W12: =B24 -> 0 | Y12: =IF(Y$11="AVG",AVERAGE(O12:W12,L13:N13),SUM(O12:W12,L13:N13)) -> 0 | Z12: =IF(Z$11="AVG",AVERAGE(Q12:W12,L13:P13),SUM(Q12:W12,L13:P13)) -> 0 | AA12: =IF(AA$11="AVG",AVERAGE(L12:W12),SUM(L12:W12)) -> 0 | AC12: =IF(AC$11="AVG",IF(AE$1="INST-VAL",AVERAGE(L12:P12,M12:Q12),AVERAGE(M12:Q12)),SUM(M12:Q12)) -> 0 | AD12: =IF(AD$11="AVG",IF(AE$1="INST-VAL",AVERAGE(U12:W12,V12:W12,L13),AVERAGE(V12:W12,L13)),SUM(V12:W12,L13)) -> 0 | AE12: =IF(AE$11="AVG",IF(AE$1="INST-VAL",AVERAGE(W11,L12:N12,L12:O12),AVERAGE(L12:O12)),SUM(L12:O12)) -> 0 | AF12: =IF(AF$11="AVG",IF(AE$1="INST-VAL",AVERAGE(M12:O12,N12:P12),AVERAGE(N12:P12)),SUM(N12:P12)) -> 0 | AG12: =IF(AG$11="AVG",IF(AE$1="INST-VAL",AVERAGE(P12:S12,Q12:T12),AVERAGE(Q12:T12)),SUM(Q12:T12)) -> 0 | AH12: =IF(AH$11="AVG",IF(AE$1="INST-VAL",AVERAGE(S12:V12,T12:W12),AVERAGE(T12:W12)),SUM(T12:W12)) -> 0 | AI12: =IF(AI$11="AVG",IF(AE$1="INST-VAL",AVERAGE(V12:W12,L13,W12,L13:M13),AVERAGE(W12,L13:M13)),SUM(W12,L13:M13)) -> 0 | AK12: 1922 | AL12: =C13 -> 0 | AM12: =C14 -> 0 | AN12: =C15 -> 0 | AO12: =C16 -> 5.960465259e-08 | AP12: =C17 -> 0 | AQ12: =C18 -> 0 | AR12: =C19 -> 0 | AS12: =C20 -> 0 | AT12: =C21 -> 2.5 | AU12: =C22 -> 99.38764484 | AV12: =C23 -> 111.0864778 | AW12: =C24 -> 31.00298448 | AY12: =IF(AY$11="AVG",AVERAGE(AO12:AW12,AL13:AN13),SUM(AO12:AW12,AL13:AN13)) -> 265.5457 | AZ12: =IF(AZ$11="AVG",AVERAGE(AQ12:AW12,AL13:AP13),SUM(AQ12:AW12,AL13:AP13)) -> 265.5457 | BA12: =IF(BA$11="AVG",AVERAGE(AL12:AW12),SUM(AL12:AW12)) -> 243.9771072 | BC12: =IF(BC$11="AVG",IF(BE$1="INST-VAL",AVERAGE(AL12:AP12,AM12:AQ12),AVERAGE(AM12:AQ12)),SUM(AM12:AQ12)) -> 5.960465259e-08 | BD12: =IF(BD$11="AVG",IF(BE$1="INST-VAL",AVERAGE(AU12:AW12,AV12:AW12,AL13),AVERAGE(AV12:AW12,AL13)),SUM(AV12:AW12,AL13)) -> 161.9180551 | BE12: =IF(BE$11="AVG",IF(BE$1="INST-VAL",AVERAGE(AW11,AL12:AN12,AL12:AO12),AVERAGE(AL12:AO12)),SUM(AL12:AO12)) -> 5.960465259e-08 | BF12: =IF(BF$11="AVG",IF(BE$1="INST-VAL",AVERAGE(AM12:AO12,AN12:AP12),AVERAGE(AN12:AP12)),SUM(AN12:AP12)) -> 5.960465259e-08 | BG12: =IF(BG$11="AVG",IF(BE$1="INST-VAL",AVERAGE(AP12:AS12,AQ12:AT12),AVERAGE(AQ12:AT12)),SUM(AQ12:AT12)) -> 2.5 | BH12: =IF(BH$11="AVG",IF(BE$1="INST-VAL",AVERAGE(AS12:AV12,AT12:AW12),AVERAGE(AT12:AW12)),SUM(AT12:AW12)) -> 243.9771071 | BI12: =IF(BI$11="AVG",IF(BE$1="INST-VAL",AVERAGE(AV12:AW12,AL13,AW12,AL13:AM13),AVERAGE(AW12,AL13:AM13)),SUM(AW12,AL13:AM13)) -> 52.57157733 | BK12: 1922 | BL12: =D13 -> 0 | BM12: =D14 -> 0 | BN12: =D15 -> 0 | BO12: =D16 -> 5.960464517e-08 | BP12: =D17 -> 0 | BQ12: =D18 -> 0 | BR12: =D19 -> 0 | BS12: =D20 -> 0 | BT12: =D21 -> 2.5 | BU12: =D22 -> 99.38764484 | BV12: =D23 -> 111.0864778 | BW12: =D24 -> 31.00298448 | BY12: =IF(BY$11="AVG",AVERAGE(BO12:BW12,BL13:BN13),SUM(BO12:BW12,BL13:BN13)) -> 265.5430366 | BZ12: =IF(BZ$11="AVG",AVERAGE(BQ12:BW12,BL13:BP13),SUM(BQ12:BW12,BL13:BP13)) -> 265.5430366 | CA12: =IF(CA$11="AVG",AVERAGE(BL12:BW12),SUM(BL12:BW12)) -> 243.9771072 | CC12: =IF(CC$11="AVG",IF(CE$1="INST-VAL",AVERAGE(BL12:BP12,BM12:BQ12),AVERAGE(BM12:BQ12)),SUM(BM12:BQ12)) -> 5.960464517e-08 | CD12: =IF(CD$11="AVG",IF(CE$1="INST-VAL",AVERAGE(BU12:BW12,BV12:BW12,BL13),AVERAGE(BV12:BW12,BL13)),SUM(BV12:BW12,BL13)) -> 161.9153917 | CE12: =IF(CE$11="AVG",IF(CE$1="INST-VAL",AVERAGE(BW11,BL12:BN12,BL12:BO12),AVERAGE(BL12:BO12)),SUM(BL12:BO12)) -> 5.960464517e-08 | CF12: =IF(CF$11="AVG",IF(CE$1="INST-VAL",AVERAGE(BM12:BO12,BN12:BP12),AVERAGE(BN12:BP12)),SUM(BN12:BP12)) -> 5.960464517e-08 | CG12: =IF(CG$11="AVG",IF(CE$1="INST-VAL",AVERAGE(BP12:BS12,BQ12:BT12),AVERAGE(BQ12:BT12)),SUM(BQ12:BT12)) -> 2.5 | CH12: =IF(CH$11="AVG",IF(CE$1="INST-VAL",AVERAGE(BS12:BV12,BT12:BW12),AVERAGE(BT12:BW12)),SUM(BT12:BW12)) -> 243.9771071 | CI12: =IF(CI$11="AVG",IF(CE$1="INST-VAL",AVERAGE(BV12:BW12,BL13,BW12,BL13:BM13),AVERAGE(BW12,BL13:BM13)),SUM(BW12,BL13:BM13)) -> 52.56891395 | CK12: 1922 | CL12: =E13 ->  | CM12: =E14 ->  | CN12: =E15 ->  | CO12: =E16 ->  | CP12: =E17 ->  | CQ12: =E18 ->  | CR12: =E19 ->  | CS12: =E20 ->  | CT12: =E21 ->  | CU12: =E22 ->  | CV12: =E23 ->  | CW12: =E24 ->  | CY12: =IF(CY$11="AVG",AVERAGE(CO12:CW12,CL13:CN13),SUM(CO12:CW12,CL13:CN13)) ->  | CZ12: =IF(CZ$11="AVG",AVERAGE(CQ12:CW12,CL13:CP13),SUM(CQ12:CW12,CL13:CP13)) ->  | DA12: =IF(DA$11="AVG",AVERAGE(CL12:CW12),SUM(CL12:CW12)) ->  | DC12: =IF(DC$11="AVG",IF(DE$1="INST-VAL",AVERAGE(CL12:CP12,CM12:CQ12),AVERAGE(CM12:CQ12)),SUM(CM12:CQ12)) ->  | DD12: =IF(DD$11="AVG",IF(DE$1="INST-VAL",AVERAGE(CU12:CW12,CV12:CW12,CL13),AVERAGE(CV12:CW12,CL13)),SUM(CV12:CW12,CL13)) ->  | DE12: =IF(DE$11="AVG",IF(DE$1="INST-VAL",AVERAGE(CW11,CL12:CN12,CL12:CO12),AVERAGE(CL12:CO12)),SUM(CL12:CO12)) ->  | DF12: =IF(DF$11="AVG",IF(DE$1="INST-VAL",AVERAGE(CM12:CO12,CN12:CP12),AVERAGE(CN12:CP12)),SUM(CN12:CP12)) ->  | DG12: =IF(DG$11="AVG",IF(DE$1="INST-VAL",AVERAGE(CP12:CS12,CQ12:CT12),AVERAGE(CQ12:CT12)),SUM(CQ12:CT12)) ->  | DH12: =IF(DH$11="AVG",IF(DE$1="INST-VAL",AVERAGE(CS12:CV12,CT12:CW12),AVERAGE(CT12:CW12)),SUM(CT12:CW12)) ->  | DI12: =IF(DI$11="AVG",IF(DE$1="INST-VAL",AVERAGE(CV12:CW12,CL13,CW12,CL13:CM13),AVERAGE(CW12,CL13:CM13)),SUM(CW12,CL13:CM13)) ->  | DK12: 1922 | DL12: =F13 ->  | DM12: =F14 ->  | DN12: =F15 ->  | DO12: =F16 ->  | DP12: =F17 ->  | DQ12: =F18 ->  | DR12: =F19 ->  | DS12: =F20 ->  | DT12: =F21 ->  | DU12: =F22 ->  | DV12: =F23 ->  | DW12: =F24 ->  | DY12: =IF(DY$11="AVG",AVERAGE(DO12:DW12,DL13:DN13),SUM(DO12:DW12,DL13:DN13)) ->  | DZ12: =IF(DZ$11="AVG",AVERAGE(DQ12:DW12,DL13:DP13),SUM(DQ12:DW12,DL13:DP13)) ->  | EA12: =IF(EA$11="AVG",AVERAGE(DL12:DW12),SUM(DL12:DW12)) ->  | EC12: =IF(EC$11="AVG",IF(EE$1="INST-VAL",AVERAGE(DL12:DP12,DM12:DQ12),AVERAGE(DM12:DQ12)),SUM(DM12:DQ12)) ->  | ED12: =IF(ED$11="AVG",IF(EE$1="INST-VAL",AVERAGE(DU12:DW12,DV12:DW12,DL13),AVERAGE(DV12:DW12,DL13)),SUM(DV12:DW12,DL13)) ->  | EE12: =IF(EE$11="AVG",IF(EE$1="INST-VAL",AVERAGE(DW11,DL12:DN12,DL12:DO12),AVERAGE(DL12:DO12)),SUM(DL12:DO12)) ->  | EF12: =IF(EF$11="AVG",IF(EE$1="INST-VAL",AVERAGE(DM12:DO12,DN12:DP12),AVERAGE(DN12:DP12)),SUM(DN12:DP12)) ->  | EG12: =IF(EG$11="AVG",IF(EE$1="INST-VAL",AVERAGE(DP12:DS12,DQ12:DT12),AVERAGE(DQ12:DT12)),SUM(DQ12:DT12)) ->  | EH12: =IF(EH$11="AVG",IF(EE$1="INST-VAL",AVERAGE(DS12:DV12,DT12:DW12),AVERAGE(DT12:DW12)),SUM(DT12:DW12)) ->  | EI12: =IF(EI$11="AVG",IF(EE$1="INST-VAL",AVERAGE(DV12:DW12,DL13,DW12,DL13:DM13),AVERAGE(DW12,DL13:DM13)),SUM(DW12,DL13:DM13)) ->  | EK12: 1922 | EL12: =G13 ->  | EM12: =G14 ->  | EN12: =G15 ->  | EO12: =G16 ->  | EP12: =G17 ->  | EQ12: =G18 ->  | ER12: =G19 ->  | ES12: =G20 ->  | ET12: =G21 ->  | EU12: =G22 ->  | EV12: =G23 ->  | EW12: =G24 ->  | EY12: =IF(EY$11="AVG",AVERAGE(EO12:EW12,EL13:EN13),SUM(EO12:EW12,EL13:EN13)) ->  | EZ12: =IF(EZ$11="AVG",AVERAGE(EQ12:EW12,EL13:EP13),SUM(EQ12:EW12,EL13:EP13)) ->  | FA12: =IF(FA$11="AVG",AVERAGE(EL12:EW12),SUM(EL12:EW12)) ->  | FC12: =IF(FC$11="AVG",IF(FE$1="INST-VAL",AVERAGE(EL12:EP12,EM12:EQ12),AVERAGE(EM12:EQ12)),SUM(EM12:EQ12)) ->  | FD12: =IF(FD$11="AVG",IF(FE$1="INST-VAL",AVERAGE(EU12:EW12,EV12:EW12,EL13),AVERAGE(EV12:EW12,EL13)),SUM(EV12:EW12,EL13)) ->  | FE12: =IF(FE$11="AVG",IF(FE$1="INST-VAL",AVERAGE(EW11,EL12:EN12,EL12:EO12),AVERAGE(EL12:EO12)),SUM(EL12:EO12)) ->  | FF12: =IF(FF$11="AVG",IF(FE$1="INST-VAL",AVERAGE(EM12:EO12,EN12:EP12),AVERAGE(EN12:EP12)),SUM(EN12:EP12)) ->  | FG12: =IF(FG$11="AVG",IF(FE$1="INST-VAL",AVERAGE(EP12:ES12,EQ12:ET12),AVERAGE(EQ12:ET12)),SUM(EQ12:ET12)) ->  | FH12: =IF(FH$11="AVG",IF(FE$1="INST-VAL",AVERAGE(ES12:EV12,ET12:EW12),AVERAGE(ET12:EW12)),SUM(ET12:EW12)) ->  | FI12: =IF(FI$11="AVG",IF(FE$1="INST-VAL",AVERAGE(EV12:EW12,EL13,EW12,EL13:EM13),AVERAGE(EW12,EL13:EM13)),SUM(EW12,EL13:EM13)) -> 
A13: 1921-10-31 | B13: =INDIRECT(CONCATENATE("'",B$1,"'!",B$4,(YEAR($A13)-1921)*12+MONTH($A13)+3+IF(ISNUMBER(FIND("PRV",B$6)),1,0)))*IF(AND(B$3>0,TRIM(B$9)="CFS"),Conversions!$C13,1) -> 0 | C13: =INDIRECT(CONCATENATE("'",C$1,"'!",C$4,(YEAR($A13)-1921)*12+MONTH($A13)+3+IF(ISNUMBER(FIND("PRV",C$6)),1,0)))*IF(AND(C$3>0,TRIM(C$9)="CFS"),Conversions!$C13,1) -> 0 | D13: =INDIRECT(CONCATENATE("'",D$1,"'!",D$4,(YEAR($A13)-1921)*12+MONTH($A13)+3+IF(ISNUMBER(FIND("PRV",D$6)),1,0)))*IF(AND(D$3>0,TRIM(D$9)="CFS"),Conversions!$C13,1) -> 0 | E13: =INDIRECT(CONCATENATE("'",E$1,"'!",E$4,(YEAR($A13)-1921)*12+MONTH($A13)+3+IF(ISNUMBER(FIND("PRV",E$6)),1,0)))*IF(AND(E$3>0,TRIM(E$9)="CFS"),Conversions!$C13,1) ->  | F13: =INDIRECT(CONCATENATE("'",F$1,"'!",F$4,(YEAR($A13)-1921)*12+MONTH($A13)+3+IF(ISNUMBER(FIND("PRV",F$6)),1,0)))*IF(AND(F$3>0,TRIM(F$9)="CFS"),Conversions!$C13,1) ->  | G13: =INDIRECT(CONCATENATE("'",G$1,"'!",G$4,(YEAR($A13)-1921)*12+MONTH($A13)+3+IF(ISNUMBER(FIND("PRV",G$6)),1,0)))*IF(AND(G$3>0,TRIM(G$9)="CFS"),Conversions!$C13,1) ->  | K13: 1923 | L13: =B25 -> 0 | M13: =B26 -> 0 | N13: =B27 -> 0 | O13: =B28 -> 0 | P13: =B29 -> 0 | Q13: =B30 -> 0 | R13: =B31 -> 0 | S13: =B32 -> 0 | T13: =B33 -> 0 | U13: =B34 -> 0 | V13: =B35 -> 0 | W13: =B36 -> 0 | Y13: 0 | Z13: 0 | AA13: 0 | AC13: =IF(AC$11="AVG",IF(AE$1="INST-VAL",AVERAGE(L13:P13,M13:Q13),AVERAGE(M13:Q13)),SUM(M13:Q13)) -> 0 | AD13: =IF(AD$11="AVG",IF(AE$1="INST-VAL",AVERAGE(U13:W13,V13:W13,L14),AVERAGE(V13:W13,L14)),SUM(V13:W13,L14)) -> 0 | AE13: =IF(AE$11="AVG",IF(AE$1="INST-VAL",AVERAGE(W12,L13:N13,L13:O13),AVERAGE(L13:O13)),SUM(L13:O13)) -> 0 | AF13: 0 | AG13: 0 | AH13: 0 | AI13: 0 | AK13: 1923 | AL13: =C25 -> 19.82859285 | AM13: =C26 -> 1.74 | AN13: =C27 -> 0 | AO13: =C28 -> 0 | AP13: =C29 -> 0 | AQ13: =C30 -> 0.5429322687 | AR13: =C31 -> 2.635140012 | AS13: =C32 -> 0 | AT13: =C33 -> 91.41766783 | AU13: =C34 -> 61.56263398 | AV13: =C35 -> 7.403266741 | AW13: =C36 -> 2.652284046 | AY13: 227.3020352 | AZ13: 227.3020352 | BA13: 187.7825177 | BC13: =IF(BC$11="AVG",IF(BE$1="INST-VAL",AVERAGE(AL13:AP13,AM13:AQ13),AVERAGE(AM13:AQ13)),SUM(AM13:AQ13)) -> 2.282932269 | BD13: =IF(BD$11="AVG",IF(BE$1="INST-VAL",AVERAGE(AU13:AW13,AV13:AW13,AL14),AVERAGE(AV13:AW13,AL14)),SUM(AV13:AW13,AL14)) -> 36.75699442 | BE13: 21.56859285 | BF13: 0 | BG13: 94.59574011 | BH13: 163.0358526 | BI13: 50.54706101 | BK13: 1923 | BL13: =D25 -> 19.82592946 | BM13: =D26 -> 1.74 | BN13: =D27 -> 0 | BO13: =D28 -> 0 | BP13: =D29 -> 0 | BQ13: =D30 -> 0.5429322687 | BR13: =D31 -> 2.635140012 | BS13: =D32 -> 0 | BT13: =D33 -> 41.45078252 | BU13: =D34 -> 2.5 | BV13: =D35 -> 7.406804348 | BW13: =D36 -> 2.652284046 | BY13: 118.4678158 | BZ13: 118.4678158 | CA13: 78.75387266 | CC13: =IF(CC$11="AVG",IF(CE$1="INST-VAL",AVERAGE(BL13:BP13,BM13:BQ13),AVERAGE(BM13:BQ13)),SUM(BM13:BQ13)) -> 2.282932269 | CD13: =IF(CD$11="AVG",IF(CE$1="INST-VAL",AVERAGE(BU13:BW13,BV13:BW13,BL14),AVERAGE(BV13:BW13,BL14)),SUM(BV13:BW13,BL14)) -> 36.95229433 | CE13: 21.56592946 | CF13: 0 | CG13: 44.6288548 | CH13: 54.00987091 | CI13: 50.73882332 | CK13: 1923 | CL13: =E25 ->  | CM13: =E26 ->  | CN13: =E27 ->  | CO13: =E28 ->  | CP13: =E29 ->  | CQ13: =E30 ->  | CR13: =E31 ->  | CS13: =E32 ->  | CT13: =E33 ->  | CU13: =E34 ->  | CV13: =E35 ->  | CW13: =E36 ->  | DK13: 1923 | DL13: =F25 ->  | DM13: =F26 ->  | DN13: =F27 ->  | DO13: =F28 ->  | DP13: =F29 ->  | DQ13: =F30 ->  | DR13: =F31 ->  | DS13: =F32 ->  | DT13: =F33 ->  | DU13: =F34 ->  | DV13: =F35 ->  | DW13: =F36 ->  | EK13: 1923 | EL13: =G25 ->  | EM13: =G26 ->  | EN13: =G27 ->  | EO13: =G28 ->  | EP13: =G29 ->  | EQ13: =G30 ->  | ER13: =G31 ->  | ES13: =G32 ->  | ET13: =G33 ->  | EU13: =G34 ->  | EV13: =G35 ->  | EW13: =G36 -> 
A14: 1921-11-30 | B14: =INDIRECT(CONCATENATE("'",B$1,"'!",B$4,(YEAR($A14)-1921)*12+MONTH($A14)+3+IF(ISNUMBER(FIND("PRV",B$6)),1,0)))*IF(AND(B$3>0,TRIM(B$9)="CFS"),Conversions!$C14,1) -> 0 | C14: =INDIRECT(CONCATENATE("'",C$1,"'!",C$4,(YEAR($A14)-1921)*12+MONTH($A14)+3+IF(ISNUMBER(FIND("PRV",C$6)),1,0)))*IF(AND(C$3>0,TRIM(C$9)="CFS"),Conversions!$C14,1) -> 0 | D14: =INDIRECT(CONCATENATE("'",D$1,"'!",D$4,(YEAR($A14)-1921)*12+MONTH($A14)+3+IF(ISNUMBER(FIND("PRV",D$6)),1,0)))*IF(AND(D$3>0,TRIM(D$9)="CFS"),Conversions!$C14,1) -> 0 | E14: =INDIRECT(CONCATENATE("'",E$1,"'!",E$4,(YEAR($A14)-1921)*12+MONTH($A14)+3+IF(ISNUMBER(FIND("PRV",E$6)),1,0)))*IF(AND(E$3>0,TRIM(E$9)="CFS"),Conversions!$C14,1) ->  | F14: =INDIRECT(CONCATENATE("'",F$1,"'!",F$4,(YEAR($A14)-1921)*12+MONTH($A14)+3+IF(ISNUMBER(FIND("PRV",F$6)),1,0)))*IF(AND(F$3>0,TRIM(F$9)="CFS"),Conversions!$C14,1) ->  | G14: =INDIRECT(CONCATENATE("'",G$1,"'!",G$4,(YEAR($A14)-1921)*12+MONTH($A14)+3+IF(ISNUMBER(FIND("PRV",G$6)),1,0)))*IF(AND(G$3>0,TRIM(G$9)="CFS"),Conversions!$C14,1) ->  | K14: 1924 | L14: =B37 -> 0 | M14: =B38 -> 0 | N14: =B39 -> 0 | O14: =B40 -> 0 | P14: =B41 -> 0 | Q14: =B42 -> 0 | R14: =B43 -> 0 | S14: =B44 -> 0 | T14: =B45 -> 0 | U14: =B46 -> 0 | V14: =B47 -> 0 | W14: =B48 -> 0 | Y14: 0 | Z14: 0 | AA14: 0 | AC14: =IF(AC$11="AVG",IF(AE$1="INST-VAL",AVERAGE(L14:P14,M14:Q14),AVERAGE(M14:Q14)),SUM(M14:Q14)) -> 0 | AD14: =IF(AD$11="AVG",IF(AE$1="INST-VAL",AVERAGE(U14:W14,V14:W14,L15),AVERAGE(V14:W14,L15)),SUM(V14:W14,L15)) -> 0 | AE14: =IF(AE$11="AVG",IF(AE$1="INST-VAL",AVERAGE(W13,L14:N14,L14:O14),AVERAGE(L14:O14)),SUM(L14:O14)) -> 0 | AF14: 0 | AG14: 0 | AH14: 0 | AI14: 0 | AK14: 1924 | AL14: =C37 -> 26.70144363 | AM14: =C38 -> 21.19333333 | AN14: =C39 -> 13.19333333 | AO14: =C40 -> 0 | AP14: =C41 -> 0 | AQ14: =C42 -> 5.032537461 | AR14: =C43 -> 87.21273533 | AS14: =C44 -> 35.79604496 | AT14: =C45 -> 86.42872886 | AU14: =C46 -> 119.3264467 | AV14: =C47 -> 109.1580601 | AW14: =C48 -> 72.02654821 | AY14: 520.2048351 | AZ14: 520.2048351 | BA14: 576.0692119 | BC14: =IF(BC$11="AVG",IF(BE$1="INST-VAL",AVERAGE(AL14:AP14,AM14:AQ14),AVERAGE(AM14:AQ14)),SUM(AM14:AQ14)) -> 39.41920413 | BD14: 186.4083419 | BE14: 61.0881103 | BF14: 13.19333333 | BG14: 214.4700466 | BH14: 386.9397839 | BI14: 77.25028173 | BK14: 1924 | BL14: =D37 -> 26.89320594 | BM14: =D38 -> 21.19333333 | BN14: =D39 -> 13.19333333 | BO14: =D40 -> 0 | BP14: =D41 -> 0 | BQ14: =D42 -> 5.032537461 | BR14: =D43 -> 87.21169889 | BS14: =D44 -> 22.13921422 | BT14: =D45 -> 86.46772531 | BU14: =D46 -> 119.3264463 | BV14: =D47 -> 109.1580601 | BW14: =D48 -> 73.27064821 | BY14: 513.7569983 | BZ14: 513.7569983 | CA14: 563.8862031 | CC14: =IF(CC$11="AVG",IF(CE$1="INST-VAL",AVERAGE(BL14:BP14,BM14:BQ14),AVERAGE(BM14:BQ14)),SUM(BM14:BQ14)) -> 39.41920413 | CD14: 190.2914431 | CE14: 61.27987261 | CF14: 13.19333333 | CG14: 200.8511759 | CH14: 388.22288 | CI14: 84.42131594 | CK14: 1924 | CL14: =E37 ->  | CM14: =E38 ->  | CN14: =E39 ->  | CO14: =E40 ->  | CP14: =E41 ->  | CQ14: =E42 ->  | CR14: =E43 ->  | CS14: =E44 ->  | CT14: =E45 ->  | CU14: =E46 ->  | CV14: =E47 ->  | CW14: =E48 ->  | DK14: 1924 | DL14: =F37 ->  | DM14: =F38 ->  | DN14: =F39 ->  | DO14: =F40 ->  | DP14: =F41 ->  | DQ14: =F42 ->  | DR14: =F43 ->  | DS14: =F44 ->  | DT14: =F45 ->  | DU14: =F46 ->  | DV14: =F47 ->  | DW14: =F48 ->  | EK14: 1924 | EL14: =G37 ->  | EM14: =G38 ->  | EN14: =G39 ->  | EO14: =G40 ->  | EP14: =G41 ->  | EQ14: =G42 ->  | ER14: =G43 ->  | ES14: =G44 ->  | ET14: =G45 ->  | EU14: =G46 ->  | EV14: =G47 ->  | EW14: =G48 -> 
A15: 1921-12-31 | B15: =INDIRECT(CONCATENATE("'",B$1,"'!",B$4,(YEAR($A15)-1921)*12+MONTH($A15)+3+IF(ISNUMBER(FIND("PRV",B$6)),1,0)))*IF(AND(B$3>0,TRIM(B$9)="CFS"),Conversions!$C15,1) -> 0 | C15: =INDIRECT(CONCATENATE("'",C$1,"'!",C$4,(YEAR($A15)-1921)*12+MONTH($A15)+3+IF(ISNUMBER(FIND("PRV",C$6)),1,0)))*IF(AND(C$3>0,TRIM(C$9)="CFS"),Conversions!$C15,1) -> 0 | D15: =INDIRECT(CONCATENATE("'",D$1,"'!",D$4,(YEAR($A15)-1921)*12+MONTH($A15)+3+IF(ISNUMBER(FIND("PRV",D$6)),1,0)))*IF(AND(D$3>0,TRIM(D$9)="CFS"),Conversions!$C15,1) -> 0 | E15: =INDIRECT(CONCATENATE("'",E$1,"'!",E$4,(YEAR($A15)-1921)*12+MONTH($A15)+3+IF(ISNUMBER(FIND("PRV",E$6)),1,0)))*IF(AND(E$3>0,TRIM(E$9)="CFS"),Conversions!$C15,1) ->  | F15: =INDIRECT(CONCATENATE("'",F$1,"'!",F$4,(YEAR($A15)-1921)*12+MONTH($A15)+3+IF(ISNUMBER(FIND("PRV",F$6)),1,0)))*IF(AND(F$3>0,TRIM(F$9)="CFS"),Conversions!$C15,1) ->  | G15: =INDIRECT(CONCATENATE("'",G$1,"'!",G$4,(YEAR($A15)-1921)*12+MONTH($A15)+3+IF(ISNUMBER(FIND("PRV",G$6)),1,0)))*IF(AND(G$3>0,TRIM(G$9)="CFS"),Conversions!$C15,1) ->  | K15: 1925 | L15: =B49 -> 0 | M15: =B50 -> 0 | N15: =B51 -> 0 | O15: =B52 -> 0 | P15: =B53 -> 0 | Q15: =B54 -> 0 | R15: =B55 -> 0 | S15: =B56 -> 0 | T15: =B57 -> 0 | U15: =B58 -> 0 | V15: =B59 -> 0 | W15: =B60 -> 0 | Y15: 0 | Z15: 0 | AA15: 0 | AC15: =IF(AC$11="AVG",IF(AE$1="INST-VAL",AVERAGE(L15:P15,M15:Q15),AVERAGE(M15:Q15)),SUM(M15:Q15)) -> 0 | AD15: 0 | AE15: 0 | AF15: 0 | AG15: 0 | AH15: 0 | AI15: 0 | AK15: 1925 | AL15: =C49 -> 5.223733515 | AM15: =C50 -> 0 | AN15: =C51 -> 0 | AO15: =C52 -> 0 | AP15: =C53 -> 0 | AQ15: =C54 -> 0 | AR15: =C55 -> 1.923474201 | AS15: =C56 -> 33.67952366 | AT15: =C57 -> 30.10754506 | AU15: =C58 -> 116.8264463 | AV15: =C59 -> 9.289987719 | AW15: =C60 -> 8.573536835 | AY15: 208.0057925 | AZ15: 208.0057925 | BA15: 205.6242473 | BC15: =IF(BC$11="AVG",IF(BE$1="INST-VAL",AVERAGE(AL15:AP15,AM15:AQ15),AVERAGE(AM15:AQ15)),SUM(AM15:AQ15)) -> 0 | BD15: =IF(BD$11="AVG",IF(BE$1="INST-VAL",AVERAGE(AU15:AW15,AV15:AW15,AL16),AVERAGE(AV15:AW15,AL16)),SUM(AV15:AW15,AL16)) -> 25.46880331 | BE15: 5.223733515 | BF15: 0 | BG15: 65.71054292 | BH15: 164.7975159 | BI15: 16.17881559 | BK15: 1925 | BL15: =D49 -> 7.862734717 | BM15: =D50 -> 3.287933012 | BN15: =D51 -> 0 | BO15: =D52 -> 0 | BP15: =D53 -> 0 | BQ15: =D54 -> 0 | BR15: =D55 -> 2.038344718 | BS15: =D56 -> 26.24455968 | BT15: =D57 -> 40.15564147 | BU15: =D58 -> 116.8264463 | BV15: =D59 -> 101.5240545 | BW15: =D60 -> 7.708044886 | BY15: 301.7518992 | BZ15: 301.7518992 | CA15: 305.6477593 | CC15: 3.287933012 | CD15: 116.4869071 | CE15: 11.15066773 | CF15: 0 | CG15: 68.43854587 | CH15: 266.2141872 | CI15: 14.96285254 | CK15: 1925 | CL15: =E49 ->  | CM15: =E50 ->  | CN15: =E51 ->  | CO15: =E52 ->  | CP15: =E53 ->  | CQ15: =E54 ->  | CR15: =E55 ->  | CS15: =E56 ->  | CT15: =E57 ->  | CU15: =E58 ->  | CV15: =E59 ->  | CW15: =E60 ->  | DK15: 1925 | DL15: =F49 ->  | DM15: =F50 ->  | DN15: =F51 ->  | DO15: =F52 ->  | DP15: =F53 ->  | DQ15: =F54 ->  | DR15: =F55 ->  | DS15: =F56 ->  | DT15: =F57 ->  | DU15: =F58 ->  | DV15: =F59 ->  | DW15: =F60 ->  | EK15: 1925 | EL15: =G49 ->  | EM15: =G50 ->  | EN15: =G51 ->  | EO15: =G52 ->  | EP15: =G53 ->  | EQ15: =G54 ->  | ER15: =G55 ->  | ES15: =G56 ->  | ET15: =G57 ->  | EU15: =G58 ->  | EV15: =G59 ->  | EW15: =G60 -> 
A16: 1922-01-31 | B16: =INDIRECT(CONCATENATE("'",B$1,"'!",B$4,(YEAR($A16)-1921)*12+MONTH($A16)+3+IF(ISNUMBER(FIND("PRV",B$6)),1,0)))*IF(AND(B$3>0,TRIM(B$9)="CFS"),Conversions!$C16,1) -> 0 | C16: =INDIRECT(CONCATENATE("'",C$1,"'!",C$4,(YEAR($A16)-1921)*12+MONTH($A16)+3+IF(ISNUMBER(FIND("PRV",C$6)),1,0)))*IF(AND(C$3>0,TRIM(C$9)="CFS"),Conversions!$C16,1) -> 5.960465259e-08 | D16: =INDIRECT(CONCATENATE("'",D$1,"'!",D$4,(YEAR($A16)-1921)*12+MONTH($A16)+3+IF(ISNUMBER(FIND("PRV",D$6)),1,0)))*IF(AND(D$3>0,TRIM(D$9)="CFS"),Conversions!$C16,1) -> 5.960464517e-08 | E16: =INDIRECT(CONCATENATE("'",E$1,"'!",E$4,(YEAR($A16)-1921)*12+MONTH($A16)+3+IF(ISNUMBER(FIND("PRV",E$6)),1,0)))*IF(AND(E$3>0,TRIM(E$9)="CFS"),Conversions!$C16,1) ->  | F16: =INDIRECT(CONCATENATE("'",F$1,"'!",F$4,(YEAR($A16)-1921)*12+MONTH($A16)+3+IF(ISNUMBER(FIND("PRV",F$6)),1,0)))*IF(AND(F$3>0,TRIM(F$9)="CFS"),Conversions!$C16,1) ->  | G16: =INDIRECT(CONCATENATE("'",G$1,"'!",G$4,(YEAR($A16)-1921)*12+MONTH($A16)+3+IF(ISNUMBER(FIND("PRV",G$6)),1,0)))*IF(AND(G$3>0,TRIM(G$9)="CFS"),Conversions!$C16,1) ->  | K16: 1926 | L16: =B61 -> 0 | M16: =B62 -> 0 | N16: =B63 -> 0 | O16: =B64 -> 0 | P16: =B65 -> 0 | Q16: =B66 -> 0 | R16: =B67 -> 0 | S16: =B68 -> 0 | T16: =B69 -> 0 | U16: =B70 -> 0 | V16: =B71 -> 0 | W16: =B72 -> 0 | Y16: 0 | Z16: 0 | AA16: 0 | AC16: 0 | AD16: 0 | AE16: 0 | AF16: 0 | AG16: 0 | AH16: 0 | AI16: 0 | AK16: 1926 | AL16: =C61 -> 7.60527876 | AM16: =C62 -> 0 | AN16: =C63 -> 0 | AO16: =C64 -> 0 | AP16: =C65 -> 0 | AQ16: =C66 -> 0.6337170079 | AR16: =C67 -> 1.821976626 | AS16: =C68 -> 64.10038925 | AT16: =C69 -> 19.02718693 | AU16: =C70 -> 71.39635577 | AV16: =C71 -> 32.31259059 | AW16: =C72 -> 20.16085787 | AY16: 215.1656692 | AZ16: 215.1656692 | BA16: 217.0583528 | BC16: 0.6337170079 | BD16: 54.96344846 | BE16: 7.60527876 | BF16: 0 | BG16: 85.58326982 | BH16: 142.8969912 | BI16: 25.87345302 | BK16: 1926 | BL16: =D61 -> 7.254807659 | BM16: =D62 -> 0 | BN16: =D63 -> 0 | BO16: =D64 -> 0 | BP16: =D65 -> 0 | BQ16: =D66 -> 0.6542616388 | BR16: =D67 -> 1.881039863 | BS16: =D68 -> 47.84814901 | BT16: =D69 -> 24.66897294 | BU16: =D70 -> 76.87648076 | BV16: =D71 -> 38.29064588 | BW16: =D72 -> 20.55922214 | BY16: 216.7577554 | BZ16: 216.7577554 | CA16: 218.0335799 | CC16: 0.6542616388 | CD16: 61.33986801 | CE16: 7.254807659 | CF16: 0 | CG16: 75.05242345 | CH16: 160.3953217 | CI16: 26.53820535 | CK16: 1926 | CL16: =E61 ->  | CM16: =E62 ->  | CN16: =E63 ->  | CO16: =E64 ->  | CP16: =E65 ->  | CQ16: =E66 ->  | CR16: =E67 ->  | CS16: =E68 ->  | CT16: =E69 ->  | CU16: =E70 ->  | CV16: =E71 ->  | CW16: =E72 ->  | DK16: 1926 | DL16: =F61 ->  | DM16: =F62 ->  | DN16: =F63 ->  | DO16: =F64 ->  | DP16: =F65 ->  | DQ16: =F66 ->  | DR16: =F67 ->  | DS16: =F68 ->  | DT16: =F69 ->  | DU16: =F70 ->  | DV16: =F71 ->  | DW16: =F72 ->  | EK16: 1926 | EL16: =G61 ->  | EM16: =G62 ->  | EN16: =G63 ->  | EO16: =G64 ->  | EP16: =G65 ->  | EQ16: =G66 ->  | ER16: =G67 ->  | ES16: =G68 ->  | ET16: =G69 ->  | EU16: =G70 ->  | EV16: =G71 ->  | EW16: =G72 -> 
A17: 1922-02-28 | B17: =INDIRECT(CONCATENATE("'",B$1,"'!",B$4,(YEAR($A17)-1921)*12+MONTH($A17)+3+IF(ISNUMBER(FIND("PRV",B$6)),1,0)))*IF(AND(B$3>0,TRIM(B$9)="CFS"),Conversions!$C17,1) -> 0 | C17: =INDIRECT(CONCATENATE("'",C$1,"'!",C$4,(YEAR($A17)-1921)*12+MONTH($A17)+3+IF(ISNUMBER(FIND("PRV",C$6)),1,0)))*IF(AND(C$3>0,TRIM(C$9)="CFS"),Conversions!$C17,1) -> 0 | D17: =INDIRECT(CONCATENATE("'",D$1,"'!",D$4,(YEAR($A17)-1921)*12+MONTH($A17)+3+IF(ISNUMBER(FIND("PRV",D$6)),1,0)))*IF(AND(D$3>0,TRIM(D$9)="CFS"),Conversions!$C17,1) -> 0 | E17: =INDIRECT(CONCATENATE("'",E$1,"'!",E$4,(YEAR($A17)-1921)*12+MONTH($A17)+3+IF(ISNUMBER(FIND("PRV",E$6)),1,0)))*IF(AND(E$3>0,TRIM(E$9)="CFS"),Conversions!$C17,1) ->  | F17: =INDIRECT(CONCATENATE("'",F$1,"'!",F$4,(YEAR($A17)-1921)*12+MONTH($A17)+3+IF(ISNUMBER(FIND("PRV",F$6)),1,0)))*IF(AND(F$3>0,TRIM(F$9)="CFS"),Conversions!$C17,1) ->  | G17: =INDIRECT(CONCATENATE("'",G$1,"'!",G$4,(YEAR($A17)-1921)*12+MONTH($A17)+3+IF(ISNUMBER(FIND("PRV",G$6)),1,0)))*IF(AND(G$3>0,TRIM(G$9)="CFS"),Conversions!$C17,1) ->  | K17: 1927 | L17: =B73 -> 0 | M17: =B74 -> 0 | N17: =B75 -> 0 | O17: =B76 -> 0 | P17: =B77 -> 0 | Q17: =B78 -> 0 | R17: =B79 -> 0 | S17: =B80 -> 0 | T17: =B81 -> 0 | U17: =B82 -> 0 | V17: =B83 -> 0 | W17: =B84 -> 0 | Y17: 0 | Z17: 0 | AA17: 0 | AC17: 0 | AD17: 0 | AE17: 0 | AF17: 0 | AG17: 0 | AH17: 0 | AI17: 0 | AK17: 1927 | AL17: =C73 -> 2.49 | AM17: =C74 -> 3.222595153 | AN17: =C75 -> 0 | AO17: =C76 -> 0 | AP17: =C77 -> 0 | AQ17: =C78 -> 0 | AR17: =C79 -> 1.134693229 | AS17: =C80 -> 0 | AT17: =C81 -> 1.966778492 | AU17: =C82 -> 2.5 | AV17: =C83 -> 30.0862069 | AW17: =C84 -> 28.45005914 | AY17: 64.13773776 | AZ17: 64.13773776 | BA17: 69.85033292 | BC17: 3.222595153 | BD17: 58.53626604 | BE17: 5.712595153 | BF17: 0 | BG17: 3.101471721 | BH17: 63.00304454 | BI17: 28.45005914 | BK17: 1927 | BL17: =D73 -> 2.49 | BM17: =D74 -> 3.488983208 | BN17: =D75 -> 0 | BO17: =D76 -> 0 | BP17: =D77 -> 0 | BQ17: =D78 -> 0 | BR17: =D79 -> 1.134693229 | BS17: =D80 -> 0 | BT17: =D81 -> 1.966778492 | BU17: =D82 -> 2.5 | BV17: =D83 -> 30.0862069 | BW17: =D84 -> 28.45005914 | BY17: 68.87977131 | BZ17: 68.87977131 | CA17: 70.11672097 | CC17: =IF(CC$11="AVG",IF(CE$1="INST-VAL",AVERAGE(BL17:BP17,BM17:BQ17),AVERAGE(BM17:BQ17)),SUM(BM17:BQ17)) -> 3.488983208 | CD17: =IF(CD$11="AVG",IF(CE$1="INST-VAL",AVERAGE(BU17:BW17,BV17:BW17,BL18),AVERAGE(BV17:BW17,BL18)),SUM(BV17:BW17,BL18)) -> 63.27829959 | CE17: 5.978983208 | CF17: 0 | CG17: 3.101471721 | CH17: 63.00304454 | CI17: 33.19209269 | CK17: 1927 | CL17: =E73 ->  | CM17: =E74 ->  | CN17: =E75 ->  | CO17: =E76 ->  | CP17: =E77 ->  | CQ17: =E78 ->  | CR17: =E79 ->  | CS17: =E80 ->  | CT17: =E81 ->  | CU17: =E82 ->  | CV17: =E83 ->  | CW17: =E84 ->  | DK17: 1927 | DL17: =F73 ->  | DM17: =F74 ->  | DN17: =F75 ->  | DO17: =F76 ->  | DP17: =F77 ->  | DQ17: =F78 ->  | DR17: =F79 ->  | DS17: =F80 ->  | DT17: =F81 ->  | DU17: =F82 ->  | DV17: =F83 ->  | DW17: =F84 ->  | EK17: 1927 | EL17: =G73 ->  | EM17: =G74 ->  | EN17: =G75 ->  | EO17: =G76 ->  | EP17: =G77 ->  | EQ17: =G78 ->  | ER17: =G79 ->  | ES17: =G80 ->  | ET17: =G81 ->  | EU17: =G82 ->  | EV17: =G83 ->  | EW17: =G84 -> 
A18: 1922-03-31 | B18: =INDIRECT(CONCATENATE("'",B$1,"'!",B$4,(YEAR($A18)-1921)*12+MONTH($A18)+3+IF(ISNUMBER(FIND("PRV",B$6)),1,0)))*IF(AND(B$3>0,TRIM(B$9)="CFS"),Conversions!$C18,1) -> 0 | C18: =INDIRECT(CONCATENATE("'",C$1,"'!",C$4,(YEAR($A18)-1921)*12+MONTH($A18)+3+IF(ISNUMBER(FIND("PRV",C$6)),1,0)))*IF(AND(C$3>0,TRIM(C$9)="CFS"),Conversions!$C18,1) -> 0 | D18: =INDIRECT(CONCATENATE("'",D$1,"'!",D$4,(YEAR($A18)-1921)*12+MONTH($A18)+3+IF(ISNUMBER(FIND("PRV",D$6)),1,0)))*IF(AND(D$3>0,TRIM(D$9)="CFS"),Conversions!$C18,1) -> 0 | E18: =INDIRECT(CONCATENATE("'",E$1,"'!",E$4,(YEAR($A18)-1921)*12+MONTH($A18)+3+IF(ISNUMBER(FIND("PRV",E$6)),1,0)))*IF(AND(E$3>0,TRIM(E$9)="CFS"),Conversions!$C18,1) ->  | F18: =INDIRECT(CONCATENATE("'",F$1,"'!",F$4,(YEAR($A18)-1921)*12+MONTH($A18)+3+IF(ISNUMBER(FIND("PRV",F$6)),1,0)))*IF(AND(F$3>0,TRIM(F$9)="CFS"),Conversions!$C18,1) ->  | G18: =INDIRECT(CONCATENATE("'",G$1,"'!",G$4,(YEAR($A18)-1921)*12+MONTH($A18)+3+IF(ISNUMBER(FIND("PRV",G$6)),1,0)))*IF(AND(G$3>0,TRIM(G$9)="CFS"),Conversions!$C18,1) ->  | K18: 1928 | L18: =B85 -> 0 | M18: =B86 -> 0 | N18: =B87 -> 0 | O18: =B88 -> 0 | P18: =B89 -> 0 | Q18: =B90 -> 0 | R18: =B91 -> 0 | S18: =B92 -> 0 | T18: =B93 -> 0 | U18: =B94 -> 0 | V18: =B95 -> 0 | W18: =B96 -> 0 | Y18: 0 | Z18: 0 | AA18: 0 | AC18: 0 | AD18: 0 | AE18: 0 | AF18: 0 | AG18: 0 | AH18: 0 | AI18: 0 | AK18: 1928 | AL18: =C85 -> 0 | AM18: =C86 -> 0 | AN18: =C87 -> 0 | AO18: =C88 -> 0 | AP18: =C89 -> 0 | AQ18: =C90 -> 0 | AR18: =C91 -> 2.705392855 | AS18: =C92 -> 51.3579678 | AT18: =C93 -> 93.22817191 | AU18: =C94 -> 166.8996969 | AV18: =C95 -> 115.7310439 | AW18: =C96 -> 67.93387354 | AY18: 519.943058 | AZ18: 519.943058 | BA18: 497.8561469 | BC18: 0 | BD18: 186.1549178 | BE18: 0 | BF18: 0 | BG18: 147.2915326 | BH18: 443.7927862 | BI18: 88.36078465 | BK18: 1928 | BL18: =D85 -> 4.742033549 | BM18: =D86 -> 0 | BN18: =D87 -> 0 | BO18: =D88 -> 0 | BP18: =D89 -> 0 | BQ18: =D90 -> 0 | BR18: =D91 -> 2.705392855 | BS18: =D92 -> 51.35783319 | BT18: =D93 -> 93.22817191 | BU18: =D94 -> 154.1253797 | BV18: =D95 -> 49.28619489 | BW18: =D96 -> 76.53825902 | BY18: 461.525418 | BZ18: 461.525418 | CA18: 431.9832651 | CC18: 0 | CD18: 128.3144548 | CE18: 4.742033549 | CF18: 0 | CG18: 147.291398 | CH18: 373.1780055 | CI18: 109.1624454 | CK18: 1928 | CL18: =E85 ->  | CM18: =E86 ->  | CN18: =E87 ->  | CO18: =E88 ->  | CP18: =E89 ->  | CQ18: =E90 ->  | CR18: =E91 ->  | CS18: =E92 ->  | CT18: =E93 ->  | CU18: =E94 ->  | CV18: =E95 ->  | CW18: =E96 ->  | DC18: =IF(DC$11="AVG",IF(DE$1="INST-VAL",AVERAGE(CL18:CP18,CM18:CQ18),AVERAGE(CM18:CQ18)),SUM(CM18:CQ18)) ->  | DD18: =IF(DD$11="AVG",IF(DE$1="INST-VAL",AVERAGE(CU18:CW18,CV18:CW18,CL19),AVERAGE(CV18:CW18,CL19)),SUM(CV18:CW18,CL19)) ->  | DK18: 1928 | DL18: =F85 ->  | DM18: =F86 ->  | DN18: =F87 ->  | DO18: =F88 ->  | DP18: =F89 ->  | DQ18: =F90 ->  | DR18: =F91 ->  | DS18: =F92 ->  | DT18: =F93 ->  | DU18: =F94 ->  | DV18: =F95 ->  | DW18: =F96 ->  | EC18: =IF(EC$11="AVG",IF(EE$1="INST-VAL",AVERAGE(DL18:DP18,DM18:DQ18),AVERAGE(DM18:DQ18)),SUM(DM18:DQ18)) ->  | ED18: =IF(ED$11="AVG",IF(EE$1="INST-VAL",AVERAGE(DU18:DW18,DV18:DW18,DL19),AVERAGE(DV18:DW18,DL19)),SUM(DV18:DW18,DL19)) ->  | EK18: 1928 | EL18: =G85 ->  | EM18: =G86 ->  | EN18: =G87 ->  | EO18: =G88 ->  | EP18: =G89 ->  | EQ18: =G90 ->  | ER18: =G91 ->  | ES18: =G92 ->  | ET18: =G93 ->  | EU18: =G94 ->  | EV18: =G95 ->  | EW18: =G96 ->  | FC18: =IF(FC$11="AVG",IF(FE$1="INST-VAL",AVERAGE(EL18:EP18,EM18:EQ18),AVERAGE(EM18:EQ18)),SUM(EM18:EQ18)) -> 
A19: 1922-04-30 | B19: =INDIRECT(CONCATENATE("'",B$1,"'!",B$4,(YEAR($A19)-1921)*12+MONTH($A19)+3+IF(ISNUMBER(FIND("PRV",B$6)),1,0)))*IF(AND(B$3>0,TRIM(B$9)="CFS"),Conversions!$C19,1) -> 0 | C19: =INDIRECT(CONCATENATE("'",C$1,"'!",C$4,(YEAR($A19)-1921)*12+MONTH($A19)+3+IF(ISNUMBER(FIND("PRV",C$6)),1,0)))*IF(AND(C$3>0,TRIM(C$9)="CFS"),Conversions!$C19,1) -> 0 | D19: =INDIRECT(CONCATENATE("'",D$1,"'!",D$4,(YEAR($A19)-1921)*12+MONTH($A19)+3+IF(ISNUMBER(FIND("PRV",D$6)),1,0)))*IF(AND(D$3>0,TRIM(D$9)="CFS"),Conversions!$C19,1) -> 0 | E19: =INDIRECT(CONCATENATE("'",E$1,"'!",E$4,(YEAR($A19)-1921)*12+MONTH($A19)+3+IF(ISNUMBER(FIND("PRV",E$6)),1,0)))*IF(AND(E$3>0,TRIM(E$9)="CFS"),Conversions!$C19,1) ->  | F19: =INDIRECT(CONCATENATE("'",F$1,"'!",F$4,(YEAR($A19)-1921)*12+MONTH($A19)+3+IF(ISNUMBER(FIND("PRV",F$6)),1,0)))*IF(AND(F$3>0,TRIM(F$9)="CFS"),Conversions!$C19,1) ->  | G19: =INDIRECT(CONCATENATE("'",G$1,"'!",G$4,(YEAR($A19)-1921)*12+MONTH($A19)+3+IF(ISNUMBER(FIND("PRV",G$6)),1,0)))*IF(AND(G$3>0,TRIM(G$9)="CFS"),Conversions!$C19,1) ->  | K19: 1929 | L19: =B97 -> 0 | M19: =B98 -> 0 | N19: =B99 -> 0 | O19: =B100 -> 0 | P19: =B101 -> 0 | Q19: =B102 -> 0 | R19: =B103 -> 0 | S19: =B104 -> 0 | T19: =B105 -> 0 | U19: =B106 -> 0 | V19: =B107 -> 0 | W19: =B108 -> 0 | Y19: 0 | Z19: 0 | AA19: 0 | AC19: 0 | AD19: 0 | AE19: 0 | AF19: 0 | AG19: 0 | AH19: 0 | AI19: 0 | AK19: 1929 | AL19: =C97 -> 2.490000367 | AM19: =C98 -> 17.93691074 | AN19: =C99 -> 1.66 | AO19: =C100 -> 0 | AP19: =C101 -> 0 | AQ19: =C102 -> 0.8324798346 | AR19: =C103 -> 78.94900941 | AS19: =C104 -> 97.87925461 | AT19: =C105 -> 138.5557997 | AU19: =C106 -> 119.339366 | AV19: =C107 -> 95.30994152 | AW19: =C108 -> 20.35123967 | AY19: 584.5580349 | AZ19: 584.5580349 | BA19: 573.3040018 | BC19: 20.42939058 | BD19: 137.4824878 | BE19: 22.08691111 | BF19: 1.66 | BG19: 316.2165435 | BH19: 373.5563469 | BI19: 53.69218384 | BK19: 1929 | BL19: =D97 -> 2.490000918 | BM19: =D98 -> 30.13418546 | BN19: =D99 -> 1.66 | BO19: =D100 -> 0 | BP19: =D101 -> 0 | BQ19: =D102 -> 0.8324798346 | BR19: =D103 -> 78.87842793 | BS19: =D104 -> 97.86338342 | BT19: =D105 -> 143.2377714 | BU19: =D106 -> 124.1087504 | BV19: =D107 -> 83.55157387 | BW19: =D108 -> 18.77168173 | BY19: 579.2252783 | BZ19: 579.2252783 | CA19: 581.528255 | CC19: 32.6266653 | CD19: 122.0652572 | CE19: 34.28418638 | CF19: 1.66 | CG19: 320.8120626 | CH19: 369.6697775 | CI19: 50.75289139 | CK19: 1929 | CL19: =E97 ->  | CM19: =E98 ->  | CN19: =E99 ->  | CO19: =E100 ->  | CP19: =E101 ->  | CQ19: =E102 ->  | CR19: =E103 ->  | CS19: =E104 ->  | CT19: =E105 ->  | CU19: =E106 ->  | CV19: =E107 ->  | CW19: =E108 ->  | DK19: 1929 | DL19: =F97 ->  | DM19: =F98 ->  | DN19: =F99 ->  | DO19: =F100 ->  | DP19: =F101 ->  | DQ19: =F102 ->  | DR19: =F103 ->  | DS19: =F104 ->  | DT19: =F105 ->  | DU19: =F106 ->  | DV19: =F107 ->  | DW19: =F108 ->  | EK19: 1929 | EL19: =G97 ->  | EM19: =G98 ->  | EN19: =G99 ->  | EO19: =G100 ->  | EP19: =G101 ->  | EQ19: =G102 ->  | ER19: =G103 ->  | ES19: =G104 ->  | ET19: =G105 ->  | EU19: =G106 ->  | EV19: =G107 ->  | EW19: =G108 -> 
A20: 1922-05-31 | B20: =INDIRECT(CONCATENATE("'",B$1,"'!",B$4,(YEAR($A20)-1921)*12+MONTH($A20)+3+IF(ISNUMBER(FIND("PRV",B$6)),1,0)))*IF(AND(B$3>0,TRIM(B$9)="CFS"),Conversions!$C20,1) -> 0 | C20: =INDIRECT(CONCATENATE("'",C$1,"'!",C$4,(YEAR($A20)-1921)*12+MONTH($A20)+3+IF(ISNUMBER(FIND("PRV",C$6)),1,0)))*IF(AND(C$3>0,TRIM(C$9)="CFS"),Conversions!$C20,1) -> 0 | D20: =INDIRECT(CONCATENATE("'",D$1,"'!",D$4,(YEAR($A20)-1921)*12+MONTH($A20)+3+IF(ISNUMBER(FIND("PRV",D$6)),1,0)))*IF(AND(D$3>0,TRIM(D$9)="CFS"),Conversions!$C20,1) -> 0 | E20: =INDIRECT(CONCATENATE("'",E$1,"'!",E$4,(YEAR($A20)-1921)*12+MONTH($A20)+3+IF(ISNUMBER(FIND("PRV",E$6)),1,0)))*IF(AND(E$3>0,TRIM(E$9)="CFS"),Conversions!$C20,1) ->  | F20: =INDIRECT(CONCATENATE("'",F$1,"'!",F$4,(YEAR($A20)-1921)*12+MONTH($A20)+3+IF(ISNUMBER(FIND("PRV",F$6)),1,0)))*IF(AND(F$3>0,TRIM(F$9)="CFS"),Conversions!$C20,1) ->  | G20: =INDIRECT(CONCATENATE("'",G$1,"'!",G$4,(YEAR($A20)-1921)*12+MONTH($A20)+3+IF(ISNUMBER(FIND("PRV",G$6)),1,0)))*IF(AND(G$3>0,TRIM(G$9)="CFS"),Conversions!$C20,1) ->  | K20: 1930 | L20: =B109 -> 0 | M20: =B110 -> 0 | N20: =B111 -> 0 | O20: =B112 -> 0 | P20: =B113 -> 0 | Q20: =B114 -> 0 | R20: =B115 -> 0 | S20: =B116 -> 0 | T20: =B117 -> 0 | U20: =B118 -> 0 | V20: =B119 -> 0 | W20: =B120 -> 0 | Y20: 0 | Z20: 0 | AA20: 0 | AC20: 0 | AD20: 0 | AE20: 0 | AF20: 0 | AG20: 0 | AH20: 0 | AI20: 0 | AK20: 1930 | AL20: =C109 -> 21.82130661 | AM20: =C110 -> 11.51963755 | AN20: =C111 -> 0 | AO20: =C112 -> 0 | AP20: =C113 -> 0 | AQ20: =C114 -> 0 | AR20: =C115 -> 22.55835223 | AS20: =C116 -> 17.29206624 | AT20: =C117 -> 11.08019761 | AU20: =C118 -> 14.66438288 | AV20: =C119 -> 36.52970653 | AW20: =C120 -> 2.5 | AY20: 109.9331284 | AZ20: 109.9331284 | BA20: 137.9656497 | BC20: 11.51963755 | BD20: 44.33812939 | BE20: 33.34094417 | BF20: 0 | BG20: 50.93061608 | BH20: 64.77428703 | BI20: 7.80842286 | BK20: 1930 | BL20: =D109 -> 19.74200156 | BM20: =D110 -> 12.2392081 | BN20: =D111 -> 0 | BO20: =D112 -> 0 | BP20: =D113 -> 0 | BQ20: =D114 -> 0 | BR20: =D115 -> 22.63754091 | BS20: =D116 -> 5.794685025 | BT20: =D117 -> 12.55681165 | BU20: =D118 -> 16.65278177 | BV20: =D119 -> 72.87489503 | BW20: =D120 -> 11.4310072 | BY20: 144.9652151 | BZ20: 144.9652151 | CA20: 173.9289312 | CC20: 12.2392081 | CD20: 87.32339579 | CE20: 31.98120966 | CF20: 0 | CG20: 40.98903758 | CH20: 113.5154957 | CI20: 14.44850076 | CK20: 1930 | CL20: =E109 ->  | CM20: =E110 ->  | CN20: =E111 ->  | CO20: =E112 ->  | CP20: =E113 ->  | CQ20: =E114 ->  | CR20: =E115 ->  | CS20: =E116 ->  | CT20: =E117 ->  | CU20: =E118 ->  | CV20: =E119 ->  | CW20: =E120 ->  | DK20: 1930 | DL20: =F109 ->  | DM20: =F110 ->  | DN20: =F111 ->  | DO20: =F112 ->  | DP20: =F113 ->  | DQ20: =F114 ->  | DR20: =F115 ->  | DS20: =F116 ->  | DT20: =F117 ->  | DU20: =F118 ->  | DV20: =F119 ->  | DW20: =F120 ->  | EK20: 1930 | EL20: =G109 ->  | EM20: =G110 ->  | EN20: =G111 ->  | EO20: =G112 ->  | EP20: =G113 ->  | EQ20: =G114 ->  | ER20: =G115 ->  | ES20: =G116 ->  | ET20: =G117 ->  | EU20: =G118 ->  | EV20: =G119 ->  | EW20: =G120 -> 
A21: 1922-06-30 | B21: =INDIRECT(CONCATENATE("'",B$1,"'!",B$4,(YEAR($A21)-1921)*12+MONTH($A21)+3+IF(ISNUMBER(FIND("PRV",B$6)),1,0)))*IF(AND(B$3>0,TRIM(B$9)="CFS"),Conversions!$C21,1) -> 0 | C21: =INDIRECT(CONCATENATE("'",C$1,"'!",C$4,(YEAR($A21)-1921)*12+MONTH($A21)+3+IF(ISNUMBER(FIND("PRV",C$6)),1,0)))*IF(AND(C$3>0,TRIM(C$9)="CFS"),Conversions!$C21,1) -> 2.5 | D21: =INDIRECT(CONCATENATE("'",D$1,"'!",D$4,(YEAR($A21)-1921)*12+MONTH($A21)+3+IF(ISNUMBER(FIND("PRV",D$6)),1,0)))*IF(AND(D$3>0,TRIM(D$9)="CFS"),Conversions!$C21,1) -> 2.5 | E21: =INDIRECT(CONCATENATE("'",E$1,"'!",E$4,(YEAR($A21)-1921)*12+MONTH($A21)+3+IF(ISNUMBER(FIND("PRV",E$6)),1,0)))*IF(AND(E$3>0,TRIM(E$9)="CFS"),Conversions!$C21,1) ->  | F21: =INDIRECT(CONCATENATE("'",F$1,"'!",F$4,(YEAR($A21)-1921)*12+MONTH($A21)+3+IF(ISNUMBER(FIND("PRV",F$6)),1,0)))*IF(AND(F$3>0,TRIM(F$9)="CFS"),Conversions!$C21,1) ->  | G21: =INDIRECT(CONCATENATE("'",G$1,"'!",G$4,(YEAR($A21)-1921)*12+MONTH($A21)+3+IF(ISNUMBER(FIND("PRV",G$6)),1,0)))*IF(AND(G$3>0,TRIM(G$9)="CFS"),Conversions!$C21,1) ->  | K21: 1931 | L21: =B121 -> 0 | M21: =B122 -> 0 | N21: =B123 -> 0 | O21: =B124 -> 0 | P21: =B125 -> 0 | Q21: =B126 -> 0 | R21: =B127 -> 0 | S21: =B128 -> 0 | T21: =B129 -> 0 | U21: =B130 -> 0 | V21: =B131 -> 0 | W21: =B132 -> 0 | Y21: 0 | Z21: 0 | AA21: 0 | AC21: 0 | AD21: 0 | AE21: 0 | AF21: 0 | AG21: 0 | AH21: 0 | AI21: 0 | AK21: 1931 | AL21: =C121 -> 5.30842286 | AM21: =C122 -> 0 | AN21: =C123 -> 0 | AO21: =C124 -> 0 | AP21: =C125 -> 0 | AQ21: =C126 -> 0 | AR21: =C127 -> 4.713658849 | AS21: =C128 -> 4.856891258 | AT21: =C129 -> 2.5 | AU21: =C130 -> 2.5 | AV21: =C131 -> 2.5 | AW21: =C132 -> 2.5 | AY21: 19.57055011 | AZ21: 19.57055011 | BA21: 24.87897297 | BC21: 0 | BD21: 5 | BE21: 5.30842286 | BF21: 0 | BG21: 12.07055011 | BH21: 10 | BI21: 2.5 | BK21: 1931 | BL21: =D121 -> 3.01749356 | BM21: =D122 -> 0 | BN21: =D123 -> 0 | BO21: =D124 -> 0 | BP21: =D125 -> 0 | BQ21: =D126 -> 0 | BR21: =D127 -> 4.65 | BS21: =D128 -> 4.65 | BT21: =D129 -> 2.5 | BU21: =D130 -> 2.5 | BV21: =D131 -> 2.5 | BW21: =D132 -> 2.5 | BY21: 19.3 | BZ21: 19.3 | CA21: 22.31749356 | CC21: 0 | CD21: 5 | CE21: 3.01749356 | CF21: 0 | CG21: 11.8 | CH21: 10 | CI21: 2.5 | CK21: 1931 | CL21: =E121 ->  | CM21: =E122 ->  | CN21: =E123 ->  | CO21: =E124 ->  | CP21: =E125 ->  | CQ21: =E126 ->  | CR21: =E127 ->  | CS21: =E128 ->  | CT21: =E129 ->  | CU21: =E130 ->  | CV21: =E131 ->  | CW21: =E132 ->  | DK21: 1931 | DL21: =F121 ->  | DM21: =F122 ->  | DN21: =F123 ->  | DO21: =F124 ->  | DP21: =F125 ->  | DQ21: =F126 ->  | DR21: =F127 ->  | DS21: =F128 ->  | DT21: =F129 ->  | DU21: =F130 ->  | DV21: =F131 ->  | DW21: =F132 ->  | EK21: 1931 | EL21: =G121 ->  | EM21: =G122 ->  | EN21: =G123 ->  | EO21: =G124 ->  | EP21: =G125 ->  | EQ21: =G126 ->  | ER21: =G127 ->  | ES21: =G128 ->  | ET21: =G129 ->  | EU21: =G130 ->  | EV21: =G131 ->  | EW21: =G132 -> 
A22: 1922-07-31 | B22: =INDIRECT(CONCATENATE("'",B$1,"'!",B$4,(YEAR($A22)-1921)*12+MONTH($A22)+3+IF(ISNUMBER(FIND("PRV",B$6)),1,0)))*IF(AND(B$3>0,TRIM(B$9)="CFS"),Conversions!$C22,1) -> 0 | C22: =INDIRECT(CONCATENATE("'",C$1,"'!",C$4,(YEAR($A22)-1921)*12+MONTH($A22)+3+IF(ISNUMBER(FIND("PRV",C$6)),1,0)))*IF(AND(C$3>0,TRIM(C$9)="CFS"),Conversions!$C22,1) -> 99.38764484 | D22: =INDIRECT(CONCATENATE("'",D$1,"'!",D$4,(YEAR($A22)-1921)*12+MONTH($A22)+3+IF(ISNUMBER(FIND("PRV",D$6)),1,0)))*IF(AND(D$3>0,TRIM(D$9)="CFS"),Conversions!$C22,1) -> 99.38764484 | E22: =INDIRECT(CONCATENATE("'",E$1,"'!",E$4,(YEAR($A22)-1921)*12+MONTH($A22)+3+IF(ISNUMBER(FIND("PRV",E$6)),1,0)))*IF(AND(E$3>0,TRIM(E$9)="CFS"),Conversions!$C22,1) ->  | F22: =INDIRECT(CONCATENATE("'",F$1,"'!",F$4,(YEAR($A22)-1921)*12+MONTH($A22)+3+IF(ISNUMBER(FIND("PRV",F$6)),1,0)))*IF(AND(F$3>0,TRIM(F$9)="CFS"),Conversions!$C22,1) ->  | G22: =INDIRECT(CONCATENATE("'",G$1,"'!",G$4,(YEAR($A22)-1921)*12+MONTH($A22)+3+IF(ISNUMBER(FIND("PRV",G$6)),1,0)))*IF(AND(G$3>0,TRIM(G$9)="CFS"),Conversions!$C22,1) ->  | K22: 1932 | L22: =B133 -> 0 | M22: =B134 -> 0 | N22: =B135 -> 0 | O22: =B136 -> 0 | P22: =B137 -> 0 | Q22: =B138 -> 0 | R22: =B139 -> 0 | S22: =B140 -> 0 | T22: =B141 -> 0 | U22: =B142 -> 0 | V22: =B143 -> 0 | W22: =B144 -> 0 | Y22: 0 | Z22: 0 | AA22: 0 | AC22: 0 | AD22: 0 | AE22: 0 | AF22: 0 | AG22: 0 | AH22: 0 | AI22: 0 | AK22: 1932 | AL22: =C133 -> 0 | AM22: =C134 -> 0 | AN22: =C135 -> 0 | AO22: =C136 -> 0 | AP22: =C137 -> 0 | AQ22: =C138 -> 0.2142587155 | AR22: =C139 -> 19.09967116 | AS22: =C140 -> 2.032691986 | AT22: =C141 -> 18.62913427 | AU22: =C142 -> 0.003189299956 | AV22: =C143 -> 0 | AW22: =C144 -> 0 | AY22: 39.97894543 | AZ22: 39.97894543 | BA22: 39.97894543 | BC22: 0.2142587155 | BD22: 0 | BE22: 0 | BF22: 0 | BG22: 39.97575613 | BH22: 18.63232357 | BI22: 0 | BK22: 1932 | BL22: =D133 -> 0 | BM22: =D134 -> 0 | BN22: =D135 -> 0 | BO22: =D136 -> 0 | BP22: =D137 -> 0 | BQ22: =D138 -> 0.2142587155 | BR22: =D139 -> 15.66787565 | BS22: =D140 -> 2.5 | BT22: =D141 -> 23.36304779 | BU22: =D142 -> 2.5 | BV22: =D143 -> 2.5 | BW22: =D144 -> 0.4806231574 | BY22: 47.22580531 | BZ22: 47.22580531 | CA22: 47.22580531 | CC22: 0.2142587155 | CD22: 2.980623158 | CE22: 0 | CF22: 0 | CG22: 41.74518215 | CH22: 28.84367094 | CI22: 0.4806231574 | CK22: 1932 | CL22: =E133 ->  | CM22: =E134 ->  | CN22: =E135 ->  | CO22: =E136 ->  | CP22: =E137 ->  | CQ22: =E138 ->  | CR22: =E139 ->  | CS22: =E140 ->  | CT22: =E141 ->  | CU22: =E142 ->  | CV22: =E143 ->  | CW22: =E144 ->  | DK22: 1932 | DL22: =F133 ->  | DM22: =F134 ->  | DN22: =F135 ->  | DO22: =F136 ->  | DP22: =F137 ->  | DQ22: =F138 ->  | DR22: =F139 ->  | DS22: =F140 ->  | DT22: =F141 ->  | DU22: =F142 ->  | DV22: =F143 ->  | DW22: =F144 ->  | EK22: 1932 | EL22: =G133 ->  | EM22: =G134 ->  | EN22: =G135 ->  | EO22: =G136 ->  | EP22: =G137 ->  | EQ22: =G138 ->  | ER22: =G139 ->  | ES22: =G140 ->  | ET22: =G141 ->  | EU22: =G142 ->  | EV22: =G143 ->  | EW22: =G144 -> 
A23: 1922-08-31 | B23: =INDIRECT(CONCATENATE("'",B$1,"'!",B$4,(YEAR($A23)-1921)*12+MONTH($A23)+3+IF(ISNUMBER(FIND("PRV",B$6)),1,0)))*IF(AND(B$3>0,TRIM(B$9)="CFS"),Conversions!$C23,1) -> 0 | C23: =INDIRECT(CONCATENATE("'",C$1,"'!",C$4,(YEAR($A23)-1921)*12+MONTH($A23)+3+IF(ISNUMBER(FIND("PRV",C$6)),1,0)))*IF(AND(C$3>0,TRIM(C$9)="CFS"),Conversions!$C23,1) -> 111.0864778 | D23: =INDIRECT(CONCATENATE("'",D$1,"'!",D$4,(YEAR($A23)-1921)*12+MONTH($A23)+3+IF(ISNUMBER(FIND("PRV",D$6)),1,0)))*IF(AND(D$3>0,TRIM(D$9)="CFS"),Conversions!$C23,1) -> 111.0864778 | E23: =INDIRECT(CONCATENATE("'",E$1,"'!",E$4,(YEAR($A23)-1921)*12+MONTH($A23)+3+IF(ISNUMBER(FIND("PRV",E$6)),1,0)))*IF(AND(E$3>0,TRIM(E$9)="CFS"),Conversions!$C23,1) ->  | F23: =INDIRECT(CONCATENATE("'",F$1,"'!",F$4,(YEAR($A23)-1921)*12+MONTH($A23)+3+IF(ISNUMBER(FIND("PRV",F$6)),1,0)))*IF(AND(F$3>0,TRIM(F$9)="CFS"),Conversions!$C23,1) ->  | G23: =INDIRECT(CONCATENATE("'",G$1,"'!",G$4,(YEAR($A23)-1921)*12+MONTH($A23)+3+IF(ISNUMBER(FIND("PRV",G$6)),1,0)))*IF(AND(G$3>0,TRIM(G$9)="CFS"),Conversions!$C23,1) ->  | K23: 1933 | L23: =B145 -> 0 | M23: =B146 -> 0 | N23: =B147 -> 0 | O23: =B148 -> 0 | P23: =B149 -> 0 | Q23: =B150 -> 0 | R23: =B151 -> 0 | S23: =B152 -> 0 | T23: =B153 -> 0 | U23: =B154 -> 0 | V23: =B155 -> 0 | W23: =B156 -> 0 | Y23: 0 | Z23: 0 | AA23: 0 | AC23: 0 | AD23: 0 | AE23: 0 | AF23: 0 | AG23: 0 | AH23: 0 | AI23: 0 | AK23: 1933 | AL23: =C145 -> 0 | AM23: =C146 -> 0 | AN23: =C147 -> 0 | AO23: =C148 -> 0 | AP23: =C149 -> 0 | AQ23: =C150 -> 0 | AR23: =C151 -> 0 | AS23: =C152 -> 0 | AT23: =C153 -> 0 | AU23: =C154 -> 0 | AV23: =C155 -> 0 | AW23: =C156 -> 0 | AY23: 0 | AZ23: 0 | BA23: 0 | BC23: 0 | BD23: 0 | BE23: 0 | BF23: 0 | BG23: 0 | BH23: 0 | BI23: 0 | BK23: 1933 | BL23: =D145 -> 0 | BM23: =D146 -> 0 | BN23: =D147 -> 0 | BO23: =D148 -> 0 | BP23: =D149 -> 0 | BQ23: =D150 -> 0 | BR23: =D151 -> 0 | BS23: =D152 -> 0 | BT23: =D153 -> 0 | BU23: =D154 -> 0 | BV23: =D155 -> 0 | BW23: =D156 -> 0 | BY23: 0 | BZ23: 0 | CA23: 0 | CC23: 0 | CD23: 0 | CE23: 0 | CF23: 0 | CG23: 0 | CH23: 0 | CI23: 0 | CK23: 1933 | CL23: =E145 ->  | CM23: =E146 ->  | CN23: =E147 ->  | CO23: =E148 ->  | CP23: =E149 ->  | CQ23: =E150 ->  | CR23: =E151 ->  | CS23: =E152 ->  | CT23: =E153 ->  | CU23: =E154 ->  | CV23: =E155 ->  | CW23: =E156 ->  | DK23: 1933 | DL23: =F145 ->  | DM23: =F146 ->  | DN23: =F147 ->  | DO23: =F148 ->  | DP23: =F149 ->  | DQ23: =F150 ->  | DR23: =F151 ->  | DS23: =F152 ->  | DT23: =F153 ->  | DU23: =F154 ->  | DV23: =F155 ->  | DW23: =F156 ->  | EK23: 1933 | EL23: =G145 ->  | EM23: =G146 ->  | EN23: =G147 ->  | EO23: =G148 ->  | EP23: =G149 ->  | EQ23: =G150 ->  | ER23: =G151 ->  | ES23: =G152 ->  | ET23: =G153 ->  | EU23: =G154 ->  | EV23: =G155 ->  | EW23: =G156 -> 
A24: 1922-09-30 | B24: =INDIRECT(CONCATENATE("'",B$1,"'!",B$4,(YEAR($A24)-1921)*12+MONTH($A24)+3+IF(ISNUMBER(FIND("PRV",B$6)),1,0)))*IF(AND(B$3>0,TRIM(B$9)="CFS"),Conversions!$C24,1) -> 0 | C24: =INDIRECT(CONCATENATE("'",C$1,"'!",C$4,(YEAR($A24)-1921)*12+MONTH($A24)+3+IF(ISNUMBER(FIND("PRV",C$6)),1,0)))*IF(AND(C$3>0,TRIM(C$9)="CFS"),Conversions!$C24,1) -> 31.00298448 | D24: =INDIRECT(CONCATENATE("'",D$1,"'!",D$4,(YEAR($A24)-1921)*12+MONTH($A24)+3+IF(ISNUMBER(FIND("PRV",D$6)),1,0)))*IF(AND(D$3>0,TRIM(D$9)="CFS"),Conversions!$C24,1) -> 31.00298448 | E24: =INDIRECT(CONCATENATE("'",E$1,"'!",E$4,(YEAR($A24)-1921)*12+MONTH($A24)+3+IF(ISNUMBER(FIND("PRV",E$6)),1,0)))*IF(AND(E$3>0,TRIM(E$9)="CFS"),Conversions!$C24,1) ->  | F24: =INDIRECT(CONCATENATE("'",F$1,"'!",F$4,(YEAR($A24)-1921)*12+MONTH($A24)+3+IF(ISNUMBER(FIND("PRV",F$6)),1,0)))*IF(AND(F$3>0,TRIM(F$9)="CFS"),Conversions!$C24,1) ->  | G24: =INDIRECT(CONCATENATE("'",G$1,"'!",G$4,(YEAR($A24)-1921)*12+MONTH($A24)+3+IF(ISNUMBER(FIND("PRV",G$6)),1,0)))*IF(AND(G$3>0,TRIM(G$9)="CFS"),Conversions!$C24,1) ->  | K24: 1934 | L24: =B157 -> 0 | M24: =B158 -> 0 | N24: =B159 -> 0 | O24: =B160 -> 0 | P24: =B161 -> 0 | Q24: =B162 -> 0 | R24: =B163 -> 0 | S24: =B164 -> 0 | T24: =B165 -> 0 | U24: =B166 -> 0 | V24: =B167 -> 0 | W24: =B168 -> 0 | Y24: 0 | Z24: 0 | AA24: 0 | AC24: 0 | AD24: 0 | AE24: 0 | AF24: 0 | AG24: 0 | AH24: 0 | AI24: 0 | AK24: 1934 | AL24: =C157 -> 0 | AM24: =C158 -> 0 | AN24: =C159 -> 0 | AO24: =C160 -> 0 | AP24: =C161 -> 0 | AQ24: =C162 -> 0 | AR24: =C163 -> 0 | AS24: =C164 -> 0 | AT24: =C165 -> 0 | AU24: =C166 -> 0 | AV24: =C167 -> 0 | AW24: =C168 -> 0 | AY24: 0 | AZ24: 0 | BA24: 0 | BC24: 0 | BD24: 0 | BE24: 0 | BF24: 0 | BG24: 0 | BH24: 0 | BI24: 0 | BK24: 1934 | BL24: =D157 -> 0 | BM24: =D158 -> 0 | BN24: =D159 -> 0 | BO24: =D160 -> 0 | BP24: =D161 -> 0 | BQ24: =D162 -> 0 | BR24: =D163 -> 0 | BS24: =D164 -> 0 | BT24: =D165 -> 0 | BU24: =D166 -> 0 | BV24: =D167 -> 0 | BW24: =D168 -> 0 | BY24: 0 | BZ24: 0 | CA24: 0 | CC24: 0 | CD24: 0 | CE24: 0 | CF24: 0 | CG24: 0 | CH24: 0 | CI24: 0 | CK24: 1934 | CL24: =E157 ->  | CM24: =E158 ->  | CN24: =E159 ->  | CO24: =E160 ->  | CP24: =E161 ->  | CQ24: =E162 ->  | CR24: =E163 ->  | CS24: =E164 ->  | CT24: =E165 ->  | CU24: =E166 ->  | CV24: =E167 ->  | CW24: =E168 ->  | DK24: 1934 | DL24: =F157 ->  | DM24: =F158 ->  | DN24: =F159 ->  | DO24: =F160 ->  | DP24: =F161 ->  | DQ24: =F162 ->  | DR24: =F163 ->  | DS24: =F164 ->  | DT24: =F165 ->  | DU24: =F166 ->  | DV24: =F167 ->  | DW24: =F168 ->  | EK24: 1934 | EL24: =G157 ->  | EM24: =G158 ->  | EN24: =G159 ->  | EO24: =G160 ->  | EP24: =G161 ->  | EQ24: =G162 ->  | ER24: =G163 ->  | ES24: =G164 ->  | ET24: =G165 ->  | EU24: =G166 ->  | EV24: =G167 ->  | EW24: =G168 -> 
A25: 1922-10-31 | B25: =INDIRECT(CONCATENATE("'",B$1,"'!",B$4,(YEAR($A25)-1921)*12+MONTH($A25)+3+IF(ISNUMBER(FIND("PRV",B$6)),1,0)))*IF(AND(B$3>0,TRIM(B$9)="CFS"),Conversions!$C25,1) -> 0 | C25: =INDIRECT(CONCATENATE("'",C$1,"'!",C$4,(YEAR($A25)-1921)*12+MONTH($A25)+3+IF(ISNUMBER(FIND("PRV",C$6)),1,0)))*IF(AND(C$3>0,TRIM(C$9)="CFS"),Conversions!$C25,1) -> 19.82859285 | D25: =INDIRECT(CONCATENATE("'",D$1,"'!",D$4,(YEAR($A25)-1921)*12+MONTH($A25)+3+IF(ISNUMBER(FIND("PRV",D$6)),1,0)))*IF(AND(D$3>0,TRIM(D$9)="CFS"),Conversions!$C25,1) -> 19.82592946 | E25: =INDIRECT(CONCATENATE("'",E$1,"'!",E$4,(YEAR($A25)-1921)*12+MONTH($A25)+3+IF(ISNUMBER(FIND("PRV",E$6)),1,0)))*IF(AND(E$3>0,TRIM(E$9)="CFS"),Conversions!$C25,1) ->  | F25: =INDIRECT(CONCATENATE("'",F$1,"'!",F$4,(YEAR($A25)-1921)*12+MONTH($A25)+3+IF(ISNUMBER(FIND("PRV",F$6)),1,0)))*IF(AND(F$3>0,TRIM(F$9)="CFS"),Conversions!$C25,1) ->  | G25: =INDIRECT(CONCATENATE("'",G$1,"'!",G$4,(YEAR($A25)-1921)*12+MONTH($A25)+3+IF(ISNUMBER(FIND("PRV",G$6)),1,0)))*IF(AND(G$3>0,TRIM(G$9)="CFS"),Conversions!$C25,1) ->  | K25: 1935 | L25: =B169 -> 0 | M25: =B170 -> 0 | N25: =B171 -> 0 | O25: =B172 -> 0 | P25: =B173 -> 0 | Q25: =B174 -> 0 | R25: =B175 -> 0 | S25: =B176 -> 0 | T25: =B177 -> 0 | U25: =B178 -> 0 | V25: =B179 -> 0 | W25: =B180 -> 0 | Y25: 0 | Z25: 0 | AA25: 0 | AC25: 0 | AD25: 0 | AE25: 0 | AF25: 0 | AG25: 0 | AH25: 0 | AI25: 0 | AK25: 1935 | AL25: =C169 -> 0 | AM25: =C170 -> 0 | AN25: =C171 -> 0 | AO25: =C172 -> 0 | AP25: =C173 -> 0 | AQ25: =C174 -> 0 | AR25: =C175 -> 1.365391225 | AS25: =C176 -> 13.31337133 | AT25: =C177 -> 152.7688931 | AU25: =C178 -> 51.2544955 | AV25: =C179 -> 33.98246284 | AW25: =C180 -> 30.97114904 | AY25: 385.3704194 | AZ25: 385.3704194 | BA25: 283.655763 | BC25: 0 | BD25: 90.08213593 | BE25: 0 | BF25: 0 | BG25: 167.4476556 | BH25: 268.9770005 | BI25: 132.6858054 | BK25: 1935 | BL25: =D169 -> 0 | BM25: =D170 -> 0 | BN25: =D171 -> 0 | BO25: =D172 -> 0 | BP25: =D173 -> 0 | BQ25: =D174 -> 0 | BR25: =D175 -> 1.384957309 | BS25: =D176 -> 13.66170035 | BT25: =D177 -> 121.163366 | BU25: =D178 -> 49.67054093 | BV25: =D179 -> 33.87536288 | BW25: =D180 -> 25.08360872 | BY25: 347.988074 | BZ25: 347.988074 | CA25: 244.8395362 | CC25: 0 | CD25: 84.0762542 | CE25: 0 | CF25: 0 | CG25: 136.2100237 | CH25: 229.7928785 | CI25: 128.2321466 | CK25: 1935 | CL25: =E169 ->  | CM25: =E170 ->  | CN25: =E171 ->  | CO25: =E172 ->  | CP25: =E173 ->  | CQ25: =E174 ->  | CR25: =E175 ->  | CS25: =E176 ->  | CT25: =E177 ->  | CU25: =E178 ->  | CV25: =E179 ->  | CW25: =E180 ->  | DK25: 1935 | DL25: =F169 ->  | DM25: =F170 ->  | DN25: =F171 ->  | DO25: =F172 ->  | DP25: =F173 ->  | DQ25: =F174 ->  | DR25: =F175 ->  | DS25: =F176 ->  | DT25: =F177 ->  | DU25: =F178 ->  | DV25: =F179 ->  | DW25: =F180 ->  | EK25: 1935 | EL25: =G169 ->  | EM25: =G170 ->  | EN25: =G171 ->  | EO25: =G172 ->  | EP25: =G173 ->  | EQ25: =G174 ->  | ER25: =G175 ->  | ES25: =G176 ->  | ET25: =G177 ->  | EU25: =G178 ->  | EV25: =G179 ->  | EW25: =G180 -> 
A26: 1922-11-30 | B26: =INDIRECT(CONCATENATE("'",B$1,"'!",B$4,(YEAR($A26)-1921)*12+MONTH($A26)+3+IF(ISNUMBER(FIND("PRV",B$6)),1,0)))*IF(AND(B$3>0,TRIM(B$9)="CFS"),Conversions!$C26,1) -> 0 | C26: =INDIRECT(CONCATENATE("'",C$1,"'!",C$4,(YEAR($A26)-1921)*12+MONTH($A26)+3+IF(ISNUMBER(FIND("PRV",C$6)),1,0)))*IF(AND(C$3>0,TRIM(C$9)="CFS"),Conversions!$C26,1) -> 1.74 | D26: =INDIRECT(CONCATENATE("'",D$1,"'!",D$4,(YEAR($A26)-1921)*12+MONTH($A26)+3+IF(ISNUMBER(FIND("PRV",D$6)),1,0)))*IF(AND(D$3>0,TRIM(D$9)="CFS"),Conversions!$C26,1) -> 1.74 | E26: =INDIRECT(CONCATENATE("'",E$1,"'!",E$4,(YEAR($A26)-1921)*12+MONTH($A26)+3+IF(ISNUMBER(FIND("PRV",E$6)),1,0)))*IF(AND(E$3>0,TRIM(E$9)="CFS"),Conversions!$C26,1) ->  | F26: =INDIRECT(CONCATENATE("'",F$1,"'!",F$4,(YEAR($A26)-1921)*12+MONTH($A26)+3+IF(ISNUMBER(FIND("PRV",F$6)),1,0)))*IF(AND(F$3>0,TRIM(F$9)="CFS"),Conversions!$C26,1) ->  | G26: =INDIRECT(CONCATENATE("'",G$1,"'!",G$4,(YEAR($A26)-1921)*12+MONTH($A26)+3+IF(ISNUMBER(FIND("PRV",G$6)),1,0)))*IF(AND(G$3>0,TRIM(G$9)="CFS"),Conversions!$C26,1) ->  | K26: 1936 | L26: =B181 -> 0 | M26: =B182 -> 0 | N26: =B183 -> 0 | O26: =B184 -> 0 | P26: =B185 -> 0 | Q26: =B186 -> 0 | R26: =B187 -> 0 | S26: =B188 -> 0 | T26: =B189 -> 0 | U26: =B190 -> 0 | V26: =B191 -> 0 | W26: =B192 -> 0 | Y26: 0 | Z26: 0 | AA26: 0 | AC26: 0 | AD26: 0 | AE26: 0 | AF26: 0 | AG26: 0 | AH26: 0 | AI26: 0 | AK26: 1936 | AL26: =C181 -> 25.12852405 | AM26: =C182 -> 76.58613228 | AN26: =C183 -> 0 | AO26: =C184 -> 0 | AP26: =C185 -> 0 | AQ26: =C186 -> 0 | AR26: =C187 -> 4.634213019 | AS26: =C188 -> 61.53794858 | AT26: =C189 -> 11.71725863 | AU26: =C190 -> 20.90362015 | AV26: =C191 -> 2.5 | AW26: =C192 -> 4.24 | AY26: 153.6808943 | AZ26: 153.6808943 | BA26: 207.2476967 | BC26: 76.58613228 | BD26: 43.96751209 | BE26: 101.7146563 | BF26: 0 | BG26: 77.88942023 | BH26: 39.36087878 | BI26: 47.95267364 | BK26: 1936 | BL26: =D181 -> 25.1172826 | BM26: =D182 -> 78.03125523 | BN26: =D183 -> 0 | BO26: =D184 -> 0 | BP26: =D185 -> 0 | BQ26: =D186 -> 0 | BR26: =D187 -> 4.634213019 | BS26: =D188 -> 46.05080014 | BT26: =D189 -> 15.37169344 | BU26: =D190 -> 25.10778792 | BV26: =D191 -> 2.5 | BW26: =D192 -> 4.24 | BY26: 159.7762881 | BZ26: 159.7762881 | CA26: 201.0530324 | CC26: 78.03125523 | CD26: 57.63806522 | CE26: 103.1485378 | CF26: 0 | CG26: 66.0567066 | CH26: 47.21948136 | CI26: 61.65352263 | CK26: 1936 | CL26: =E181 ->  | CM26: =E182 ->  | CN26: =E183 ->  | CO26: =E184 ->  | CP26: =E185 ->  | CQ26: =E186 ->  | CR26: =E187 ->  | CS26: =E188 ->  | CT26: =E189 ->  | CU26: =E190 ->  | CV26: =E191 ->  | CW26: =E192 ->  | DK26: 1936 | DL26: =F181 ->  | DM26: =F182 ->  | DN26: =F183 ->  | DO26: =F184 ->  | DP26: =F185 ->  | DQ26: =F186 ->  | DR26: =F187 ->  | DS26: =F188 ->  | DT26: =F189 ->  | DU26: =F190 ->  | DV26: =F191 ->  | DW26: =F192 ->  | EK26: 1936 | EL26: =G181 ->  | EM26: =G182 ->  | EN26: =G183 ->  | EO26: =G184 ->  | EP26: =G185 ->  | EQ26: =G186 ->  | ER26: =G187 ->  | ES26: =G188 ->  | ET26: =G189 ->  | EU26: =G190 ->  | EV26: =G191 ->  | EW26: =G192 -> 
A27: 1922-12-31 | B27: =INDIRECT(CONCATENATE("'",B$1,"'!",B$4,(YEAR($A27)-1921)*12+MONTH($A27)+3+IF(ISNUMBER(FIND("PRV",B$6)),1,0)))*IF(AND(B$3>0,TRIM(B$9)="CFS"),Conversions!$C27,1) -> 0 | C27: =INDIRECT(CONCATENATE("'",C$1,"'!",C$4,(YEAR($A27)-1921)*12+MONTH($A27)+3+IF(ISNUMBER(FIND("PRV",C$6)),1,0)))*IF(AND(C$3>0,TRIM(C$9)="CFS"),Conversions!$C27,1) -> 0 | D27: =INDIRECT(CONCATENATE("'",D$1,"'!",D$4,(YEAR($A27)-1921)*12+MONTH($A27)+3+IF(ISNUMBER(FIND("PRV",D$6)),1,0)))*IF(AND(D$3>0,TRIM(D$9)="CFS"),Conversions!$C27,1) -> 0 | E27: =INDIRECT(CONCATENATE("'",E$1,"'!",E$4,(YEAR($A27)-1921)*12+MONTH($A27)+3+IF(ISNUMBER(FIND("PRV",E$6)),1,0)))*IF(AND(E$3>0,TRIM(E$9)="CFS"),Conversions!$C27,1) ->  | F27: =INDIRECT(CONCATENATE("'",F$1,"'!",F$4,(YEAR($A27)-1921)*12+MONTH($A27)+3+IF(ISNUMBER(FIND("PRV",F$6)),1,0)))*IF(AND(F$3>0,TRIM(F$9)="CFS"),Conversions!$C27,1) ->  | G27: =INDIRECT(CONCATENATE("'",G$1,"'!",G$4,(YEAR($A27)-1921)*12+MONTH($A27)+3+IF(ISNUMBER(FIND("PRV",G$6)),1,0)))*IF(AND(G$3>0,TRIM(G$9)="CFS"),Conversions!$C27,1) ->  | K27: 1937 | L27: =B193 -> 0 | M27: =B194 -> 0 | N27: =B195 -> 0 | O27: =B196 -> 0 | P27: =B197 -> 0 | Q27: =B198 -> 0 | R27: =B199 -> 0 | S27: =B200 -> 0 | T27: =B201 -> 0 | U27: =B202 -> 0 | V27: =B203 -> 0 | W27: =B204 -> 0 | Y27: 0 | Z27: 0 | AA27: 0 | AC27: 0 | AD27: 0 | AE27: 0 | AF27: 0 | AG27: 0 | AH27: 0 | AI27: 0 | AK27: 1937 | AL27: =C193 -> 37.22751209 | AM27: =C194 -> 6.485161551 | AN27: =C195 -> 4.435180285 | AO27: =C196 -> 0 | AP27: =C197 -> 0 | AQ27: =C198 -> 0 | AR27: =C199 -> 4.274085107 | AS27: =C200 -> 4.610327505 | AT27: =C201 -> 106.8614931 | AU27: =C202 -> 49.68148303 | AV27: =C203 -> 33.31439368 | AW27: =C204 -> 78.10847903 | AY27: 312.689237 | AZ27: 312.689237 | BA27: 324.9981153 | BC27: 10.92034184 | BD27: 147.2618483 | BE27: 48.14785392 | BF27: 4.435180285 | BG27: 115.7459057 | BH27: 267.9658488 | BI27: 113.9474546 | BK27: 1937 | BL27: =D193 -> 50.89806522 | BM27: =D194 -> 6.51545741 | BN27: =D195 -> 4.458270916 | BO27: =D196 -> 0 | BP27: =D197 -> 0 | BQ27: =D198 -> 0 | BR27: =D199 -> 4.342535746 | BS27: =D200 -> 5.299443712 | BT27: =D201 -> 84.09279716 | BU27: =D202 -> 53.96254435 | BV27: =D203 -> 34.086615 | BW27: =D204 -> 78.10847895 | BY27: 295.9193855 | BZ27: 295.9193855 | CA27: 321.7642085 | CC27: 10.97372833 | CD27: 148.2220646 | CE27: 61.87179355 | CF27: 4.458270916 | CG27: 93.73477662 | CH27: 250.2504355 | CI27: 114.1354496 | CK27: 1937 | CL27: =E193 ->  | CM27: =E194 ->  | CN27: =E195 ->  | CO27: =E196 ->  | CP27: =E197 ->  | CQ27: =E198 ->  | CR27: =E199 ->  | CS27: =E200 ->  | CT27: =E201 ->  | CU27: =E202 ->  | CV27: =E203 ->  | CW27: =E204 ->  | DK27: 1937 | DL27: =F193 ->  | DM27: =F194 ->  | DN27: =F195 ->  | DO27: =F196 ->  | DP27: =F197 ->  | DQ27: =F198 ->  | DR27: =F199 ->  | DS27: =F200 ->  | DT27: =F201 ->  | DU27: =F202 ->  | DV27: =F203 ->  | DW27: =F204 ->  | EK27: 1937 | EL27: =G193 ->  | EM27: =G194 ->  | EN27: =G195 ->  | EO27: =G196 ->  | EP27: =G197 ->  | EQ27: =G198 ->  | ER27: =G199 ->  | ES27: =G200 ->  | ET27: =G201 ->  | EU27: =G202 ->  | EV27: =G203 ->  | EW27: =G204 -> 
A28: 1923-01-31 | B28: =INDIRECT(CONCATENATE("'",B$1,"'!",B$4,(YEAR($A28)-1921)*12+MONTH($A28)+3+IF(ISNUMBER(FIND("PRV",B$6)),1,0)))*IF(AND(B$3>0,TRIM(B$9)="CFS"),Conversions!$C28,1) -> 0 | C28: =INDIRECT(CONCATENATE("'",C$1,"'!",C$4,(YEAR($A28)-1921)*12+MONTH($A28)+3+IF(ISNUMBER(FIND("PRV",C$6)),1,0)))*IF(AND(C$3>0,TRIM(C$9)="CFS"),Conversions!$C28,1) -> 0 | D28: =INDIRECT(CONCATENATE("'",D$1,"'!",D$4,(YEAR($A28)-1921)*12+MONTH($A28)+3+IF(ISNUMBER(FIND("PRV",D$6)),1,0)))*IF(AND(D$3>0,TRIM(D$9)="CFS"),Conversions!$C28,1) -> 0 | E28: =INDIRECT(CONCATENATE("'",E$1,"'!",E$4,(YEAR($A28)-1921)*12+MONTH($A28)+3+IF(ISNUMBER(FIND("PRV",E$6)),1,0)))*IF(AND(E$3>0,TRIM(E$9)="CFS"),Conversions!$C28,1) ->  | F28: =INDIRECT(CONCATENATE("'",F$1,"'!",F$4,(YEAR($A28)-1921)*12+MONTH($A28)+3+IF(ISNUMBER(FIND("PRV",F$6)),1,0)))*IF(AND(F$3>0,TRIM(F$9)="CFS"),Conversions!$C28,1) ->  | G28: =INDIRECT(CONCATENATE("'",G$1,"'!",G$4,(YEAR($A28)-1921)*12+MONTH($A28)+3+IF(ISNUMBER(FIND("PRV",G$6)),1,0)))*IF(AND(G$3>0,TRIM(G$9)="CFS"),Conversions!$C28,1) ->  | K28: 1938 | L28: =B205 -> 0 | M28: =B206 -> 0 | N28: =B207 -> 0 | O28: =B208 -> 0 | P28: =B209 -> 0 | Q28: =B210 -> 0 | R28: =B211 -> 0 | S28: =B212 -> 0 | T28: =B213 -> 0 | U28: =B214 -> 0 | V28: =B215 -> 0 | W28: =B216 -> 0 | Y28: 0 | Z28: 0 | AA28: 0 | AC28: 0 | AD28: 0 | AE28: 0 | AF28: 0 | AG28: 0 | AH28: 0 | AI28: 0 | AK28: 1938 | AL28: =C205 -> 35.83897558 | AM28: =C206 -> 0 | AN28: =C207 -> 0 | AO28: =C208 -> 0 | AP28: =C209 -> 0 | AQ28: =C210 -> 0 | AR28: =C211 -> 0 | AS28: =C212 -> 0 | AT28: =C213 -> 0 | AU28: =C214 -> 2.5 | AV28: =C215 -> 30.0862069 | AW28: =C216 -> 22.3671678 | AY28: 54.9533747 | AZ28: 54.9533747 | BA28: 90.79235028 | BC28: 0 | BD28: 52.4533747 | BE28: 35.83897558 | BF28: 0 | BG28: 0 | BH28: 54.9533747 | BI28: 22.3671678 | BK28: 1938 | BL28: =D205 -> 36.02697062 | BM28: =D206 -> 0 | BN28: =D207 -> 0 | BO28: =D208 -> 0 | BP28: =D209 -> 0 | BQ28: =D210 -> 0 | BR28: =D211 -> 0 | BS28: =D212 -> 0 | BT28: =D213 -> 0 | BU28: =D214 -> 2.5 | BV28: =D215 -> 30.0862069 | BW28: =D216 -> 27.5862069 | BY28: 64.76715941 | BZ28: 64.76715941 | CA28: 96.19938442 | CC28: 0 | CD28: 62.26715941 | CE28: 36.02697062 | CF28: 0 | CG28: 0 | CH28: 60.1724138 | CI28: 32.18095251 | CK28: 1938 | CL28: =E205 ->  | CM28: =E206 ->  | CN28: =E207 ->  | CO28: =E208 ->  | CP28: =E209 ->  | CQ28: =E210 ->  | CR28: =E211 ->  | CS28: =E212 ->  | CT28: =E213 ->  | CU28: =E214 ->  | CV28: =E215 ->  | CW28: =E216 ->  | DK28: 1938 | DL28: =F205 ->  | DM28: =F206 ->  | DN28: =F207 ->  | DO28: =F208 ->  | DP28: =F209 ->  | DQ28: =F210 ->  | DR28: =F211 ->  | DS28: =F212 ->  | DT28: =F213 ->  | DU28: =F214 ->  | DV28: =F215 ->  | DW28: =F216 ->  | EK28: 1938 | EL28: =G205 ->  | EM28: =G206 ->  | EN28: =G207 ->  | EO28: =G208 ->  | EP28: =G209 ->  | EQ28: =G210 ->  | ER28: =G211 ->  | ES28: =G212 ->  | ET28: =G213 ->  | EU28: =G214 ->  | EV28: =G215 ->  | EW28: =G216 -> 
A29: 1923-02-28 | B29: =INDIRECT(CONCATENATE("'",B$1,"'!",B$4,(YEAR($A29)-1921)*12+MONTH($A29)+3+IF(ISNUMBER(FIND("PRV",B$6)),1,0)))*IF(AND(B$3>0,TRIM(B$9)="CFS"),Conversions!$C29,1) -> 0 | C29: =INDIRECT(CONCATENATE("'",C$1,"'!",C$4,(YEAR($A29)-1921)*12+MONTH($A29)+3+IF(ISNUMBER(FIND("PRV",C$6)),1,0)))*IF(AND(C$3>0,TRIM(C$9)="CFS"),Conversions!$C29,1) -> 0 | D29: =INDIRECT(CONCATENATE("'",D$1,"'!",D$4,(YEAR($A29)-1921)*12+MONTH($A29)+3+IF(ISNUMBER(FIND("PRV",D$6)),1,0)))*IF(AND(D$3>0,TRIM(D$9)="CFS"),Conversions!$C29,1) -> 0 | E29: =INDIRECT(CONCATENATE("'",E$1,"'!",E$4,(YEAR($A29)-1921)*12+MONTH($A29)+3+IF(ISNUMBER(FIND("PRV",E$6)),1,0)))*IF(AND(E$3>0,TRIM(E$9)="CFS"),Conversions!$C29,1) ->  | F29: =INDIRECT(CONCATENATE("'",F$1,"'!",F$4,(YEAR($A29)-1921)*12+MONTH($A29)+3+IF(ISNUMBER(FIND("PRV",F$6)),1,0)))*IF(AND(F$3>0,TRIM(F$9)="CFS"),Conversions!$C29,1) ->  | G29: =INDIRECT(CONCATENATE("'",G$1,"'!",G$4,(YEAR($A29)-1921)*12+MONTH($A29)+3+IF(ISNUMBER(FIND("PRV",G$6)),1,0)))*IF(AND(G$3>0,TRIM(G$9)="CFS"),Conversions!$C29,1) ->  | K29: 1939 | L29: =B217 -> 0 | M29: =B218 -> 0 | N29: =B219 -> 0 | O29: =B220 -> 0 | P29: =B221 -> 0 | Q29: =B222 -> 0 | R29: =B223 -> 0 | S29: =B224 -> 0 | T29: =B225 -> 0 | U29: =B226 -> 0 | V29: =B227 -> 0 | W29: =B228 -> 0 | Y29: 0 | Z29: 0 | AA29: 0 | AC29: 0 | AD29: 0 | AE29: 0 | AF29: 0 | AG29: 0 | AH29: 0 | AI29: 0 | AK29: 1939 | AL29: =C217 -> 0 | AM29: =C218 -> 0 | AN29: =C219 -> 0 | AO29: =C220 -> 0 | AP29: =C221 -> 0 | AQ29: =C222 -> 6.055705849 | AR29: =C223 -> 42.21800667 | AS29: =C224 -> 141.8915911 | AT29: =C225 -> 116.318626 | AU29: =C226 -> 157.8729829 | AV29: =C227 -> 113.1088778 | AW29: =C228 -> 80.25256778 | AY29: 787.6144865 | AZ29: 787.6144865 | BA29: 657.7183581 | BC29: 6.055705849 | BD29: 270.3443901 | BE29: 0 | BF29: 0 | BG29: 306.4839296 | BH29: 467.5530545 | BI29: 196.9414051 | BK29: 1939 | BL29: =D217 -> 4.594745614 | BM29: =D218 -> 0 | BN29: =D219 -> 0 | BO29: =D220 -> 0 | BP29: =D221 -> 0 | BQ29: =D222 -> 6.055765031 | BR29: =D223 -> 42.21800667 | BS29: =D224 -> 141.8915911 | BT29: =D225 -> 90.37314492 | BU29: =D226 -> 130.7456164 | BV29: =D227 -> 113.0379975 | BW29: =D228 -> 80.2392106 | BY29: 768.1513123 | BZ29: 768.1513123 | CA29: 609.1560778 | CC29: 6.055765031 | CD29: 270.2601521 | CE29: 4.594745614 | CF29: 0 | CG29: 280.5385077 | CH29: 414.3959695 | CI29: 230.150856 | CK29: 1939 | CL29: =E217 ->  | CM29: =E218 ->  | CN29: =E219 ->  | CO29: =E220 ->  | CP29: =E221 ->  | CQ29: =E222 ->  | CR29: =E223 ->  | CS29: =E224 ->  | CT29: =E225 ->  | CU29: =E226 ->  | CV29: =E227 ->  | CW29: =E228 ->  | DK29: 1939 | DL29: =F217 ->  | DM29: =F218 ->  | DN29: =F219 ->  | DO29: =F220 ->  | DP29: =F221 ->  | DQ29: =F222 ->  | DR29: =F223 ->  | DS29: =F224 ->  | DT29: =F225 ->  | DU29: =F226 ->  | DV29: =F227 ->  | DW29: =F228 ->  | EK29: 1939 | EL29: =G217 ->  | EM29: =G218 ->  | EN29: =G219 ->  | EO29: =G220 ->  | EP29: =G221 ->  | EQ29: =G222 ->  | ER29: =G223 ->  | ES29: =G224 ->  | ET29: =G225 ->  | EU29: =G226 ->  | EV29: =G227 ->  | EW29: =G228 -> 
A30: 1923-03-31 | B30: =INDIRECT(CONCATENATE("'",B$1,"'!",B$4,(YEAR($A30)-1921)*12+MONTH($A30)+3+IF(ISNUMBER(FIND("PRV",B$6)),1,0)))*IF(AND(B$3>0,TRIM(B$9)="CFS"),Conversions!$C30,1) -> 0 | C30: =INDIRECT(CONCATENATE("'",C$1,"'!",C$4,(YEAR($A30)-1921)*12+MONTH($A30)+3+IF(ISNUMBER(FIND("PRV",C$6)),1,0)))*IF(AND(C$3>0,TRIM(C$9)="CFS"),Conversions!$C30,1) -> 0.5429322687 | D30: =INDIRECT(CONCATENATE("'",D$1,"'!",D$4,(YEAR($A30)-1921)*12+MONTH($A30)+3+IF(ISNUMBER(FIND("PRV",D$6)),1,0)))*IF(AND(D$3>0,TRIM(D$9)="CFS"),Conversions!$C30,1) -> 0.5429322687 | E30: =INDIRECT(CONCATENATE("'",E$1,"'!",E$4,(YEAR($A30)-1921)*12+MONTH($A30)+3+IF(ISNUMBER(FIND("PRV",E$6)),1,0)))*IF(AND(E$3>0,TRIM(E$9)="CFS"),Conversions!$C30,1) ->  | F30: =INDIRECT(CONCATENATE("'",F$1,"'!",F$4,(YEAR($A30)-1921)*12+MONTH($A30)+3+IF(ISNUMBER(FIND("PRV",F$6)),1,0)))*IF(AND(F$3>0,TRIM(F$9)="CFS"),Conversions!$C30,1) ->  | G30: =INDIRECT(CONCATENATE("'",G$1,"'!",G$4,(YEAR($A30)-1921)*12+MONTH($A30)+3+IF(ISNUMBER(FIND("PRV",G$6)),1,0)))*IF(AND(G$3>0,TRIM(G$9)="CFS"),Conversions!$C30,1) ->  | K30: 1940 | L30: =B229 -> 0 | M30: =B230 -> 0 | N30: =B231 -> 0 | O30: =B232 -> 0 | P30: =B233 -> 0 | Q30: =B234 -> 0 | R30: =B235 -> 0 | S30: =B236 -> 0 | T30: =B237 -> 0 | U30: =B238 -> 0 | V30: =B239 -> 0 | W30: =B240 -> 0 | Y30: 0 | Z30: 0 | AA30: 0 | AC30: 0 | AD30: 0 | AE30: 0 | AF30: 0 | AG30: 0 | AH30: 0 | AI30: 0 | AK30: 1940 | AL30: =C229 -> 76.98294457 | AM30: =C230 -> 39.70589272 | AN30: =C231 -> 13.20729116 | AO30: =C232 -> 0 | AP30: =C233 -> 0 | AQ30: =C234 -> 0 | AR30: =C235 -> 1.466036419 | AS30: =C236 -> 70.49055249 | AT30: =C237 -> 93.22817191 | AU30: =C238 -> 69.0233183 | AV30: =C239 -> 31.33739755 | AW30: =C240 -> 28.30746807 | AY30: 314.6495063 | AZ30: 314.6495063 | BA30: 423.7490732 | BC30: 52.91318388 | BD30: 62.13486563 | BE30: 129.8961285 | BF30: 13.20729116 | BG30: 165.1847608 | BH30: 221.8963558 | BI30: 49.10402965 | BK30: 1940 | BL30: =D229 -> 76.98294401 | BM30: =D230 -> 72.92870141 | BN30: =D231 -> 13.67833467 | BO30: =D232 -> 0 | BP30: =D233 -> 0 | BQ30: =D234 -> 0 | BR30: =D235 -> 1.466036419 | BS30: =D236 -> 70.49055249 | BT30: =D237 -> 64.35046021 | BU30: =D238 -> 6.667816528 | BV30: =D239 -> 31.3362069 | BW30: =D240 -> 31.8262069 | BY30: 233.6609366 | BZ30: 233.6609366 | CA30: 369.7272595 | CC30: 86.60703608 | CD30: 71.78984424 | CE30: 163.5899801 | CF30: 13.67833467 | CG30: 136.3070491 | CH30: 134.1806905 | CI30: 59.34986402 | CK30: 1940 | CL30: =E229 ->  | CM30: =E230 ->  | CN30: =E231 ->  | CO30: =E232 ->  | CP30: =E233 ->  | CQ30: =E234 ->  | CR30: =E235 ->  | CS30: =E236 ->  | CT30: =E237 ->  | CU30: =E238 ->  | CV30: =E239 ->  | CW30: =E240 ->  | DK30: 1940 | DL30: =F229 ->  | DM30: =F230 ->  | DN30: =F231 ->  | DO30: =F232 ->  | DP30: =F233 ->  | DQ30: =F234 ->  | DR30: =F235 ->  | DS30: =F236 ->  | DT30: =F237 ->  | DU30: =F238 ->  | DV30: =F239 ->  | DW30: =F240 ->  | EK30: 1940 | EL30: =G229 ->  | EM30: =G230 ->  | EN30: =G231 ->  | EO30: =G232 ->  | EP30: =G233 ->  | EQ30: =G234 ->  | ER30: =G235 ->  | ES30: =G236 ->  | ET30: =G237 ->  | EU30: =G238 ->  | EV30: =G239 ->  | EW30: =G240 -> 
A31: 1923-04-30 | B31: =INDIRECT(CONCATENATE("'",B$1,"'!",B$4,(YEAR($A31)-1921)*12+MONTH($A31)+3+IF(ISNUMBER(FIND("PRV",B$6)),1,0)))*IF(AND(B$3>0,TRIM(B$9)="CFS"),Conversions!$C31,1) -> 0 | C31: =INDIRECT(CONCATENATE("'",C$1,"'!",C$4,(YEAR($A31)-1921)*12+MONTH($A31)+3+IF(ISNUMBER(FIND("PRV",C$6)),1,0)))*IF(AND(C$3>0,TRIM(C$9)="CFS"),Conversions!$C31,1) -> 2.635140012 | D31: =INDIRECT(CONCATENATE("'",D$1,"'!",D$4,(YEAR($A31)-1921)*12+MONTH($A31)+3+IF(ISNUMBER(FIND("PRV",D$6)),1,0)))*IF(AND(D$3>0,TRIM(D$9)="CFS"),Conversions!$C31,1) -> 2.635140012 | E31: =INDIRECT(CONCATENATE("'",E$1,"'!",E$4,(YEAR($A31)-1921)*12+MONTH($A31)+3+IF(ISNUMBER(FIND("PRV",E$6)),1,0)))*IF(AND(E$3>0,TRIM(E$9)="CFS"),Conversions!$C31,1) ->  | F31: =INDIRECT(CONCATENATE("'",F$1,"'!",F$4,(YEAR($A31)-1921)*12+MONTH($A31)+3+IF(ISNUMBER(FIND("PRV",F$6)),1,0)))*IF(AND(F$3>0,TRIM(F$9)="CFS"),Conversions!$C31,1) ->  | G31: =INDIRECT(CONCATENATE("'",G$1,"'!",G$4,(YEAR($A31)-1921)*12+MONTH($A31)+3+IF(ISNUMBER(FIND("PRV",G$6)),1,0)))*IF(AND(G$3>0,TRIM(G$9)="CFS"),Conversions!$C31,1) ->  | K31: 1941 | L31: =B241 -> 0 | M31: =B242 -> 0 | N31: =B243 -> 0 | O31: =B244 -> 0 | P31: =B245 -> 0 | Q31: =B246 -> 0 | R31: =B247 -> 0 | S31: =B248 -> 0 | T31: =B249 -> 0 | U31: =B250 -> 0 | V31: =B251 -> 0 | W31: =B252 -> 0 | Y31: 0 | Z31: 0 | AA31: 0 | AC31: 0 | AD31: 0 | AE31: 0 | AF31: 0 | AG31: 0 | AH31: 0 | AI31: 0 | AK31: 1941 | AL31: =C241 -> 2.49 | AM31: =C242 -> 18.30656157 | AN31: =C243 -> 0 | AO31: =C244 -> 0 | AP31: =C245 -> 0 | AQ31: =C246 -> 0 | AR31: =C247 -> 0 | AS31: =C248 -> 0 | AT31: =C249 -> 0 | AU31: =C250 -> 2.5 | AV31: =C251 -> 30.0862069 | AW31: =C252 -> 27.5862069 | AY31: 87.7586207 | AZ31: 87.7586207 | BA31: 80.96897537 | BC31: 18.30656157 | BD31: 85.2586207 | BE31: 20.79656157 | BF31: 0 | BG31: 0 | BH31: 60.1724138 | BI31: 55.1724138 | BK31: 1941 | BL31: =D241 -> 8.627430448 | BM31: =D242 -> 18.89622667 | BN31: =D243 -> 0 | BO31: =D244 -> 0 | BP31: =D245 -> 0 | BQ31: =D246 -> 0 | BR31: =D247 -> 0 | BS31: =D248 -> 0 | BT31: =D249 -> 0 | BU31: =D250 -> 2.5 | BV31: =D251 -> 30.0862069 | BW31: =D252 -> 27.5862069 | BY31: 87.7586207 | BZ31: 87.7586207 | CA31: 87.69607092 | CC31: 18.89622667 | CD31: 85.2586207 | CE31: 27.52365712 | CF31: 0 | CG31: 0 | CH31: 60.1724138 | CI31: 55.1724138 | CK31: 1941 | CL31: =E241 ->  | CM31: =E242 ->  | CN31: =E243 ->  | CO31: =E244 ->  | CP31: =E245 ->  | CQ31: =E246 ->  | CR31: =E247 ->  | CS31: =E248 ->  | CT31: =E249 ->  | CU31: =E250 ->  | CV31: =E251 ->  | CW31: =E252 ->  | DK31: 1941 | DL31: =F241 ->  | DM31: =F242 ->  | DN31: =F243 ->  | DO31: =F244 ->  | DP31: =F245 ->  | DQ31: =F246 ->  | DR31: =F247 ->  | DS31: =F248 ->  | DT31: =F249 ->  | DU31: =F250 ->  | DV31: =F251 ->  | DW31: =F252 ->  | EK31: 1941 | EL31: =G241 ->  | EM31: =G242 ->  | EN31: =G243 ->  | EO31: =G244 ->  | EP31: =G245 ->  | EQ31: =G246 ->  | ER31: =G247 ->  | ES31: =G248 ->  | ET31: =G249 ->  | EU31: =G250 ->  | EV31: =G251 ->  | EW31: =G252 -> 
A32: 1923-05-31 | B32: =INDIRECT(CONCATENATE("'",B$1,"'!",B$4,(YEAR($A32)-1921)*12+MONTH($A32)+3+IF(ISNUMBER(FIND("PRV",B$6)),1,0)))*IF(AND(B$3>0,TRIM(B$9)="CFS"),Conversions!$C32,1) -> 0 | C32: =INDIRECT(CONCATENATE("'",C$1,"'!",C$4,(YEAR($A32)-1921)*12+MONTH($A32)+3+IF(ISNUMBER(FIND("PRV",C$6)),1,0)))*IF(AND(C$3>0,TRIM(C$9)="CFS"),Conversions!$C32,1) -> 0 | D32: =INDIRECT(CONCATENATE("'",D$1,"'!",D$4,(YEAR($A32)-1921)*12+MONTH($A32)+3+IF(ISNUMBER(FIND("PRV",D$6)),1,0)))*IF(AND(D$3>0,TRIM(D$9)="CFS"),Conversions!$C32,1) -> 0 | E32: =INDIRECT(CONCATENATE("'",E$1,"'!",E$4,(YEAR($A32)-1921)*12+MONTH($A32)+3+IF(ISNUMBER(FIND("PRV",E$6)),1,0)))*IF(AND(E$3>0,TRIM(E$9)="CFS"),Conversions!$C32,1) ->  | F32: =INDIRECT(CONCATENATE("'",F$1,"'!",F$4,(YEAR($A32)-1921)*12+MONTH($A32)+3+IF(ISNUMBER(FIND("PRV",F$6)),1,0)))*IF(AND(F$3>0,TRIM(F$9)="CFS"),Conversions!$C32,1) ->  | G32: =INDIRECT(CONCATENATE("'",G$1,"'!",G$4,(YEAR($A32)-1921)*12+MONTH($A32)+3+IF(ISNUMBER(FIND("PRV",G$6)),1,0)))*IF(AND(G$3>0,TRIM(G$9)="CFS"),Conversions!$C32,1) ->  | K32: 1942 | L32: =B253 -> 0 | M32: =B254 -> 0 | N32: =B255 -> 0 | O32: =B256 -> 0 | P32: =B257 -> 0 | Q32: =B258 -> 0 | R32: =B259 -> 0 | S32: =B260 -> 0 | T32: =B261 -> 0 | U32: =B262 -> 0 | V32: =B263 -> 0 | W32: =B264 -> 0 | Y32: 0 | Z32: 0 | AA32: 0 | AC32: 0 | AD32: 0 | AE32: 0 | AF32: 0 | AG32: 0 | AH32: 0 | AI32: 0 | AK32: 1942 | AL32: =C253 -> 27.5862069 | AM32: =C254 -> 0 | AN32: =C255 -> 0 | AO32: =C256 -> 0 | AP32: =C257 -> 0 | AQ32: =C258 -> 0 | AR32: =C259 -> 0.2480470928 | AS32: =C260 -> 0 | AT32: =C261 -> 0 | AU32: =C262 -> 2.5 | AV32: =C263 -> 30.0862069 | AW32: =C264 -> 27.5862069 | AY32: 88.00666779 | AZ32: 88.00666779 | BA32: 88.00666779 | BC32: 0 | BD32: 85.2586207 | BE32: 27.5862069 | BF32: 0 | BG32: 0.2480470928 | BH32: 60.1724138 | BI32: 55.1724138 | BK32: 1942 | BL32: =D253 -> 27.5862069 | BM32: =D254 -> 0 | BN32: =D255 -> 0 | BO32: =D256 -> 0 | BP32: =D257 -> 0 | BQ32: =D258 -> 0 | BR32: =D259 -> 0.2480470928 | BS32: =D260 -> 0 | BT32: =D261 -> 0 | BU32: =D262 -> 2.5 | BV32: =D263 -> 30.0862069 | BW32: =D264 -> 27.5862069 | BY32: 88.00666779 | BZ32: 88.00666779 | CA32: 88.00666779 | CC32: 0 | CD32: 85.2586207 | CE32: 27.5862069 | CF32: 0 | CG32: 0.2480470928 | CH32: 60.1724138 | CI32: 55.1724138 | CK32: 1942 | CL32: =E253 ->  | CM32: =E254 ->  | CN32: =E255 ->  | CO32: =E256 ->  | CP32: =E257 ->  | CQ32: =E258 ->  | CR32: =E259 ->  | CS32: =E260 ->  | CT32: =E261 ->  | CU32: =E262 ->  | CV32: =E263 ->  | CW32: =E264 ->  | DK32: 1942 | DL32: =F253 ->  | DM32: =F254 ->  | DN32: =F255 ->  | DO32: =F256 ->  | DP32: =F257 ->  | DQ32: =F258 ->  | DR32: =F259 ->  | DS32: =F260 ->  | DT32: =F261 ->  | DU32: =F262 ->  | DV32: =F263 ->  | DW32: =F264 ->  | EK32: 1942 | EL32: =G253 ->  | EM32: =G254 ->  | EN32: =G255 ->  | EO32: =G256 ->  | EP32: =G257 ->  | EQ32: =G258 ->  | ER32: =G259 ->  | ES32: =G260 ->  | ET32: =G261 ->  | EU32: =G262 ->  | EV32: =G263 ->  | EW32: =G264 -> 
A33: 1923-06-30 | B33: =INDIRECT(CONCATENATE("'",B$1,"'!",B$4,(YEAR($A33)-1921)*12+MONTH($A33)+3+IF(ISNUMBER(FIND("PRV",B$6)),1,0)))*IF(AND(B$3>0,TRIM(B$9)="CFS"),Conversions!$C33,1) -> 0 | C33: =INDIRECT(CONCATENATE("'",C$1,"'!",C$4,(YEAR($A33)-1921)*12+MONTH($A33)+3+IF(ISNUMBER(FIND("PRV",C$6)),1,0)))*IF(AND(C$3>0,TRIM(C$9)="CFS"),Conversions!$C33,1) -> 91.41766783 | D33: =INDIRECT(CONCATENATE("'",D$1,"'!",D$4,(YEAR($A33)-1921)*12+MONTH($A33)+3+IF(ISNUMBER(FIND("PRV",D$6)),1,0)))*IF(AND(D$3>0,TRIM(D$9)="CFS"),Conversions!$C33,1) -> 41.45078252 | E33: =INDIRECT(CONCATENATE("'",E$1,"'!",E$4,(YEAR($A33)-1921)*12+MONTH($A33)+3+IF(ISNUMBER(FIND("PRV",E$6)),1,0)))*IF(AND(E$3>0,TRIM(E$9)="CFS"),Conversions!$C33,1) ->  | F33: =INDIRECT(CONCATENATE("'",F$1,"'!",F$4,(YEAR($A33)-1921)*12+MONTH($A33)+3+IF(ISNUMBER(FIND("PRV",F$6)),1,0)))*IF(AND(F$3>0,TRIM(F$9)="CFS"),Conversions!$C33,1) ->  | G33: =INDIRECT(CONCATENATE("'",G$1,"'!",G$4,(YEAR($A33)-1921)*12+MONTH($A33)+3+IF(ISNUMBER(FIND("PRV",G$6)),1,0)))*IF(AND(G$3>0,TRIM(G$9)="CFS"),Conversions!$C33,1) ->  | K33: 1943 | L33: =B265 -> 0 | M33: =B266 -> 0 | N33: =B267 -> 0 | O33: =B268 -> 0 | P33: =B269 -> 0 | Q33: =B270 -> 0 | R33: =B271 -> 0 | S33: =B272 -> 0 | T33: =B273 -> 0 | U33: =B274 -> 0 | V33: =B275 -> 0 | W33: =B276 -> 0 | Y33: 0 | Z33: 0 | AA33: 0 | AC33: 0 | AD33: 0 | AE33: 0 | AF33: 0 | AG33: 0 | AH33: 0 | AI33: 0 | AK33: 1943 | AL33: =C265 -> 27.5862069 | AM33: =C266 -> 0 | AN33: =C267 -> 0 | AO33: =C268 -> 0 | AP33: =C269 -> 0 | AQ33: =C270 -> 0 | AR33: =C271 -> 3.174572676 | AS33: =C272 -> 4.670287258 | AT33: =C273 -> 8.175869267 | AU33: =C274 -> 34.64701482 | AV33: =C275 -> 60.971718 | AW33: =C276 -> 55.80316253 | AY33: 223.7412333 | AZ33: 223.7412333 | BA33: 195.0288315 | BC33: 0 | BD33: 145.120896 | BE33: 27.5862069 | BF33: 0 | BG33: 16.0207292 | BH33: 159.5977646 | BI33: 100.5684379 | BK33: 1943 | BL33: =D265 -> 27.5862069 | BM33: =D266 -> 0 | BN33: =D267 -> 0 | BO33: =D268 -> 0 | BP33: =D269 -> 0 | BQ33: =D270 -> 0 | BR33: =D271 -> 3.150803275 | BS33: =D272 -> 4.670287258 | BT33: =D273 -> 8.175869267 | BU33: =D274 -> 34.64701482 | BV33: =D275 -> 60.971718 | BW33: =D276 -> 55.80316253 | BY33: 223.7174805 | BZ33: 223.7174805 | CA33: 195.0050621 | CC33: 0 | CD33: 145.120896 | CE33: 27.5862069 | CF33: 0 | CG33: 15.9969598 | CH33: 159.5977646 | CI33: 100.5684545 | CK33: 1943 | CL33: =E265 ->  | CM33: =E266 ->  | CN33: =E267 ->  | CO33: =E268 ->  | CP33: =E269 ->  | CQ33: =E270 ->  | CR33: =E271 ->  | CS33: =E272 ->  | CT33: =E273 ->  | CU33: =E274 ->  | CV33: =E275 ->  | CW33: =E276 ->  | DK33: 1943 | DL33: =F265 ->  | DM33: =F266 ->  | DN33: =F267 ->  | DO33: =F268 ->  | DP33: =F269 ->  | DQ33: =F270 ->  | DR33: =F271 ->  | DS33: =F272 ->  | DT33: =F273 ->  | DU33: =F274 ->  | DV33: =F275 ->  | DW33: =F276 ->  | EK33: 1943 | EL33: =G265 ->  | EM33: =G266 ->  | EN33: =G267 ->  | EO33: =G268 ->  | EP33: =G269 ->  | EQ33: =G270 ->  | ER33: =G271 ->  | ES33: =G272 ->  | ET33: =G273 ->  | EU33: =G274 ->  | EV33: =G275 ->  | EW33: =G276 -> 
A34: 1923-07-31 | B34: =INDIRECT(CONCATENATE("'",B$1,"'!",B$4,(YEAR($A34)-1921)*12+MONTH($A34)+3+IF(ISNUMBER(FIND("PRV",B$6)),1,0)))*IF(AND(B$3>0,TRIM(B$9)="CFS"),Conversions!$C34,1) -> 0 | C34: =INDIRECT(CONCATENATE("'",C$1,"'!",C$4,(YEAR($A34)-1921)*12+MONTH($A34)+3+IF(ISNUMBER(FIND("PRV",C$6)),1,0)))*IF(AND(C$3>0,TRIM(C$9)="CFS"),Conversions!$C34,1) -> 61.56263398 | D34: =INDIRECT(CONCATENATE("'",D$1,"'!",D$4,(YEAR($A34)-1921)*12+MONTH($A34)+3+IF(ISNUMBER(FIND("PRV",D$6)),1,0)))*IF(AND(D$3>0,TRIM(D$9)="CFS"),Conversions!$C34,1) -> 2.5 | E34: =INDIRECT(CONCATENATE("'",E$1,"'!",E$4,(YEAR($A34)-1921)*12+MONTH($A34)+3+IF(ISNUMBER(FIND("PRV",E$6)),1,0)))*IF(AND(E$3>0,TRIM(E$9)="CFS"),Conversions!$C34,1) ->  | F34: =INDIRECT(CONCATENATE("'",F$1,"'!",F$4,(YEAR($A34)-1921)*12+MONTH($A34)+3+IF(ISNUMBER(FIND("PRV",F$6)),1,0)))*IF(AND(F$3>0,TRIM(F$9)="CFS"),Conversions!$C34,1) ->  | G34: =INDIRECT(CONCATENATE("'",G$1,"'!",G$4,(YEAR($A34)-1921)*12+MONTH($A34)+3+IF(ISNUMBER(FIND("PRV",G$6)),1,0)))*IF(AND(G$3>0,TRIM(G$9)="CFS"),Conversions!$C34,1) ->  | K34: 1944 | L34: =B277 -> 0 | M34: =B278 -> 0 | N34: =B279 -> 0 | O34: =B280 -> 0 | P34: =B281 -> 0 | Q34: =B282 -> 0 | R34: =B283 -> 0 | S34: =B284 -> 0 | T34: =B285 -> 0 | U34: =B286 -> 0 | V34: =B287 -> 0 | W34: =B288 -> 0 | Y34: 0 | Z34: 0 | AA34: 0 | AC34: 0 | AD34: 0 | AE34: 0 | AF34: 0 | AG34: 0 | AH34: 0 | AI34: 0 | AK34: 1944 | AL34: =C277 -> 28.3460155 | AM34: =C278 -> 16.41925989 | AN34: =C279 -> 11.53333333 | AO34: =C280 -> 0 | AP34: =C281 -> 0 | AQ34: =C282 -> 0.1612546239 | AR34: =C283 -> 73.27681442 | AS34: =C284 -> 71.61122708 | AT34: =C285 -> 132.0484506 | AU34: =C286 -> 156.7568108 | AV34: =C287 -> 123.4771247 | AW34: =C288 -> 77.80847885 | AY34: 735.954462 | AZ34: 735.9544621 | BA34: 691.4387699 | BC34: 28.11384785 | BD34: 279.246571 | BE34: 56.29860873 | BF34: 11.53333333 | BG34: 277.0977468 | BH34: 490.090865 | BI34: 176.9627797 | BK34: 1944 | BL34: =D277 -> 28.3460155 | BM34: =D278 -> 16.41927652 | BN34: =D279 -> 11.53333333 | BO34: =D280 -> 0 | BP34: =D281 -> 0 | BQ34: =D282 -> 0.161272747 | BR34: =D283 -> 73.27681442 | BS34: =D284 -> 71.60997386 | BT34: =D285 -> 139.9955652 | BU34: =D286 -> 166.9694805 | BV34: =D287 -> 104.2678849 | BW34: =D288 -> 77.80847885 | BY34: 732.2761021 | BZ34: 732.2761022 | CA34: 690.3880958 | CC34: 28.11388261 | CD34: 257.4096621 | CE34: 56.29862536 | CF34: 11.53333333 | CG34: 285.0436262 | CH34: 489.0414094 | CI34: 174.3351105 | CK34: 1944 | CL34: =E277 ->  | CM34: =E278 ->  | CN34: =E279 ->  | CO34: =E280 ->  | CP34: =E281 ->  | CQ34: =E282 ->  | CR34: =E283 ->  | CS34: =E284 ->  | CT34: =E285 ->  | CU34: =E286 ->  | CV34: =E287 ->  | CW34: =E288 ->  | DK34: 1944 | DL34: =F277 ->  | DM34: =F278 ->  | DN34: =F279 ->  | DO34: =F280 ->  | DP34: =F281 ->  | DQ34: =F282 ->  | DR34: =F283 ->  | DS34: =F284 ->  | DT34: =F285 ->  | DU34: =F286 ->  | DV34: =F287 ->  | DW34: =F288 ->  | EK34: 1944 | EL34: =G277 ->  | EM34: =G278 ->  | EN34: =G279 ->  | EO34: =G280 ->  | EP34: =G281 ->  | EQ34: =G282 ->  | ER34: =G283 ->  | ES34: =G284 ->  | ET34: =G285 ->  | EU34: =G286 ->  | EV34: =G287 ->  | EW34: =G288 -> 
A35: 1923-08-31 | B35: =INDIRECT(CONCATENATE("'",B$1,"'!",B$4,(YEAR($A35)-1921)*12+MONTH($A35)+3+IF(ISNUMBER(FIND("PRV",B$6)),1,0)))*IF(AND(B$3>0,TRIM(B$9)="CFS"),Conversions!$C35,1) -> 0 | C35: =INDIRECT(CONCATENATE("'",C$1,"'!",C$4,(YEAR($A35)-1921)*12+MONTH($A35)+3+IF(ISNUMBER(FIND("PRV",C$6)),1,0)))*IF(AND(C$3>0,TRIM(C$9)="CFS"),Conversions!$C35,1) -> 7.403266741 | D35: =INDIRECT(CONCATENATE("'",D$1,"'!",D$4,(YEAR($A35)-1921)*12+MONTH($A35)+3+IF(ISNUMBER(FIND("PRV",D$6)),1,0)))*IF(AND(D$3>0,TRIM(D$9)="CFS"),Conversions!$C35,1) -> 7.406804348 | E35: =INDIRECT(CONCATENATE("'",E$1,"'!",E$4,(YEAR($A35)-1921)*12+MONTH($A35)+3+IF(ISNUMBER(FIND("PRV",E$6)),1,0)))*IF(AND(E$3>0,TRIM(E$9)="CFS"),Conversions!$C35,1) ->  | F35: =INDIRECT(CONCATENATE("'",F$1,"'!",F$4,(YEAR($A35)-1921)*12+MONTH($A35)+3+IF(ISNUMBER(FIND("PRV",F$6)),1,0)))*IF(AND(F$3>0,TRIM(F$9)="CFS"),Conversions!$C35,1) ->  | G35: =INDIRECT(CONCATENATE("'",G$1,"'!",G$4,(YEAR($A35)-1921)*12+MONTH($A35)+3+IF(ISNUMBER(FIND("PRV",G$6)),1,0)))*IF(AND(G$3>0,TRIM(G$9)="CFS"),Conversions!$C35,1) ->  | K35: 1945 | L35: =B289 -> 0 | M35: =B290 -> 0 | N35: =B291 -> 0 | O35: =B292 -> 0 | P35: =B293 -> 0 | Q35: =B294 -> 0 | R35: =B295 -> 0 | S35: =B296 -> 0 | T35: =B297 -> 0 | U35: =B298 -> 0 | V35: =B299 -> 0 | W35: =B300 -> 0 | Y35: 0 | Z35: 0 | AA35: 0 | AC35: 0 | AD35: 0 | AE35: 0 | AF35: 0 | AG35: 0 | AH35: 0 | AI35: 0 | AK35: 1945 | AL35: =C289 -> 77.96096751 | AM35: =C290 -> 21.19333333 | AN35: =C291 -> 1.66 | AO35: =C292 -> 8.939309471e-08 | AP35: =C293 -> 0 | AQ35: =C294 -> 0 | AR35: =C295 -> 3.786908977 | AS35: =C296 -> 26.78930277 | AT35: =C297 -> 84.25639637 | AU35: =C298 -> 41.14494059 | AV35: =C299 -> 34.25523573 | AW35: =C300 -> 78.10847885 | AY35: 289.9913486 | AZ35: 289.9913485 | BA35: 369.1555642 | BC35: 22.85333342 | BD35: 132.2737998 | BE35: 100.8143009 | BF35: 1.66000009 | BG35: 114.8326081 | BH35: 237.7650515 | BI35: 99.75856411 | BK35: 1945 | BL35: =D289 -> 75.33329834 | BM35: =D290 -> 21.19333333 | BN35: =D291 -> 1.66 | BO35: =D292 -> 1.192091305e-07 | BP35: =D293 -> 0 | BQ35: =D294 -> 0 | BR35: =D295 -> 3.786908977 | BS35: =D296 -> 26.78930277 | BT35: =D297 -> 42.24348105 | BU35: =D298 -> 41.92397997 | BV35: =D299 -> 2.5 | BW35: =D300 -> 70.79881117 | BY35: 209.6544475 | BZ35: 209.6544474 | CA35: 286.2291157 | CC35: 22.85333345 | CD35: 93.1707746 | CE35: 98.18663179 | CF35: 1.660000119 | CG35: 72.8196928 | CH35: 157.4662722 | CI35: 92.4107746 | CK35: 1945 | CL35: =E289 ->  | CM35: =E290 ->  | CN35: =E291 ->  | CO35: =E292 ->  | CP35: =E293 ->  | CQ35: =E294 ->  | CR35: =E295 ->  | CS35: =E296 ->  | CT35: =E297 ->  | CU35: =E298 ->  | CV35: =E299 ->  | CW35: =E300 ->  | DK35: 1945 | DL35: =F289 ->  | DM35: =F290 ->  | DN35: =F291 ->  | DO35: =F292 ->  | DP35: =F293 ->  | DQ35: =F294 ->  | DR35: =F295 ->  | DS35: =F296 ->  | DT35: =F297 ->  | DU35: =F298 ->  | DV35: =F299 ->  | DW35: =F300 ->  | EK35: 1945 | EL35: =G289 ->  | EM35: =G290 ->  | EN35: =G291 ->  | EO35: =G292 ->  | EP35: =G293 ->  | EQ35: =G294 ->  | ER35: =G295 ->  | ES35: =G296 ->  | ET35: =G297 ->  | EU35: =G298 ->  | EV35: =G299 ->  | EW35: =G300 -> 
A36: 1923-09-30 | B36: =INDIRECT(CONCATENATE("'",B$1,"'!",B$4,(YEAR($A36)-1921)*12+MONTH($A36)+3+IF(ISNUMBER(FIND("PRV",B$6)),1,0)))*IF(AND(B$3>0,TRIM(B$9)="CFS"),Conversions!$C36,1) -> 0 | C36: =INDIRECT(CONCATENATE("'",C$1,"'!",C$4,(YEAR($A36)-1921)*12+MONTH($A36)+3+IF(ISNUMBER(FIND("PRV",C$6)),1,0)))*IF(AND(C$3>0,TRIM(C$9)="CFS"),Conversions!$C36,1) -> 2.652284046 | D36: =INDIRECT(CONCATENATE("'",D$1,"'!",D$4,(YEAR($A36)-1921)*12+MONTH($A36)+3+IF(ISNUMBER(FIND("PRV",D$6)),1,0)))*IF(AND(D$3>0,TRIM(D$9)="CFS"),Conversions!$C36,1) -> 2.652284046 | E36: =INDIRECT(CONCATENATE("'",E$1,"'!",E$4,(YEAR($A36)-1921)*12+MONTH($A36)+3+IF(ISNUMBER(FIND("PRV",E$6)),1,0)))*IF(AND(E$3>0,TRIM(E$9)="CFS"),Conversions!$C36,1) ->  | F36: =INDIRECT(CONCATENATE("'",F$1,"'!",F$4,(YEAR($A36)-1921)*12+MONTH($A36)+3+IF(ISNUMBER(FIND("PRV",F$6)),1,0)))*IF(AND(F$3>0,TRIM(F$9)="CFS"),Conversions!$C36,1) ->  | G36: =INDIRECT(CONCATENATE("'",G$1,"'!",G$4,(YEAR($A36)-1921)*12+MONTH($A36)+3+IF(ISNUMBER(FIND("PRV",G$6)),1,0)))*IF(AND(G$3>0,TRIM(G$9)="CFS"),Conversions!$C36,1) ->  | K36: 1946 | L36: =B301 -> 0 | M36: =B302 -> 0 | N36: =B303 -> 0 | O36: =B304 -> 0 | P36: =B305 -> 0 | Q36: =B306 -> 0 | R36: =B307 -> 0 | S36: =B308 -> 0 | T36: =B309 -> 0 | U36: =B310 -> 0 | V36: =B311 -> 0 | W36: =B312 -> 0 | Y36: 0 | Z36: 0 | AA36: 0 | AC36: 0 | AD36: 0 | AE36: 0 | AF36: 0 | AG36: 0 | AH36: 0 | AI36: 0 | AK36: 1946 | AL36: =C301 -> 19.91008526 | AM36: =C302 -> 1.74 | AN36: =C303 -> 0 | AO36: =C304 -> 0 | AP36: =C305 -> 0 | AQ36: =C306 -> 0.08824121078 | AR36: =C307 -> 1.782962949 | AS36: =C308 -> 85.01977407 | AT36: =C309 -> 44.52099556 | AU36: =C310 -> 50.69104054 | AV36: =C311 -> 34.12926546 | AW36: =C312 -> 7.68900094 | AY36: 294.0380026 | AZ36: 294.0380026 | BA36: 245.571366 | BC36: 1.828241211 | BD36: 96.93129555 | BE36: 21.65008526 | BF36: 0 | BG36: 131.4119738 | BH36: 137.0303025 | BI36: 77.80572285 | BK36: 1946 | BL36: =D301 -> 19.87196343 | BM36: =D302 -> 1.74 | BN36: =D303 -> 0 | BO36: =D304 -> 0 | BP36: =D305 -> 0 | BQ36: =D306 -> 0.08824121078 | BR36: =D307 -> 1.782962949 | BS36: =D308 -> 61.74014554 | BT36: =D309 -> 33.34267522 | BU36: =D310 -> 50.69092239 | BV36: =D311 -> 34.40519929 | BW36: =D312 -> 21.39427045 | BY36: 276.711045 | BZ36: 276.711045 | CA36: 225.0563805 | CC36: 1.828241211 | CD36: 111.4102332 | CE36: 21.61196343 | CF36: 0 | CG36: 96.95402492 | CH36: 139.8330674 | CI36: 94.66089837 | CK36: 1946 | CL36: =E301 ->  | CM36: =E302 ->  | CN36: =E303 ->  | CO36: =E304 ->  | CP36: =E305 ->  | CQ36: =E306 ->  | CR36: =E307 ->  | CS36: =E308 ->  | CT36: =E309 ->  | CU36: =E310 ->  | CV36: =E311 ->  | CW36: =E312 ->  | DK36: 1946 | DL36: =F301 ->  | DM36: =F302 ->  | DN36: =F303 ->  | DO36: =F304 ->  | DP36: =F305 ->  | DQ36: =F306 ->  | DR36: =F307 ->  | DS36: =F308 ->  | DT36: =F309 ->  | DU36: =F310 ->  | DV36: =F311 ->  | DW36: =F312 ->  | EK36: 1946 | EL36: =G301 ->  | EM36: =G302 ->  | EN36: =G303 ->  | EO36: =G304 ->  | EP36: =G305 ->  | EQ36: =G306 ->  | ER36: =G307 ->  | ES36: =G308 ->  | ET36: =G309 ->  | EU36: =G310 ->  | EV36: =G311 ->  | EW36: =G312 -> 
A37: 1923-10-31 | B37: =INDIRECT(CONCATENATE("'",B$1,"'!",B$4,(YEAR($A37)-1921)*12+MONTH($A37)+3+IF(ISNUMBER(FIND("PRV",B$6)),1,0)))*IF(AND(B$3>0,TRIM(B$9)="CFS"),Conversions!$C37,1) -> 0 | C37: =INDIRECT(CONCATENATE("'",C$1,"'!",C$4,(YEAR($A37)-1921)*12+MONTH($A37)+3+IF(ISNUMBER(FIND("PRV",C$6)),1,0)))*IF(AND(C$3>0,TRIM(C$9)="CFS"),Conversions!$C37,1) -> 26.70144363 | D37: =INDIRECT(CONCATENATE("'",D$1,"'!",D$4,(YEAR($A37)-1921)*12+MONTH($A37)+3+IF(ISNUMBER(FIND("PRV",D$6)),1,0)))*IF(AND(D$3>0,TRIM(D$9)="CFS"),Conversions!$C37,1) -> 26.89320594 | E37: =INDIRECT(CONCATENATE("'",E$1,"'!",E$4,(YEAR($A37)-1921)*12+MONTH($A37)+3+IF(ISNUMBER(FIND("PRV",E$6)),1,0)))*IF(AND(E$3>0,TRIM(E$9)="CFS"),Conversions!$C37,1) ->  | F37: =INDIRECT(CONCATENATE("'",F$1,"'!",F$4,(YEAR($A37)-1921)*12+MONTH($A37)+3+IF(ISNUMBER(FIND("PRV",F$6)),1,0)))*IF(AND(F$3>0,TRIM(F$9)="CFS"),Conversions!$C37,1) ->  | G37: =INDIRECT(CONCATENATE("'",G$1,"'!",G$4,(YEAR($A37)-1921)*12+MONTH($A37)+3+IF(ISNUMBER(FIND("PRV",G$6)),1,0)))*IF(AND(G$3>0,TRIM(G$9)="CFS"),Conversions!$C37,1) ->  | K37: 1947 | L37: =B313 -> 0 | M37: =B314 -> 0 | N37: =B315 -> 0 | O37: =B316 -> 0 | P37: =B317 -> 0 | Q37: =B318 -> 0 | R37: =B319 -> 0 | S37: =B320 -> 0 | T37: =B321 -> 0 | U37: =B322 -> 0 | V37: =B323 -> 0 | W37: =B324 -> 0 | Y37: 0 | Z37: 0 | AA37: 0 | AC37: 0 | AD37: 0 | AE37: 0 | AF37: 0 | AG37: 0 | AH37: 0 | AI37: 0 | AK37: 1947 | AL37: =C313 -> 55.11302916 | AM37: =C314 -> 15.00369275 | AN37: =C315 -> 0 | AO37: =C316 -> 0 | AP37: =C317 -> 0 | AQ37: =C318 -> 0 | AR37: =C319 -> 6.95760518 | AS37: =C320 -> 11.81376864 | AT37: =C321 -> 47.3409442 | AU37: =C322 -> 119.3274028 | AV37: =C323 -> 111.939648 | AW37: =C324 -> 3.899019533 | AY37: 301.2783884 | AZ37: 301.2783884 | BA37: 371.3951103 | BC37: 15.00369275 | BD37: 115.8386676 | BE37: 70.11672191 | BF37: 0 | BG37: 66.11231802 | BH37: 282.5070146 | BI37: 3.899019533 | BK37: 1947 | BL37: =D313 -> 55.61076347 | BM37: =D314 -> 17.65586444 | BN37: =D315 -> 0 | BO37: =D316 -> 0 | BP37: =D317 -> 0 | BQ37: =D318 -> 0 | BR37: =D319 -> 7.128356213 | BS37: =D320 -> 12.10369789 | BT37: =D321 -> 62.82106503 | BU37: =D322 -> 119.3286602 | BV37: =D323 -> 111.939648 | BW37: =D324 -> 66.87803865 | BY37: 380.199466 | BZ37: 380.199466 | CA37: 453.4660939 | CC37: 17.65586444 | CD37: 178.8176867 | CE37: 73.26662792 | CF37: 0 | CG37: 82.05311913 | CH37: 360.9674119 | CI37: 66.87803865 | CK37: 1947 | CL37: =E313 ->  | CM37: =E314 ->  | CN37: =E315 ->  | CO37: =E316 ->  | CP37: =E317 ->  | CQ37: =E318 ->  | CR37: =E319 ->  | CS37: =E320 ->  | CT37: =E321 ->  | CU37: =E322 ->  | CV37: =E323 ->  | CW37: =E324 ->  | DK37: 1947 | DL37: =F313 ->  | DM37: =F314 ->  | DN37: =F315 ->  | DO37: =F316 ->  | DP37: =F317 ->  | DQ37: =F318 ->  | DR37: =F319 ->  | DS37: =F320 ->  | DT37: =F321 ->  | DU37: =F322 ->  | DV37: =F323 ->  | DW37: =F324 ->  | EK37: 1947 | EL37: =G313 ->  | EM37: =G314 ->  | EN37: =G315 ->  | EO37: =G316 ->  | EP37: =G317 ->  | EQ37: =G318 ->  | ER37: =G319 ->  | ES37: =G320 ->  | ET37: =G321 ->  | EU37: =G322 ->  | EV37: =G323 ->  | EW37: =G324 -> 
A38: 1923-11-30 | B38: =INDIRECT(CONCATENATE("'",B$1,"'!",B$4,(YEAR($A38)-1921)*12+MONTH($A38)+3+IF(ISNUMBER(FIND("PRV",B$6)),1,0)))*IF(AND(B$3>0,TRIM(B$9)="CFS"),Conversions!$C38,1) -> 0 | C38: =INDIRECT(CONCATENATE("'",C$1,"'!",C$4,(YEAR($A38)-1921)*12+MONTH($A38)+3+IF(ISNUMBER(FIND("PRV",C$6)),1,0)))*IF(AND(C$3>0,TRIM(C$9)="CFS"),Conversions!$C38,1) -> 21.19333333 | D38: =INDIRECT(CONCATENATE("'",D$1,"'!",D$4,(YEAR($A38)-1921)*12+MONTH($A38)+3+IF(ISNUMBER(FIND("PRV",D$6)),1,0)))*IF(AND(D$3>0,TRIM(D$9)="CFS"),Conversions!$C38,1) -> 21.19333333 | E38: =INDIRECT(CONCATENATE("'",E$1,"'!",E$4,(YEAR($A38)-1921)*12+MONTH($A38)+3+IF(ISNUMBER(FIND("PRV",E$6)),1,0)))*IF(AND(E$3>0,TRIM(E$9)="CFS"),Conversions!$C38,1) ->  | F38: =INDIRECT(CONCATENATE("'",F$1,"'!",F$4,(YEAR($A38)-1921)*12+MONTH($A38)+3+IF(ISNUMBER(FIND("PRV",F$6)),1,0)))*IF(AND(F$3>0,TRIM(F$9)="CFS"),Conversions!$C38,1) ->  | G38: =INDIRECT(CONCATENATE("'",G$1,"'!",G$4,(YEAR($A38)-1921)*12+MONTH($A38)+3+IF(ISNUMBER(FIND("PRV",G$6)),1,0)))*IF(AND(G$3>0,TRIM(G$9)="CFS"),Conversions!$C38,1) ->  | K38: 1948 | L38: =B325 -> 0 | M38: =B326 -> 0 | N38: =B327 -> 0 | O38: =B328 -> 0 | P38: =B329 -> 0 | Q38: =B330 -> 0 | R38: =B331 -> 0 | S38: =B332 -> 0 | T38: =B333 -> 0 | U38: =B334 -> 0 | V38: =B335 -> 0 | W38: =B336 -> 0 | Y38: 0 | Z38: 0 | AA38: 0 | AC38: 0 | AD38: 0 | AE38: 0 | AF38: 0 | AG38: 0 | AH38: 0 | AI38: 0 | AK38: 1948 | AL38: =C325 -> 0 | AM38: =C326 -> 0 | AN38: =C327 -> 0 | AO38: =C328 -> 0 | AP38: =C329 -> 0 | AQ38: =C330 -> 0 | AR38: =C331 -> 0 | AS38: =C332 -> 0 | AT38: =C333 -> 0.34875 | AU38: =C334 -> 4.47625 | AV38: =C335 -> 2.5 | AW38: =C336 -> 2.5 | AY38: 9.825000109 | AZ38: 9.825000109 | BA38: 9.825000001 | BC38: 0 | BD38: 5 | BE38: 0 | BF38: 0 | BG38: 0.34875 | BH38: 9.825000001 | BI38: 2.5 | BK38: 1948 | BL38: =D325 -> 0 | BM38: =D326 -> 0 | BN38: =D327 -> 0 | BO38: =D328 -> 0 | BP38: =D329 -> 0 | BQ38: =D330 -> 0 | BR38: =D331 -> 0 | BS38: =D332 -> 0 | BT38: =D333 -> 0.467325 | BU38: =D334 -> 5.148175 | BV38: =D335 -> 2.5 | BW38: =D336 -> 2.5 | BY38: 10.61550056 | BZ38: 10.61550056 | CA38: 10.6155 | CC38: 0 | CD38: 5 | CE38: 0 | CF38: 0 | CG38: 0.467325 | CH38: 10.6155 | CI38: 2.5 | CK38: 1948 | CL38: =E325 ->  | CM38: =E326 ->  | CN38: =E327 ->  | CO38: =E328 ->  | CP38: =E329 ->  | CQ38: =E330 ->  | CR38: =E331 ->  | CS38: =E332 ->  | CT38: =E333 ->  | CU38: =E334 ->  | CV38: =E335 ->  | CW38: =E336 ->  | DK38: 1948 | DL38: =F325 ->  | DM38: =F326 ->  | DN38: =F327 ->  | DO38: =F328 ->  | DP38: =F329 ->  | DQ38: =F330 ->  | DR38: =F331 ->  | DS38: =F332 ->  | DT38: =F333 ->  | DU38: =F334 ->  | DV38: =F335 ->  | DW38: =F336 ->  | EK38: 1948 | EL38: =G325 ->  | EM38: =G326 ->  | EN38: =G327 ->  | EO38: =G328 ->  | EP38: =G329 ->  | EQ38: =G330 ->  | ER38: =G331 ->  | ES38: =G332 ->  | ET38: =G333 ->  | EU38: =G334 ->  | EV38: =G335 ->  | EW38: =G336 -> 
A39: 1923-12-31 | B39: =INDIRECT(CONCATENATE("'",B$1,"'!",B$4,(YEAR($A39)-1921)*12+MONTH($A39)+3+IF(ISNUMBER(FIND("PRV",B$6)),1,0)))*IF(AND(B$3>0,TRIM(B$9)="CFS"),Conversions!$C39,1) -> 0 | C39: =INDIRECT(CONCATENATE("'",C$1,"'!",C$4,(YEAR($A39)-1921)*12+MONTH($A39)+3+IF(ISNUMBER(FIND("PRV",C$6)),1,0)))*IF(AND(C$3>0,TRIM(C$9)="CFS"),Conversions!$C39,1) -> 13.19333333 | D39: =INDIRECT(CONCATENATE("'",D$1,"'!",D$4,(YEAR($A39)-1921)*12+MONTH($A39)+3+IF(ISNUMBER(FIND("PRV",D$6)),1,0)))*IF(AND(D$3>0,TRIM(D$9)="CFS"),Conversions!$C39,1) -> 13.19333333 | E39: =INDIRECT(CONCATENATE("'",E$1,"'!",E$4,(YEAR($A39)-1921)*12+MONTH($A39)+3+IF(ISNUMBER(FIND("PRV",E$6)),1,0)))*IF(AND(E$3>0,TRIM(E$9)="CFS"),Conversions!$C39,1) ->  | F39: =INDIRECT(CONCATENATE("'",F$1,"'!",F$4,(YEAR($A39)-1921)*12+MONTH($A39)+3+IF(ISNUMBER(FIND("PRV",F$6)),1,0)))*IF(AND(F$3>0,TRIM(F$9)="CFS"),Conversions!$C39,1) ->  | G39: =INDIRECT(CONCATENATE("'",G$1,"'!",G$4,(YEAR($A39)-1921)*12+MONTH($A39)+3+IF(ISNUMBER(FIND("PRV",G$6)),1,0)))*IF(AND(G$3>0,TRIM(G$9)="CFS"),Conversions!$C39,1) ->  | K39: 1949 | L39: =B337 -> 0 | M39: =B338 -> 0 | N39: =B339 -> 0 | O39: =B340 -> 0 | P39: =B341 -> 0 | Q39: =B342 -> 0 | R39: =B343 -> 0 | S39: =B344 -> 0 | T39: =B345 -> 0 | U39: =B346 -> 0 | V39: =B347 -> 0 | W39: =B348 -> 0 | Y39: 0 | Z39: 0 | AA39: 0 | AC39: 0 | AD39: 0 | AE39: 0 | AF39: 0 | AG39: 0 | AH39: 0 | AI39: 0 | AK39: 1949 | AL39: =C337 -> 0 | AM39: =C338 -> 0 | AN39: =C339 -> 1.086909222e-07 | AO39: =C340 -> 0 | AP39: =C341 -> 0 | AQ39: =C342 -> 0 | AR39: =C343 -> 3.195875957 | AS39: =C344 -> 57.36142713 | AT39: =C345 -> 23.98291241 | AU39: =C346 -> 82.16478076 | AV39: =C347 -> 2.5 | AW39: =C348 -> 9.646727417 | AY39: 187.8490957 | AZ39: 187.8490957 | BA39: 178.8517238 | BC39: 1.086909222e-07 | BD39: 21.14409946 | BE39: 1.086909222e-07 | BF39: 1.086909222e-07 | BG39: 84.54021549 | BH39: 118.2944206 | BI39: 18.64409946 | BK39: 1949 | BL39: =D337 -> 0 | BM39: =D338 -> 0 | BN39: =D339 -> 5.587580775e-07 | BO39: =D340 -> 0 | BP39: =D341 -> 0 | BQ39: =D342 -> 0 | BR39: =D343 -> 3.195875957 | BS39: =D344 -> 38.39691495 | BT39: =D345 -> 26.46400984 | BU39: =D346 -> 98.57351386 | BV39: =D347 -> 2.5 | BW39: =D348 -> 9.963436024 | BY39: 188.4697931 | BZ39: 188.4697931 | CA39: 179.0937512 | CC39: 5.587580775e-07 | CD39: 21.83947853 | CE39: 5.587580775e-07 | CF39: 5.587580775e-07 | CG39: 68.05680075 | CH39: 137.5009597 | CI39: 19.33947853 | CK39: 1949 | CL39: =E337 ->  | CM39: =E338 ->  | CN39: =E339 ->  | CO39: =E340 ->  | CP39: =E341 ->  | CQ39: =E342 ->  | CR39: =E343 ->  | CS39: =E344 ->  | CT39: =E345 ->  | CU39: =E346 ->  | CV39: =E347 ->  | CW39: =E348 ->  | DK39: 1949 | DL39: =F337 ->  | DM39: =F338 ->  | DN39: =F339 ->  | DO39: =F340 ->  | DP39: =F341 ->  | DQ39: =F342 ->  | DR39: =F343 ->  | DS39: =F344 ->  | DT39: =F345 ->  | DU39: =F346 ->  | DV39: =F347 ->  | DW39: =F348 ->  | EK39: 1949 | EL39: =G337 ->  | EM39: =G338 ->  | EN39: =G339 ->  | EO39: =G340 ->  | EP39: =G341 ->  | EQ39: =G342 ->  | ER39: =G343 ->  | ES39: =G344 ->  | ET39: =G345 ->  | EU39: =G346 ->  | EV39: =G347 ->  | EW39: =G348 -> 
A40: 1924-01-31 | B40: =INDIRECT(CONCATENATE("'",B$1,"'!",B$4,(YEAR($A40)-1921)*12+MONTH($A40)+3+IF(ISNUMBER(FIND("PRV",B$6)),1,0)))*IF(AND(B$3>0,TRIM(B$9)="CFS"),Conversions!$C40,1) -> 0 | C40: =INDIRECT(CONCATENATE("'",C$1,"'!",C$4,(YEAR($A40)-1921)*12+MONTH($A40)+3+IF(ISNUMBER(FIND("PRV",C$6)),1,0)))*IF(AND(C$3>0,TRIM(C$9)="CFS"),Conversions!$C40,1) -> 0 | D40: =INDIRECT(CONCATENATE("'",D$1,"'!",D$4,(YEAR($A40)-1921)*12+MONTH($A40)+3+IF(ISNUMBER(FIND("PRV",D$6)),1,0)))*IF(AND(D$3>0,TRIM(D$9)="CFS"),Conversions!$C40,1) -> 0 | E40: =INDIRECT(CONCATENATE("'",E$1,"'!",E$4,(YEAR($A40)-1921)*12+MONTH($A40)+3+IF(ISNUMBER(FIND("PRV",E$6)),1,0)))*IF(AND(E$3>0,TRIM(E$9)="CFS"),Conversions!$C40,1) ->  | F40: =INDIRECT(CONCATENATE("'",F$1,"'!",F$4,(YEAR($A40)-1921)*12+MONTH($A40)+3+IF(ISNUMBER(FIND("PRV",F$6)),1,0)))*IF(AND(F$3>0,TRIM(F$9)="CFS"),Conversions!$C40,1) ->  | G40: =INDIRECT(CONCATENATE("'",G$1,"'!",G$4,(YEAR($A40)-1921)*12+MONTH($A40)+3+IF(ISNUMBER(FIND("PRV",G$6)),1,0)))*IF(AND(G$3>0,TRIM(G$9)="CFS"),Conversions!$C40,1) ->  | K40: 1950 | L40: =B349 -> 0 | M40: =B350 -> 0 | N40: =B351 -> 0 | O40: =B352 -> 0 | P40: =B353 -> 0 | Q40: =B354 -> 0 | R40: =B355 -> 0 | S40: =B356 -> 0 | T40: =B357 -> 0 | U40: =B358 -> 0 | V40: =B359 -> 0 | W40: =B360 -> 0 | Y40: 0 | Z40: 0 | AA40: 0 | AC40: 0 | AD40: 0 | AE40: 0 | AF40: 0 | AG40: 0 | AH40: 0 | AI40: 0 | AK40: 1950 | AL40: =C349 -> 8.997372042 | AM40: =C350 -> 0 | AN40: =C351 -> 0 | AO40: =C352 -> 0 | AP40: =C353 -> 0 | AQ40: =C354 -> 0.1739946888 | AR40: =C355 -> 7.335259245 | AS40: =C356 -> 38.31493509 | AT40: =C357 -> 12.24754369 | AU40: =C358 -> 21.43158607 | AV40: =C359 -> 0.3389747207 | AW40: =C360 -> 1.729613665 | AY40: 88.46272488 | AZ40: 88.46272488 | BA40: 90.56927921 | BC40: 0.1739946888 | BD40: 8.959406105 | BE40: 8.997372042 | BF40: 0 | BG40: 58.07173271 | BH40: 35.74771814 | BI40: 8.620431384 | BK40: 1950 | BL40: =D349 -> 9.376042503 | BM40: =D350 -> 0 | BN40: =D351 -> 0 | BO40: =D352 -> 0 | BP40: =D353 -> 0 | BQ40: =D354 -> 0.17534843 | BR40: =D355 -> 7.417871446 | BS40: =D356 -> 27.25962489 | BT40: =D357 -> 13.91364907 | BU40: =D358 -> 23.65189878 | BV40: =D359 -> 2.5 | BW40: =D360 -> 4.24 | BY40: 86.15953144 | BZ40: 86.15953144 | CA40: 88.53443512 | CC40: 0.17534843 | CD40: 13.74113883 | CE40: 9.376042503 | CF40: 0 | CG40: 48.76649383 | CH40: 44.30554785 | CI40: 11.24113883 | CK40: 1950 | CL40: =E349 ->  | CM40: =E350 ->  | CN40: =E351 ->  | CO40: =E352 ->  | CP40: =E353 ->  | CQ40: =E354 ->  | CR40: =E355 ->  | CS40: =E356 ->  | CT40: =E357 ->  | CU40: =E358 ->  | CV40: =E359 ->  | CW40: =E360 ->  | DK40: 1950 | DL40: =F349 ->  | DM40: =F350 ->  | DN40: =F351 ->  | DO40: =F352 ->  | DP40: =F353 ->  | DQ40: =F354 ->  | DR40: =F355 ->  | DS40: =F356 ->  | DT40: =F357 ->  | DU40: =F358 ->  | DV40: =F359 ->  | DW40: =F360 ->  | EK40: 1950 | EL40: =G349 ->  | EM40: =G350 ->  | EN40: =G351 ->  | EO40: =G352 ->  | EP40: =G353 ->  | EQ40: =G354 ->  | ER40: =G355 ->  | ES40: =G356 ->  | ET40: =G357 ->  | EU40: =G358 ->  | EV40: =G359 ->  | EW40: =G360 -> 
A41: 1924-02-29 | B41: =INDIRECT(CONCATENATE("'",B$1,"'!",B$4,(YEAR($A41)-1921)*12+MONTH($A41)+3+IF(ISNUMBER(FIND("PRV",B$6)),1,0)))*IF(AND(B$3>0,TRIM(B$9)="CFS"),Conversions!$C41,1) -> 0 | C41: =INDIRECT(CONCATENATE("'",C$1,"'!",C$4,(YEAR($A41)-1921)*12+MONTH($A41)+3+IF(ISNUMBER(FIND("PRV",C$6)),1,0)))*IF(AND(C$3>0,TRIM(C$9)="CFS"),Conversions!$C41,1) -> 0 | D41: =INDIRECT(CONCATENATE("'",D$1,"'!",D$4,(YEAR($A41)-1921)*12+MONTH($A41)+3+IF(ISNUMBER(FIND("PRV",D$6)),1,0)))*IF(AND(D$3>0,TRIM(D$9)="CFS"),Conversions!$C41,1) -> 0 | E41: =INDIRECT(CONCATENATE("'",E$1,"'!",E$4,(YEAR($A41)-1921)*12+MONTH($A41)+3+IF(ISNUMBER(FIND("PRV",E$6)),1,0)))*IF(AND(E$3>0,TRIM(E$9)="CFS"),Conversions!$C41,1) ->  | F41: =INDIRECT(CONCATENATE("'",F$1,"'!",F$4,(YEAR($A41)-1921)*12+MONTH($A41)+3+IF(ISNUMBER(FIND("PRV",F$6)),1,0)))*IF(AND(F$3>0,TRIM(F$9)="CFS"),Conversions!$C41,1) ->  | G41: =INDIRECT(CONCATENATE("'",G$1,"'!",G$4,(YEAR($A41)-1921)*12+MONTH($A41)+3+IF(ISNUMBER(FIND("PRV",G$6)),1,0)))*IF(AND(G$3>0,TRIM(G$9)="CFS"),Conversions!$C41,1) ->  | K41: 1951 | L41: =B361 -> 0 | M41: =B362 -> 0 | N41: =B363 -> 0 | O41: =B364 -> 0 | P41: =B365 -> 0 | Q41: =B366 -> 0 | R41: =B367 -> 0 | S41: =B368 -> 0 | T41: =B369 -> 0 | U41: =B370 -> 0 | V41: =B371 -> 0 | W41: =B372 -> 0 | Y41: 0 | Z41: 0 | AA41: 0 | AC41: 0 | AD41: 0 | AE41: 0 | AF41: 0 | AG41: 0 | AH41: 0 | AI41: 0 | AK41: 1951 | AL41: =C361 -> 6.890817719 | AM41: =C362 -> 0 | AN41: =C363 -> 0 | AO41: =C364 -> 0 | AP41: =C365 -> 0 | AQ41: =C366 -> 0.0862821351 | AR41: =C367 -> 3.774306736 | AS41: =C368 -> 0 | AT41: =C369 -> 2.5 | AU41: =C370 -> 2.5 | AV41: =C371 -> 30.0862069 | AW41: =C372 -> 30.0862069 | AY41: 82.14927795 | AZ41: 82.14927795 | BA41: 75.92382039 | BC41: 0.0862821351 | BD41: 73.28868908 | BE41: 6.890817719 | BF41: 0 | BG41: 6.360588872 | BH41: 65.1724138 | BI41: 43.20248218 | BK41: 1951 | BL41: =D361 -> 7.001138827 | BM41: =D362 -> 0 | BN41: =D363 -> 0 | BO41: =D364 -> 0 | BP41: =D365 -> 0 | BQ41: =D366 -> 0.0862821351 | BR41: =D367 -> 3.774306736 | BS41: =D368 -> 0 | BT41: =D369 -> 2.5 | BU41: =D370 -> 2.5 | BV41: =D371 -> 30.0862069 | BW41: =D372 -> 30.0862069 | BY41: 95.14928795 | BZ41: 95.14928795 | CA41: 76.0341415 | CC41: 0.0862821351 | CD41: 86.28869908 | CE41: 7.001138827 | CF41: 0 | CG41: 6.360588872 | CH41: 65.1724138 | CI41: 56.20249218 | CK41: 1951 | CL41: =E361 ->  | CM41: =E362 ->  | CN41: =E363 ->  | CO41: =E364 ->  | CP41: =E365 ->  | CQ41: =E366 ->  | CR41: =E367 ->  | CS41: =E368 ->  | CT41: =E369 ->  | CU41: =E370 ->  | CV41: =E371 ->  | CW41: =E372 ->  | DK41: 1951 | DL41: =F361 ->  | DM41: =F362 ->  | DN41: =F363 ->  | DO41: =F364 ->  | DP41: =F365 ->  | DQ41: =F366 ->  | DR41: =F367 ->  | DS41: =F368 ->  | DT41: =F369 ->  | DU41: =F370 ->  | DV41: =F371 ->  | DW41: =F372 ->  | EK41: 1951 | EL41: =G361 ->  | EM41: =G362 ->  | EN41: =G363 ->  | EO41: =G364 ->  | EP41: =G365 ->  | EQ41: =G366 ->  | ER41: =G367 ->  | ES41: =G368 ->  | ET41: =G369 ->  | EU41: =G370 ->  | EV41: =G371 ->  | EW41: =G372 -> 
A42: 1924-03-31 | B42: =INDIRECT(CONCATENATE("'",B$1,"'!",B$4,(YEAR($A42)-1921)*12+MONTH($A42)+3+IF(ISNUMBER(FIND("PRV",B$6)),1,0)))*IF(AND(B$3>0,TRIM(B$9)="CFS"),Conversions!$C42,1) -> 0 | C42: =INDIRECT(CONCATENATE("'",C$1,"'!",C$4,(YEAR($A42)-1921)*12+MONTH($A42)+3+IF(ISNUMBER(FIND("PRV",C$6)),1,0)))*IF(AND(C$3>0,TRIM(C$9)="CFS"),Conversions!$C42,1) -> 5.032537461 | D42: =INDIRECT(CONCATENATE("'",D$1,"'!",D$4,(YEAR($A42)-1921)*12+MONTH($A42)+3+IF(ISNUMBER(FIND("PRV",D$6)),1,0)))*IF(AND(D$3>0,TRIM(D$9)="CFS"),Conversions!$C42,1) -> 5.032537461 | E42: =INDIRECT(CONCATENATE("'",E$1,"'!",E$4,(YEAR($A42)-1921)*12+MONTH($A42)+3+IF(ISNUMBER(FIND("PRV",E$6)),1,0)))*IF(AND(E$3>0,TRIM(E$9)="CFS"),Conversions!$C42,1) ->  | F42: =INDIRECT(CONCATENATE("'",F$1,"'!",F$4,(YEAR($A42)-1921)*12+MONTH($A42)+3+IF(ISNUMBER(FIND("PRV",F$6)),1,0)))*IF(AND(F$3>0,TRIM(F$9)="CFS"),Conversions!$C42,1) ->  | G42: =INDIRECT(CONCATENATE("'",G$1,"'!",G$4,(YEAR($A42)-1921)*12+MONTH($A42)+3+IF(ISNUMBER(FIND("PRV",G$6)),1,0)))*IF(AND(G$3>0,TRIM(G$9)="CFS"),Conversions!$C42,1) ->  | K42: 1952 | L42: =B373 -> 0 | M42: =B374 -> 0 | N42: =B375 -> 0 | O42: =B376 -> 0 | P42: =B377 -> 0 | Q42: =B378 -> 0 | R42: =B379 -> 0 | S42: =B380 -> 0 | T42: =B381 -> 0 | U42: =B382 -> 0 | V42: =B383 -> 0 | W42: =B384 -> 0 | Y42: 0 | Z42: 0 | AA42: 0 | AC42: 0 | AD42: 0 | AE42: 0 | AF42: 0 | AG42: 0 | AH42: 0 | AI42: 0 | AK42: 1952 | AL42: =C373 -> 13.11627528 | AM42: =C374 -> 0 | AN42: =C375 -> 0 | AO42: =C376 -> 0 | AP42: =C377 -> 0 | AQ42: =C378 -> 0 | AR42: =C379 -> 0 | AS42: =C380 -> 0 | AT42: =C381 -> 1.852375478 | AU42: =C382 -> 2.345336251 | AV42: =C383 -> 29.53744166 | AW42: =C384 -> 28.39260313 | AY42: 89.71396341 | AZ42: 89.71396341 | BA42: 75.24403179 | BC42: 0 | BD42: 85.51625168 | BE42: 13.11627528 | BF42: 0 | BG42: 1.852375478 | BH42: 62.12775651 | BI42: 55.97881003 | BK42: 1952 | BL42: =D373 -> 26.11628529 | BM42: =D374 -> 0 | BN42: =D375 -> 0 | BO42: =D376 -> 0 | BP42: =D377 -> 0 | BQ42: =D378 -> 0 | BR42: =D379 -> 0 | BS42: =D380 -> 0 | BT42: =D381 -> 1.852375478 | BU42: =D382 -> 2.345336251 | BV42: =D383 -> 29.53744166 | BW42: =D384 -> 28.39260313 | BY42: 89.71396341 | BZ42: 89.71396341 | CA42: 88.2440418 | CC42: 0 | CD42: 85.51625168 | CE42: 26.11628529 | CF42: 0 | CG42: 1.852375478 | CH42: 62.12775651 | CI42: 55.97881003 | CK42: 1952 | CL42: =E373 ->  | CM42: =E374 ->  | CN42: =E375 ->  | CO42: =E376 ->  | CP42: =E377 ->  | CQ42: =E378 ->  | CR42: =E379 ->  | CS42: =E380 ->  | CT42: =E381 ->  | CU42: =E382 ->  | CV42: =E383 ->  | CW42: =E384 ->  | DK42: 1952 | DL42: =F373 ->  | DM42: =F374 ->  | DN42: =F375 ->  | DO42: =F376 ->  | DP42: =F377 ->  | DQ42: =F378 ->  | DR42: =F379 ->  | DS42: =F380 ->  | DT42: =F381 ->  | DU42: =F382 ->  | DV42: =F383 ->  | DW42: =F384 ->  | EK42: 1952 | EL42: =G373 ->  | EM42: =G374 ->  | EN42: =G375 ->  | EO42: =G376 ->  | EP42: =G377 ->  | EQ42: =G378 ->  | ER42: =G379 ->  | ES42: =G380 ->  | ET42: =G381 ->  | EU42: =G382 ->  | EV42: =G383 ->  | EW42: =G384 -> 
A43: 1924-04-30 | B43: =INDIRECT(CONCATENATE("'",B$1,"'!",B$4,(YEAR($A43)-1921)*12+MONTH($A43)+3+IF(ISNUMBER(FIND("PRV",B$6)),1,0)))*IF(AND(B$3>0,TRIM(B$9)="CFS"),Conversions!$C43,1) -> 0 | C43: =INDIRECT(CONCATENATE("'",C$1,"'!",C$4,(YEAR($A43)-1921)*12+MONTH($A43)+3+IF(ISNUMBER(FIND("PRV",C$6)),1,0)))*IF(AND(C$3>0,TRIM(C$9)="CFS"),Conversions!$C43,1) -> 87.21273533 | D43: =INDIRECT(CONCATENATE("'",D$1,"'!",D$4,(YEAR($A43)-1921)*12+MONTH($A43)+3+IF(ISNUMBER(FIND("PRV",D$6)),1,0)))*IF(AND(D$3>0,TRIM(D$9)="CFS"),Conversions!$C43,1) -> 87.21169889 | E43: =INDIRECT(CONCATENATE("'",E$1,"'!",E$4,(YEAR($A43)-1921)*12+MONTH($A43)+3+IF(ISNUMBER(FIND("PRV",E$6)),1,0)))*IF(AND(E$3>0,TRIM(E$9)="CFS"),Conversions!$C43,1) ->  | F43: =INDIRECT(CONCATENATE("'",F$1,"'!",F$4,(YEAR($A43)-1921)*12+MONTH($A43)+3+IF(ISNUMBER(FIND("PRV",F$6)),1,0)))*IF(AND(F$3>0,TRIM(F$9)="CFS"),Conversions!$C43,1) ->  | G43: =INDIRECT(CONCATENATE("'",G$1,"'!",G$4,(YEAR($A43)-1921)*12+MONTH($A43)+3+IF(ISNUMBER(FIND("PRV",G$6)),1,0)))*IF(AND(G$3>0,TRIM(G$9)="CFS"),Conversions!$C43,1) ->  | K43: 1953 | L43: =B385 -> 0 | M43: =B386 -> 0 | N43: =B387 -> 0 | O43: =B388 -> 0 | P43: =B389 -> 0 | Q43: =B390 -> 0 | R43: =B391 -> 0 | S43: =B392 -> 0 | T43: =B393 -> 0 | U43: =B394 -> 0 | V43: =B395 -> 0 | W43: =B396 -> 0 | Y43: 0 | Z43: 0 | AA43: 0 | AC43: 0 | AD43: 0 | AE43: 0 | AF43: 0 | AG43: 0 | AH43: 0 | AI43: 0 | AK43: 1953 | AL43: =C385 -> 27.5862069 | AM43: =C386 -> 0 | AN43: =C387 -> 0 | AO43: =C388 -> 0 | AP43: =C389 -> 0 | AQ43: =C390 -> 0.4834396644 | AR43: =C391 -> 1.462425727 | AS43: =C392 -> 0 | AT43: =C393 -> 2.157159989 | AU43: =C394 -> 2.5 | AV43: =C395 -> 30.0862069 | AW43: =C396 -> 28.48844168 | AY43: 92.76388085 | AZ43: 92.76388085 | BA43: 92.76388085 | BC43: 0.4834396644 | BD43: 86.16085547 | BE43: 27.5862069 | BF43: 0 | BG43: 4.10302538 | BH43: 63.23180856 | BI43: 56.07464857 | BK43: 1953 | BL43: =D385 -> 27.5862069 | BM43: =D386 -> 0 | BN43: =D387 -> 0 | BO43: =D388 -> 0 | BP43: =D389 -> 0 | BQ43: =D390 -> 0.5308150042 | BR43: =D391 -> 1.883957795 | BS43: =D392 -> 0 | BT43: =D393 -> 2.157159989 | BU43: =D394 -> 2.5 | BV43: =D395 -> 30.0862069 | BW43: =D396 -> 28.48844168 | BY43: 103.2897233 | BZ43: 103.2897233 | CA43: 93.23278826 | CC43: 0.5308150042 | CD43: 86.16085547 | CE43: 27.5862069 | CF43: 0 | CG43: 4.571932789 | CH43: 63.23180856 | CI43: 56.07464857 | CK43: 1953 | CL43: =E385 ->  | CM43: =E386 ->  | CN43: =E387 ->  | CO43: =E388 ->  | CP43: =E389 ->  | CQ43: =E390 ->  | CR43: =E391 ->  | CS43: =E392 ->  | CT43: =E393 ->  | CU43: =E394 ->  | CV43: =E395 ->  | CW43: =E396 ->  | DK43: 1953 | DL43: =F385 ->  | DM43: =F386 ->  | DN43: =F387 ->  | DO43: =F388 ->  | DP43: =F389 ->  | DQ43: =F390 ->  | DR43: =F391 ->  | DS43: =F392 ->  | DT43: =F393 ->  | DU43: =F394 ->  | DV43: =F395 ->  | DW43: =F396 ->  | EK43: 1953 | EL43: =G385 ->  | EM43: =G386 ->  | EN43: =G387 ->  | EO43: =G388 ->  | EP43: =G389 ->  | EQ43: =G390 ->  | ER43: =G391 ->  | ES43: =G392 ->  | ET43: =G393 ->  | EU43: =G394 ->  | EV43: =G395 ->  | EW43: =G396 -> 
A44: 1924-05-31 | B44: =INDIRECT(CONCATENATE("'",B$1,"'!",B$4,(YEAR($A44)-1921)*12+MONTH($A44)+3+IF(ISNUMBER(FIND("PRV",B$6)),1,0)))*IF(AND(B$3>0,TRIM(B$9)="CFS"),Conversions!$C44,1) -> 0 | C44: =INDIRECT(CONCATENATE("'",C$1,"'!",C$4,(YEAR($A44)-1921)*12+MONTH($A44)+3+IF(ISNUMBER(FIND("PRV",C$6)),1,0)))*IF(AND(C$3>0,TRIM(C$9)="CFS"),Conversions!$C44,1) -> 35.79604496 | D44: =INDIRECT(CONCATENATE("'",D$1,"'!",D$4,(YEAR($A44)-1921)*12+MONTH($A44)+3+IF(ISNUMBER(FIND("PRV",D$6)),1,0)))*IF(AND(D$3>0,TRIM(D$9)="CFS"),Conversions!$C44,1) -> 22.13921422 | E44: =INDIRECT(CONCATENATE("'",E$1,"'!",E$4,(YEAR($A44)-1921)*12+MONTH($A44)+3+IF(ISNUMBER(FIND("PRV",E$6)),1,0)))*IF(AND(E$3>0,TRIM(E$9)="CFS"),Conversions!$C44,1) ->  | F44: =INDIRECT(CONCATENATE("'",F$1,"'!",F$4,(YEAR($A44)-1921)*12+MONTH($A44)+3+IF(ISNUMBER(FIND("PRV",F$6)),1,0)))*IF(AND(F$3>0,TRIM(F$9)="CFS"),Conversions!$C44,1) ->  | G44: =INDIRECT(CONCATENATE("'",G$1,"'!",G$4,(YEAR($A44)-1921)*12+MONTH($A44)+3+IF(ISNUMBER(FIND("PRV",G$6)),1,0)))*IF(AND(G$3>0,TRIM(G$9)="CFS"),Conversions!$C44,1) ->  | K44: 1954 | L44: =B397 -> 0 | M44: =B398 -> 0 | N44: =B399 -> 0 | O44: =B400 -> 0 | P44: =B401 -> 0 | Q44: =B402 -> 0 | R44: =B403 -> 0 | S44: =B404 -> 0 | T44: =B405 -> 0 | U44: =B406 -> 0 | V44: =B407 -> 0 | W44: =B408 -> 0 | Y44: 0 | Z44: 0 | AA44: 0 | AC44: 0 | AD44: 0 | AE44: =IF(AE$11="AVG",IF(AE$1="INST-VAL",AVERAGE(W43,L44:N44,L44:O44),AVERAGE(L44:O44)),SUM(L44:O44)) -> 0 | AF44: 0 | AG44: 0 | AH44: 0 | AI44: 0 | AK44: 1954 | AL44: =C397 -> 27.5862069 | AM44: =C398 -> 0 | AN44: =C399 -> 0 | AO44: =C400 -> 0 | AP44: =C401 -> 0 | AQ44: =C402 -> 0 | AR44: =C403 -> 1.056261726 | AS44: =C404 -> 54.33105648 | AT44: =C405 -> 92.8696669 | AU44: =C406 -> 140.5163183 | AV44: =C407 -> 145.4071496 | AW44: =C408 -> 91.38265901 | AY44: 557.3803755 | AZ44: 557.3803755 | BA44: 553.1493189 | BC44: 0 | BD44: 266.8670721 | BE44: 27.5862069 | BF44: 0 | BG44: 148.2569851 | BH44: 470.1757938 | BI44: 123.1999225 | BK44: 1954 | BL44: =D397 -> 27.5862069 | BM44: =D398 -> 0 | BN44: =D399 -> 10.05693504 | BO44: =D400 -> 0 | BP44: =D401 -> 0 | BQ44: =D402 -> 0 | BR44: =D403 -> 1.056261726 | BS44: =D404 -> 115.8150181 | BT44: =D405 -> 92.8696669 | BU44: =D406 -> 27.82000109 | BV44: =D407 -> 82.1201137 | BW44: =D408 -> 75.86992745 | BY44: 427.3671959 | BZ44: 427.3671959 | CA44: 433.1941309 | CC44: 10.05693504 | CD44: 188.066248 | CE44: =IF(CE$11="AVG",IF(CE$1="INST-VAL",AVERAGE(BW43,BL44:BN44,BL44:BO44),AVERAGE(BL44:BO44)),SUM(BL44:BO44)) -> 37.64314194 | CF44: =IF(CF$11="AVG",IF(CE$1="INST-VAL",AVERAGE(BM44:BO44,BN44:BP44),AVERAGE(BN44:BP44)),SUM(BN44:BP44)) -> 10.05693504 | CG44: =IF(CG$11="AVG",IF(CE$1="INST-VAL",AVERAGE(BP44:BS44,BQ44:BT44),AVERAGE(BQ44:BT44)),SUM(BQ44:BT44)) -> 209.7409468 | CH44: =IF(CH$11="AVG",IF(CE$1="INST-VAL",AVERAGE(BS44:BV44,BT44:BW44),AVERAGE(BT44:BW44)),SUM(BT44:BW44)) -> 278.6797091 | CI44: =IF(CI$11="AVG",IF(CE$1="INST-VAL",AVERAGE(BV44:BW44,BL45,BW44,BL45:BM45),AVERAGE(BW44,BL45:BM45)),SUM(BW44,BL45:BM45)) -> 107.6861344 | CK44: 1954 | CL44: =E397 ->  | CM44: =E398 ->  | CN44: =E399 ->  | CO44: =E400 ->  | CP44: =E401 ->  | CQ44: =E402 ->  | CR44: =E403 ->  | CS44: =E404 ->  | CT44: =E405 ->  | CU44: =E406 ->  | CV44: =E407 ->  | CW44: =E408 ->  | DK44: 1954 | DL44: =F397 ->  | DM44: =F398 ->  | DN44: =F399 ->  | DO44: =F400 ->  | DP44: =F401 ->  | DQ44: =F402 ->  | DR44: =F403 ->  | DS44: =F404 ->  | DT44: =F405 ->  | DU44: =F406 ->  | DV44: =F407 ->  | DW44: =F408 ->  | EK44: 1954 | EL44: =G397 ->  | EM44: =G398 ->  | EN44: =G399 ->  | EO44: =G400 ->  | EP44: =G401 ->  | EQ44: =G402 ->  | ER44: =G403 ->  | ES44: =G404 ->  | ET44: =G405 ->  | EU44: =G406 ->  | EV44: =G407 ->  | EW44: =G408 -> 
A45: 1924-06-30 | B45: =INDIRECT(CONCATENATE("'",B$1,"'!",B$4,(YEAR($A45)-1921)*12+MONTH($A45)+3+IF(ISNUMBER(FIND("PRV",B$6)),1,0)))*IF(AND(B$3>0,TRIM(B$9)="CFS"),Conversions!$C45,1) -> 0 | C45: =INDIRECT(CONCATENATE("'",C$1,"'!",C$4,(YEAR($A45)-1921)*12+MONTH($A45)+3+IF(ISNUMBER(FIND("PRV",C$6)),1,0)))*IF(AND(C$3>0,TRIM(C$9)="CFS"),Conversions!$C45,1) -> 86.42872886 | D45: =INDIRECT(CONCATENATE("'",D$1,"'!",D$4,(YEAR($A45)-1921)*12+MONTH($A45)+3+IF(ISNUMBER(FIND("PRV",D$6)),1,0)))*IF(AND(D$3>0,TRIM(D$9)="CFS"),Conversions!$C45,1) -> 86.46772531 | E45: =INDIRECT(CONCATENATE("'",E$1,"'!",E$4,(YEAR($A45)-1921)*12+MONTH($A45)+3+IF(ISNUMBER(FIND("PRV",E$6)),1,0)))*IF(AND(E$3>0,TRIM(E$9)="CFS"),Conversions!$C45,1) ->  | F45: =INDIRECT(CONCATENATE("'",F$1,"'!",F$4,(YEAR($A45)-1921)*12+MONTH($A45)+3+IF(ISNUMBER(FIND("PRV",F$6)),1,0)))*IF(AND(F$3>0,TRIM(F$9)="CFS"),Conversions!$C45,1) ->  | G45: =INDIRECT(CONCATENATE("'",G$1,"'!",G$4,(YEAR($A45)-1921)*12+MONTH($A45)+3+IF(ISNUMBER(FIND("PRV",G$6)),1,0)))*IF(AND(G$3>0,TRIM(G$9)="CFS"),Conversions!$C45,1) ->  | K45: 1955 | L45: =B409 -> 0 | M45: =B410 -> 0 | N45: =B411 -> 0 | O45: =B412 -> 0 | P45: =B413 -> 0 | Q45: =B414 -> 0 | R45: =B415 -> 0 | S45: =B416 -> 0 | T45: =B417 -> 0 | U45: =B418 -> 0 | V45: =B419 -> 0 | W45: =B420 -> 0 | Y45: 0 | Z45: 0 | AA45: 0 | AC45: 0 | AD45: 0 | AE45: 0 | AF45: 0 | AG45: 0 | AH45: 0 | AI45: 0 | AK45: 1955 | AL45: =C409 -> 30.07726346 | AM45: =C410 -> 1.74 | AN45: =C411 -> 0 | AO45: =C412 -> 0 | AP45: =C413 -> 0 | AQ45: =C414 -> 0.8001760072 | AR45: =C415 -> 6.161758335 | AS45: =C416 -> 30.57312943 | AT45: =C417 -> 68.09239131 | AU45: =C418 -> 121.1306104 | AV45: =C419 -> 115.4673868 | AW45: =C420 -> 76.98739117 | AY45: 497.8863407 | AZ45: 497.8863407 | BA45: 451.030107 | BC45: 2.540176007 | BD45: 269.3882752 | BE45: 31.81726346 | BF45: 0 | BG45: 105.6274551 | BH45: 381.6777797 | BI45: 155.6608884 | BK45: 1955 | BL45: =D409 -> 30.0762069 | BM45: =D410 -> 1.74 | BN45: =D411 -> 0 | BO45: =D412 -> 0 | BP45: =D413 -> 0 | BQ45: =D414 -> 0.7987647022 | BR45: =D415 -> 6.150890575 | BS45: =D416 -> 11.96321735 | BT45: =D417 -> 68.26785579 | BU45: =D418 -> 121.054841 | BV45: =D419 -> 114.60305 | BW45: =D420 -> 58.51241435 | BY45: 536.055283 | BZ45: 536.055283 | CA45: 413.1672406 | CC45: 2.538764702 | CD45: 250.0754781 | CE45: 31.8162069 | CF45: 0 | CG45: 87.18072842 | CH45: 362.4381611 | CI45: 213.2166636 | CK45: 1955 | CL45: =E409 ->  | CM45: =E410 ->  | CN45: =E411 ->  | CO45: =E412 ->  | CP45: =E413 ->  | CQ45: =E414 ->  | CR45: =E415 ->  | CS45: =E416 ->  | CT45: =E417 ->  | CU45: =E418 ->  | CV45: =E419 ->  | CW45: =E420 ->  | DK45: 1955 | DL45: =F409 ->  | DM45: =F410 ->  | DN45: =F411 ->  | DO45: =F412 ->  | DP45: =F413 ->  | DQ45: =F414 ->  | DR45: =F415 ->  | DS45: =F416 ->  | DT45: =F417 ->  | DU45: =F418 ->  | DV45: =F419 ->  | DW45: =F420 ->  | EK45: 1955 | EL45: =G409 ->  | EM45: =G410 ->  | EN45: =G411 ->  | EO45: =G412 ->  | EP45: =G413 ->  | EQ45: =G414 ->  | ER45: =G415 ->  | ES45: =G416 ->  | ET45: =G417 ->  | EU45: =G418 ->  | EV45: =G419 ->  | EW45: =G420 -> 
A46: 1924-07-31 | B46: =INDIRECT(CONCATENATE("'",B$1,"'!",B$4,(YEAR($A46)-1921)*12+MONTH($A46)+3+IF(ISNUMBER(FIND("PRV",B$6)),1,0)))*IF(AND(B$3>0,TRIM(B$9)="CFS"),Conversions!$C46,1) -> 0 | C46: =INDIRECT(CONCATENATE("'",C$1,"'!",C$4,(YEAR($A46)-1921)*12+MONTH($A46)+3+IF(ISNUMBER(FIND("PRV",C$6)),1,0)))*IF(AND(C$3>0,TRIM(C$9)="CFS"),Conversions!$C46,1) -> 119.3264467 | D46: =INDIRECT(CONCATENATE("'",D$1,"'!",D$4,(YEAR($A46)-1921)*12+MONTH($A46)+3+IF(ISNUMBER(FIND("PRV",D$6)),1,0)))*IF(AND(D$3>0,TRIM(D$9)="CFS"),Conversions!$C46,1) -> 119.3264463 | E46: =INDIRECT(CONCATENATE("'",E$1,"'!",E$4,(YEAR($A46)-1921)*12+MONTH($A46)+3+IF(ISNUMBER(FIND("PRV",E$6)),1,0)))*IF(AND(E$3>0,TRIM(E$9)="CFS"),Conversions!$C46,1) ->  | F46: =INDIRECT(CONCATENATE("'",F$1,"'!",F$4,(YEAR($A46)-1921)*12+MONTH($A46)+3+IF(ISNUMBER(FIND("PRV",F$6)),1,0)))*IF(AND(F$3>0,TRIM(F$9)="CFS"),Conversions!$C46,1) ->  | G46: =INDIRECT(CONCATENATE("'",G$1,"'!",G$4,(YEAR($A46)-1921)*12+MONTH($A46)+3+IF(ISNUMBER(FIND("PRV",G$6)),1,0)))*IF(AND(G$3>0,TRIM(G$9)="CFS"),Conversions!$C46,1) ->  | K46: 1956 | L46: =B421 -> 0 | M46: =B422 -> 0 | N46: =B423 -> 0 | O46: =B424 -> 0 | P46: =B425 -> 0 | Q46: =B426 -> 0 | R46: =B427 -> 0 | S46: =B428 -> 0 | T46: =B429 -> 0 | U46: =B430 -> 0 | V46: =B431 -> 0 | W46: =B432 -> 0 | Y46: 0 | Z46: 0 | AA46: 0 | AC46: 0 | AD46: 0 | AE46: 0 | AF46: 0 | AG46: 0 | AH46: 0 | AI46: 0 | AK46: 1956 | AL46: =C421 -> 76.93349723 | AM46: =C422 -> 1.74 | AN46: =C423 -> 0 | AO46: =C424 -> 0 | AP46: =C425 -> 0 | AQ46: =C426 -> 0.04072758973 | AR46: =C427 -> 0.7177251864 | AS46: =C428 -> 0.4592491079 | AT46: =C429 -> 2.643805804 | AU46: =C430 -> 3.280127881 | AV46: =C431 -> 30.72581032 | AW46: =C432 -> 0.9756909666 | AY46: 38.89123715 | AZ46: 38.89123715 | BA46: 117.5166341 | BC46: 1.78072759 | BD46: 31.74760823 | BE46: 78.67349723 | BF46: 0 | BG46: 3.861507688 | BH46: 37.62543497 | BI46: 1.023791261 | BK46: 1956 | BL46: =D421 -> 76.9600138 | BM46: =D422 -> 77.74423547 | BN46: =D423 -> 0 | BO46: =D424 -> 0 | BP46: =D425 -> 0 | BQ46: =D426 -> 0.04072758973 | BR46: =D427 -> 0.7177251864 | BS46: =D428 -> 0.4592491079 | BT46: =D429 -> 2.643805804 | BU46: =D430 -> 3.280127881 | BV46: =D431 -> 30.72581032 | BW46: =D432 -> 28.56189786 | BY46: 80.78994107 | BZ46: 80.78994107 | CA46: 221.133593 | CC46: 77.78496306 | CD46: 73.64631215 | CE46: 154.7042493 | CF46: 0 | CG46: 3.861507688 | CH46: 65.21164187 | CI46: 42.92249518 | CK46: 1956 | CL46: =E421 ->  | CM46: =E422 ->  | CN46: =E423 ->  | CO46: =E424 ->  | CP46: =E425 ->  | CQ46: =E426 ->  | CR46: =E427 ->  | CS46: =E428 ->  | CT46: =E429 ->  | CU46: =E430 ->  | CV46: =E431 ->  | CW46: =E432 ->  | DK46: 1956 | DL46: =F421 ->  | DM46: =F422 ->  | DN46: =F423 ->  | DO46: =F424 ->  | DP46: =F425 ->  | DQ46: =F426 ->  | DR46: =F427 ->  | DS46: =F428 ->  | DT46: =F429 ->  | DU46: =F430 ->  | DV46: =F431 ->  | DW46: =F432 ->  | EK46: 1956 | EL46: =G421 ->  | EM46: =G422 ->  | EN46: =G423 ->  | EO46: =G424 ->  | EP46: =G425 ->  | EQ46: =G426 ->  | ER46: =G427 ->  | ES46: =G428 ->  | ET46: =G429 ->  | EU46: =G430 ->  | EV46: =G431 ->  | EW46: =G432 -> 
A47: 1924-08-31 | B47: =INDIRECT(CONCATENATE("'",B$1,"'!",B$4,(YEAR($A47)-1921)*12+MONTH($A47)+3+IF(ISNUMBER(FIND("PRV",B$6)),1,0)))*IF(AND(B$3>0,TRIM(B$9)="CFS"),Conversions!$C47,1) -> 0 | C47: =INDIRECT(CONCATENATE("'",C$1,"'!",C$4,(YEAR($A47)-1921)*12+MONTH($A47)+3+IF(ISNUMBER(FIND("PRV",C$6)),1,0)))*IF(AND(C$3>0,TRIM(C$9)="CFS"),Conversions!$C47,1) -> 109.1580601 | D47: =INDIRECT(CONCATENATE("'",D$1,"'!",D$4,(YEAR($A47)-1921)*12+MONTH($A47)+3+IF(ISNUMBER(FIND("PRV",D$6)),1,0)))*IF(AND(D$3>0,TRIM(D$9)="CFS"),Conversions!$C47,1) -> 109.1580601 | E47: =INDIRECT(CONCATENATE("'",E$1,"'!",E$4,(YEAR($A47)-1921)*12+MONTH($A47)+3+IF(ISNUMBER(FIND("PRV",E$6)),1,0)))*IF(AND(E$3>0,TRIM(E$9)="CFS"),Conversions!$C47,1) ->  | F47: =INDIRECT(CONCATENATE("'",F$1,"'!",F$4,(YEAR($A47)-1921)*12+MONTH($A47)+3+IF(ISNUMBER(FIND("PRV",F$6)),1,0)))*IF(AND(F$3>0,TRIM(F$9)="CFS"),Conversions!$C47,1) ->  | G47: =INDIRECT(CONCATENATE("'",G$1,"'!",G$4,(YEAR($A47)-1921)*12+MONTH($A47)+3+IF(ISNUMBER(FIND("PRV",G$6)),1,0)))*IF(AND(G$3>0,TRIM(G$9)="CFS"),Conversions!$C47,1) ->  | K47: 1957 | L47: =B433 -> 0 | M47: =B434 -> 0 | N47: =B435 -> 0 | O47: =B436 -> 0 | P47: =B437 -> 0 | Q47: =B438 -> 0 | R47: =B439 -> 0 | S47: =B440 -> 0 | T47: =B441 -> 0 | U47: =B442 -> 0 | V47: =B443 -> 0 | W47: =B444 -> 0 | Y47: 0 | Z47: 0 | AA47: 0 | AC47: 0 | AD47: 0 | AE47: 0 | AF47: 0 | AG47: 0 | AH47: 0 | AI47: 0 | AK47: 1957 | AL47: =C433 -> 0.04610694138 | AM47: =C434 -> 0.001993353486 | AN47: =C435 -> 0 | AO47: =C436 -> 0 | AP47: =C437 -> 0 | AQ47: =C438 -> 1.127048833 | AR47: =C439 -> 4.528044241 | AS47: =C440 -> 0 | AT47: =C441 -> 116.8219999 | AU47: =C442 -> 132.574314 | AV47: =C443 -> 116.8978318 | AW47: =C444 -> 30.9260397 | AY47: 477.5724828 | AZ47: 477.5724828 | BA47: 402.9233788 | BC47: 1.129042186 | BD47: 147.8238715 | BE47: 0.04810029487 | BF47: 0 | BG47: 122.477093 | BH47: 397.2201854 | BI47: 105.623244 | BK47: 1957 | BL47: =D433 -> 14.35860396 | BM47: =D434 -> 0.001993353486 | BN47: =D435 -> 0 | BO47: =D436 -> 0 | BP47: =D437 -> 0 | BQ47: =D438 -> 1.127048833 | BR47: =D439 -> 4.528044241 | BS47: =D440 -> 0 | BT47: =D441 -> 121.7042939 | BU47: =D442 -> 139.0840393 | BV47: =D443 -> 71.51923169 | BW47: =D444 -> 30.9260397 | BY47: 444.8860684 | BZ47: 444.8860684 | CA47: 383.2492949 | CC47: 1.129042186 | CD47: 102.4452714 | CE47: 14.36059732 | CF47: 0 | CG47: 127.359387 | CH47: 363.2336045 | CI47: 106.9234105 | CK47: 1957 | CL47: =E433 ->  | CM47: =E434 ->  | CN47: =E435 ->  | CO47: =E436 ->  | CP47: =E437 ->  | CQ47: =E438 ->  | CR47: =E439 ->  | CS47: =E440 ->  | CT47: =E441 ->  | CU47: =E442 ->  | CV47: =E443 ->  | CW47: =E444 ->  | DK47: 1957 | DL47: =F433 ->  | DM47: =F434 ->  | DN47: =F435 ->  | DO47: =F436 ->  | DP47: =F437 ->  | DQ47: =F438 ->  | DR47: =F439 ->  | DS47: =F440 ->  | DT47: =F441 ->  | DU47: =F442 ->  | DV47: =F443 ->  | DW47: =F444 ->  | EK47: 1957 | EL47: =G433 ->  | EM47: =G434 ->  | EN47: =G435 ->  | EO47: =G436 ->  | EP47: =G437 ->  | EQ47: =G438 ->  | ER47: =G439 ->  | ES47: =G440 ->  | ET47: =G441 ->  | EU47: =G442 ->  | EV47: =G443 ->  | EW47: =G444 -> 
A48: 1924-09-30 | B48: =INDIRECT(CONCATENATE("'",B$1,"'!",B$4,(YEAR($A48)-1921)*12+MONTH($A48)+3+IF(ISNUMBER(FIND("PRV",B$6)),1,0)))*IF(AND(B$3>0,TRIM(B$9)="CFS"),Conversions!$C48,1) -> 0 | C48: =INDIRECT(CONCATENATE("'",C$1,"'!",C$4,(YEAR($A48)-1921)*12+MONTH($A48)+3+IF(ISNUMBER(FIND("PRV",C$6)),1,0)))*IF(AND(C$3>0,TRIM(C$9)="CFS"),Conversions!$C48,1) -> 72.02654821 | D48: =INDIRECT(CONCATENATE("'",D$1,"'!",D$4,(YEAR($A48)-1921)*12+MONTH($A48)+3+IF(ISNUMBER(FIND("PRV",D$6)),1,0)))*IF(AND(D$3>0,TRIM(D$9)="CFS"),Conversions!$C48,1) -> 73.27064821 | E48: =INDIRECT(CONCATENATE("'",E$1,"'!",E$4,(YEAR($A48)-1921)*12+MONTH($A48)+3+IF(ISNUMBER(FIND("PRV",E$6)),1,0)))*IF(AND(E$3>0,TRIM(E$9)="CFS"),Conversions!$C48,1) ->  | F48: =INDIRECT(CONCATENATE("'",F$1,"'!",F$4,(YEAR($A48)-1921)*12+MONTH($A48)+3+IF(ISNUMBER(FIND("PRV",F$6)),1,0)))*IF(AND(F$3>0,TRIM(F$9)="CFS"),Conversions!$C48,1) ->  | G48: =INDIRECT(CONCATENATE("'",G$1,"'!",G$4,(YEAR($A48)-1921)*12+MONTH($A48)+3+IF(ISNUMBER(FIND("PRV",G$6)),1,0)))*IF(AND(G$3>0,TRIM(G$9)="CFS"),Conversions!$C48,1) ->  | K48: 1958 | L48: =B445 -> 0 | M48: =B446 -> 0 | N48: =B447 -> 0 | O48: =B448 -> 0 | P48: =B449 -> 0 | Q48: =B450 -> 0 | R48: =B451 -> 0 | S48: =B452 -> 0 | T48: =B453 -> 0 | U48: =B454 -> 0 | V48: =B455 -> 0 | W48: =B456 -> 0 | Y48: 0 | Z48: 0 | AA48: 0 | AC48: 0 | AD48: 0 | AE48: 0 | AF48: 0 | AG48: 0 | AH48: 0 | AI48: 0 | AK48: 1958 | AL48: =C445 -> 0 | AM48: =C446 -> 74.69720431 | AN48: =C447 -> 0 | AO48: =C448 -> 0 | AP48: =C449 -> 0 | AQ48: =C450 -> 0 | AR48: =C451 -> 0.3057102014 | AS48: =C452 -> 0 | AT48: =C453 -> 0 | AU48: =C454 -> 2.5 | AV48: =C455 -> 30.0862069 | AW48: =C456 -> 35.82742313 | AY48: 96.30554713 | AZ48: 96.30554713 | BA48: 143.4165445 | BC48: 74.69720431 | BD48: 93.49983693 | BE48: 74.69720431 | BF48: 0 | BG48: 0.3057102014 | BH48: 68.41363003 | BI48: 63.41363003 | BK48: 1958 | BL48: =D445 -> 0 | BM48: =D446 -> 75.99737082 | BN48: =D447 -> 0 | BO48: =D448 -> 0 | BP48: =D449 -> 0 | BQ48: =D450 -> 0 | BR48: =D451 -> 0.3057102014 | BS48: =D452 -> 0 | BT48: =D453 -> 0 | BU48: =D454 -> 2.5 | BV48: =D455 -> 30.0862069 | BW48: =D456 -> 35.8275049 | BY48: 96.3056289 | BZ48: 96.3056289 | CA48: 144.7167928 | CC48: 75.99737082 | CD48: 93.49991869 | CE48: 75.99737082 | CF48: 0 | CG48: 0.3057102014 | CH48: 68.4137118 | CI48: 63.4137118 | CK48: 1958 | CL48: =E445 ->  | CM48: =E446 ->  | CN48: =E447 ->  | CO48: =E448 ->  | CP48: =E449 ->  | CQ48: =E450 ->  | CR48: =E451 ->  | CS48: =E452 ->  | CT48: =E453 ->  | CU48: =E454 ->  | CV48: =E455 ->  | CW48: =E456 ->  | DK48: 1958 | DL48: =F445 ->  | DM48: =F446 ->  | DN48: =F447 ->  | DO48: =F448 ->  | DP48: =F449 ->  | DQ48: =F450 ->  | DR48: =F451 ->  | DS48: =F452 ->  | DT48: =F453 ->  | DU48: =F454 ->  | DV48: =F455 ->  | DW48: =F456 ->  | EK48: 1958 | EL48: =G445 ->  | EM48: =G446 ->  | EN48: =G447 ->  | EO48: =G448 ->  | EP48: =G449 ->  | EQ48: =G450 ->  | ER48: =G451 ->  | ES48: =G452 ->  | ET48: =G453 ->  | EU48: =G454 ->  | EV48: =G455 ->  | EW48: =G456 -> 
A49: 1924-10-31 | B49: =INDIRECT(CONCATENATE("'",B$1,"'!",B$4,(YEAR($A49)-1921)*12+MONTH($A49)+3+IF(ISNUMBER(FIND("PRV",B$6)),1,0)))*IF(AND(B$3>0,TRIM(B$9)="CFS"),Conversions!$C49,1) -> 0 | C49: =INDIRECT(CONCATENATE("'",C$1,"'!",C$4,(YEAR($A49)-1921)*12+MONTH($A49)+3+IF(ISNUMBER(FIND("PRV",C$6)),1,0)))*IF(AND(C$3>0,TRIM(C$9)="CFS"),Conversions!$C49,1) -> 5.223733515 | D49: =INDIRECT(CONCATENATE("'",D$1,"'!",D$4,(YEAR($A49)-1921)*12+MONTH($A49)+3+IF(ISNUMBER(FIND("PRV",D$6)),1,0)))*IF(AND(D$3>0,TRIM(D$9)="CFS"),Conversions!$C49,1) -> 7.862734717 | E49: =INDIRECT(CONCATENATE("'",E$1,"'!",E$4,(YEAR($A49)-1921)*12+MONTH($A49)+3+IF(ISNUMBER(FIND("PRV",E$6)),1,0)))*IF(AND(E$3>0,TRIM(E$9)="CFS"),Conversions!$C49,1) ->  | F49: =INDIRECT(CONCATENATE("'",F$1,"'!",F$4,(YEAR($A49)-1921)*12+MONTH($A49)+3+IF(ISNUMBER(FIND("PRV",F$6)),1,0)))*IF(AND(F$3>0,TRIM(F$9)="CFS"),Conversions!$C49,1) ->  | G49: =INDIRECT(CONCATENATE("'",G$1,"'!",G$4,(YEAR($A49)-1921)*12+MONTH($A49)+3+IF(ISNUMBER(FIND("PRV",G$6)),1,0)))*IF(AND(G$3>0,TRIM(G$9)="CFS"),Conversions!$C49,1) ->  | K49: 1959 | L49: =B457 -> 0 | M49: =B458 -> 0 | N49: =B459 -> 0 | O49: =B460 -> 0 | P49: =B461 -> 0 | Q49: =B462 -> 0 | R49: =B463 -> 0 | S49: =B464 -> 0 | T49: =B465 -> 0 | U49: =B466 -> 0 | V49: =B467 -> 0 | W49: =B468 -> 0 | Y49: 0 | Z49: 0 | AA49: 0 | AC49: 0 | AD49: 0 | AE49: 0 | AF49: 0 | AG49: 0 | AH49: 0 | AI49: 0 | AK49: 1959 | AL49: =C457 -> 27.5862069 | AM49: =C458 -> 0 | AN49: =C459 -> 0 | AO49: =C460 -> 0 | AP49: =C461 -> 0 | AQ49: =C462 -> 0.09961777898 | AR49: =C463 -> 77.79554165 | AS49: =C464 -> 87.63546239 | AT49: =C465 -> 113.7370441 | AU49: =C466 -> 163.6567312 | AV49: =C467 -> 71.12038097 | AW49: =C468 -> 30.26167366 | AY49: 717.4219617 | AZ49: 717.4219617 | BA49: 571.8926587 | BC49: 0.09961777898 | BD49: 179.9917955 | BE49: 27.5862069 | BF49: 0 | BG49: 279.267666 | BH49: 378.7758299 | BI49: 190.1838502 | BK49: 1959 | BL49: =D457 -> 27.5862069 | BM49: =D458 -> 0 | BN49: =D459 -> 0 | BO49: =D460 -> 0 | BP49: =D461 -> 0 | BQ49: =D462 -> 0.09961777898 | BR49: =D463 -> 77.79554165 | BS49: =D464 -> 87.63546239 | BT49: =D465 -> 99.3296306 | BU49: =D466 -> 103.9476033 | BV49: =D467 -> 71.10480958 | BW49: =D468 -> 30.26167366 | BY49: 643.0202508 | BZ49: 643.0202508 | CA49: 497.7605459 | CC49: 0.09961777898 | CD49: 179.9762241 | CE49: 27.5862069 | CF49: 0 | CG49: 264.8602524 | CH49: 304.6437171 | CI49: 189.4061291 | CK49: 1959 | CL49: =E457 ->  | CM49: =E458 ->  | CN49: =E459 ->  | CO49: =E460 ->  | CP49: =E461 ->  | CQ49: =E462 ->  | CR49: =E463 ->  | CS49: =E464 ->  | CT49: =E465 ->  | CU49: =E466 ->  | CV49: =E467 ->  | CW49: =E468 ->  | DK49: 1959 | DL49: =F457 ->  | DM49: =F458 ->  | DN49: =F459 ->  | DO49: =F460 ->  | DP49: =F461 ->  | DQ49: =F462 ->  | DR49: =F463 ->  | DS49: =F464 ->  | DT49: =F465 ->  | DU49: =F466 ->  | DV49: =F467 ->  | DW49: =F468 ->  | EK49: 1959 | EL49: =G457 ->  | EM49: =G458 ->  | EN49: =G459 ->  | EO49: =G460 ->  | EP49: =G461 ->  | EQ49: =G462 ->  | ER49: =G463 ->  | ES49: =G464 ->  | ET49: =G465 ->  | EU49: =G466 ->  | EV49: =G467 ->  | EW49: =G468 -> 
A50: 1924-11-30 | B50: =INDIRECT(CONCATENATE("'",B$1,"'!",B$4,(YEAR($A50)-1921)*12+MONTH($A50)+3+IF(ISNUMBER(FIND("PRV",B$6)),1,0)))*IF(AND(B$3>0,TRIM(B$9)="CFS"),Conversions!$C50,1) -> 0 | C50: =INDIRECT(CONCATENATE("'",C$1,"'!",C$4,(YEAR($A50)-1921)*12+MONTH($A50)+3+IF(ISNUMBER(FIND("PRV",C$6)),1,0)))*IF(AND(C$3>0,TRIM(C$9)="CFS"),Conversions!$C50,1) -> 0 | D50: =INDIRECT(CONCATENATE("'",D$1,"'!",D$4,(YEAR($A50)-1921)*12+MONTH($A50)+3+IF(ISNUMBER(FIND("PRV",D$6)),1,0)))*IF(AND(D$3>0,TRIM(D$9)="CFS"),Conversions!$C50,1) -> 3.287933012 | E50: =INDIRECT(CONCATENATE("'",E$1,"'!",E$4,(YEAR($A50)-1921)*12+MONTH($A50)+3+IF(ISNUMBER(FIND("PRV",E$6)),1,0)))*IF(AND(E$3>0,TRIM(E$9)="CFS"),Conversions!$C50,1) ->  | F50: =INDIRECT(CONCATENATE("'",F$1,"'!",F$4,(YEAR($A50)-1921)*12+MONTH($A50)+3+IF(ISNUMBER(FIND("PRV",F$6)),1,0)))*IF(AND(F$3>0,TRIM(F$9)="CFS"),Conversions!$C50,1) ->  | G50: =INDIRECT(CONCATENATE("'",G$1,"'!",G$4,(YEAR($A50)-1921)*12+MONTH($A50)+3+IF(ISNUMBER(FIND("PRV",G$6)),1,0)))*IF(AND(G$3>0,TRIM(G$9)="CFS"),Conversions!$C50,1) ->  | K50: 1960 | L50: =B469 -> 0 | M50: =B470 -> 0 | N50: =B471 -> 0 | O50: =B472 -> 0 | P50: =B473 -> 0 | Q50: =B474 -> 0 | R50: =B475 -> 0 | S50: =B476 -> 0 | T50: =B477 -> 0 | U50: =B478 -> 0 | V50: =B479 -> 0 | W50: =B480 -> 0 | Y50: 0 | Z50: 0 | AA50: 0 | AC50: 0 | AD50: 0 | AE50: 0 | AF50: 0 | AG50: 0 | AH50: 0 | AI50: 0 | AK50: 1960 | AL50: =C469 -> 78.60974085 | AM50: =C470 -> 81.31243572 | AN50: =C471 -> 13.19333333 | AO50: =C472 -> 0 | AP50: =C473 -> 0 | AQ50: =C474 -> 0 | AR50: =C475 -> 25.38121026 | AS50: =C476 -> 30.04941811 | AT50: =C477 -> 141.9889475 | AU50: =C478 -> 96.08397377 | AV50: =C479 -> 129.205504 | AW50: =C480 -> 83.6570052 | AY50: 591.580051 | AZ50: 591.580051 | BA50: 679.4815687 | BC50: 94.50576905 | BD50: 293.6131092 | BE50: 173.1155099 | BF50: 13.19333333 | BG50: 197.4195758 | BH50: 450.9354304 | BI50: 168.8709974 | BK50: 1960 | BL50: =D469 -> 78.60974084 | BM50: =D470 -> 80.53471458 | BN50: =D471 -> 13.70145644 | BO50: =D472 -> 0 | BP50: =D473 -> 0 | BQ50: =D474 -> 0 | BR50: =D475 -> 25.38121026 | BS50: =D476 -> 30.04941811 | BT50: =D477 -> 102.3706644 | BU50: =D478 -> 96.07413676 | BV50: =D479 -> 129.200265 | BW50: =D480 -> 83.65700393 | BY50: 549.2232984 | BZ50: 549.2232984 | CA50: 639.5786103 | CC50: 94.23617102 | CD50: 293.6078689 | CE50: 172.8459119 | CF50: 13.70145644 | CG50: 157.8012928 | CH50: 411.3020701 | CI50: 166.1476039 | CK50: 1960 | CL50: =E469 ->  | CM50: =E470 ->  | CN50: =E471 ->  | CO50: =E472 ->  | CP50: =E473 ->  | CQ50: =E474 ->  | CR50: =E475 ->  | CS50: =E476 ->  | CT50: =E477 ->  | CU50: =E478 ->  | CV50: =E479 ->  | CW50: =E480 ->  | DK50: 1960 | DL50: =F469 ->  | DM50: =F470 ->  | DN50: =F471 ->  | DO50: =F472 ->  | DP50: =F473 ->  | DQ50: =F474 ->  | DR50: =F475 ->  | DS50: =F476 ->  | DT50: =F477 ->  | DU50: =F478 ->  | DV50: =F479 ->  | DW50: =F480 ->  | EK50: 1960 | EL50: =G469 ->  | EM50: =G470 ->  | EN50: =G471 ->  | EO50: =G472 ->  | EP50: =G473 ->  | EQ50: =G474 ->  | ER50: =G475 ->  | ES50: =G476 ->  | ET50: =G477 ->  | EU50: =G478 ->  | EV50: =G479 ->  | EW50: =G480 -> 
A51: 1924-12-31 | B51: =INDIRECT(CONCATENATE("'",B$1,"'!",B$4,(YEAR($A51)-1921)*12+MONTH($A51)+3+IF(ISNUMBER(FIND("PRV",B$6)),1,0)))*IF(AND(B$3>0,TRIM(B$9)="CFS"),Conversions!$C51,1) -> 0 | C51: =INDIRECT(CONCATENATE("'",C$1,"'!",C$4,(YEAR($A51)-1921)*12+MONTH($A51)+3+IF(ISNUMBER(FIND("PRV",C$6)),1,0)))*IF(AND(C$3>0,TRIM(C$9)="CFS"),Conversions!$C51,1) -> 0 | D51: =INDIRECT(CONCATENATE("'",D$1,"'!",D$4,(YEAR($A51)-1921)*12+MONTH($A51)+3+IF(ISNUMBER(FIND("PRV",D$6)),1,0)))*IF(AND(D$3>0,TRIM(D$9)="CFS"),Conversions!$C51,1) -> 0 | E51: =INDIRECT(CONCATENATE("'",E$1,"'!",E$4,(YEAR($A51)-1921)*12+MONTH($A51)+3+IF(ISNUMBER(FIND("PRV",E$6)),1,0)))*IF(AND(E$3>0,TRIM(E$9)="CFS"),Conversions!$C51,1) ->  | F51: =INDIRECT(CONCATENATE("'",F$1,"'!",F$4,(YEAR($A51)-1921)*12+MONTH($A51)+3+IF(ISNUMBER(FIND("PRV",F$6)),1,0)))*IF(AND(F$3>0,TRIM(F$9)="CFS"),Conversions!$C51,1) ->  | G51: =INDIRECT(CONCATENATE("'",G$1,"'!",G$4,(YEAR($A51)-1921)*12+MONTH($A51)+3+IF(ISNUMBER(FIND("PRV",G$6)),1,0)))*IF(AND(G$3>0,TRIM(G$9)="CFS"),Conversions!$C51,1) ->  | K51: 1961 | L51: =B481 -> 0 | M51: =B482 -> 0 | N51: =B483 -> 0 | O51: =B484 -> 0 | P51: =B485 -> 0 | Q51: =B486 -> 0 | R51: =B487 -> 0 | S51: =B488 -> 0 | T51: =B489 -> 0 | U51: =B490 -> 0 | V51: =B491 -> 0 | W51: =B492 -> 0 | Y51: 0 | Z51: 0 | AA51: 0 | AC51: 0 | AD51: 0 | AE51: 0 | AF51: 0 | AG51: 0 | AH51: 0 | AI51: 0 | AK51: 1961 | AL51: =C481 -> 80.75059999 | AM51: =C482 -> 4.463392212 | AN51: =C483 -> 0 | AO51: =C484 -> 0 | AP51: =C485 -> 0 | AQ51: =C486 -> 0 | AR51: =C487 -> 63.72260251 | AS51: =C488 -> 60.42212425 | AT51: =C489 -> 64.54479783 | AU51: =C490 -> 95.49476957 | AV51: =C491 -> 113.2928915 | AW51: =C492 -> 77.16464394 | AY51: 598.869287 | AZ51: 598.869287 | BA51: 559.8558219 | BC51: 4.463392212 | BD51: 268.1171401 | BE51: 85.2139922 | BF51: 0 | BG51: 188.6895246 | BH51: 350.4971029 | BI51: 201.3921013 | BK51: 1961 | BL51: =D481 -> 80.75059999 | BM51: =D482 -> 1.74 | BN51: =D483 -> 0 | BO51: =D484 -> 0 | BP51: =D485 -> 0 | BQ51: =D486 -> 0 | BR51: =D487 -> 56.13393403 | BS51: =D488 -> 0.9634011259 | BT51: =D489 -> 69.31565463 | BU51: =D490 -> 99.49154054 | BV51: =D491 -> 113.3462305 | BW51: =D492 -> 77.18492412 | BY51: 576.960923 | BZ51: 576.960923 | CA51: 498.9262849 | CC51: 1.74 | CD51: 268.1985992 | CE51: 82.49059999 | CF51: 0 | CG51: 126.4129898 | CH51: 359.3383498 | CI51: 231.8547655 | CK51: 1961 | CL51: =E481 ->  | CM51: =E482 ->  | CN51: =E483 ->  | CO51: =E484 ->  | CP51: =E485 ->  | CQ51: =E486 ->  | CR51: =E487 ->  | CS51: =E488 ->  | CT51: =E489 ->  | CU51: =E490 ->  | CV51: =E491 ->  | CW51: =E492 ->  | DK51: 1961 | DL51: =F481 ->  | DM51: =F482 ->  | DN51: =F483 ->  | DO51: =F484 ->  | DP51: =F485 ->  | DQ51: =F486 ->  | DR51: =F487 ->  | DS51: =F488 ->  | DT51: =F489 ->  | DU51: =F490 ->  | DV51: =F491 ->  | DW51: =F492 ->  | EK51: 1961 | EL51: =G481 ->  | EM51: =G482 ->  | EN51: =G483 ->  | EO51: =G484 ->  | EP51: =G485 ->  | EQ51: =G486 ->  | ER51: =G487 ->  | ES51: =G488 ->  | ET51: =G489 ->  | EU51: =G490 ->  | EV51: =G491 ->  | EW51: =G492 -> 
A52: 1925-01-31 | B52: =INDIRECT(CONCATENATE("'",B$1,"'!",B$4,(YEAR($A52)-1921)*12+MONTH($A52)+3+IF(ISNUMBER(FIND("PRV",B$6)),1,0)))*IF(AND(B$3>0,TRIM(B$9)="CFS"),Conversions!$C52,1) -> 0 | C52: =INDIRECT(CONCATENATE("'",C$1,"'!",C$4,(YEAR($A52)-1921)*12+MONTH($A52)+3+IF(ISNUMBER(FIND("PRV",C$6)),1,0)))*IF(AND(C$3>0,TRIM(C$9)="CFS"),Conversions!$C52,1) -> 0 | D52: =INDIRECT(CONCATENATE("'",D$1,"'!",D$4,(YEAR($A52)-1921)*12+MONTH($A52)+3+IF(ISNUMBER(FIND("PRV",D$6)),1,0)))*IF(AND(D$3>0,TRIM(D$9)="CFS"),Conversions!$C52,1) -> 0 | E52: =INDIRECT(CONCATENATE("'",E$1,"'!",E$4,(YEAR($A52)-1921)*12+MONTH($A52)+3+IF(ISNUMBER(FIND("PRV",E$6)),1,0)))*IF(AND(E$3>0,TRIM(E$9)="CFS"),Conversions!$C52,1) ->  | F52: =INDIRECT(CONCATENATE("'",F$1,"'!",F$4,(YEAR($A52)-1921)*12+MONTH($A52)+3+IF(ISNUMBER(FIND("PRV",F$6)),1,0)))*IF(AND(F$3>0,TRIM(F$9)="CFS"),Conversions!$C52,1) ->  | G52: =INDIRECT(CONCATENATE("'",G$1,"'!",G$4,(YEAR($A52)-1921)*12+MONTH($A52)+3+IF(ISNUMBER(FIND("PRV",G$6)),1,0)))*IF(AND(G$3>0,TRIM(G$9)="CFS"),Conversions!$C52,1) ->  | K52: 1962 | L52: =B493 -> 0 | M52: =B494 -> 0 | N52: =B495 -> 0 | O52: =B496 -> 0 | P52: =B497 -> 0 | Q52: =B498 -> 0 | R52: =B499 -> 0 | S52: =B500 -> 0 | T52: =B501 -> 0 | U52: =B502 -> 0 | V52: =B503 -> 0 | W52: =B504 -> 0 | Y52: 0 | Z52: 0 | AA52: 0 | AC52: 0 | AD52: 0 | AE52: 0 | AF52: 0 | AG52: 0 | AH52: 0 | AI52: 0 | AK52: 1962 | AL52: =C493 -> 77.65960463 | AM52: =C494 -> 46.56785271 | AN52: =C495 -> 0 | AO52: =C496 -> 0 | AP52: =C497 -> 0 | AQ52: =C498 -> 0 | AR52: =C499 -> 2.185214299 | AS52: =C500 -> 63.11303437 | AT52: =C501 -> 24.36256327 | AU52: =C502 -> 37.95086646 | AV52: =C503 -> 30.09662856 | AW52: =C504 -> 67.13571016 | AY52: 232.7885575 | AZ52: 232.7885575 | BA52: 349.0714745 | BC52: 46.56785271 | BD52: 97.23233872 | BE52: 124.2274573 | BF52: 0 | BG52: 89.66081194 | BH52: 159.5457684 | BI52: 75.08025057 | BK52: 1962 | BL52: =D493 -> 77.66744461 | BM52: =D494 -> 77.00239682 | BN52: =D495 -> 5.855396647 | BO52: =D496 -> 0 | BP52: =D497 -> 0 | BQ52: =D498 -> 0 | BR52: =D499 -> 2.185214299 | BS52: =D500 -> 40.29582712 | BT52: =D501 -> 32.5 | BU52: =D502 -> 48.84850943 | BV52: =D503 -> 65.14760331 | BW52: =D504 -> 73.03131144 | BY52: 269.9515575 | BZ52: 269.9515575 | CA52: 422.5337037 | CC52: 82.85779347 | CD52: 138.1789147 | CE52: 160.5252381 | CF52: 5.855396647 | CG52: 74.98104143 | CH52: 219.5274242 | CI52: 80.97440338 | CK52: 1962 | CL52: =E493 ->  | CM52: =E494 ->  | CN52: =E495 ->  | CO52: =E496 ->  | CP52: =E497 ->  | CQ52: =E498 ->  | CR52: =E499 ->  | CS52: =E500 ->  | CT52: =E501 ->  | CU52: =E502 ->  | CV52: =E503 ->  | CW52: =E504 ->  | DK52: 1962 | DL52: =F493 ->  | DM52: =F494 ->  | DN52: =F495 ->  | DO52: =F496 ->  | DP52: =F497 ->  | DQ52: =F498 ->  | DR52: =F499 ->  | DS52: =F500 ->  | DT52: =F501 ->  | DU52: =F502 ->  | DV52: =F503 ->  | DW52: =F504 ->  | EK52: 1962 | EL52: =G493 ->  | EM52: =G494 ->  | EN52: =G495 ->  | EO52: =G496 ->  | EP52: =G497 ->  | EQ52: =G498 ->  | ER52: =G499 ->  | ES52: =G500 ->  | ET52: =G501 ->  | EU52: =G502 ->  | EV52: =G503 ->  | EW52: =G504 -> 
A53: 1925-02-28 | B53: =INDIRECT(CONCATENATE("'",B$1,"'!",B$4,(YEAR($A53)-1921)*12+MONTH($A53)+3+IF(ISNUMBER(FIND("PRV",B$6)),1,0)))*IF(AND(B$3>0,TRIM(B$9)="CFS"),Conversions!$C53,1) -> 0 | C53: =INDIRECT(CONCATENATE("'",C$1,"'!",C$4,(YEAR($A53)-1921)*12+MONTH($A53)+3+IF(ISNUMBER(FIND("PRV",C$6)),1,0)))*IF(AND(C$3>0,TRIM(C$9)="CFS"),Conversions!$C53,1) -> 0 | D53: =INDIRECT(CONCATENATE("'",D$1,"'!",D$4,(YEAR($A53)-1921)*12+MONTH($A53)+3+IF(ISNUMBER(FIND("PRV",D$6)),1,0)))*IF(AND(D$3>0,TRIM(D$9)="CFS"),Conversions!$C53,1) -> 0 | E53: =INDIRECT(CONCATENATE("'",E$1,"'!",E$4,(YEAR($A53)-1921)*12+MONTH($A53)+3+IF(ISNUMBER(FIND("PRV",E$6)),1,0)))*IF(AND(E$3>0,TRIM(E$9)="CFS"),Conversions!$C53,1) ->  | F53: =INDIRECT(CONCATENATE("'",F$1,"'!",F$4,(YEAR($A53)-1921)*12+MONTH($A53)+3+IF(ISNUMBER(FIND("PRV",F$6)),1,0)))*IF(AND(F$3>0,TRIM(F$9)="CFS"),Conversions!$C53,1) ->  | G53: =INDIRECT(CONCATENATE("'",G$1,"'!",G$4,(YEAR($A53)-1921)*12+MONTH($A53)+3+IF(ISNUMBER(FIND("PRV",G$6)),1,0)))*IF(AND(G$3>0,TRIM(G$9)="CFS"),Conversions!$C53,1) ->  | K53: 1963 | L53: =B505 -> 0 | M53: =B506 -> 0 | N53: =B507 -> 0 | O53: =B508 -> 0 | P53: =B509 -> 0 | Q53: =B510 -> 0 | R53: =B511 -> 0 | S53: =B512 -> 0 | T53: =B513 -> 0 | U53: =B514 -> 0 | V53: =B515 -> 0 | W53: =B516 -> 0 | Y53: 0 | Z53: 0 | AA53: 0 | AC53: 0 | AD53: 0 | AE53: 0 | AF53: 0 | AG53: 0 | AH53: 0 | AI53: 0 | AK53: 1963 | AL53: =C505 -> 0 | AM53: =C506 -> 7.944540412 | AN53: =C507 -> 0 | AO53: =C508 -> 0 | AP53: =C509 -> 0 | AQ53: =C510 -> 0 | AR53: =C511 -> 0 | AS53: =C512 -> 0 | AT53: =C513 -> 0 | AU53: =C514 -> 2.5 | AV53: =C515 -> 30.0862069 | AW53: =C516 -> 27.5862069 | AY53: 76.37435478 | AZ53: 76.37435478 | BA53: 68.11695421 | BC53: 7.944540412 | BD53: 73.87435478 | BE53: 7.944540412 | BF53: 0 | BG53: 0 | BH53: 60.1724138 | BI53: 43.78814788 | BK53: 1963 | BL53: =D505 -> 0 | BM53: =D506 -> 7.943091943 | BN53: =D507 -> 0 | BO53: =D508 -> 0 | BP53: =D509 -> 0 | BQ53: =D510 -> 0 | BR53: =D511 -> 0 | BS53: =D512 -> 0 | BT53: =D513 -> 0 | BU53: =D514 -> 2.5 | BV53: =D515 -> 30.0862069 | BW53: =D516 -> 27.5862069 | BY53: 85.1516498 | BZ53: 85.1516498 | CA53: 68.11550574 | CC53: 7.943091943 | CD53: 82.65164979 | CE53: 7.943091943 | CF53: 0 | CG53: 0 | CH53: 60.1724138 | CI53: 52.5654429 | CK53: 1963 | CL53: =E505 ->  | CM53: =E506 ->  | CN53: =E507 ->  | CO53: =E508 ->  | CP53: =E509 ->  | CQ53: =E510 ->  | CR53: =E511 ->  | CS53: =E512 ->  | CT53: =E513 ->  | CU53: =E514 ->  | CV53: =E515 ->  | CW53: =E516 ->  | DK53: 1963 | DL53: =F505 ->  | DM53: =F506 ->  | DN53: =F507 ->  | DO53: =F508 ->  | DP53: =F509 ->  | DQ53: =F510 ->  | DR53: =F511 ->  | DS53: =F512 ->  | DT53: =F513 ->  | DU53: =F514 ->  | DV53: =F515 ->  | DW53: =F516 ->  | EK53: 1963 | EL53: =G505 ->  | EM53: =G506 ->  | EN53: =G507 ->  | EO53: =G508 ->  | EP53: =G509 ->  | EQ53: =G510 ->  | ER53: =G511 ->  | ES53: =G512 ->  | ET53: =G513 ->  | EU53: =G514 ->  | EV53: =G515 ->  | EW53: =G516 -> 
A54: 1925-03-31 | B54: =INDIRECT(CONCATENATE("'",B$1,"'!",B$4,(YEAR($A54)-1921)*12+MONTH($A54)+3+IF(ISNUMBER(FIND("PRV",B$6)),1,0)))*IF(AND(B$3>0,TRIM(B$9)="CFS"),Conversions!$C54,1) -> 0 | C54: =INDIRECT(CONCATENATE("'",C$1,"'!",C$4,(YEAR($A54)-1921)*12+MONTH($A54)+3+IF(ISNUMBER(FIND("PRV",C$6)),1,0)))*IF(AND(C$3>0,TRIM(C$9)="CFS"),Conversions!$C54,1) -> 0 | D54: =INDIRECT(CONCATENATE("'",D$1,"'!",D$4,(YEAR($A54)-1921)*12+MONTH($A54)+3+IF(ISNUMBER(FIND("PRV",D$6)),1,0)))*IF(AND(D$3>0,TRIM(D$9)="CFS"),Conversions!$C54,1) -> 0 | E54: =INDIRECT(CONCATENATE("'",E$1,"'!",E$4,(YEAR($A54)-1921)*12+MONTH($A54)+3+IF(ISNUMBER(FIND("PRV",E$6)),1,0)))*IF(AND(E$3>0,TRIM(E$9)="CFS"),Conversions!$C54,1) ->  | F54: =INDIRECT(CONCATENATE("'",F$1,"'!",F$4,(YEAR($A54)-1921)*12+MONTH($A54)+3+IF(ISNUMBER(FIND("PRV",F$6)),1,0)))*IF(AND(F$3>0,TRIM(F$9)="CFS"),Conversions!$C54,1) ->  | G54: =INDIRECT(CONCATENATE("'",G$1,"'!",G$4,(YEAR($A54)-1921)*12+MONTH($A54)+3+IF(ISNUMBER(FIND("PRV",G$6)),1,0)))*IF(AND(G$3>0,TRIM(G$9)="CFS"),Conversions!$C54,1) ->  | K54: 1964 | L54: =B517 -> 0 | M54: =B518 -> 0 | N54: =B519 -> 0 | O54: =B520 -> 0 | P54: =B521 -> 0 | Q54: =B522 -> 0 | R54: =B523 -> 0 | S54: =B524 -> 0 | T54: =B525 -> 0 | U54: =B526 -> 0 | V54: =B527 -> 0 | W54: =B528 -> 0 | Y54: 0 | Z54: 0 | AA54: 0 | AC54: 0 | AD54: 0 | AE54: 0 | AF54: 0 | AG54: 0 | AH54: 0 | AI54: 0 | AK54: 1964 | AL54: =C517 -> 16.20194098 | AM54: =C518 -> 0 | AN54: =C519 -> 0 | AO54: =C520 -> 0 | AP54: =C521 -> 0 | AQ54: =C522 -> 1.191005377 | AR54: =C523 -> 38.91022335 | AS54: =C524 -> 86.5386511 | AT54: =C525 -> 126.2634944 | AU54: =C526 -> 134.2352801 | AV54: =C527 -> 95.14272275 | AW54: =C528 -> 81.68231228 | AY54: 600.0070975 | AZ54: 600.0070975 | BA54: 580.1656303 | BC54: 1.191005377 | BD54: 205.9787254 | BE54: 16.20194098 | BF54: 0 | BG54: 252.9033742 | BH54: 437.3238095 | BI54: 117.7257204 | BK54: 1964 | BL54: =D517 -> 24.979236 | BM54: =D518 -> 0 | BN54: =D519 -> 0 | BO54: =D520 -> 0 | BP54: =D521 -> 0 | BQ54: =D522 -> 1.194091462 | BR54: =D523 -> 38.91022335 | BS54: =D524 -> 86.5386511 | BT54: =D525 -> 84.98070205 | BU54: =D526 -> 134.2739113 | BV54: =D527 -> 100.133769 | BW54: =D528 -> 81.6854235 | BY54: 664.2724255 | BZ54: 664.2724255 | CA54: 552.6960077 | CC54: 1.194091462 | CD54: 256.1017708 | CE54: 24.979236 | CF54: 0 | CG54: 211.623668 | CH54: 401.0738058 | CI54: 218.2410773 | CK54: 1964 | CL54: =E517 ->  | CM54: =E518 ->  | CN54: =E519 ->  | CO54: =E520 ->  | CP54: =E521 ->  | CQ54: =E522 ->  | CR54: =E523 ->  | CS54: =E524 ->  | CT54: =E525 ->  | CU54: =E526 ->  | CV54: =E527 ->  | CW54: =E528 ->  | DK54: 1964 | DL54: =F517 ->  | DM54: =F518 ->  | DN54: =F519 ->  | DO54: =F520 ->  | DP54: =F521 ->  | DQ54: =F522 ->  | DR54: =F523 ->  | DS54: =F524 ->  | DT54: =F525 ->  | DU54: =F526 ->  | DV54: =F527 ->  | DW54: =F528 ->  | EK54: 1964 | EL54: =G517 ->  | EM54: =G518 ->  | EN54: =G519 ->  | EO54: =G520 ->  | EP54: =G521 ->  | EQ54: =G522 ->  | ER54: =G523 ->  | ES54: =G524 ->  | ET54: =G525 ->  | EU54: =G526 ->  | EV54: =G527 ->  | EW54: =G528 -> 
A55: 1925-04-30 | B55: =INDIRECT(CONCATENATE("'",B$1,"'!",B$4,(YEAR($A55)-1921)*12+MONTH($A55)+3+IF(ISNUMBER(FIND("PRV",B$6)),1,0)))*IF(AND(B$3>0,TRIM(B$9)="CFS"),Conversions!$C55,1) -> 0 | C55: =INDIRECT(CONCATENATE("'",C$1,"'!",C$4,(YEAR($A55)-1921)*12+MONTH($A55)+3+IF(ISNUMBER(FIND("PRV",C$6)),1,0)))*IF(AND(C$3>0,TRIM(C$9)="CFS"),Conversions!$C55,1) -> 1.923474201 | D55: =INDIRECT(CONCATENATE("'",D$1,"'!",D$4,(YEAR($A55)-1921)*12+MONTH($A55)+3+IF(ISNUMBER(FIND("PRV",D$6)),1,0)))*IF(AND(D$3>0,TRIM(D$9)="CFS"),Conversions!$C55,1) -> 2.038344718 | E55: =INDIRECT(CONCATENATE("'",E$1,"'!",E$4,(YEAR($A55)-1921)*12+MONTH($A55)+3+IF(ISNUMBER(FIND("PRV",E$6)),1,0)))*IF(AND(E$3>0,TRIM(E$9)="CFS"),Conversions!$C55,1) ->  | F55: =INDIRECT(CONCATENATE("'",F$1,"'!",F$4,(YEAR($A55)-1921)*12+MONTH($A55)+3+IF(ISNUMBER(FIND("PRV",F$6)),1,0)))*IF(AND(F$3>0,TRIM(F$9)="CFS"),Conversions!$C55,1) ->  | G55: =INDIRECT(CONCATENATE("'",G$1,"'!",G$4,(YEAR($A55)-1921)*12+MONTH($A55)+3+IF(ISNUMBER(FIND("PRV",G$6)),1,0)))*IF(AND(G$3>0,TRIM(G$9)="CFS"),Conversions!$C55,1) ->  | K55: 1965 | L55: =B529 -> 0 | M55: =B530 -> 0 | N55: =B531 -> 0 | O55: =B532 -> 0 | P55: =B533 -> 0 | Q55: =B534 -> 0 | R55: =B535 -> 0 | S55: =B536 -> 0 | T55: =B537 -> 0 | U55: =B538 -> 0 | V55: =B539 -> 0 | W55: =B540 -> 0 | Y55: 0 | Z55: 0 | AA55: 0 | AC55: 0 | AD55: 0 | AE55: 0 | AF55: 0 | AG55: 0 | AH55: 0 | AI55: 0 | AK55: 1965 | AL55: =C529 -> 29.15369038 | AM55: =C530 -> 6.88971772 | AN55: =C531 -> 0 | AO55: =C532 -> 0 | AP55: =C533 -> 0 | AQ55: =C534 -> 1.043095816 | AR55: =C535 -> 6.259743452 | AS55: =C536 -> 1.976713427 | AT55: =C537 -> 4.921732283 | AU55: =C538 -> 5.330273911 | AV55: =C539 -> 32.04794981 | AW55: =C540 -> 18.2340402 | AY55: 70.17831804 | AZ55: 70.17831804 | BA55: 105.856957 | BC55: 7.932813536 | BD55: 50.64675915 | BE55: 36.0434081 | BF55: 0 | BG55: 14.20128498 | BH55: 60.5339962 | BI55: 18.59880934 | BK55: 1965 | BL55: =D529 -> 74.28257833 | BM55: =D530 -> 62.27307546 | BN55: =D531 -> 0 | BO55: =D532 -> 0 | BP55: =D533 -> 0 | BQ55: =D534 -> 1.043095816 | BR55: =D535 -> 6.259743452 | BS55: =D536 -> 1.976713427 | BT55: =D537 -> 4.921732283 | BU55: =D538 -> 5.330273911 | BV55: =D539 -> 32.04794981 | BW55: =D540 -> 22.24830963 | BY55: 74.19258748 | BZ55: 74.19258748 | CA55: 210.3834721 | CC55: 63.31617128 | CD55: 54.66102859 | CE55: 136.5556538 | CF55: 0 | CG55: 14.20128498 | CH55: 64.54826564 | CI55: 22.61307878 | CK55: 1965 | CL55: =E529 ->  | CM55: =E530 ->  | CN55: =E531 ->  | CO55: =E532 ->  | CP55: =E533 ->  | CQ55: =E534 ->  | CR55: =E535 ->  | CS55: =E536 ->  | CT55: =E537 ->  | CU55: =E538 ->  | CV55: =E539 ->  | CW55: =E540 ->  | DK55: 1965 | DL55: =F529 ->  | DM55: =F530 ->  | DN55: =F531 ->  | DO55: =F532 ->  | DP55: =F533 ->  | DQ55: =F534 ->  | DR55: =F535 ->  | DS55: =F536 ->  | DT55: =F537 ->  | DU55: =F538 ->  | DV55: =F539 ->  | DW55: =F540 ->  | EK55: 1965 | EL55: =G529 ->  | EM55: =G530 ->  | EN55: =G531 ->  | EO55: =G532 ->  | EP55: =G533 ->  | EQ55: =G534 ->  | ER55: =G535 ->  | ES55: =G536 ->  | ET55: =G537 ->  | EU55: =G538 ->  | EV55: =G539 ->  | EW55: =G540 -> 
A56: 1925-05-31 | B56: =INDIRECT(CONCATENATE("'",B$1,"'!",B$4,(YEAR($A56)-1921)*12+MONTH($A56)+3+IF(ISNUMBER(FIND("PRV",B$6)),1,0)))*IF(AND(B$3>0,TRIM(B$9)="CFS"),Conversions!$C56,1) -> 0 | C56: =INDIRECT(CONCATENATE("'",C$1,"'!",C$4,(YEAR($A56)-1921)*12+MONTH($A56)+3+IF(ISNUMBER(FIND("PRV",C$6)),1,0)))*IF(AND(C$3>0,TRIM(C$9)="CFS"),Conversions!$C56,1) -> 33.67952366 | D56: =INDIRECT(CONCATENATE("'",D$1,"'!",D$4,(YEAR($A56)-1921)*12+MONTH($A56)+3+IF(ISNUMBER(FIND("PRV",D$6)),1,0)))*IF(AND(D$3>0,TRIM(D$9)="CFS"),Conversions!$C56,1) -> 26.24455968 | E56: =INDIRECT(CONCATENATE("'",E$1,"'!",E$4,(YEAR($A56)-1921)*12+MONTH($A56)+3+IF(ISNUMBER(FIND("PRV",E$6)),1,0)))*IF(AND(E$3>0,TRIM(E$9)="CFS"),Conversions!$C56,1) ->  | F56: =INDIRECT(CONCATENATE("'",F$1,"'!",F$4,(YEAR($A56)-1921)*12+MONTH($A56)+3+IF(ISNUMBER(FIND("PRV",F$6)),1,0)))*IF(AND(F$3>0,TRIM(F$9)="CFS"),Conversions!$C56,1) ->  | G56: =INDIRECT(CONCATENATE("'",G$1,"'!",G$4,(YEAR($A56)-1921)*12+MONTH($A56)+3+IF(ISNUMBER(FIND("PRV",G$6)),1,0)))*IF(AND(G$3>0,TRIM(G$9)="CFS"),Conversions!$C56,1) ->  | K56: 1966 | L56: =B541 -> 0 | M56: =B542 -> 0 | N56: =B543 -> 0 | O56: =B544 -> 0 | P56: =B545 -> 0 | Q56: =B546 -> 0 | R56: =B547 -> 0 | S56: =B548 -> 0 | T56: =B549 -> 0 | U56: =B550 -> 0 | V56: =B551 -> 0 | W56: =B552 -> 0 | Y56: 0 | Z56: 0 | AA56: 0 | AC56: 0 | AD56: 0 | AE56: 0 | AF56: 0 | AG56: 0 | AH56: 0 | AI56: 0 | AK56: 1966 | AL56: =C541 -> 0.3647691456 | AM56: =C542 -> 0 | AN56: =C543 -> 0 | AO56: =C544 -> 0 | AP56: =C545 -> 0 | AQ56: =C546 -> 0.05100962121 | AR56: =C547 -> 19.61084889 | AS56: =C548 -> 85.79553853 | AT56: =C549 -> 113.5435753 | AU56: =C550 -> 128.5276966 | AV56: =C551 -> 17.967662 | AW56: =C552 -> 61.71545876 | AY56: 498.2488816 | AZ56: 498.2488816 | BA56: 427.5765588 | BC56: 0.05100962121 | BD56: 145.6507826 | BE56: 0.3647691456 | BF56: 0 | BG56: 219.0009723 | BH56: 321.7543926 | BI56: 132.7525507 | BK56: 1966 | BL56: =D541 -> 0.3647691456 | BM56: =D542 -> 0 | BN56: =D543 -> 0 | BO56: =D544 -> 0 | BP56: =D545 -> 0 | BQ56: =D546 -> 0.05100962121 | BR56: =D547 -> 19.61084889 | BS56: =D548 -> 85.79553853 | BT56: =D549 -> 115.6892148 | BU56: =D550 -> 61.76549335 | BV56: =D551 -> 10.50039842 | BW56: =D552 -> 63.61884498 | BY56: 421.5634671 | BZ56: 421.5634671 | CA56: 357.3961178 | CC56: 0.05100962121 | CD56: 133.5753103 | CE56: 0.3647691456 | CF56: 0 | CG56: 221.1466119 | CH56: 251.5739516 | CI56: 128.1509635 | CK56: 1966 | CL56: =E541 ->  | CM56: =E542 ->  | CN56: =E543 ->  | CO56: =E544 ->  | CP56: =E545 ->  | CQ56: =E546 ->  | CR56: =E547 ->  | CS56: =E548 ->  | CT56: =E549 ->  | CU56: =E550 ->  | CV56: =E551 ->  | CW56: =E552 ->  | DK56: 1966 | DL56: =F541 ->  | DM56: =F542 ->  | DN56: =F543 ->  | DO56: =F544 ->  | DP56: =F545 ->  | DQ56: =F546 ->  | DR56: =F547 ->  | DS56: =F548 ->  | DT56: =F549 ->  | DU56: =F550 ->  | DV56: =F551 ->  | DW56: =F552 ->  | EK56: 1966 | EL56: =G541 ->  | EM56: =G542 ->  | EN56: =G543 ->  | EO56: =G544 ->  | EP56: =G545 ->  | EQ56: =G546 ->  | ER56: =G547 ->  | ES56: =G548 ->  | ET56: =G549 ->  | EU56: =G550 ->  | EV56: =G551 ->  | EW56: =G552 -> 
A57: 1925-06-30 | B57: =INDIRECT(CONCATENATE("'",B$1,"'!",B$4,(YEAR($A57)-1921)*12+MONTH($A57)+3+IF(ISNUMBER(FIND("PRV",B$6)),1,0)))*IF(AND(B$3>0,TRIM(B$9)="CFS"),Conversions!$C57,1) -> 0 | C57: =INDIRECT(CONCATENATE("'",C$1,"'!",C$4,(YEAR($A57)-1921)*12+MONTH($A57)+3+IF(ISNUMBER(FIND("PRV",C$6)),1,0)))*IF(AND(C$3>0,TRIM(C$9)="CFS"),Conversions!$C57,1) -> 30.10754506 | D57: =INDIRECT(CONCATENATE("'",D$1,"'!",D$4,(YEAR($A57)-1921)*12+MONTH($A57)+3+IF(ISNUMBER(FIND("PRV",D$6)),1,0)))*IF(AND(D$3>0,TRIM(D$9)="CFS"),Conversions!$C57,1) -> 40.15564147 | E57: =INDIRECT(CONCATENATE("'",E$1,"'!",E$4,(YEAR($A57)-1921)*12+MONTH($A57)+3+IF(ISNUMBER(FIND("PRV",E$6)),1,0)))*IF(AND(E$3>0,TRIM(E$9)="CFS"),Conversions!$C57,1) ->  | F57: =INDIRECT(CONCATENATE("'",F$1,"'!",F$4,(YEAR($A57)-1921)*12+MONTH($A57)+3+IF(ISNUMBER(FIND("PRV",F$6)),1,0)))*IF(AND(F$3>0,TRIM(F$9)="CFS"),Conversions!$C57,1) ->  | G57: =INDIRECT(CONCATENATE("'",G$1,"'!",G$4,(YEAR($A57)-1921)*12+MONTH($A57)+3+IF(ISNUMBER(FIND("PRV",G$6)),1,0)))*IF(AND(G$3>0,TRIM(G$9)="CFS"),Conversions!$C57,1) ->  | K57: 1967 | L57: =B553 -> 0 | M57: =B554 -> 0 | N57: =B555 -> 0 | O57: =B556 -> 0 | P57: =B557 -> 0 | Q57: =B558 -> 0 | R57: =B559 -> 0 | S57: =B560 -> 0 | T57: =B561 -> 0 | U57: =B562 -> 0 | V57: =B563 -> 0 | W57: =B564 -> 0 | Y57: 0 | Z57: 0 | AA57: 0 | AC57: 0 | AD57: 0 | AE57: 0 | AF57: 0 | AG57: 0 | AH57: 0 | AI57: 0 | AK57: 1967 | AL57: =C553 -> 65.96766179 | AM57: =C554 -> 5.06943013 | AN57: =C555 -> 0 | AO57: =C556 -> 0 | AP57: =C557 -> 0 | AQ57: =C558 -> 0 | AR57: =C559 -> 0.0928847921 | AS57: =C560 -> 0 | AT57: =C561 -> 0 | AU57: =C562 -> 2.5 | AV57: =C563 -> 30.0862069 | AW57: =C564 -> 27.5862069 | AY57: 87.85150549 | AZ57: 87.85150549 | BA57: 131.3023905 | BC57: 5.06943013 | BD57: 85.2586207 | BE57: 71.03709192 | BF57: 0 | BG57: 0.0928847921 | BH57: 60.1724138 | BI57: 55.1724138 | BK57: 1967 | BL57: =D553 -> 59.45606687 | BM57: =D554 -> 5.076051621 | BN57: =D555 -> 0 | BO57: =D556 -> 0 | BP57: =D557 -> 0 | BQ57: =D558 -> 0 | BR57: =D559 -> 0.0928847921 | BS57: =D560 -> 0 | BT57: =D561 -> 0 | BU57: =D562 -> 2.5 | BV57: =D563 -> 30.0862069 | BW57: =D564 -> 27.5862069 | BY57: 87.85150549 | BZ57: 87.85150549 | CA57: 124.7974171 | CC57: 5.076051621 | CD57: 85.2586207 | CE57: 64.53211849 | CF57: 0 | CG57: 0.0928847921 | CH57: 60.1724138 | CI57: 55.1724138 | CK57: 1967 | CL57: =E553 ->  | CM57: =E554 ->  | CN57: =E555 ->  | CO57: =E556 ->  | CP57: =E557 ->  | CQ57: =E558 ->  | CR57: =E559 ->  | CS57: =E560 ->  | CT57: =E561 ->  | CU57: =E562 ->  | CV57: =E563 ->  | CW57: =E564 ->  | DK57: 1967 | DL57: =F553 ->  | DM57: =F554 ->  | DN57: =F555 ->  | DO57: =F556 ->  | DP57: =F557 ->  | DQ57: =F558 ->  | DR57: =F559 ->  | DS57: =F560 ->  | DT57: =F561 ->  | DU57: =F562 ->  | DV57: =F563 ->  | DW57: =F564 ->  | EK57: 1967 | EL57: =G553 ->  | EM57: =G554 ->  | EN57: =G555 ->  | EO57: =G556 ->  | EP57: =G557 ->  | EQ57: =G558 ->  | ER57: =G559 ->  | ES57: =G560 ->  | ET57: =G561 ->  | EU57: =G562 ->  | EV57: =G563 ->  | EW57: =G564 -> 
A58: 1925-07-31 | B58: =INDIRECT(CONCATENATE("'",B$1,"'!",B$4,(YEAR($A58)-1921)*12+MONTH($A58)+3+IF(ISNUMBER(FIND("PRV",B$6)),1,0)))*IF(AND(B$3>0,TRIM(B$9)="CFS"),Conversions!$C58,1) -> 0 | C58: =INDIRECT(CONCATENATE("'",C$1,"'!",C$4,(YEAR($A58)-1921)*12+MONTH($A58)+3+IF(ISNUMBER(FIND("PRV",C$6)),1,0)))*IF(AND(C$3>0,TRIM(C$9)="CFS"),Conversions!$C58,1) -> 116.8264463 | D58: =INDIRECT(CONCATENATE("'",D$1,"'!",D$4,(YEAR($A58)-1921)*12+MONTH($A58)+3+IF(ISNUMBER(FIND("PRV",D$6)),1,0)))*IF(AND(D$3>0,TRIM(D$9)="CFS"),Conversions!$C58,1) -> 116.8264463 | E58: =INDIRECT(CONCATENATE("'",E$1,"'!",E$4,(YEAR($A58)-1921)*12+MONTH($A58)+3+IF(ISNUMBER(FIND("PRV",E$6)),1,0)))*IF(AND(E$3>0,TRIM(E$9)="CFS"),Conversions!$C58,1) ->  | F58: =INDIRECT(CONCATENATE("'",F$1,"'!",F$4,(YEAR($A58)-1921)*12+MONTH($A58)+3+IF(ISNUMBER(FIND("PRV",F$6)),1,0)))*IF(AND(F$3>0,TRIM(F$9)="CFS"),Conversions!$C58,1) ->  | G58: =INDIRECT(CONCATENATE("'",G$1,"'!",G$4,(YEAR($A58)-1921)*12+MONTH($A58)+3+IF(ISNUMBER(FIND("PRV",G$6)),1,0)))*IF(AND(G$3>0,TRIM(G$9)="CFS"),Conversions!$C58,1) ->  | K58: 1968 | L58: =B565 -> 0 | M58: =B566 -> 0 | N58: =B567 -> 0 | O58: =B568 -> 0 | P58: =B569 -> 0 | Q58: =B570 -> 0 | R58: =B571 -> 0 | S58: =B572 -> 0 | T58: =B573 -> 0 | U58: =B574 -> 0 | V58: =B575 -> 0 | W58: =B576 -> 0 | Y58: 0 | Z58: 0 | AA58: 0 | AC58: 0 | AD58: 0 | AE58: 0 | AF58: 0 | AG58: 0 | AH58: 0 | AI58: 0 | AK58: 1968 | AL58: =C565 -> 27.5862069 | AM58: =C566 -> 0 | AN58: =C567 -> 0 | AO58: =C568 -> 0 | AP58: =C569 -> 0 | AQ58: =C570 -> 0 | AR58: =C571 -> 65.66224595 | AS58: =C572 -> 84.80567483 | AT58: =C573 -> 105.6760293 | AU58: =C574 -> 167.05557 | AV58: =C575 -> 109.1448038 | AW58: =C576 -> 80.54498867 | AY58: 690.483099 | AZ58: 690.483099 | BA58: 640.4755195 | BC58: 0 | BD58: 265.5435788 | BE58: 27.5862069 | BF58: 0 | BG58: 256.1439501 | BH58: 462.4213919 | BI58: 158.138775 | BK58: 1968 | BL58: =D565 -> 27.5862069 | BM58: =D566 -> 0 | BN58: =D567 -> 0 | BO58: =D568 -> 0 | BP58: =D569 -> 0 | BQ58: =D570 -> 0 | BR58: =D571 -> 65.66224595 | BS58: =D572 -> 84.80567483 | BT58: =D573 -> 108.931181 | BU58: =D574 -> 118.5428489 | BV58: =D575 -> 83.67885731 | BW58: =D576 -> 80.54410109 | BY58: 621.4482384 | BZ58: 621.4482384 | CA58: 569.7511161 | CC58: 0 | CD58: 241.7662876 | CE58: 27.5862069 | CF58: 0 | CG58: 259.3991018 | CH58: 391.6969884 | CI58: 159.8274303 | CK58: 1968 | CL58: =E565 ->  | CM58: =E566 ->  | CN58: =E567 ->  | CO58: =E568 ->  | CP58: =E569 ->  | CQ58: =E570 ->  | CR58: =E571 ->  | CS58: =E572 ->  | CT58: =E573 ->  | CU58: =E574 ->  | CV58: =E575 ->  | CW58: =E576 ->  | DK58: 1968 | DL58: =F565 ->  | DM58: =F566 ->  | DN58: =F567 ->  | DO58: =F568 ->  | DP58: =F569 ->  | DQ58: =F570 ->  | DR58: =F571 ->  | DS58: =F572 ->  | DT58: =F573 ->  | DU58: =F574 ->  | DV58: =F575 ->  | DW58: =F576 ->  | EK58: 1968 | EL58: =G565 ->  | EM58: =G566 ->  | EN58: =G567 ->  | EO58: =G568 ->  | EP58: =G569 ->  | EQ58: =G570 ->  | ER58: =G571 ->  | ES58: =G572 ->  | ET58: =G573 ->  | EU58: =G574 ->  | EV58: =G575 ->  | EW58: =G576 -> 
A59: 1925-08-31 | B59: =INDIRECT(CONCATENATE("'",B$1,"'!",B$4,(YEAR($A59)-1921)*12+MONTH($A59)+3+IF(ISNUMBER(FIND("PRV",B$6)),1,0)))*IF(AND(B$3>0,TRIM(B$9)="CFS"),Conversions!$C59,1) -> 0 | C59: =INDIRECT(CONCATENATE("'",C$1,"'!",C$4,(YEAR($A59)-1921)*12+MONTH($A59)+3+IF(ISNUMBER(FIND("PRV",C$6)),1,0)))*IF(AND(C$3>0,TRIM(C$9)="CFS"),Conversions!$C59,1) -> 9.289987719 | D59: =INDIRECT(CONCATENATE("'",D$1,"'!",D$4,(YEAR($A59)-1921)*12+MONTH($A59)+3+IF(ISNUMBER(FIND("PRV",D$6)),1,0)))*IF(AND(D$3>0,TRIM(D$9)="CFS"),Conversions!$C59,1) -> 101.5240545 | E59: =INDIRECT(CONCATENATE("'",E$1,"'!",E$4,(YEAR($A59)-1921)*12+MONTH($A59)+3+IF(ISNUMBER(FIND("PRV",E$6)),1,0)))*IF(AND(E$3>0,TRIM(E$9)="CFS"),Conversions!$C59,1) ->  | F59: =INDIRECT(CONCATENATE("'",F$1,"'!",F$4,(YEAR($A59)-1921)*12+MONTH($A59)+3+IF(ISNUMBER(FIND("PRV",F$6)),1,0)))*IF(AND(F$3>0,TRIM(F$9)="CFS"),Conversions!$C59,1) ->  | G59: =INDIRECT(CONCATENATE("'",G$1,"'!",G$4,(YEAR($A59)-1921)*12+MONTH($A59)+3+IF(ISNUMBER(FIND("PRV",G$6)),1,0)))*IF(AND(G$3>0,TRIM(G$9)="CFS"),Conversions!$C59,1) ->  | K59: 1969 | L59: =B577 -> 0 | M59: =B578 -> 0 | N59: =B579 -> 0 | O59: =B580 -> 0 | P59: =B581 -> 0 | Q59: =B582 -> 0 | R59: =B583 -> 0 | S59: =B584 -> 0 | T59: =B585 -> 0 | U59: =B586 -> 0 | V59: =B587 -> 0 | W59: =B588 -> 0 | Y59: 0 | Z59: 0 | AA59: 0 | AC59: 0 | AD59: 0 | AE59: 0 | AF59: 0 | AG59: 0 | AH59: 0 | AI59: 0 | AK59: 1969 | AL59: =C577 -> 75.85378633 | AM59: =C578 -> 1.74 | AN59: =C579 -> 0 | AO59: =C580 -> 0 | AP59: =C581 -> 0 | AQ59: =C582 -> 0 | AR59: =C583 -> 0 | AS59: =C584 -> 0 | AT59: =C585 -> 2.5 | AU59: =C586 -> 2.5 | AV59: =C587 -> 30.0862069 | AW59: =C588 -> 28.74677691 | AY59: 91.4191907 | AZ59: 91.4191907 | BA59: 141.4267701 | BC59: 1.74 | BD59: 86.4191907 | BE59: 77.59378633 | BF59: 0 | BG59: 2.5 | BH59: 63.83298381 | BI59: 56.33298381 | BK59: 1969 | BL59: =D577 -> 77.54332921 | BM59: =D578 -> 1.74 | BN59: =D579 -> 0 | BO59: =D580 -> 0 | BP59: =D581 -> 0 | BQ59: =D582 -> 0 | BR59: =D583 -> 0 | BS59: =D584 -> 0 | BT59: =D585 -> 2.5 | BU59: =D586 -> 2.5 | BV59: =D587 -> 30.0862069 | BW59: =D588 -> 28.74677691 | BY59: 91.4191907 | BZ59: 91.4191907 | CA59: 143.116313 | CC59: 1.74 | CD59: 86.4191907 | CE59: 79.28332921 | CF59: 0 | CG59: 2.5 | CH59: 63.83298381 | CI59: 56.33298381 | CK59: 1969 | CL59: =E577 ->  | CM59: =E578 ->  | CN59: =E579 ->  | CO59: =E580 ->  | CP59: =E581 ->  | CQ59: =E582 ->  | CR59: =E583 ->  | CS59: =E584 ->  | CT59: =E585 ->  | CU59: =E586 ->  | CV59: =E587 ->  | CW59: =E588 ->  | DK59: 1969 | DL59: =F577 ->  | DM59: =F578 ->  | DN59: =F579 ->  | DO59: =F580 ->  | DP59: =F581 ->  | DQ59: =F582 ->  | DR59: =F583 ->  | DS59: =F584 ->  | DT59: =F585 ->  | DU59: =F586 ->  | DV59: =F587 ->  | DW59: =F588 ->  | EK59: 1969 | EL59: =G577 ->  | EM59: =G578 ->  | EN59: =G579 ->  | EO59: =G580 ->  | EP59: =G581 ->  | EQ59: =G582 ->  | ER59: =G583 ->  | ES59: =G584 ->  | ET59: =G585 ->  | EU59: =G586 ->  | EV59: =G587 ->  | EW59: =G588 -> 
A60: 1925-09-30 | B60: =INDIRECT(CONCATENATE("'",B$1,"'!",B$4,(YEAR($A60)-1921)*12+MONTH($A60)+3+IF(ISNUMBER(FIND("PRV",B$6)),1,0)))*IF(AND(B$3>0,TRIM(B$9)="CFS"),Conversions!$C60,1) -> 0 | C60: =INDIRECT(CONCATENATE("'",C$1,"'!",C$4,(YEAR($A60)-1921)*12+MONTH($A60)+3+IF(ISNUMBER(FIND("PRV",C$6)),1,0)))*IF(AND(C$3>0,TRIM(C$9)="CFS"),Conversions!$C60,1) -> 8.573536835 | D60: =INDIRECT(CONCATENATE("'",D$1,"'!",D$4,(YEAR($A60)-1921)*12+MONTH($A60)+3+IF(ISNUMBER(FIND("PRV",D$6)),1,0)))*IF(AND(D$3>0,TRIM(D$9)="CFS"),Conversions!$C60,1) -> 7.708044886 | E60: =INDIRECT(CONCATENATE("'",E$1,"'!",E$4,(YEAR($A60)-1921)*12+MONTH($A60)+3+IF(ISNUMBER(FIND("PRV",E$6)),1,0)))*IF(AND(E$3>0,TRIM(E$9)="CFS"),Conversions!$C60,1) ->  | F60: =INDIRECT(CONCATENATE("'",F$1,"'!",F$4,(YEAR($A60)-1921)*12+MONTH($A60)+3+IF(ISNUMBER(FIND("PRV",F$6)),1,0)))*IF(AND(F$3>0,TRIM(F$9)="CFS"),Conversions!$C60,1) ->  | G60: =INDIRECT(CONCATENATE("'",G$1,"'!",G$4,(YEAR($A60)-1921)*12+MONTH($A60)+3+IF(ISNUMBER(FIND("PRV",G$6)),1,0)))*IF(AND(G$3>0,TRIM(G$9)="CFS"),Conversions!$C60,1) ->  | K60: 1970 | L60: =B589 -> 0 | M60: =B590 -> 0 | N60: =B591 -> 0 | O60: =B592 -> 0 | P60: =B593 -> 0 | Q60: =B594 -> 0 | R60: =B595 -> 0 | S60: =B596 -> 0 | T60: =B597 -> 0 | U60: =B598 -> 0 | V60: =B599 -> 0 | W60: =B600 -> 0 | Y60: 0 | Z60: 0 | AA60: 0 | AC60: 0 | AD60: 0 | AE60: 0 | AF60: 0 | AG60: 0 | AH60: 0 | AI60: 0 | AK60: 1970 | AL60: =C589 -> 27.5862069 | AM60: =C590 -> 0 | AN60: =C591 -> 0 | AO60: =C592 -> 0 | AP60: =C593 -> 0 | AQ60: =C594 -> 0 | AR60: =C595 -> 7.215119647 | AS60: =C596 -> 13.99952591 | AT60: =C597 -> 17.40768068 | AU60: =C598 -> 21.08723299 | AV60: =C599 -> 17.7400804 | AW60: =C600 -> 80.99509093 | AY60: 187.272964 | AZ60: 187.272964 | BA60: 186.0309374 | BC60: 0 | BD60: 127.5634047 | BE60: 27.5862069 | BF60: 0 | BG60: 38.62232623 | BH60: 137.230085 | BI60: 109.8233243 | BK60: 1970 | BL60: =D589 -> 27.5862069 | BM60: =D590 -> 0 | BN60: =D591 -> 0 | BO60: =D592 -> 0 | BP60: =D593 -> 0 | BQ60: =D594 -> 0 | BR60: =D595 -> 7.215119647 | BS60: =D596 -> 13.99952591 | BT60: =D597 -> 17.40768068 | BU60: =D598 -> 21.08723299 | BV60: =D599 -> 17.7400804 | BW60: =D600 -> 80.99333936 | BY60: 187.2712124 | BZ60: 187.2712124 | CA60: 186.0291859 | CC60: 0 | CD60: 127.5616532 | CE60: 27.5862069 | CF60: 0 | CG60: 38.62232623 | CH60: 137.2283334 | CI60: 109.8215728 | CK60: 1970 | CL60: =E589 ->  | CM60: =E590 ->  | CN60: =E591 ->  | CO60: =E592 ->  | CP60: =E593 ->  | CQ60: =E594 ->  | CR60: =E595 ->  | CS60: =E596 ->  | CT60: =E597 ->  | CU60: =E598 ->  | CV60: =E599 ->  | CW60: =E600 ->  | DK60: 1970 | DL60: =F589 ->  | DM60: =F590 ->  | DN60: =F591 ->  | DO60: =F592 ->  | DP60: =F593 ->  | DQ60: =F594 ->  | DR60: =F595 ->  | DS60: =F596 ->  | DT60: =F597 ->  | DU60: =F598 ->  | DV60: =F599 ->  | DW60: =F600 ->  | EK60: 1970 | EL60: =G589 ->  | EM60: =G590 ->  | EN60: =G591 ->  | EO60: =G592 ->  | EP60: =G593 ->  | EQ60: =G594 ->  | ER60: =G595 ->  | ES60: =G596 ->  | ET60: =G597 ->  | EU60: =G598 ->  | EV60: =G599 ->  | EW60: =G600 -> 
A61: 1925-10-31 | B61: =INDIRECT(CONCATENATE("'",B$1,"'!",B$4,(YEAR($A61)-1921)*12+MONTH($A61)+3+IF(ISNUMBER(FIND("PRV",B$6)),1,0)))*IF(AND(B$3>0,TRIM(B$9)="CFS"),Conversions!$C61,1) -> 0 | C61: =INDIRECT(CONCATENATE("'",C$1,"'!",C$4,(YEAR($A61)-1921)*12+MONTH($A61)+3+IF(ISNUMBER(FIND("PRV",C$6)),1,0)))*IF(AND(C$3>0,TRIM(C$9)="CFS"),Conversions!$C61,1) -> 7.60527876 | D61: =INDIRECT(CONCATENATE("'",D$1,"'!",D$4,(YEAR($A61)-1921)*12+MONTH($A61)+3+IF(ISNUMBER(FIND("PRV",D$6)),1,0)))*IF(AND(D$3>0,TRIM(D$9)="CFS"),Conversions!$C61,1) -> 7.254807659 | E61: =INDIRECT(CONCATENATE("'",E$1,"'!",E$4,(YEAR($A61)-1921)*12+MONTH($A61)+3+IF(ISNUMBER(FIND("PRV",E$6)),1,0)))*IF(AND(E$3>0,TRIM(E$9)="CFS"),Conversions!$C61,1) ->  | F61: =INDIRECT(CONCATENATE("'",F$1,"'!",F$4,(YEAR($A61)-1921)*12+MONTH($A61)+3+IF(ISNUMBER(FIND("PRV",F$6)),1,0)))*IF(AND(F$3>0,TRIM(F$9)="CFS"),Conversions!$C61,1) ->  | G61: =INDIRECT(CONCATENATE("'",G$1,"'!",G$4,(YEAR($A61)-1921)*12+MONTH($A61)+3+IF(ISNUMBER(FIND("PRV",G$6)),1,0)))*IF(AND(G$3>0,TRIM(G$9)="CFS"),Conversions!$C61,1) ->  | K61: 1971 | L61: =B601 -> 0 | M61: =B602 -> 0 | N61: =B603 -> 0 | O61: =B604 -> 0 | P61: =B605 -> 0 | Q61: =B606 -> 0 | R61: =B607 -> 0 | S61: =B608 -> 0 | T61: =B609 -> 0 | U61: =B610 -> 0 | V61: =B611 -> 0 | W61: =B612 -> 0 | Y61: 0 | Z61: 0 | AA61: 0 | AC61: 0 | AD61: 0 | AE61: 0 | AF61: 0 | AG61: 0 | AH61: 0 | AI61: 0 | AK61: 1971 | AL61: =C601 -> 28.82823341 | AM61: =C602 -> 0 | AN61: =C603 -> 0 | AO61: =C604 -> 0 | AP61: =C605 -> 0 | AQ61: =C606 -> 0.2666298182 | AR61: =C607 -> 4.168674183 | AS61: =C608 -> 0 | AT61: =C609 -> 2.5 | AU61: =C610 -> 2.5 | AV61: =C611 -> 30.0862069 | AW61: =C612 -> 29.86646673 | AY61: 96.97418465 | AZ61: 96.97418465 | BA61: 98.21621104 | BC61: 0.2666298182 | BD61: 87.53888053 | BE61: 28.82823341 | BF61: 0 | BG61: 6.935304002 | BH61: 64.95267363 | BI61: 57.45267363 | BK61: 1971 | BL61: =D601 -> 28.82823341 | BM61: =D602 -> 0 | BN61: =D603 -> 0 | BO61: =D604 -> 0 | BP61: =D605 -> 0 | BQ61: =D606 -> 0.2666298182 | BR61: =D607 -> 4.168674183 | BS61: =D608 -> 0 | BT61: =D609 -> 2.5 | BU61: =D610 -> 2.5 | BV61: =D611 -> 30.0862069 | BW61: =D612 -> 29.86646673 | BY61: 96.97418453 | BZ61: 96.97418453 | CA61: 98.21621104 | CC61: 0.2666298182 | CD61: 87.53888053 | CE61: 28.82823341 | CF61: 0 | CG61: 6.935304002 | CH61: 64.95267363 | CI61: 57.45267363 | CK61: 1971 | CL61: =E601 ->  | CM61: =E602 ->  | CN61: =E603 ->  | CO61: =E604 ->  | CP61: =E605 ->  | CQ61: =E606 ->  | CR61: =E607 ->  | CS61: =E608 ->  | CT61: =E609 ->  | CU61: =E610 ->  | CV61: =E611 ->  | CW61: =E612 ->  | DK61: 1971 | DL61: =F601 ->  | DM61: =F602 ->  | DN61: =F603 ->  | DO61: =F604 ->  | DP61: =F605 ->  | DQ61: =F606 ->  | DR61: =F607 ->  | DS61: =F608 ->  | DT61: =F609 ->  | DU61: =F610 ->  | DV61: =F611 ->  | DW61: =F612 ->  | EK61: 1971 | EL61: =G601 ->  | EM61: =G602 ->  | EN61: =G603 ->  | EO61: =G604 ->  | EP61: =G605 ->  | EQ61: =G606 ->  | ER61: =G607 ->  | ES61: =G608 ->  | ET61: =G609 ->  | EU61: =G610 ->  | EV61: =G611 ->  | EW61: =G612 -> 
A62: 1925-11-30 | B62: =INDIRECT(CONCATENATE("'",B$1,"'!",B$4,(YEAR($A62)-1921)*12+MONTH($A62)+3+IF(ISNUMBER(FIND("PRV",B$6)),1,0)))*IF(AND(B$3>0,TRIM(B$9)="CFS"),Conversions!$C62,1) -> 0 | C62: =INDIRECT(CONCATENATE("'",C$1,"'!",C$4,(YEAR($A62)-1921)*12+MONTH($A62)+3+IF(ISNUMBER(FIND("PRV",C$6)),1,0)))*IF(AND(C$3>0,TRIM(C$9)="CFS"),Conversions!$C62,1) -> 0 | D62: =INDIRECT(CONCATENATE("'",D$1,"'!",D$4,(YEAR($A62)-1921)*12+MONTH($A62)+3+IF(ISNUMBER(FIND("PRV",D$6)),1,0)))*IF(AND(D$3>0,TRIM(D$9)="CFS"),Conversions!$C62,1) -> 0 | E62: =INDIRECT(CONCATENATE("'",E$1,"'!",E$4,(YEAR($A62)-1921)*12+MONTH($A62)+3+IF(ISNUMBER(FIND("PRV",E$6)),1,0)))*IF(AND(E$3>0,TRIM(E$9)="CFS"),Conversions!$C62,1) ->  | F62: =INDIRECT(CONCATENATE("'",F$1,"'!",F$4,(YEAR($A62)-1921)*12+MONTH($A62)+3+IF(ISNUMBER(FIND("PRV",F$6)),1,0)))*IF(AND(F$3>0,TRIM(F$9)="CFS"),Conversions!$C62,1) ->  | G62: =INDIRECT(CONCATENATE("'",G$1,"'!",G$4,(YEAR($A62)-1921)*12+MONTH($A62)+3+IF(ISNUMBER(FIND("PRV",G$6)),1,0)))*IF(AND(G$3>0,TRIM(G$9)="CFS"),Conversions!$C62,1) ->  | K62: 1972 | L62: =B613 -> 0 | M62: =B614 -> 0 | N62: =B615 -> 0 | O62: =B616 -> 0 | P62: =B617 -> 0 | Q62: =B618 -> 0 | R62: =B619 -> 0 | S62: =B620 -> 0 | T62: =B621 -> 0 | U62: =B622 -> 0 | V62: =B623 -> 0 | W62: =B624 -> 0 | Y62: 0 | Z62: 0 | AA62: 0 | AC62: 0 | AD62: 0 | AE62: 0 | AF62: 0 | AG62: 0 | AH62: 0 | AI62: 0 | AK62: 1972 | AL62: =C613 -> 27.5862069 | AM62: =C614 -> 0 | AN62: =C615 -> 1.192093314e-07 | AO62: =C616 -> 0 | AP62: =C617 -> 0 | AQ62: =C618 -> 3.684527874 | AR62: =C619 -> 8.304939042 | AS62: =C620 -> 83.0378161 | AT62: =C621 -> 105.4959577 | AU62: =C622 -> 160.3818784 | AV62: =C623 -> 148.0648689 | AW62: =C624 -> 82.98312941 | AY62: 635.9540303 | AZ62: 635.9540303 | BA62: 619.5393244 | BC62: 3.684527993 | BD62: 275.0489112 | BE62: 27.58620702 | BF62: 1.192093314e-07 | BG62: 200.5232407 | BH62: 496.9258344 | BI62: 126.9840424 | BK62: 1972 | BL62: =D613 -> 27.5862069 | BM62: =D614 -> 0 | BN62: =D615 -> 0 | BO62: =D616 -> 0 | BP62: =D617 -> 0 | BQ62: =D618 -> 3.684527874 | BR62: =D619 -> 8.304939042 | BS62: =D620 -> 83.0378161 | BT62: =D621 -> 115.6844118 | BU62: =D622 -> 160.3818784 | BV62: =D623 -> 123.7279178 | BW62: =D624 -> 79.40560987 | BY62: 630.405584 | BZ62: 630.405584 | CA62: 601.8133078 | CC62: 3.684527874 | CD62: 259.3120108 | CE62: 27.5862069 | CF62: 0 | CG62: 210.7116948 | CH62: 479.1998178 | CI62: 135.584093 | CK62: 1972 | CL62: =E613 ->  | CM62: =E614 ->  | CN62: =E615 ->  | CO62: =E616 ->  | CP62: =E617 ->  | CQ62: =E618 ->  | CR62: =E619 ->  | CS62: =E620 ->  | CT62: =E621 ->  | CU62: =E622 ->  | CV62: =E623 ->  | CW62: =E624 ->  | DK62: 1972 | DL62: =F613 ->  | DM62: =F614 ->  | DN62: =F615 ->  | DO62: =F616 ->  | DP62: =F617 ->  | DQ62: =F618 ->  | DR62: =F619 ->  | DS62: =F620 ->  | DT62: =F621 ->  | DU62: =F622 ->  | DV62: =F623 ->  | DW62: =F624 ->  | EK62: 1972 | EL62: =G613 ->  | EM62: =G614 ->  | EN62: =G615 ->  | EO62: =G616 ->  | EP62: =G617 ->  | EQ62: =G618 ->  | ER62: =G619 ->  | ES62: =G620 ->  | ET62: =G621 ->  | EU62: =G622 ->  | EV62: =G623 ->  | EW62: =G624 -> 
A63: 1925-12-31 | B63: =INDIRECT(CONCATENATE("'",B$1,"'!",B$4,(YEAR($A63)-1921)*12+MONTH($A63)+3+IF(ISNUMBER(FIND("PRV",B$6)),1,0)))*IF(AND(B$3>0,TRIM(B$9)="CFS"),Conversions!$C63,1) -> 0 | C63: =INDIRECT(CONCATENATE("'",C$1,"'!",C$4,(YEAR($A63)-1921)*12+MONTH($A63)+3+IF(ISNUMBER(FIND("PRV",C$6)),1,0)))*IF(AND(C$3>0,TRIM(C$9)="CFS"),Conversions!$C63,1) -> 0 | D63: =INDIRECT(CONCATENATE("'",D$1,"'!",D$4,(YEAR($A63)-1921)*12+MONTH($A63)+3+IF(ISNUMBER(FIND("PRV",D$6)),1,0)))*IF(AND(D$3>0,TRIM(D$9)="CFS"),Conversions!$C63,1) -> 0 | E63: =INDIRECT(CONCATENATE("'",E$1,"'!",E$4,(YEAR($A63)-1921)*12+MONTH($A63)+3+IF(ISNUMBER(FIND("PRV",E$6)),1,0)))*IF(AND(E$3>0,TRIM(E$9)="CFS"),Conversions!$C63,1) ->  | F63: =INDIRECT(CONCATENATE("'",F$1,"'!",F$4,(YEAR($A63)-1921)*12+MONTH($A63)+3+IF(ISNUMBER(FIND("PRV",F$6)),1,0)))*IF(AND(F$3>0,TRIM(F$9)="CFS"),Conversions!$C63,1) ->  | G63: =INDIRECT(CONCATENATE("'",G$1,"'!",G$4,(YEAR($A63)-1921)*12+MONTH($A63)+3+IF(ISNUMBER(FIND("PRV",G$6)),1,0)))*IF(AND(G$3>0,TRIM(G$9)="CFS"),Conversions!$C63,1) ->  | K63: 1973 | L63: =B625 -> 0 | M63: =B626 -> 0 | N63: =B627 -> 0 | O63: =B628 -> 0 | P63: =B629 -> 0 | Q63: =B630 -> 0 | R63: =B631 -> 0 | S63: =B632 -> 0 | T63: =B633 -> 0 | U63: =B634 -> 0 | V63: =B635 -> 0 | W63: =B636 -> 0 | Y63: 0 | Z63: 0 | AA63: 0 | AC63: 0 | AD63: 0 | AE63: 0 | AF63: 0 | AG63: 0 | AH63: 0 | AI63: 0 | AK63: 1973 | AL63: =C625 -> 44.00091296 | AM63: =C626 -> 0 | AN63: =C627 -> 0 | AO63: =C628 -> 0 | AP63: =C629 -> 0 | AQ63: =C630 -> 0 | AR63: =C631 -> 2.637190554 | AS63: =C632 -> 83.59480258 | AT63: =C633 -> 93.70617691 | AU63: =C634 -> 163.1016848 | AV63: =C635 -> 85.32527548 | AW63: =C636 -> 83.61999075 | AY63: 542.0896296 | AZ63: 542.0896296 | BA63: 555.986034 | BC63: 0 | BD63: 199.0497748 | BE63: 44.00091296 | BF63: 0 | BG63: 179.93817 | BH63: 425.7531279 | BI63: 113.7244993 | BK63: 1973 | BL63: =D625 -> 56.17848311 | BM63: =D626 -> 0 | BN63: =D627 -> 0 | BO63: =D628 -> 0 | BP63: =D629 -> 0 | BQ63: =D630 -> 0 | BR63: =D631 -> 2.637190554 | BS63: =D632 -> 83.59480258 | BT63: =D633 -> 93.70617691 | BU63: =D634 -> 129.4061719 | BV63: =D635 -> 21.86893649 | BW63: =D636 -> 77.08541114 | BY63: 438.4028439 | BZ63: 438.4028439 | CA63: 464.4771727 | CC63: 0 | CD63: 129.0585019 | CE63: 56.17848311 | CF63: 0 | CG63: 179.93817 | CH63: 322.0666965 | CI63: 107.1895655 | CK63: 1973 | CL63: =E625 ->  | CM63: =E626 ->  | CN63: =E627 ->  | CO63: =E628 ->  | CP63: =E629 ->  | CQ63: =E630 ->  | CR63: =E631 ->  | CS63: =E632 ->  | CT63: =E633 ->  | CU63: =E634 ->  | CV63: =E635 ->  | CW63: =E636 ->  | DK63: 1973 | DL63: =F625 ->  | DM63: =F626 ->  | DN63: =F627 ->  | DO63: =F628 ->  | DP63: =F629 ->  | DQ63: =F630 ->  | DR63: =F631 ->  | DS63: =F632 ->  | DT63: =F633 ->  | DU63: =F634 ->  | DV63: =F635 ->  | DW63: =F636 ->  | EK63: 1973 | EL63: =G625 ->  | EM63: =G626 ->  | EN63: =G627 ->  | EO63: =G628 ->  | EP63: =G629 ->  | EQ63: =G630 ->  | ER63: =G631 ->  | ES63: =G632 ->  | ET63: =G633 ->  | EU63: =G634 ->  | EV63: =G635 ->  | EW63: =G636 -> 
A64: 1926-01-31 | B64: =INDIRECT(CONCATENATE("'",B$1,"'!",B$4,(YEAR($A64)-1921)*12+MONTH($A64)+3+IF(ISNUMBER(FIND("PRV",B$6)),1,0)))*IF(AND(B$3>0,TRIM(B$9)="CFS"),Conversions!$C64,1) -> 0 | C64: =INDIRECT(CONCATENATE("'",C$1,"'!",C$4,(YEAR($A64)-1921)*12+MONTH($A64)+3+IF(ISNUMBER(FIND("PRV",C$6)),1,0)))*IF(AND(C$3>0,TRIM(C$9)="CFS"),Conversions!$C64,1) -> 0 | D64: =INDIRECT(CONCATENATE("'",D$1,"'!",D$4,(YEAR($A64)-1921)*12+MONTH($A64)+3+IF(ISNUMBER(FIND("PRV",D$6)),1,0)))*IF(AND(D$3>0,TRIM(D$9)="CFS"),Conversions!$C64,1) -> 0 | E64: =INDIRECT(CONCATENATE("'",E$1,"'!",E$4,(YEAR($A64)-1921)*12+MONTH($A64)+3+IF(ISNUMBER(FIND("PRV",E$6)),1,0)))*IF(AND(E$3>0,TRIM(E$9)="CFS"),Conversions!$C64,1) ->  | F64: =INDIRECT(CONCATENATE("'",F$1,"'!",F$4,(YEAR($A64)-1921)*12+MONTH($A64)+3+IF(ISNUMBER(FIND("PRV",F$6)),1,0)))*IF(AND(F$3>0,TRIM(F$9)="CFS"),Conversions!$C64,1) ->  | G64: =INDIRECT(CONCATENATE("'",G$1,"'!",G$4,(YEAR($A64)-1921)*12+MONTH($A64)+3+IF(ISNUMBER(FIND("PRV",G$6)),1,0)))*IF(AND(G$3>0,TRIM(G$9)="CFS"),Conversions!$C64,1) ->  | K64: 1974 | L64: =B637 -> 0 | M64: =B638 -> 0 | N64: =B639 -> 0 | O64: =B640 -> 0 | P64: =B641 -> 0 | Q64: =B642 -> 0 | R64: =B643 -> 0 | S64: =B644 -> 0 | T64: =B645 -> 0 | U64: =B646 -> 0 | V64: =B647 -> 0 | W64: =B648 -> 0 | Y64: 0 | Z64: 0 | AA64: 0 | AC64: 0 | AD64: 0 | AE64: 0 | AF64: 0 | AG64: 0 | AH64: 0 | AI64: 0 | AK64: 1974 | AL64: =C637 -> 30.10450854 | AM64: =C638 -> 0 | AN64: =C639 -> 0 | AO64: =C640 -> 0 | AP64: =C641 -> 0 | AQ64: =C642 -> 0 | AR64: =C643 -> 1.221460019 | AS64: =C644 -> 0 | AT64: =C645 -> 0 | AU64: =C646 -> 16.86280466 | AV64: =C647 -> 30.0862069 | AW64: =C648 -> 41.94901156 | AY64: 117.70569 | AZ64: 117.70569 | BA64: 120.2239917 | BC64: 0 | BD64: 99.62142536 | BE64: 30.10450854 | BF64: 0 | BG64: 1.221460019 | BH64: 88.89802313 | BI64: 69.53521846 | BK64: 1974 | BL64: =D637 -> 30.10415431 | BM64: =D638 -> 0 | BN64: =D639 -> 0 | BO64: =D640 -> 0 | BP64: =D641 -> 0 | BQ64: =D642 -> 0 | BR64: =D643 -> 1.221460019 | BS64: =D644 -> 0 | BT64: =D645 -> 0 | BU64: =D646 -> 27.475 | BV64: =D647 -> 30.0862069 | BW64: =D648 -> 52.5612069 | BY64: 138.9300807 | BZ64: 138.9300807 | CA64: 141.4480281 | CC64: 0 | CD64: 110.2336207 | CE64: 30.10415431 | CF64: 0 | CG64: 1.221460019 | CH64: 110.1224138 | CI64: 80.1474138 | CK64: 1974 | CL64: =E637 ->  | CM64: =E638 ->  | CN64: =E639 ->  | CO64: =E640 ->  | CP64: =E641 ->  | CQ64: =E642 ->  | CR64: =E643 ->  | CS64: =E644 ->  | CT64: =E645 ->  | CU64: =E646 ->  | CV64: =E647 ->  | CW64: =E648 ->  | DK64: 1974 | DL64: =F637 ->  | DM64: =F638 ->  | DN64: =F639 ->  | DO64: =F640 ->  | DP64: =F641 ->  | DQ64: =F642 ->  | DR64: =F643 ->  | DS64: =F644 ->  | DT64: =F645 ->  | DU64: =F646 ->  | DV64: =F647 ->  | DW64: =F648 ->  | EK64: 1974 | EL64: =G637 ->  | EM64: =G638 ->  | EN64: =G639 ->  | EO64: =G640 ->  | EP64: =G641 ->  | EQ64: =G642 ->  | ER64: =G643 ->  | ES64: =G644 ->  | ET64: =G645 ->  | EU64: =G646 ->  | EV64: =G647 ->  | EW64: =G648 -> 
A65: 1926-02-28 | B65: =INDIRECT(CONCATENATE("'",B$1,"'!",B$4,(YEAR($A65)-1921)*12+MONTH($A65)+3+IF(ISNUMBER(FIND("PRV",B$6)),1,0)))*IF(AND(B$3>0,TRIM(B$9)="CFS"),Conversions!$C65,1) -> 0 | C65: =INDIRECT(CONCATENATE("'",C$1,"'!",C$4,(YEAR($A65)-1921)*12+MONTH($A65)+3+IF(ISNUMBER(FIND("PRV",C$6)),1,0)))*IF(AND(C$3>0,TRIM(C$9)="CFS"),Conversions!$C65,1) -> 0 | D65: =INDIRECT(CONCATENATE("'",D$1,"'!",D$4,(YEAR($A65)-1921)*12+MONTH($A65)+3+IF(ISNUMBER(FIND("PRV",D$6)),1,0)))*IF(AND(D$3>0,TRIM(D$9)="CFS"),Conversions!$C65,1) -> 0 | E65: =INDIRECT(CONCATENATE("'",E$1,"'!",E$4,(YEAR($A65)-1921)*12+MONTH($A65)+3+IF(ISNUMBER(FIND("PRV",E$6)),1,0)))*IF(AND(E$3>0,TRIM(E$9)="CFS"),Conversions!$C65,1) ->  | F65: =INDIRECT(CONCATENATE("'",F$1,"'!",F$4,(YEAR($A65)-1921)*12+MONTH($A65)+3+IF(ISNUMBER(FIND("PRV",F$6)),1,0)))*IF(AND(F$3>0,TRIM(F$9)="CFS"),Conversions!$C65,1) ->  | G65: =INDIRECT(CONCATENATE("'",G$1,"'!",G$4,(YEAR($A65)-1921)*12+MONTH($A65)+3+IF(ISNUMBER(FIND("PRV",G$6)),1,0)))*IF(AND(G$3>0,TRIM(G$9)="CFS"),Conversions!$C65,1) ->  | K65: 1975 | L65: =B649 -> 0 | M65: =B650 -> 0 | N65: =B651 -> 0 | O65: =B652 -> 0 | P65: =B653 -> 0 | Q65: =B654 -> 0 | R65: =B655 -> 0 | S65: =B656 -> 0 | T65: =B657 -> 0 | U65: =B658 -> 0 | V65: =B659 -> 0 | W65: =B660 -> 0 | Y65: 0 | Z65: 0 | AA65: 0 | AC65: 0 | AD65: 0 | AE65: 0 | AF65: 0 | AG65: 0 | AH65: 0 | AI65: 0 | AK65: 1975 | AL65: =C649 -> 27.5862069 | AM65: =C650 -> 0 | AN65: =C651 -> 0 | AO65: =C652 -> 0 | AP65: =C653 -> 0 | AQ65: =C654 -> 0 | AR65: =C655 -> 0.003979658367 | AS65: =C656 -> 0 | AT65: =C657 -> 1.651179459 | AU65: =C658 -> 2.5 | AV65: =C659 -> 30.0862069 | AW65: =C660 -> 28.23501226 | AY65: 90.06258518 | AZ65: 90.06258518 | BA65: 90.06258518 | BC65: 0 | BD65: 85.90742606 | BE65: 27.5862069 | BF65: 0 | BG65: 1.655159118 | BH65: 62.47239862 | BI65: 55.82121916 | BK65: 1975 | BL65: =D649 -> 27.5862069 | BM65: =D650 -> 0 | BN65: =D651 -> 0 | BO65: =D652 -> 0 | BP65: =D653 -> 0 | BQ65: =D654 -> 0 | BR65: =D655 -> 0.003979658367 | BS65: =D656 -> 0 | BT65: =D657 -> 1.651179459 | BU65: =D658 -> 2.5 | BV65: =D659 -> 30.0862069 | BW65: =D660 -> 28.23501226 | BY65: 90.06258518 | BZ65: 90.06258518 | CA65: 90.06258518 | CC65: 0 | CD65: 85.90742606 | CE65: 27.5862069 | CF65: 0 | CG65: 1.655159118 | CH65: 62.47239862 | CI65: 55.82121916 | CK65: 1975 | CL65: =E649 ->  | CM65: =E650 ->  | CN65: =E651 ->  | CO65: =E652 ->  | CP65: =E653 ->  | CQ65: =E654 ->  | CR65: =E655 ->  | CS65: =E656 ->  | CT65: =E657 ->  | CU65: =E658 ->  | CV65: =E659 ->  | CW65: =E660 ->  | DK65: 1975 | DL65: =F649 ->  | DM65: =F650 ->  | DN65: =F651 ->  | DO65: =F652 ->  | DP65: =F653 ->  | DQ65: =F654 ->  | DR65: =F655 ->  | DS65: =F656 ->  | DT65: =F657 ->  | DU65: =F658 ->  | DV65: =F659 ->  | DW65: =F660 ->  | EK65: 1975 | EL65: =G649 ->  | EM65: =G650 ->  | EN65: =G651 ->  | EO65: =G652 ->  | EP65: =G653 ->  | EQ65: =G654 ->  | ER65: =G655 ->  | ES65: =G656 ->  | ET65: =G657 ->  | EU65: =G658 ->  | EV65: =G659 ->  | EW65: =G660 -> 
A66: 1926-03-31 | B66: =INDIRECT(CONCATENATE("'",B$1,"'!",B$4,(YEAR($A66)-1921)*12+MONTH($A66)+3+IF(ISNUMBER(FIND("PRV",B$6)),1,0)))*IF(AND(B$3>0,TRIM(B$9)="CFS"),Conversions!$C66,1) -> 0 | C66: =INDIRECT(CONCATENATE("'",C$1,"'!",C$4,(YEAR($A66)-1921)*12+MONTH($A66)+3+IF(ISNUMBER(FIND("PRV",C$6)),1,0)))*IF(AND(C$3>0,TRIM(C$9)="CFS"),Conversions!$C66,1) -> 0.6337170079 | D66: =INDIRECT(CONCATENATE("'",D$1,"'!",D$4,(YEAR($A66)-1921)*12+MONTH($A66)+3+IF(ISNUMBER(FIND("PRV",D$6)),1,0)))*IF(AND(D$3>0,TRIM(D$9)="CFS"),Conversions!$C66,1) -> 0.6542616388 | E66: =INDIRECT(CONCATENATE("'",E$1,"'!",E$4,(YEAR($A66)-1921)*12+MONTH($A66)+3+IF(ISNUMBER(FIND("PRV",E$6)),1,0)))*IF(AND(E$3>0,TRIM(E$9)="CFS"),Conversions!$C66,1) ->  | F66: =INDIRECT(CONCATENATE("'",F$1,"'!",F$4,(YEAR($A66)-1921)*12+MONTH($A66)+3+IF(ISNUMBER(FIND("PRV",F$6)),1,0)))*IF(AND(F$3>0,TRIM(F$9)="CFS"),Conversions!$C66,1) ->  | G66: =INDIRECT(CONCATENATE("'",G$1,"'!",G$4,(YEAR($A66)-1921)*12+MONTH($A66)+3+IF(ISNUMBER(FIND("PRV",G$6)),1,0)))*IF(AND(G$3>0,TRIM(G$9)="CFS"),Conversions!$C66,1) ->  | K66: 1976 | L66: =B661 -> 0 | M66: =B662 -> 0 | N66: =B663 -> 0 | O66: =B664 -> 0 | P66: =B665 -> 0 | Q66: =B666 -> 0 | R66: =B667 -> 0 | S66: =B668 -> 0 | T66: =B669 -> 0 | U66: =B670 -> 0 | V66: =B671 -> 0 | W66: =B672 -> 0 | Y66: 0 | Z66: 0 | AA66: 0 | AC66: 0 | AD66: 0 | AE66: 0 | AF66: 0 | AG66: 0 | AH66: 0 | AI66: 0 | AK66: 1976 | AL66: =C661 -> 27.5862069 | AM66: =C662 -> 0 | AN66: =C663 -> 0 | AO66: =C664 -> 0 | AP66: =C665 -> 0 | AQ66: =C666 -> 11.5278895 | AR66: =C667 -> 15.41095569 | AS66: =C668 -> 84.10473691 | AT66: =C669 -> 123.2743846 | AU66: =C670 -> 144.0069046 | AV66: =C671 -> 129.3454332 | AW66: =C672 -> 80.72633325 | AY66: 660.5928304 | AZ66: 660.5928304 | BA66: 615.9828446 | BC66: 11.5278895 | BD66: 261.5992527 | BE66: 27.5862069 | BF66: 0 | BG66: 234.3179667 | BH66: 477.3530556 | BI66: 137.0571367 | BK66: 1976 | BL66: =D661 -> 27.5862069 | BM66: =D662 -> 0 | BN66: =D663 -> 0 | BO66: =D664 -> 0 | BP66: =D665 -> 0 | BQ66: =D666 -> 11.52805656 | BR66: =D667 -> 15.41117903 | BS66: =D668 -> 84.10473691 | BT66: =D669 -> 127.7404339 | BU66: =D670 -> 149.9482243 | BV66: =D671 -> 135.564718 | BW66: =D672 -> 84.66845895 | BY66: 655.6486053 | BZ66: 655.6487036 | CA66: 636.5520146 | CC66: 11.52805656 | CD66: 251.2028897 | CE66: 27.5862069 | CF66: 0 | CG66: 238.7844064 | CH66: 497.9218352 | CI66: 117.3781717 | CK66: 1976 | CL66: =E661 ->  | CM66: =E662 ->  | CN66: =E663 ->  | CO66: =E664 ->  | CP66: =E665 ->  | CQ66: =E666 ->  | CR66: =E667 ->  | CS66: =E668 ->  | CT66: =E669 ->  | CU66: =E670 ->  | CV66: =E671 ->  | CW66: =E672 ->  | DK66: 1976 | DL66: =F661 ->  | DM66: =F662 ->  | DN66: =F663 ->  | DO66: =F664 ->  | DP66: =F665 ->  | DQ66: =F666 ->  | DR66: =F667 ->  | DS66: =F668 ->  | DT66: =F669 ->  | DU66: =F670 ->  | DV66: =F671 ->  | DW66: =F672 ->  | EK66: 1976 | EL66: =G661 ->  | EM66: =G662 ->  | EN66: =G663 ->  | EO66: =G664 ->  | EP66: =G665 ->  | EQ66: =G666 ->  | ER66: =G667 ->  | ES66: =G668 ->  | ET66: =G669 ->  | EU66: =G670 ->  | EV66: =G671 ->  | EW66: =G672 -> 
A67: 1926-04-30 | B67: =INDIRECT(CONCATENATE("'",B$1,"'!",B$4,(YEAR($A67)-1921)*12+MONTH($A67)+3+IF(ISNUMBER(FIND("PRV",B$6)),1,0)))*IF(AND(B$3>0,TRIM(B$9)="CFS"),Conversions!$C67,1) -> 0 | C67: =INDIRECT(CONCATENATE("'",C$1,"'!",C$4,(YEAR($A67)-1921)*12+MONTH($A67)+3+IF(ISNUMBER(FIND("PRV",C$6)),1,0)))*IF(AND(C$3>0,TRIM(C$9)="CFS"),Conversions!$C67,1) -> 1.821976626 | D67: =INDIRECT(CONCATENATE("'",D$1,"'!",D$4,(YEAR($A67)-1921)*12+MONTH($A67)+3+IF(ISNUMBER(FIND("PRV",D$6)),1,0)))*IF(AND(D$3>0,TRIM(D$9)="CFS"),Conversions!$C67,1) -> 1.881039863 | E67: =INDIRECT(CONCATENATE("'",E$1,"'!",E$4,(YEAR($A67)-1921)*12+MONTH($A67)+3+IF(ISNUMBER(FIND("PRV",E$6)),1,0)))*IF(AND(E$3>0,TRIM(E$9)="CFS"),Conversions!$C67,1) ->  | F67: =INDIRECT(CONCATENATE("'",F$1,"'!",F$4,(YEAR($A67)-1921)*12+MONTH($A67)+3+IF(ISNUMBER(FIND("PRV",F$6)),1,0)))*IF(AND(F$3>0,TRIM(F$9)="CFS"),Conversions!$C67,1) ->  | G67: =INDIRECT(CONCATENATE("'",G$1,"'!",G$4,(YEAR($A67)-1921)*12+MONTH($A67)+3+IF(ISNUMBER(FIND("PRV",G$6)),1,0)))*IF(AND(G$3>0,TRIM(G$9)="CFS"),Conversions!$C67,1) ->  | K67: 1977 | L67: =B673 -> 0 | M67: =B674 -> 0 | N67: =B675 -> 0 | O67: =B676 -> 0 | P67: =B677 -> 0 | Q67: =B678 -> 0 | R67: =B679 -> 0 | S67: =B680 -> 0 | T67: =B681 -> 0 | U67: =B682 -> 0 | V67: =B683 -> 0 | W67: =B684 -> 0 | Y67: 0 | Z67: 0 | AA67: 0 | AC67: 0 | AD67: 0 | AE67: 0 | AF67: 0 | AG67: 0 | AH67: 0 | AI67: 0 | AK67: 1977 | AL67: =C673 -> 51.52748627 | AM67: =C674 -> 4.80331715 | AN67: =C675 -> 15.86538929 | AO67: =C676 -> 0 | AP67: =C677 -> 0 | AQ67: =C678 -> 0 | AR67: =C679 -> 75.8064105 | AS67: =C680 -> 49.14054721 | AT67: =C681 -> 109.6112354 | AU67: =C682 -> 119.3264463 | AV67: =C683 -> 109.1580601 | AW67: =C684 -> 5.173113039 | AY67: 501.8140435 | AZ67: 501.8140435 | BA67: 540.4120053 | BC67: 20.66870644 | BD67: 132.0765735 | BE67: 72.19619271 | BF67: 15.86538929 | BG67: 234.5581932 | BH67: 343.2688549 | BI67: 35.30755392 | BK67: 1977 | BL67: =D673 -> 30.96971273 | BM67: =D674 -> 1.74 | BN67: =D675 -> 13.97308488 | BO67: =D676 -> 0 | BP67: =D677 -> 9.827987272e-05 | BQ67: =D678 -> 0 | BR67: =D679 -> 63.62580455 | BS67: =D680 -> 38.94581482 | BT67: =D681 -> 115.5578512 | BU67: =D682 -> 119.3264463 | BV67: =D683 -> 109.1580601 | BW67: =D684 -> 10.67674476 | BY67: 494.0581938 | BZ67: 494.0580955 | CA67: 503.9736177 | CC67: 15.71318316 | CD67: 138.7875498 | CE67: 46.68279761 | CF67: 13.97318316 | CG67: 218.1294706 | CH67: 354.7191024 | CI67: 42.97588851 | CK67: 1977 | CL67: =E673 ->  | CM67: =E674 ->  | CN67: =E675 ->  | CO67: =E676 ->  | CP67: =E677 ->  | CQ67: =E678 ->  | CR67: =E679 ->  | CS67: =E680 ->  | CT67: =E681 ->  | CU67: =E682 ->  | CV67: =E683 ->  | CW67: =E684 ->  | DK67: 1977 | DL67: =F673 ->  | DM67: =F674 ->  | DN67: =F675 ->  | DO67: =F676 ->  | DP67: =F677 ->  | DQ67: =F678 ->  | DR67: =F679 ->  | DS67: =F680 ->  | DT67: =F681 ->  | DU67: =F682 ->  | DV67: =F683 ->  | DW67: =F684 ->  | EK67: 1977 | EL67: =G673 ->  | EM67: =G674 ->  | EN67: =G675 ->  | EO67: =G676 ->  | EP67: =G677 ->  | EQ67: =G678 ->  | ER67: =G679 ->  | ES67: =G680 ->  | ET67: =G681 ->  | EU67: =G682 ->  | EV67: =G683 ->  | EW67: =G684 -> 
A68: 1926-05-31 | B68: =INDIRECT(CONCATENATE("'",B$1,"'!",B$4,(YEAR($A68)-1921)*12+MONTH($A68)+3+IF(ISNUMBER(FIND("PRV",B$6)),1,0)))*IF(AND(B$3>0,TRIM(B$9)="CFS"),Conversions!$C68,1) -> 0 | C68: =INDIRECT(CONCATENATE("'",C$1,"'!",C$4,(YEAR($A68)-1921)*12+MONTH($A68)+3+IF(ISNUMBER(FIND("PRV",C$6)),1,0)))*IF(AND(C$3>0,TRIM(C$9)="CFS"),Conversions!$C68,1) -> 64.10038925 | D68: =INDIRECT(CONCATENATE("'",D$1,"'!",D$4,(YEAR($A68)-1921)*12+MONTH($A68)+3+IF(ISNUMBER(FIND("PRV",D$6)),1,0)))*IF(AND(D$3>0,TRIM(D$9)="CFS"),Conversions!$C68,1) -> 47.84814901 | E68: =INDIRECT(CONCATENATE("'",E$1,"'!",E$4,(YEAR($A68)-1921)*12+MONTH($A68)+3+IF(ISNUMBER(FIND("PRV",E$6)),1,0)))*IF(AND(E$3>0,TRIM(E$9)="CFS"),Conversions!$C68,1) ->  | F68: =INDIRECT(CONCATENATE("'",F$1,"'!",F$4,(YEAR($A68)-1921)*12+MONTH($A68)+3+IF(ISNUMBER(FIND("PRV",F$6)),1,0)))*IF(AND(F$3>0,TRIM(F$9)="CFS"),Conversions!$C68,1) ->  | G68: =INDIRECT(CONCATENATE("'",G$1,"'!",G$4,(YEAR($A68)-1921)*12+MONTH($A68)+3+IF(ISNUMBER(FIND("PRV",G$6)),1,0)))*IF(AND(G$3>0,TRIM(G$9)="CFS"),Conversions!$C68,1) ->  | K68: 1978 | L68: =B685 -> 0 | M68: =B686 -> 0 | N68: =B687 -> 0 | O68: =B688 -> 0 | P68: =B689 -> 0 | Q68: =B690 -> 0 | R68: =B691 -> 0 | S68: =B692 -> 0 | T68: =B693 -> 0 | U68: =B694 -> 0 | V68: =B695 -> 0 | W68: =B696 -> 0 | Y68: 0 | Z68: 0 | AA68: 0 | AC68: 0 | AD68: 0 | AE68: 0 | AF68: 0 | AG68: 0 | AH68: 0 | AI68: 0 | AK68: 1978 | AL68: =C685 -> 17.74540036 | AM68: =C686 -> 12.38904052 | AN68: =C687 -> 3.463790022 | AO68: =C688 -> 0 | AP68: =C689 -> 0 | AQ68: =C690 -> 0 | AR68: =C691 -> 0.2944548933 | AS68: =C692 -> 0 | AT68: =C693 -> 93.29567941 | AU68: =C694 -> 104.3248739 | AV68: =C695 -> 76.46052138 | AW68: =C696 -> 29.3262069 | AY68: 327.8008019 | AZ68: 327.8008019 | BA68: 337.2999674 | BC68: 15.85283054 | BD68: 126.4854634 | BE68: 33.5982309 | BF68: 3.463790022 | BG68: 93.59013431 | BH68: 303.4072816 | BI68: 51.76527236 | BK68: 1978 | BL68: =D685 -> 18.95274489 | BM68: =D686 -> 13.34639885 | BN68: =D687 -> 4.468229964 | BO68: =D688 -> 0 | BP68: =D689 -> 0 | BQ68: =D690 -> 0 | BR68: =D691 -> 0.2944548933 | BS68: =D692 -> 0 | BT68: =D693 -> 93.29567941 | BU68: =D694 -> 58.8805339 | BV68: =D695 -> 31.33651115 | BW68: =D696 -> 27.5862069 | BY68: 243.239534 | BZ68: 243.239534 | CA68: 248.16076 | CC68: 17.81462882 | CD68: 87.36886583 | CE68: 36.76737371 | CF68: 4.468229964 | CG68: 93.59013431 | CH68: 211.0989314 | CI68: 57.77235468 | CK68: 1978 | CL68: =E685 ->  | CM68: =E686 ->  | CN68: =E687 ->  | CO68: =E688 ->  | CP68: =E689 ->  | CQ68: =E690 ->  | CR68: =E691 ->  | CS68: =E692 ->  | CT68: =E693 ->  | CU68: =E694 ->  | CV68: =E695 ->  | CW68: =E696 ->  | DK68: 1978 | DL68: =F685 ->  | DM68: =F686 ->  | DN68: =F687 ->  | DO68: =F688 ->  | DP68: =F689 ->  | DQ68: =F690 ->  | DR68: =F691 ->  | DS68: =F692 ->  | DT68: =F693 ->  | DU68: =F694 ->  | DV68: =F695 ->  | DW68: =F696 ->  | EK68: 1978 | EL68: =G685 ->  | EM68: =G686 ->  | EN68: =G687 ->  | EO68: =G688 ->  | EP68: =G689 ->  | EQ68: =G690 ->  | ER68: =G691 ->  | ES68: =G692 ->  | ET68: =G693 ->  | EU68: =G694 ->  | EV68: =G695 ->  | EW68: =G696 -> 
